Workbook

Sheet Info
AL1: に
D6: 山形県 | AW6: =本体用データ!V13 -> 
Q7: =IF(AND(RIGHT(D6,1)="県",OR(S6<>"",AH6<>"")),"旧市区町村又は農業集落を空欄にしてください。",IF(ISERROR(本体用データ!U3),"選択した地域は存在しません。旧市区町村又は農業集落を選び直してください。","")) -> 
E11: =IF(OR(AA13="x",AA13="-"),"","農業経営体数は"&TEXT(AA13,"#,###経営体")&本体用データ!I13) -> 農業経営体数は22,775経営体で、2020年に比べて5,466経営体（19.4%）減少
D13: 2025年 | J13: 農業経営体 | AA13: =本体用データ!G17 -> 22,775 | AI13: =本体用データ!H17 -> (△19.4%) | AZ13: 単位：経営体
C15: 団体経営体 | Q15: 個人経営体
C16: =本体用データ!G20 -> 1,035 | I16: =本体用データ!H20 -> ( 2.7%) | AD16: =本体用データ!G18 -> 21,740 | AM16: =本体用データ!H18 -> (△20.2%)
E17: 法人経営体 | Q17: 主業経営体 | AE17: 準主業経営体 | AS17: 副業的経営体
E18: =S37 -> 793 | K18: =本体用データ!H21 -> ( 26.7%) | Q18: =本体用データ!K18 -> 6,093 | X18: =本体用データ!L18 -> (△20.8%) | AE18: =本体用データ!K19 -> 2,226 | AL18: =本体用データ!L19 -> (△45.2%) | AS18: =本体用データ!K20 -> 13,421 | AY18: =本体用データ!L20 -> (△13.2%)
K20: 農 家 | BF20: 単位：戸
Z21: =本体用データ!O18 -> 32,755 | AI21: =本体用データ!P18 -> (△17.3%)
D23: 販売農家 | AR23: 自給的農家
O24: =本体用データ!O19 -> 21,442 | W24: =本体用データ!P19 -> (△20.0%) | AV24: =本体用データ!O20 -> 11,313 | BB24: =本体用データ!P20 -> (△11.8%)
F25: ※（ ）は2020年農林業センサスからの増減率
E30: =IF(OR(S36="x",S36="-"),"","法人化している農業経営体は"&TEXT(S36,"#,###経営体")&本体用データ!G34) -> 法人化している農業経営体は793経営体で、2020年に比べて167経営体（26.7%）増加
AM31: 単位：経営体、％ | BC31: 《農業経営体数》 | BO31: 《法人化している 農業経営体数》
B32: 区 分 | N32: 合計 | S32: 法人化している | AM32: 地方公 共団体 等 | AR32: 法人化 して いない
S33: 計 | X33: 農事組 合法人 | AC33: 会社 | AH33: 各種 団体等 | BC33: =本体用データ!W4 -> 山形県 | BO33: =本体用データ!W4 -> 山形県
B34: 実数 | D34: 2020年 | H34: 農業経営体 | N34: =OFFSET('2020年'!$A$1,本体用データ!$V$3,本体用データ!$F33) -> 28,241 | S34: =OFFSET('2020年'!$A$1,本体用データ!$V$3,本体用データ!$F33+1) -> 626 | X34: =OFFSET('2020年'!$A$1,本体用データ!$V$3,本体用データ!$F33+2) -> 202 | AC34: =OFFSET('2020年'!$A$1,本体用データ!$V$3,本体用データ!$F33+3) -> 382 | AH34: =OFFSET('2020年'!$A$1,本体用データ!$V$3,本体用データ!$F33+4) -> 42 | AM34: =OFFSET('2020年'!$A$1,本体用データ!$V$3,本体用データ!$F33+5) -> 4 | AR34: =OFFSET('2020年'!$A$1,本体用データ!$V$3,本体用データ!$F33+6) -> 27,611
H35: うち団体 | N35: =OFFSET('2020年'!$A$1,本体用データ!$V$4,本体用データ!$F34) -> 1,008 | S35: =OFFSET('2020年'!$A$1,本体用データ!$V$3,本体用データ!$F34+1) -> 626 | X35: =OFFSET('2020年'!$A$1,本体用データ!$V$3,本体用データ!$F34+2) -> 202 | AC35: =OFFSET('2020年'!$A$1,本体用データ!$V$3,本体用データ!$F34+3) -> 382 | AH35: =OFFSET('2020年'!$A$1,本体用データ!$V$3,本体用データ!$F34+4) -> 42 | AM35: =OFFSET('2020年'!$A$1,本体用データ!$V$3,本体用データ!$F34+5) -> 4 | AR35: =OFFSET('2020年'!$A$1,本体用データ!$V$3,本体用データ!$F34+6) -> 378
D36: 2025年 | H36: 農業経営体 | N36: =OFFSET('2025年'!$A$1,本体用データ!$V$4,本体用データ!$F36) -> 22,775 | S36: =OFFSET('2025年'!$A$1,本体用データ!$V$4,本体用データ!$F36+1) -> 793 | X36: =OFFSET('2025年'!$A$1,本体用データ!$V$4,本体用データ!$F36+2) -> 222 | AC36: =OFFSET('2025年'!$A$1,本体用データ!$V$4,本体用データ!$F36+3) -> 530 | AH36: =OFFSET('2025年'!$A$1,本体用データ!$V$4,本体用データ!$F36+4) -> 41 | AM36: =OFFSET('2025年'!$A$1,本体用データ!$V$4,本体用データ!$F36+5) -> 4 | AR36: =OFFSET('2025年'!$A$1,本体用データ!$V$4,本体用データ!$F36+6) -> 21,978
H37: うち団体 | N37: =OFFSET('2025年'!$A$1,本体用データ!$V$4,本体用データ!$F38) -> 1,035 | S37: =OFFSET('2025年'!$A$1,本体用データ!$V$4,本体用データ!$F38+1) -> 793 | X37: =OFFSET('2025年'!$A$1,本体用データ!$V$4,本体用データ!$F38+2) -> 222 | AC37: =OFFSET('2025年'!$A$1,本体用データ!$V$4,本体用データ!$F38+3) -> 530 | AH37: =OFFSET('2025年'!$A$1,本体用データ!$V$4,本体用データ!$F38+4) -> 41 | AM37: =OFFSET('2025年'!$A$1,本体用データ!$V$4,本体用データ!$F38+5) -> 4 | AR37: =OFFSET('2025年'!$A$1,本体用データ!$V$4,本体用データ!$F38+6) -> 238
B38: 構成比 | D38: 2020年 | H38: 農業経営体 | N38: =IF(OR(N34="x",$N34="x"),"x",IF(OR($N34="@",$N34=0,$N34="-"),"nc",IF(N34="-","-",N34/$N34%))) -> 100.0 | S38: =IF(OR(S34="x",$N34="x"),"x",IF(OR($N34="@",$N34=0,$N34="-"),"nc",IF(S34="-","-",S34/$N34%))) -> 2.2 | X38: =IF(OR(X34="x",$N34="x"),"x",IF(OR($N34="@",$N34=0,$N34="-"),"nc",IF(X34="-","-",X34/$N34%))) -> 0.7 | AC38: =IF(OR(AC34="x",$N34="x"),"x",IF(OR($N34="@",$N34=0,$N34="-"),"nc",IF(AC34="-","-",AC34/$N34%))) -> 1.4 | AH38: =IF(OR(AH34="x",$N34="x"),"x",IF(OR($N34="@",$N34=0,$N34="-"),"nc",IF(AH34="-","-",AH34/$N34%))) -> 0.1 | AM38: =IF(OR(AM34="x",$N34="x"),"x",IF(OR($N34="@",$N34=0,$N34="-"),"nc",IF(AM34="-","-",AM34/$N34%))) -> 0.0 | AR38: =IF(OR(AR34="x",$N34="x"),"x",IF(OR($N34="@",$N34=0,$N34="-"),"nc",IF(AR34="-","-",AR34/$N34%))) -> 97.8
H39: うち団体 | N39: =IF(OR(N35="x",$N35="x"),"x",IF(OR($N35="@",$N35=0,$N35="-"),"nc",IF(N35="-","-",N35/$N35%))) -> 100.0 | S39: =IF(OR(S35="x",$N35="x"),"x",IF(OR($N35="@",$N35=0,$N35="-"),"nc",IF(S35="-","-",S35/$N35%))) -> 62.1 | X39: =IF(OR(X35="x",$N35="x"),"x",IF(OR($N35="@",$N35=0,$N35="-"),"nc",IF(X35="-","-",X35/$N35%))) -> 20.0 | AC39: =IF(OR(AC35="x",$N35="x"),"x",IF(OR($N35="@",$N35=0,$N35="-"),"nc",IF(AC35="-","-",AC35/$N35%))) -> 37.9 | AH39: =IF(OR(AH35="x",$N35="x"),"x",IF(OR($N35="@",$N35=0,$N35="-"),"nc",IF(AH35="-","-",AH35/$N35%))) -> 4.2 | AM39: =IF(OR(AM35="x",$N35="x"),"x",IF(OR($N35="@",$N35=0,$N35="-"),"nc",IF(AM35="-","-",AM35/$N35%))) -> 0.4 | AR39: =IF(OR(AR35="x",$N35="x"),"x",IF(OR($N35="@",$N35=0,$N35="-"),"nc",IF(AR35="-","-",AR35/$N35%))) -> 37.5
D40: 2025年 | H40: 農業経営体 | N40: =IF(OR(N36="x",$N36="x"),"x",IF(OR($N36=0,$N36="-"),"nc",IF(N36="-","-",N36/$N36%))) -> 100.0 | S40: =IF(OR(S36="x",$N36="x"),"x",IF(OR($N36=0,$N36="-"),"nc",IF(S36="-","-",S36/$N36%))) -> 3.5 | X40: =IF(OR(X36="x",$N36="x"),"x",IF(OR($N36=0,$N36="-"),"nc",IF(X36="-","-",X36/$N36%))) -> 1.0 | AC40: =IF(OR(AC36="x",$N36="x"),"x",IF(OR($N36=0,$N36="-"),"nc",IF(AC36="-","-",AC36/$N36%))) -> 2.3 | AH40: =IF(OR(AH36="x",$N36="x"),"x",IF(OR($N36=0,$N36="-"),"nc",IF(AH36="-","-",AH36/$N36%))) -> 0.2 | AM40: =IF(OR(AM36="x",$N36="x"),"x",IF(OR($N36=0,$N36="-"),"nc",IF(AM36="-","-",AM36/$N36%))) -> 0.0 | AR40: =IF(OR(AR36="x",$N36="x"),"x",IF(OR($N36=0,$N36="-"),"nc",IF(AR36="-","-",AR36/$N36%))) -> 96.5
H41: うち団体 | N41: =IF(OR(N37="x",$N37="x"),"x",IF(OR($N37=0,$N37="-"),"nc",IF(N37="-","-",N37/$N37%))) -> 100.0 | S41: =IF(OR(S37="x",$N37="x"),"x",IF(OR($N37=0,$N37="-"),"nc",IF(S37="-","-",S37/$N37%))) -> 76.6 | X41: =IF(OR(X37="x",$N37="x"),"x",IF(OR($N37=0,$N37="-"),"nc",IF(X37="-","-",X37/$N37%))) -> 21.4 | AC41: =IF(OR(AC37="x",$N37="x"),"x",IF(OR($N37=0,$N37="-"),"nc",IF(AC37="-","-",AC37/$N37%))) -> 51.2 | AH41: =IF(OR(AH37="x",$N37="x"),"x",IF(OR($N37=0,$N37="-"),"nc",IF(AH37="-","-",AH37/$N37%))) -> 4.0 | AM41: =IF(OR(AM37="x",$N37="x"),"x",IF(OR($N37=0,$N37="-"),"nc",IF(AM37="-","-",AM37/$N37%))) -> 0.4 | AR41: =IF(OR(AR37="x",$N37="x"),"x",IF(OR($N37=0,$N37="-"),"nc",IF(AR37="-","-",AR37/$N37%))) -> 23.0
B42: ※各種団体等は農協、森林組合、その他の各種団体、その他の法人の計
E47: =IF(OR(N56="x",N56="-"),"","雇用者のいる農業経営体は"&TEXT(N56,"#,###経営体")&本体用データ!G51) -> 雇用者のいる農業経営体は9,266経営体で、2020年に比べて1,250経営体（15.6%）増加
AN48: 《雇用者の有無別経営体数割合》 | BF48: 《１経営体当たり雇用者延べ人日》
B49: 区 分 | N49: 雇用者あり | AH49: 雇用者なし
N50: 経 営 体 数 | S50: 雇用者 延 べ 人 日 | X50: うち常雇い | AN50: =本体用データ!W4 -> 山形県 | BF50: =本体用データ!W4 -> 山形県
X51: 経 営 体 数 | AC51: 雇用者 実人数 | AN51: 外円： | AR51: 2025年
AN52: 内円： | AR52: 2020年
B53: 実数 | N53: （経営体） | S53: （人日） | X53: （経営体） | AC53: （人） | AH53: （経営体）
D54: 2020年 | H54: 農業経営体 | N54: =OFFSET('2020年'!$A$1,本体用データ!$V$4,本体用データ!$F50) -> 8,016 | S54: =OFFSET('2020年'!$A$1,本体用データ!$V$4,本体用データ!$F50+1) -> 1,261,041 | X54: =OFFSET('2020年'!$A$1,本体用データ!$V$4,本体用データ!$F50+2) -> 624 | AC54: =OFFSET('2020年'!$A$1,本体用データ!$V$4,本体用データ!$F50+3) -> 2,104 | AH54: =OFFSET('2020年'!$A$1,本体用データ!$V$4,本体用データ!$F50+4) -> 20,225
H55: うち団体 | N55: =OFFSET('2020年'!$A$1,本体用データ!$V$4,本体用データ!$F51) -> 560 | S55: =OFFSET('2020年'!$A$1,本体用データ!$V$4,本体用データ!$F51+1) -> 485,578 | X55: =OFFSET('2020年'!$A$1,本体用データ!$V$4,本体用データ!$F51+2) -> 263 | AC55: =OFFSET('2020年'!$A$1,本体用データ!$V$4,本体用データ!$F51+3) -> 1,465 | AH55: =OFFSET('2020年'!$A$1,本体用データ!$V$4,本体用データ!$F51+4) -> 448
D56: 2025年 | H56: 農業経営体 | N56: =OFFSET('2025年'!$A$1,本体用データ!$V$4,本体用データ!$F52) -> 9,266 | S56: =OFFSET('2025年'!$A$1,本体用データ!$V$4,本体用データ!$F52+1) -> 1,458,480 | X56: =OFFSET('2025年'!$A$1,本体用データ!$V$4,本体用データ!$F52+2) -> 1,123 | AC56: =OFFSET('2025年'!$A$1,本体用データ!$V$4,本体用データ!$F52+3) -> 3,444 | AH56: =OFFSET('2025年'!$A$1,本体用データ!$V$4,本体用データ!$F52+4) -> 13,509
H57: うち団体 | N57: =OFFSET('2025年'!$A$1,本体用データ!$V$4,本体用データ!$F53) -> 713 | S57: =OFFSET('2025年'!$A$1,本体用データ!$V$4,本体用データ!$F53+1) -> 580,588 | X57: =OFFSET('2025年'!$A$1,本体用データ!$V$4,本体用データ!$F53+2) -> 417 | AC57: =OFFSET('2025年'!$A$1,本体用データ!$V$4,本体用データ!$F53+3) -> 2,175 | AH57: =OFFSET('2025年'!$A$1,本体用データ!$V$4,本体用データ!$F53+4) -> 322
B58: 構成比 | D58: 2020年 | H58: 農業経営体 | N58: =IF(OR(N54="x",本体用データ!$G10="x"),"x",IF(OR(本体用データ!$G10="@",本体用データ!$G10=0,本体用データ!$G10="-"),"nc",IF(N54="-","-",N54/本体用データ!$G10%))) -> 28.4 | S58: =IF(OR(S54="x",$N54="x"),"x",IF(OR(本体用データ!$G10="@",$N54=0,$N54="-"),"nc",IF(S54="-","-",S54/$N54))) -> (157) | T58: =IF(OR($F56="X",T56="X"),"X",IF(SUM($F56)=0,"nc",IFERROR(SUM(T56)/$F56,"-"))) -> nc | U58: nc | V58: nc | W58: nc | X58: =IF(OR(X54="x",本体用データ!$G10="x"),"x",IF(OR(本体用データ!$G10="@",本体用データ!$G10=0,本体用データ!$G10="-"),"nc",IF(X54="-","-",X54/本体用データ!$G10%))) -> 2.2 | AC58: =IF(OR(AC54="x",$X54="x"),"x",IF(OR(本体用データ!$G10="@",$X54=0,$X54="-"),"nc",IF(AC54="-","-",AC54/$X54))) -> (3.4) | AD58: =IF(OR($F56="X",AD56="X"),"X",IF(SUM($F56)=0,"nc",IFERROR(SUM(AD56)/$F56,"-"))) -> nc | AE58: nc | AF58: nc | AG58: nc | AH58: =IF(OR(AH54="x",本体用データ!$G17="x"),"x",IF(OR(本体用データ!$G10="@",本体用データ!$G17=0,本体用データ!$G17="-"),"nc",IF(AH54="-","-",AH54/本体用データ!$G10%))) -> 71.6
H59: うち団体 | N59: =IF(OR(N55="x",本体用データ!$G13="x"),"x",IF(OR(本体用データ!$G13="@",本体用データ!$G13=0,本体用データ!$G13="-"),"nc",IF(N55="-","-",N55/本体用データ!$G13%))) -> 55.6 | S59: =IF(OR(S55="x",$N55="x"),"x",IF(OR(本体用データ!$G13="@",$N55=0,$N55="-"),"nc",IF(S55="-","-",S55/$N55))) -> (867) | T59: nc | U59: nc | V59: nc | W59: nc | X59: =IF(OR(X55="x",本体用データ!$G13="x"),"x",IF(OR(本体用データ!$G13="@",本体用データ!$G13=0,本体用データ!$G13="-"),"nc",IF(X55="-","-",X55/本体用データ!$G13%))) -> 26.1 | AC59: =IF(OR(AC55="x",$X55="x"),"x",IF(OR(本体用データ!$G13="@",$X55=0,$X55="-"),"nc",IF(AC55="-","-",AC55/$X55))) -> (5.6) | AD59: nc | AE59: nc | AF59: nc | AG59: nc | AH59: =IF(OR(AH55="x",本体用データ!$G13="x"),"x",IF(OR(本体用データ!$G13="@",本体用データ!$G13=0,本体用データ!$G13="-"),"nc",IF(AH55="-","-",AH55/本体用データ!$G13%))) -> 44.4
D60: 2025年 | H60: 農業経営体 | N60: =IF(OR(N56="x",本体用データ!$G17="x"),"x",IF(OR(本体用データ!$G17=0,本体用データ!$G17="-"),"nc",IF(N56="-","-",N56/本体用データ!$G17%))) -> 40.7 | S60: =IF(OR(S56="x",$N56="x"),"x",IF(OR($N56=0,$N56="-"),"nc",IF(S56="-","-",S56/$N56))) -> (157) | T60: nc | U60: nc | V60: nc | W60: nc | X60: =IF(OR(X56="x",本体用データ!$G17="x"),"x",IF(OR(本体用データ!$G17=0,本体用データ!$G17="-"),"nc",IF(X56="-","-",X56/本体用データ!$G17%))) -> 4.9 | AC60: =IF(OR(AC56="x",$X56="x"),"x",IF(OR($X56=0,$X56="-"),"nc",IF(AC56="-","-",AC56/$X56))) -> (3.1) | AD60: nc | AE60: nc | AF60: nc | AG60: nc | AH60: =IF(OR(AH56="x",本体用データ!$G17="x"),"x",IF(OR(本体用データ!$G17=0,本体用データ!$G17="-"),"nc",IF(AH56="-","-",AH56/本体用データ!$G17%))) -> 59.3
H61: うち団体 | N61: =IF(OR(N57="x",本体用データ!$G20="x"),"x",IF(OR(本体用データ!$G20=0,本体用データ!$G20="-"),"nc",IF(N57="-","-",N57/本体用データ!$G20%))) -> 68.9 | S61: =IF(OR(S57="x",$N57="x"),"x",IF(OR($N57=0,$N57="-"),"nc",IF(S57="-","-",S57/$N57))) -> (814) | T61: nc | U61: nc | V61: nc | W61: nc | X61: =IF(OR(X57="x",本体用データ!$G20="x"),"x",IF(OR(本体用データ!$G20=0,本体用データ!$G20="-"),"nc",IF(X57="-","-",X57/本体用データ!$G20%))) -> 40.3 | AC61: =IF(OR(AC57="x",$X57="x"),"x",IF(OR($X57=0,$X57="-"),"nc",IF(AC57="-","-",AC57/$X57))) -> (5.2) | AD61: nc | AE61: nc | AF61: nc | AG61: nc | AH61: =IF(OR(AH57="x",本体用データ!$G20="x"),"x",IF(OR(本体用データ!$G20=0,本体用データ!$G20="-"),"nc",IF(AH57="-","-",AH57/本体用データ!$G20%))) -> 31.1
B62: ※構成比欄は、農業経営体数の計に対する割合。なお、（ ）は１経営体当たり
B63: の人日・人数
E70: =IF(OR(AW77="x",AW77="-"),"","経営耕地面積が10ha以上の農業経営体は"&TEXT(AW77,"#,###経営体")&本体用データ!G75) -> 経営耕地面積が10ha以上の農業経営体は2,080経営体で、2020年に比べて231経営体（12.5%）増加
BQ72: 単位：経営体、％
B73: 区 分 | N73: 経営耕地 のある 経営体計 | S73: 0.5ha 未満 | X73: 0.5 ～ 1.0 | AC73: 1.0 ～ 2.0 | AH73: 2.0 ～ 3.0 | AM73: 3.0 ～ 5.0 | AR73: 5.0 ～ 10.0 | AW73: 10.0ha 以上
BB74: 10.0 ～ 20.0 | BG74: 20.0 ～ 30.0 | BL74: 30.0 ～ 50.0 | BQ74: 50.0 ～ 100.0 | BV74: 100ha 以上
B75: 実数 | D75: 2020年 | H75: 農業経営体 | N75: =OFFSET('2020年'!$A$1,本体用データ!$V$4,本体用データ!$F74) -> 27,863 | S75: =OFFSET('2020年'!$A$1,本体用データ!$V$4,本体用データ!$F74+1) -> 4,152 | X75: =OFFSET('2020年'!$A$1,本体用データ!$V$4,本体用データ!$F74+2) -> 5,089 | AC75: =OFFSET('2020年'!$A$1,本体用データ!$V$4,本体用データ!$F74+3) -> 6,160 | AH75: =OFFSET('2020年'!$A$1,本体用データ!$V$4,本体用データ!$F74+4) -> 3,548 | AM75: =OFFSET('2020年'!$A$1,本体用データ!$V$4,本体用データ!$F74+5) -> 3,704 | AR75: =OFFSET('2020年'!$A$1,本体用データ!$V$4,本体用データ!$F74+6) -> 3,361 | AW75: =OFFSET('2020年'!$A$1,本体用データ!$V$4,本体用データ!$F74+7) -> 1,849 | BB75: =OFFSET('2020年'!$A$1,本体用データ!$V$4,本体用データ!$F74+8) -> 1,315 | BG75: =OFFSET('2020年'!$A$1,本体用データ!$V$4,本体用データ!$F74+9) -> 298 | BL75: =OFFSET('2020年'!$A$1,本体用データ!$V$4,本体用データ!$F74+10) -> 144 | BQ75: =OFFSET('2020年'!$A$1,本体用データ!$V$4,本体用データ!$F74+11) -> 72 | BV75: =OFFSET('2020年'!$A$1,本体用データ!$V$4,本体用データ!$F74+12) -> 20
H76: うち団体 | N76: =OFFSET('2020年'!$A$1,本体用データ!$V$4,本体用データ!$F75) -> 713 | S76: =OFFSET('2020年'!$A$1,本体用データ!$V$4,本体用データ!$F75+1) -> 32 | X76: =OFFSET('2020年'!$A$1,本体用データ!$V$4,本体用データ!$F75+2) -> 38 | AC76: =OFFSET('2020年'!$A$1,本体用データ!$V$4,本体用データ!$F75+3) -> 44 | AH76: =OFFSET('2020年'!$A$1,本体用データ!$V$4,本体用データ!$F75+4) -> 35 | AM76: =OFFSET('2020年'!$A$1,本体用データ!$V$4,本体用データ!$F75+5) -> 54 | AR76: =OFFSET('2020年'!$A$1,本体用データ!$V$4,本体用データ!$F75+6) -> 100 | AW76: =OFFSET('2020年'!$A$1,本体用データ!$V$4,本体用データ!$F75+7) -> 410 | BB76: =OFFSET('2020年'!$A$1,本体用データ!$V$4,本体用データ!$F75+8) -> 130 | BG76: =OFFSET('2020年'!$A$1,本体用データ!$V$4,本体用データ!$F75+9) -> 95 | BL76: =OFFSET('2020年'!$A$1,本体用データ!$V$4,本体用データ!$F75+10) -> 101 | BQ76: =OFFSET('2020年'!$A$1,本体用データ!$V$4,本体用データ!$F75+11) -> 64 | BV76: =OFFSET('2020年'!$A$1,本体用データ!$V$4,本体用データ!$F75+12) -> 20
D77: 2025年 | H77: 農業経営体 | N77: =OFFSET('2025年'!$A$1,本体用データ!$V$4,本体用データ!$F77) -> 22,525 | S77: =OFFSET('2025年'!$A$1,本体用データ!$V$4,本体用データ!$F77+1) -> 3,472 | X77: =OFFSET('2025年'!$A$1,本体用データ!$V$4,本体用データ!$F77+2) -> 3,914 | AC77: =OFFSET('2025年'!$A$1,本体用データ!$V$4,本体用データ!$F77+3) -> 4,594 | AH77: =OFFSET('2025年'!$A$1,本体用データ!$V$4,本体用データ!$F77+4) -> 2,622 | AM77: =OFFSET('2025年'!$A$1,本体用データ!$V$4,本体用データ!$F77+5) -> 2,998 | AR77: =OFFSET('2025年'!$A$1,本体用データ!$V$4,本体用データ!$F77+6) -> 2,845 | AW77: =OFFSET('2025年'!$A$1,本体用データ!$V$4,本体用データ!$F77+7) -> 2,080 | BB77: =OFFSET('2025年'!$A$1,本体用データ!$V$4,本体用データ!$F77+8) -> 1,398 | BG77: =OFFSET('2025年'!$A$1,本体用データ!$V$4,本体用データ!$F77+9) -> 356 | BL77: =OFFSET('2025年'!$A$1,本体用データ!$V$4,本体用データ!$F77+10) -> 223 | BQ77: =OFFSET('2025年'!$A$1,本体用データ!$V$4,本体用データ!$F77+11) -> 81 | BV77: =OFFSET('2025年'!$A$1,本体用データ!$V$4,本体用データ!$F77+12) -> 22
H78: うち団体 | N78: =OFFSET('2025年'!$A$1,本体用データ!$V$4,本体用データ!$F79) -> 842 | S78: =OFFSET('2025年'!$A$1,本体用データ!$V$4,本体用データ!$F79+1) -> 50 | X78: =OFFSET('2025年'!$A$1,本体用データ!$V$4,本体用データ!$F79+2) -> 33 | AC78: =OFFSET('2025年'!$A$1,本体用データ!$V$4,本体用データ!$F79+3) -> 54 | AH78: =OFFSET('2025年'!$A$1,本体用データ!$V$4,本体用データ!$F79+4) -> 37 | AM78: =OFFSET('2025年'!$A$1,本体用データ!$V$4,本体用データ!$F79+5) -> 78 | AR78: =OFFSET('2025年'!$A$1,本体用データ!$V$4,本体用データ!$F79+6) -> 111 | AW78: =OFFSET('2025年'!$A$1,本体用データ!$V$4,本体用データ!$F79+7) -> 479 | BB78: =OFFSET('2025年'!$A$1,本体用データ!$V$4,本体用データ!$F79+8) -> 138 | BG78: =OFFSET('2025年'!$A$1,本体用データ!$V$4,本体用データ!$F79+9) -> 107 | BL78: =OFFSET('2025年'!$A$1,本体用データ!$V$4,本体用データ!$F79+10) -> 140 | BQ78: =OFFSET('2025年'!$A$1,本体用データ!$V$4,本体用データ!$F79+11) -> 72 | BV78: =OFFSET('2025年'!$A$1,本体用データ!$V$4,本体用データ!$F79+12) -> 22
B79: 構成比 | D79: 2020年 | H79: 農業経営体 | N79: =IF(OR(N75="x",$N75="x",本体用データ!$G10="x"),"x",IF(OR($N75="@",$N75=0,$N75="-"),"nc",IF(N75="-","-",N75/$N75%))) -> 100.0 | S79: =IF(OR(S75="x",$N75="x",本体用データ!$G10="x"),"x",IF(OR($N75="@",$N75=0,$N75="-"),"nc",IF(S75="-","-",S75/$N75%))) -> 14.9 | X79: =IF(OR(X75="x",$N75="x",本体用データ!$G10="x"),"x",IF(OR($N75="@",$N75=0,$N75="-"),"nc",IF(X75="-","-",X75/$N75%))) -> 18.3 | AC79: =IF(OR(AC75="x",$N75="x",本体用データ!$G10="x"),"x",IF(OR($N75="@",$N75=0,$N75="-"),"nc",IF(AC75="-","-",AC75/$N75%))) -> 22.1 | AH79: =IF(OR(AH75="x",$N75="x",本体用データ!$G10="x"),"x",IF(OR($N75="@",$N75=0,$N75="-"),"nc",IF(AH75="-","-",AH75/$N75%))) -> 12.7 | AM79: =IF(OR(AM75="x",$N75="x",本体用データ!$G10="x"),"x",IF(OR($N75="@",$N75=0,$N75="-"),"nc",IF(AM75="-","-",AM75/$N75%))) -> 13.3 | AR79: =IF(OR(AR75="x",$N75="x",本体用データ!$G10="x"),"x",IF(OR($N75="@",$N75=0,$N75="-"),"nc",IF(AR75="-","-",AR75/$N75%))) -> 12.1 | AW79: =IF(OR(AW75="x",$N75="x",本体用データ!$G10="x"),"x",IF(OR($N75="@",$N75=0,$N75="-"),"nc",IF(AW75="-","-",AW75/$N75%))) -> 6.6 | BB79: =IF(OR(BB75="x",$N75="x",本体用データ!$G10="x"),"x",IF(OR($N75="@",$N75=0,$N75="-"),"nc",IF(BB75="-","-",BB75/$N75%))) -> 4.7 | BG79: =IF(OR(BG75="x",$N75="x",本体用データ!$G10="x"),"x",IF(OR($N75="@",$N75=0,$N75="-"),"nc",IF(BG75="-","-",BG75/$N75%))) -> 1.1 | BL79: =IF(OR(BL75="x",$N75="x",本体用データ!$G10="x"),"x",IF(OR($N75="@",$N75=0,$N75="-"),"nc",IF(BL75="-","-",BL75/$N75%))) -> 0.5 | BQ79: =IF(OR(BQ75="x",$N75="x",本体用データ!$G10="x"),"x",IF(OR($N75="@",$N75=0,$N75="-"),"nc",IF(BQ75="-","-",BQ75/$N75%))) -> 0.3 | BV79: =IF(OR(BV75="x",$N75="x",本体用データ!$G10="x"),"x",IF(OR($N75="@",$N75=0,$N75="-"),"nc",IF(BV75="-","-",BV75/$N75%))) -> 0.1
H80: うち団体 | N80: =IF(OR(N76="x",$N76="x",本体用データ!$G13="x"),"x",IF(OR($N76="@",$N76=0,$N76="-"),"nc",IF(N76="-","-",N76/$N76%))) -> 100.0 | S80: =IF(OR(S76="x",$N76="x",本体用データ!$G13="x"),"x",IF(OR($N76="@",$N76=0,$N76="-"),"nc",IF(S76="-","-",S76/$N76%))) -> 4.5 | X80: =IF(OR(X76="x",$N76="x",本体用データ!$G13="x"),"x",IF(OR($N76="@",$N76=0,$N76="-"),"nc",IF(X76="-","-",X76/$N76%))) -> 5.3 | AC80: =IF(OR(AC76="x",$N76="x",本体用データ!$G13="x"),"x",IF(OR($N76="@",$N76=0,$N76="-"),"nc",IF(AC76="-","-",AC76/$N76%))) -> 6.2 | AH80: =IF(OR(AH76="x",$N76="x",本体用データ!$G13="x"),"x",IF(OR($N76="@",$N76=0,$N76="-"),"nc",IF(AH76="-","-",AH76/$N76%))) -> 4.9 | AM80: =IF(OR(AM76="x",$N76="x",本体用データ!$G13="x"),"x",IF(OR($N76="@",$N76=0,$N76="-"),"nc",IF(AM76="-","-",AM76/$N76%))) -> 7.6 | AR80: =IF(OR(AR76="x",$N76="x",本体用データ!$G13="x"),"x",IF(OR($N76="@",$N76=0,$N76="-"),"nc",IF(AR76="-","-",AR76/$N76%))) -> 14.0 | AW80: =IF(OR(AW76="x",$N76="x",本体用データ!$G13="x"),"x",IF(OR($N76="@",$N76=0,$N76="-"),"nc",IF(AW76="-","-",AW76/$N76%))) -> 57.5 | BB80: =IF(OR(BB76="x",$N76="x",本体用データ!$G13="x"),"x",IF(OR($N76="@",$N76=0,$N76="-"),"nc",IF(BB76="-","-",BB76/$N76%))) -> 18.2 | BG80: =IF(OR(BG76="x",$N76="x",本体用データ!$G13="x"),"x",IF(OR($N76="@",$N76=0,$N76="-"),"nc",IF(BG76="-","-",BG76/$N76%))) -> 13.3 | BL80: =IF(OR(BL76="x",$N76="x",本体用データ!$G13="x"),"x",IF(OR($N76="@",$N76=0,$N76="-"),"nc",IF(BL76="-","-",BL76/$N76%))) -> 14.2 | BQ80: =IF(OR(BQ76="x",$N76="x",本体用データ!$G13="x"),"x",IF(OR($N76="@",$N76=0,$N76="-"),"nc",IF(BQ76="-","-",BQ76/$N76%))) -> 9.0 | BV80: =IF(OR(BV76="x",$N76="x",本体用データ!$G13="x"),"x",IF(OR($N76="@",$N76=0,$N76="-"),"nc",IF(BV76="-","-",BV76/$N76%))) -> 2.8
D81: 2025年 | H81: 農業経営体 | N81: =IF(OR(N77="x",$N77="x",本体用データ!$G17="x"),"x",IF(OR($N77=0,$N77="-"),"nc",IF(N77="-","-",N77/$N77%))) -> 100.0 | S81: =IF(OR(S77="x",$N77="x",本体用データ!$G17="x"),"x",IF(OR($N77=0,$N77="-"),"nc",IF(S77="-","-",S77/$N77%))) -> 15.4 | X81: =IF(OR(X77="x",$N77="x",本体用データ!$G17="x"),"x",IF(OR($N77=0,$N77="-"),"nc",IF(X77="-","-",X77/$N77%))) -> 17.4 | AC81: =IF(OR(AC77="x",$N77="x",本体用データ!$G17="x"),"x",IF(OR($N77=0,$N77="-"),"nc",IF(AC77="-","-",AC77/$N77%))) -> 20.4 | AH81: =IF(OR(AH77="x",$N77="x",本体用データ!$G17="x"),"x",IF(OR($N77=0,$N77="-"),"nc",IF(AH77="-","-",AH77/$N77%))) -> 11.6 | AM81: =IF(OR(AM77="x",$N77="x",本体用データ!$G17="x"),"x",IF(OR($N77=0,$N77="-"),"nc",IF(AM77="-","-",AM77/$N77%))) -> 13.3 | AR81: =IF(OR(AR77="x",$N77="x",本体用データ!$G17="x"),"x",IF(OR($N77=0,$N77="-"),"nc",IF(AR77="-","-",AR77/$N77%))) -> 12.6 | AW81: =IF(OR(AW77="x",$N77="x",本体用データ!$G17="x"),"x",IF(OR($N77=0,$N77="-"),"nc",IF(AW77="-","-",AW77/$N77%))) -> 9.2 | BB81: =IF(OR(BB77="x",$N77="x",本体用データ!$G17="x"),"x",IF(OR($N77=0,$N77="-"),"nc",IF(BB77="-","-",BB77/$N77%))) -> 6.2 | BG81: =IF(OR(BG77="x",$N77="x",本体用データ!$G17="x"),"x",IF(OR($N77=0,$N77="-"),"nc",IF(BG77="-","-",BG77/$N77%))) -> 1.6 | BL81: =IF(OR(BL77="x",$N77="x",本体用データ!$G17="x"),"x",IF(OR($N77=0,$N77="-"),"nc",IF(BL77="-","-",BL77/$N77%))) -> 1.0 | BQ81: =IF(OR(BQ77="x",$N77="x",本体用データ!$G17="x"),"x",IF(OR($N77=0,$N77="-"),"nc",IF(BQ77="-","-",BQ77/$N77%))) -> 0.4 | BV81: =IF(OR(BV77="x",$N77="x",本体用データ!$G17="x"),"x",IF(OR($N77=0,$N77="-"),"nc",IF(BV77="-","-",BV77/$N77%))) -> 0.1
H82: うち団体 | N82: =IF(OR(N78="x",$N78="x",本体用データ!$G20="x"),"x",IF(OR($N78=0,$N78="-"),"nc",IF(N78="-","-",N78/$N78%))) -> 100.0 | S82: =IF(OR(S78="x",$N78="x",本体用データ!$G20="x"),"x",IF(OR($N78=0,$N78="-"),"nc",IF(S78="-","-",S78/$N78%))) -> 5.9 | X82: =IF(OR(X78="x",$N78="x",本体用データ!$G20="x"),"x",IF(OR($N78=0,$N78="-"),"nc",IF(X78="-","-",X78/$N78%))) -> 3.9 | AC82: =IF(OR(AC78="x",$N78="x",本体用データ!$G20="x"),"x",IF(OR($N78=0,$N78="-"),"nc",IF(AC78="-","-",AC78/$N78%))) -> 6.4 | AH82: =IF(OR(AH78="x",$N78="x",本体用データ!$G20="x"),"x",IF(OR($N78=0,$N78="-"),"nc",IF(AH78="-","-",AH78/$N78%))) -> 4.4 | AM82: =IF(OR(AM78="x",$N78="x",本体用データ!$G20="x"),"x",IF(OR($N78=0,$N78="-"),"nc",IF(AM78="-","-",AM78/$N78%))) -> 9.3 | AR82: =IF(OR(AR78="x",$N78="x",本体用データ!$G20="x"),"x",IF(OR($N78=0,$N78="-"),"nc",IF(AR78="-","-",AR78/$N78%))) -> 13.2 | AW82: =IF(OR(AW78="x",$N78="x",本体用データ!$G20="x"),"x",IF(OR($N78=0,$N78="-"),"nc",IF(AW78="-","-",AW78/$N78%))) -> 56.9 | BB82: =IF(OR(BB78="x",$N78="x",本体用データ!$G20="x"),"x",IF(OR($N78=0,$N78="-"),"nc",IF(BB78="-","-",BB78/$N78%))) -> 16.4 | BG82: =IF(OR(BG78="x",$N78="x",本体用データ!$G20="x"),"x",IF(OR($N78=0,$N78="-"),"nc",IF(BG78="-","-",BG78/$N78%))) -> 12.7 | BL82: =IF(OR(BL78="x",$N78="x",本体用データ!$G20="x"),"x",IF(OR($N78=0,$N78="-"),"nc",IF(BL78="-","-",BL78/$N78%))) -> 16.6 | BQ82: =IF(OR(BQ78="x",$N78="x",本体用データ!$G20="x"),"x",IF(OR($N78=0,$N78="-"),"nc",IF(BQ78="-","-",BQ78/$N78%))) -> 8.6 | BV82: =IF(OR(BV78="x",$N78="x",本体用データ!$G20="x"),"x",IF(OR($N78=0,$N78="-"),"nc",IF(BV78="-","-",BV78/$N78%))) -> 2.6
F84: 《経営耕地面積規模別の経営体数》 | AR84: 《経営耕地面積規模別の経営体数割合》
F85: =本体用データ!$W$4 -> 山形県 | AR85: 2025年
E101: =IF(OR(AV108="x",AV108="-"),"","10ha以上の農業経営体の経営耕地面積は"&TEXT(AV108,"#,###")&"ha"&本体用データ!G106) -> 10ha以上の農業経営体の経営耕地面積は45,123haで、2020年に比べて6,745ha（17.6%）増加
BQ103: 単位：ha、％
B104: 区 分 | N104: 経営耕地 面積計 | T104: 1.0ha 未満 | Y104: 1.0 ～ 2.0 | AE104: 2.0 ～ 3.0 | AK104: 3.0 ～ 5.0 | AQ104: 5.0 ～ 10.0 | AV104: 10.0ha 以上
BB105: 10.0 ～ 20.0 | BG105: 20.0 ～ 30.0 | BL105: 30.0 ～ 50.0 | BQ105: 50.0 ～ 100.0 | BV105: 100ha 以上
B106: 実数 | D106: 2020年 | H106: 農業経営体 | N106: =IFERROR(ROUND(本体用データ!K105/100,0),本体用データ!K105) -> 97,970 | T106: =IFERROR(ROUND(本体用データ!L105/100,0),本体用データ!L105) -> 4,895 | Y106: =IFERROR(ROUND(本体用データ!M105/100,0),本体用データ!M105) -> 8,728 | AE106: =IFERROR(ROUND(本体用データ!N105/100,0),本体用データ!N105) -> 8,560 | AK106: =IFERROR(ROUND(本体用データ!O105/100,0),本体用データ!O105) -> 14,244 | AQ106: =IFERROR(ROUND(本体用データ!P105/100,0),本体用データ!P105) -> 23,165 | AV106: =IFERROR(ROUND(本体用データ!Q105/100,0),本体用データ!Q105) -> 38,378 | BB106: =IFERROR(ROUND(本体用データ!R105/100,0),本体用データ!R105) -> 17,408 | BG106: =IFERROR(ROUND(本体用データ!S105/100,0),本体用データ!S105) -> 7,000 | BL106: =IFERROR(ROUND(本体用データ!T105/100,0),本体用データ!T105) -> 5,346 | BQ106: =IFERROR(ROUND(本体用データ!U105/100,0),本体用データ!U105) -> 4,810 | BV106: =IFERROR(ROUND(本体用データ!V105/100,0),本体用データ!V105) -> 3,815
H107: うち団体 | N107: =IFERROR(ROUND(本体用データ!K106/100,0),本体用データ!K106) -> 17,341 | T107: =IFERROR(ROUND(本体用データ!L106/100,0),本体用データ!L106) -> 38 | Y107: =IFERROR(ROUND(本体用データ!M106/100,0),本体用データ!M106) -> 62 | AE107: =IFERROR(ROUND(本体用データ!N106/100,0),本体用データ!N106) -> 85 | AK107: =IFERROR(ROUND(本体用データ!O106/100,0),本体用データ!O106) -> 207 | AQ107: =IFERROR(ROUND(本体用データ!P106/100,0),本体用データ!P106) -> 745 | AV107: =IFERROR(ROUND(本体用データ!Q106/100,0),本体用データ!Q106) -> 16,206 | BB107: =IFERROR(ROUND(本体用データ!R106/100,0),本体用データ!R106) -> 1,904 | BG107: =IFERROR(ROUND(本体用データ!S106/100,0),本体用データ!S106) -> 2,311 | BL107: =IFERROR(ROUND(本体用データ!T106/100,0),本体用データ!T106) -> 3,830 | BQ107: =IFERROR(ROUND(本体用データ!U106/100,0),本体用データ!U106) -> 4,346 | BV107: =IFERROR(ROUND(本体用データ!V106/100,0),本体用データ!V106) -> 3,815
D108: 2025年 | H108: 農業経営体 | N108: =IFERROR(ROUND(本体用データ!K108/100,0),本体用データ!K108) -> 92,968 | T108: =IFERROR(ROUND(本体用データ!L108/100,0),本体用データ!L108) -> 3,809 | Y108: =IFERROR(ROUND(本体用データ!M108/100,0),本体用データ!M108) -> 6,497 | AE108: =IFERROR(ROUND(本体用データ!N108/100,0),本体用データ!N108) -> 6,309 | AK108: =IFERROR(ROUND(本体用データ!O108/100,0),本体用データ!O108) -> 11,502 | AQ108: =IFERROR(ROUND(本体用データ!P108/100,0),本体用データ!P108) -> 19,729 | AV108: =IFERROR(ROUND(本体用データ!Q108/100,0),本体用データ!Q108) -> 45,123 | BB108: =IFERROR(ROUND(本体用データ!R108/100,0),本体用データ!R108) -> 18,740 | BG108: =IFERROR(ROUND(本体用データ!S108/100,0),本体用データ!S108) -> 8,426 | BL108: =IFERROR(ROUND(本体用データ!T108/100,0),本体用データ!T108) -> 8,280 | BQ108: =IFERROR(ROUND(本体用データ!U108/100,0),本体用データ!U108) -> 5,453 | BV108: =IFERROR(ROUND(本体用データ!V108/100,0),本体用データ!V108) -> 4,224
H109: うち団体 | N109: =IFERROR(ROUND(本体用データ!K110/100,0),本体用データ!K110) -> 20,345 | T109: =IFERROR(ROUND(本体用データ!L110/100,0),本体用データ!L110) -> 37 | Y109: =IFERROR(ROUND(本体用データ!M110/100,0),本体用データ!M110) -> 79 | AE109: =IFERROR(ROUND(本体用データ!N110/100,0),本体用データ!N110) -> 89 | AK109: =IFERROR(ROUND(本体用データ!O110/100,0),本体用データ!O110) -> 291 | AQ109: =IFERROR(ROUND(本体用データ!P110/100,0),本体用データ!P110) -> 824 | AV109: =IFERROR(ROUND(本体用データ!Q110/100,0),本体用データ!Q110) -> 19,025 | BB109: =IFERROR(ROUND(本体用データ!R110/100,0),本体用データ!R110) -> 1,954 | BG109: =IFERROR(ROUND(本体用データ!S110/100,0),本体用データ!S110) -> 2,625 | BL109: =IFERROR(ROUND(本体用データ!T110/100,0),本体用データ!T110) -> 5,324 | BQ109: =IFERROR(ROUND(本体用データ!U110/100,0),本体用データ!U110) -> 4,898 | BV109: =IFERROR(ROUND(本体用データ!V110/100,0),本体用データ!V110) -> 4,224
B110: 構成比 | D110: 2020年 | H110: 農業経営体 | N110: =本体用データ!K115 -> 100.0 | T110: =本体用データ!L115 -> 5.0 | Y110: =本体用データ!M115 -> 8.9 | AE110: =本体用データ!N115 -> 8.7 | AK110: =本体用データ!O115 -> 14.5 | AQ110: =本体用データ!P115 -> 23.6 | AV110: =本体用データ!Q115 -> 39.2 | BB110: =本体用データ!R115 -> 17.8 | BG110: =本体用データ!S115 -> 7.1 | BL110: =本体用データ!T115 -> 5.5 | BQ110: =本体用データ!U115 -> 4.9 | BV110: =本体用データ!V115 -> 3.9
H111: うち団体 | N111: =本体用データ!K116 -> 100.0 | T111: =本体用データ!L116 -> 0.2 | Y111: =本体用データ!M116 -> 0.4 | AE111: =本体用データ!N116 -> 0.5 | AK111: =本体用データ!O116 -> 1.2 | AQ111: =本体用データ!P116 -> 4.3 | AV111: =本体用データ!Q116 -> 93.5 | BB111: =本体用データ!R116 -> 11.0 | BG111: =本体用データ!S116 -> 13.3 | BL111: =本体用データ!T116 -> 22.1 | BQ111: =本体用データ!U116 -> 25.1 | BV111: =本体用データ!V116 -> 22.0
D112: 2025年 | H112: 農業経営体 | N112: =本体用データ!K117 -> 100.0 | T112: =本体用データ!L117 -> 4.1 | Y112: =本体用データ!M117 -> 7.0 | AE112: =本体用データ!N117 -> 6.8 | AK112: =本体用データ!O117 -> 12.4 | AQ112: =本体用データ!P117 -> 21.2 | AV112: =本体用データ!Q117 -> 48.5 | BB112: =本体用データ!R117 -> 20.2 | BG112: =本体用データ!S117 -> 9.1 | BL112: =本体用データ!T117 -> 8.9 | BQ112: =本体用データ!U117 -> 5.9 | BV112: =本体用データ!V117 -> 4.5
H113: うち団体 | N113: =本体用データ!K118 -> 100.0 | T113: =本体用データ!L118 -> 0.2 | Y113: =本体用データ!M118 -> 0.4 | AE113: =本体用データ!N118 -> 0.4 | AK113: =本体用データ!O118 -> 1.4 | AQ113: =本体用データ!P118 -> 4.0 | AV113: =本体用データ!Q118 -> 93.5 | BB113: =本体用データ!R118 -> 9.6 | BG113: =本体用データ!S118 -> 12.9 | BL113: =本体用データ!T118 -> 26.2 | BQ113: =本体用データ!U118 -> 24.1 | BV113: =本体用データ!V118 -> 20.8
F115: 《経営耕地面積規模別の経営耕地面積割合》 | AR115: 《個人、団体経営体別の経営耕地面積割合》
F116: =本体用データ!W4 -> 山形県 | BE116: =本体用データ!W4 -> 山形県
T121: =本体用データ!W5 -> 山形県 | BF121: =本体用データ!W5 -> 山形県
E131: =IF(OR(N138="x",N138="-"),"","１経営体当たり経営耕地面積は"&TEXT(N138,"#,##0.0")&"ha"&本体用データ!G136) -> １経営体当たり経営耕地面積は4.1haで、2020年に比べて0.6ha（17.1%）増加
Y133: 単位：ha、％ | AV133: 《１経営体当たり経営耕地面積》
B134: 区 分 | N134: 計 | U134: 自作地 | AB134: 借入耕地 | AK134: =本体用データ!W4 -> 山形県
B136: 実数 | D136: 2020年 | H136: 農業経営体 | N136: =IFERROR(ROUND(本体用データ!K135/100,1),本体用データ!K135) -> 3.5 | U136: =IFERROR(ROUND(本体用データ!L135/100,1),本体用データ!L135) -> 1.9 | AB136: =IFERROR(ROUND(本体用データ!M135/100,1),本体用データ!M135) -> 1.6
H137: うち団体 | N137: =IFERROR(ROUND(本体用データ!K136/100,1),本体用データ!K136) -> 24.3 | U137: =IFERROR(ROUND(本体用データ!L136/100,1),本体用データ!L136) -> 2.4 | AB137: =IFERROR(ROUND(本体用データ!M136/100,1),本体用データ!M136) -> 22.0
D138: 2025年 | H138: 農業経営体 | N138: =IFERROR(ROUND(本体用データ!K138/100,1),本体用データ!K138) -> 4.1 | U138: =IFERROR(ROUND(本体用データ!L138/100,1),本体用データ!L138) -> 2.0 | AB138: =IFERROR(ROUND(本体用データ!M138/100,1),本体用データ!M138) -> 2.2
H139: うち団体 | N139: 8.0 | U139: =IFERROR(ROUND(本体用データ!L140/100,1),本体用データ!L140) -> 2.9 | AB139: =IFERROR(ROUND(本体用データ!M140/100,1),本体用データ!M140) -> 21.2
B140: 構成比 | D140: 2020年 | H140: 農業経営体 | N140: =IF(OR(本体用データ!K135="x",本体用データ!$K135="x",本体用データ!$G10="x"),"x",IF(OR(本体用データ!$K135="@",本体用データ!K135="nc",本体用データ!$K135="nc",本体用データ!$K135=0,本体用データ!$K135="-"),"nc",IF(本体用データ!K135="-","-",本体用データ!K135/本体用データ!$K135%))) -> 100.0 | U140: =IF(OR(本体用データ!L135="x",本体用データ!$K135="x",本体用データ!$G10="x"),"x",IF(OR(本体用データ!$K135="@",本体用データ!L135="nc",本体用データ!$K135="nc",本体用データ!$K135=0,本体用データ!$K135="-"),"nc",IF(本体用データ!L135="-","-",本体用データ!L135/本体用データ!$K135%))) -> 54.4 | AB140: =IF(OR(本体用データ!M135="x",本体用データ!$K135="x",本体用データ!$G10="x"),"x",IF(OR(本体用データ!$K135="@",本体用データ!M135="nc",本体用データ!$K135="nc",本体用データ!$K135=0,本体用データ!$K135="-"),"nc",IF(本体用データ!M135="-","-",本体用データ!M135/本体用データ!$K135%))) -> 45.6 | AN140: 《１経営体当たり自作地、借入耕地別経営耕地面積割合》
H141: うち団体 | N141: =IF(OR(本体用データ!K136="x",本体用データ!$K136="x",本体用データ!$G13="x"),"x",IF(OR(本体用データ!$K135="@",本体用データ!K136="nc",本体用データ!$K136="nc",本体用データ!$K136=0,本体用データ!$K136="-"),"nc",IF(本体用データ!K136="-","-",本体用データ!K136/本体用データ!$K136%))) -> 100.0 | U141: =IF(OR(本体用データ!L136="x",本体用データ!$K136="x",本体用データ!$G13="x"),"x",IF(OR(本体用データ!$K135="@",本体用データ!L136="nc",本体用データ!$K136="nc",本体用データ!$K136=0,本体用データ!$K136="-"),"nc",IF(本体用データ!L136="-","-",本体用データ!L136/本体用データ!$K136%))) -> 9.7 | AB141: =IF(OR(本体用データ!M136="x",本体用データ!$K136="x",本体用データ!$G13="x"),"x",IF(OR(本体用データ!$K135="@",本体用データ!M136="nc",本体用データ!$K136="nc",本体用データ!$K136=0,本体用データ!$K136="-"),"nc",IF(本体用データ!M136="-","-",本体用データ!M136/本体用データ!$K136%))) -> 90.3 | AK141: 2025年
D142: 2025年 | H142: 農業経営体 | N142: =IF(OR(本体用データ!K138="x",本体用データ!$K138="x",本体用データ!$G17="x"),"x",IF(OR(本体用データ!K138="nc",本体用データ!$K138="nc",本体用データ!$K138=0,本体用データ!$K138="-"),"nc",IF(本体用データ!K138="-","-",本体用データ!K138/本体用データ!$K138%))) -> 100.0 | U142: =IF(OR(本体用データ!L138="x",本体用データ!$K138="x",本体用データ!$G17="x"),"x",IF(OR(本体用データ!L138="nc",本体用データ!$K138="nc",本体用データ!$K138=0,本体用データ!$K138="-"),"nc",IF(本体用データ!L138="-","-",本体用データ!L138/本体用データ!$K138%))) -> 47.6 | AB142: =IF(OR(本体用データ!M138="x",本体用データ!$K138="x",本体用データ!$G17="x"),"x",IF(OR(本体用データ!M138="nc",本体用データ!$K138="nc",本体用データ!$K138=0,本体用データ!$K138="-"),"nc",IF(本体用データ!M138="-","-",本体用データ!M138/本体用データ!$K138%))) -> 52.4
H143: うち団体 | N143: =IF(OR(本体用データ!K140="x",本体用データ!$K140="x",本体用データ!$G20="x"),"x",IF(OR(本体用データ!K140="nc",本体用データ!$K140="nc",本体用データ!$K140=0,本体用データ!$K140="-"),"nc",IF(本体用データ!K140="-","-",本体用データ!K140/本体用データ!$K140%))) -> 100.0 | U143: =IF(OR(本体用データ!L140="x",本体用データ!$K140="x",本体用データ!$G20="x"),"x",IF(OR(本体用データ!L140="nc",本体用データ!$K140="nc",本体用データ!$K140=0,本体用データ!$K140="-"),"nc",IF(本体用データ!L140="-","-",本体用データ!L140/本体用データ!$K140%))) -> 12.1 | AB143: =IF(OR(本体用データ!M140="x",本体用データ!$K140="x",本体用データ!$G20="x"),"x",IF(OR(本体用データ!M140="nc",本体用データ!$K140="nc",本体用データ!$K140=0,本体用データ!$K140="-"),"nc",IF(本体用データ!M140="-","-",本体用データ!M140/本体用データ!$K140%))) -> 87.9
B144: ※１経営体当たり経営耕地は、経営耕地/経営耕地のある経営体数
D145: により算出
E152: =IF(OR(AX158="x",AX158="-"),"","農産物販売金額3,000万円以上の農業経営体は"&TEXT(AX158,"#,###経営体")&本体用データ!G156) -> 農産物販売金額3,000万円以上の農業経営体は739経営体で、2020年に比べて108経営体（17.1%）増加
BP153: 単位：経営体、％
B154: 区 分 | N154: 農産物販売のある経営体計 | V154: 100万円未満 | AC154: 100 ～ 300 | AJ154: 300 ～ 1,000 | AQ154: 1,000 ～ 3,000 | AX154: 3,000万円 以上
BE155: 3,000 ～ 5,000 | BL155: 5,000万 ～ １億 | BS155: １億円以上
B156: 実数 | D156: 2020年 | H156: 農業経営体 | N156: =OFFSET('2020年'!$A$1,本体用データ!$V$4,本体用データ!$F155) -> 27,461 | V156: =OFFSET('2020年'!$A$1,本体用データ!$V$4,本体用データ!$F155+1) -> 7,498 | AC156: =OFFSET('2020年'!$A$1,本体用データ!$V$4,本体用データ!$F155+2) -> 7,825 | AJ156: =OFFSET('2020年'!$A$1,本体用データ!$V$4,本体用データ!$F155+3) -> 8,696 | AQ156: =OFFSET('2020年'!$A$1,本体用データ!$V$4,本体用データ!$F155+4) -> 2,811 | AX156: =OFFSET('2020年'!$A$1,本体用データ!$V$4,本体用データ!$F155+5) -> 631 | BE156: =OFFSET('2020年'!$A$1,本体用データ!$V$4,本体用データ!$F155+6) -> 365 | BL156: =OFFSET('2020年'!$A$1,本体用データ!$V$4,本体用データ!$F155+7) -> 144 | BS156: =OFFSET('2020年'!$A$1,本体用データ!$V$4,本体用データ!$F155+8) -> 122
H157: うち団体 | N157: =OFFSET('2020年'!$A$1,本体用データ!$V$4,本体用データ!$F156) -> 745 | V157: =OFFSET('2020年'!$A$1,本体用データ!$V$4,本体用データ!$F156+1) -> 86 | AC157: =OFFSET('2020年'!$A$1,本体用データ!$V$4,本体用データ!$F156+2) -> 55 | AJ157: =OFFSET('2020年'!$A$1,本体用データ!$V$4,本体用データ!$F156+3) -> 134 | AQ157: =OFFSET('2020年'!$A$1,本体用データ!$V$4,本体用データ!$F156+4) -> 177 | AX157: =OFFSET('2020年'!$A$1,本体用データ!$V$4,本体用データ!$F156+5) -> 293 | BE157: =OFFSET('2020年'!$A$1,本体用データ!$V$4,本体用データ!$F156+6) -> 108 | BL157: =OFFSET('2020年'!$A$1,本体用データ!$V$4,本体用データ!$F156+7) -> 83 | BS157: =OFFSET('2020年'!$A$1,本体用データ!$V$4,本体用データ!$F156+8) -> 102
D158: 2025年 | H158: 農業経営体 | N158: =OFFSET('2025年'!$A$1,本体用データ!$V$4,本体用データ!$F158) -> 22,241 | V158: =OFFSET('2025年'!$A$1,本体用データ!$V$4,本体用データ!$F158+1) -> 5,676 | AC158: =OFFSET('2025年'!$A$1,本体用データ!$V$4,本体用データ!$F158+2) -> 5,745 | AJ158: =OFFSET('2025年'!$A$1,本体用データ!$V$4,本体用データ!$F158+3) -> 7,062 | AQ158: =OFFSET('2025年'!$A$1,本体用データ!$V$4,本体用データ!$F158+4) -> 3,019 | AX158: =OFFSET('2025年'!$A$1,本体用データ!$V$4,本体用データ!$F158+5) -> 739 | BE158: =OFFSET('2025年'!$A$1,本体用データ!$V$4,本体用データ!$F158+6) -> 414 | BL158: =OFFSET('2025年'!$A$1,本体用データ!$V$4,本体用データ!$F158+7) -> 206 | BS158: =OFFSET('2025年'!$A$1,本体用データ!$V$4,本体用データ!$F158+8) -> 119
H159: うち団体 | N159: =OFFSET('2025年'!$A$1,本体用データ!$V$4,本体用データ!$F160) -> 880 | V159: =OFFSET('2025年'!$A$1,本体用データ!$V$4,本体用データ!$F160+1) -> 101 | AC159: =OFFSET('2025年'!$A$1,本体用データ!$V$4,本体用データ!$F160+2) -> 53 | AJ159: =OFFSET('2025年'!$A$1,本体用データ!$V$4,本体用データ!$F160+3) -> 142 | AQ159: =OFFSET('2025年'!$A$1,本体用データ!$V$4,本体用データ!$F160+4) -> 206 | AX159: =OFFSET('2025年'!$A$1,本体用データ!$V$4,本体用データ!$F160+5) -> 378 | BE159: =OFFSET('2025年'!$A$1,本体用データ!$V$4,本体用データ!$F160+6) -> 144 | BL159: =OFFSET('2025年'!$A$1,本体用データ!$V$4,本体用データ!$F160+7) -> 126 | BS159: =OFFSET('2025年'!$A$1,本体用データ!$V$4,本体用データ!$F160+8) -> 108
B160: 構成比 | D160: 2020年 | H160: 農業経営体 | N160: =IF(OR(N156="x",$N156="x",本体用データ!$G10="x"),"x",IF(OR($N156="@",$N156=0,$N156="-"),"nc",IF(N156="-","-",N156/$N156%))) -> 100.0 | V160: =IF(OR(V156="x",$N156="x",本体用データ!$G10="x"),"x",IF(OR($N156="@",$N156=0,$N156="-"),"nc",IF(V156="-","-",V156/$N156%))) -> 27.3 | AC160: =IF(OR(AC156="x",$N156="x",本体用データ!$G10="x"),"x",IF(OR($N156="@",$N156=0,$N156="-"),"nc",IF(AC156="-","-",AC156/$N156%))) -> 28.5 | AJ160: =IF(OR(AJ156="x",$N156="x",本体用データ!$G10="x"),"x",IF(OR($N156="@",$N156=0,$N156="-"),"nc",IF(AJ156="-","-",AJ156/$N156%))) -> 31.7 | AQ160: =IF(OR(AQ156="x",$N156="x",本体用データ!$G10="x"),"x",IF(OR($N156="@",$N156=0,$N156="-"),"nc",IF(AQ156="-","-",AQ156/$N156%))) -> 10.2 | AX160: =IF(OR(AX156="x",$N156="x",本体用データ!$G10="x"),"x",IF(OR($N156="@",$N156=0,$N156="-"),"nc",IF(AX156="-","-",AX156/$N156%))) -> 2.3 | BE160: =IF(OR(BE156="x",$N156="x",本体用データ!$G10="x"),"x",IF(OR($N156="@",$N156=0,$N156="-"),"nc",IF(BE156="-","-",BE156/$N156%))) -> 1.3 | BL160: =IF(OR(BL156="x",$N156="x",本体用データ!$G10="x"),"x",IF(OR($N156="@",$N156=0,$N156="-"),"nc",IF(BL156="-","-",BL156/$N156%))) -> 0.5 | BS160: =IF(OR(BS156="x",$N156="x",本体用データ!$G10="x"),"x",IF(OR($N156="@",$N156=0,$N156="-"),"nc",IF(BS156="-","-",BS156/$N156%))) -> 0.4
H161: うち団体 | N161: =IF(OR(N157="x",$N157="x",本体用データ!$G13="x"),"x",IF(OR($N157="@",$N157=0,$N157="-"),"nc",IF(N157="-","-",N157/$N157%))) -> 100.0 | V161: =IF(OR(V157="x",$N157="x",本体用データ!$G13="x"),"x",IF(OR($N157="@",$N157=0,$N157="-"),"nc",IF(V157="-","-",V157/$N157%))) -> 11.5 | AC161: =IF(OR(AC157="x",$N157="x",本体用データ!$G13="x"),"x",IF(OR($N157="@",$N157=0,$N157="-"),"nc",IF(AC157="-","-",AC157/$N157%))) -> 7.4 | AJ161: =IF(OR(AJ157="x",$N157="x",本体用データ!$G13="x"),"x",IF(OR($N157="@",$N157=0,$N157="-"),"nc",IF(AJ157="-","-",AJ157/$N157%))) -> 18.0 | AQ161: =IF(OR(AQ157="x",$N157="x",本体用データ!$G13="x"),"x",IF(OR($N157="@",$N157=0,$N157="-"),"nc",IF(AQ157="-","-",AQ157/$N157%))) -> 23.8 | AX161: =IF(OR(AX157="x",$N157="x",本体用データ!$G13="x"),"x",IF(OR($N157="@",$N157=0,$N157="-"),"nc",IF(AX157="-","-",AX157/$N157%))) -> 39.3 | BE161: =IF(OR(BE157="x",$N157="x",本体用データ!$G13="x"),"x",IF(OR($N157="@",$N157=0,$N157="-"),"nc",IF(BE157="-","-",BE157/$N157%))) -> 14.5 | BL161: =IF(OR(BL157="x",$N157="x",本体用データ!$G13="x"),"x",IF(OR($N157="@",$N157=0,$N157="-"),"nc",IF(BL157="-","-",BL157/$N157%))) -> 11.1 | BS161: =IF(OR(BS157="x",$N157="x",本体用データ!$G13="x"),"x",IF(OR($N157="@",$N157=0,$N157="-"),"nc",IF(BS157="-","-",BS157/$N157%))) -> 13.7
D162: 2025年 | H162: 農業経営体 | N162: =IF(OR(N158="x",$N158="x",本体用データ!$G17="x"),"x",IF(OR($N158=0,$N158="-"),"nc",IF(N158="-","-",N158/$N158%))) -> 100.0 | V162: =IF(OR(V158="x",$N158="x",本体用データ!$G17="x"),"x",IF(OR($N158=0,$N158="-"),"nc",IF(V158="-","-",V158/$N158%))) -> 25.5 | AC162: =IF(OR(AC158="x",$N158="x",本体用データ!$G17="x"),"x",IF(OR($N158=0,$N158="-"),"nc",IF(AC158="-","-",AC158/$N158%))) -> 25.8 | AJ162: =IF(OR(AJ158="x",$N158="x",本体用データ!$G17="x"),"x",IF(OR($N158=0,$N158="-"),"nc",IF(AJ158="-","-",AJ158/$N158%))) -> 31.8 | AQ162: =IF(OR(AQ158="x",$N158="x",本体用データ!$G17="x"),"x",IF(OR($N158=0,$N158="-"),"nc",IF(AQ158="-","-",AQ158/$N158%))) -> 13.6 | AX162: =IF(OR(AX158="x",$N158="x",本体用データ!$G17="x"),"x",IF(OR($N158=0,$N158="-"),"nc",IF(AX158="-","-",AX158/$N158%))) -> 3.3 | BE162: =IF(OR(BE158="x",$N158="x",本体用データ!$G17="x"),"x",IF(OR($N158=0,$N158="-"),"nc",IF(BE158="-","-",BE158/$N158%))) -> 1.9 | BL162: =IF(OR(BL158="x",$N158="x",本体用データ!$G17="x"),"x",IF(OR($N158=0,$N158="-"),"nc",IF(BL158="-","-",BL158/$N158%))) -> 0.9 | BS162: =IF(OR(BS158="x",$N158="x",本体用データ!$G17="x"),"x",IF(OR($N158=0,$N158="-"),"nc",IF(BS158="-","-",BS158/$N158%))) -> 0.5
H163: うち団体 | N163: =IF(OR(N159="x",$N159="x",本体用データ!$G20="x"),"x",IF(OR($N159=0,$N159="-"),"nc",IF(N159="-","-",N159/$N159%))) -> 100.0 | V163: =IF(OR(V159="x",$N159="x",本体用データ!$G20="x"),"x",IF($N159=0,"nc",IF($N159="-","nc",IF(V159="-","-",V159/$N159%)))) -> 11.5 | AC163: =IF(OR(AC159="x",$N159="x",本体用データ!$G20="x"),"x",IF($N159=0,"nc",IF($N159="-","nc",IF(AC159="-","-",AC159/$N159%)))) -> 6.0 | AJ163: =IF(OR(AJ159="x",$N159="x",本体用データ!$G20="x"),"x",IF($N159=0,"nc",IF($N159="-","nc",IF(AJ159="-","-",AJ159/$N159%)))) -> 16.1 | AQ163: =IF(OR(AQ159="x",$N159="x",本体用データ!$G20="x"),"x",IF($N159=0,"nc",IF($N159="-","nc",IF(AQ159="-","-",AQ159/$N159%)))) -> 23.4 | AX163: =IF(OR(AX159="x",$N159="x",本体用データ!$G20="x"),"x",IF($N159=0,"nc",IF($N159="-","nc",IF(AX159="-","-",AX159/$N159%)))) -> 43.0 | BE163: =IF(OR(BE159="x",$N159="x",本体用データ!$G20="x"),"x",IF($N159=0,"nc",IF($N159="-","nc",IF(BE159="-","-",BE159/$N159%)))) -> 16.4 | BL163: =IF(OR(BL159="x",$N159="x",本体用データ!$G20="x"),"x",IF($N159=0,"nc",IF($N159="-","nc",IF(BL159="-","-",BL159/$N159%)))) -> 14.3 | BS163: =IF(OR(BS159="x",$N159="x",本体用データ!$G20="x"),"x",IF($N159=0,"nc",IF($N159="-","nc",IF(BS159="-","-",BS159/$N159%)))) -> 12.3
J165: 《農産物販売金額規模別の経営体数割合》
D167: =本体用データ!W4 -> 山形県
D172: =本体用データ!W5 -> 山形県
E180: =IF(本体用データ!K193=0,"",IFERROR(本体用データ!G183&IF(OR(AH6<>"",COUNTIF(本体用データ!L186:X186,2)=0),"",本体用データ!G184)&IF(OR(AH6<>"",COUNTIF(本体用データ!L186:X186,3)=0),"",本体用データ!G186),"")) -> 農業経営体のうち「稲作」が１位の農業経営体が55.1%で最も多く、次いで「果樹類」(26.9%)、「露地野菜」(7.7%)の順
BP181: 単位：経営体、％
B182: 区 分 | N182: 計 | T182: 稲作 | Z182: 麦類作 | AD182: 雑穀・ いも類・ 豆類 | AH182: 工芸 農作物 | AL182: 露地 野菜 | AQ182: 施設 野菜 | AU182: 果樹類 | AZ182: 花き・ 花木 | BD182: 酪農 | BI182: 肉用牛 | BN182: 養豚 | BR182: 養鶏 | BV182: その他
B184: 実数 | D184: 2020年 | H184: 農業経営体 | N184: =OFFSET('2020年'!$A$1,本体用データ!$V$4,本体用データ!$F183) -> 27,461 | T184: =OFFSET('2020年'!$A$1,本体用データ!$V$4,本体用データ!$F183+1) -> 15,651 | Z184: =OFFSET('2020年'!$A$1,本体用データ!$V$4,本体用データ!$F183+2) -> 1 | AD184: =OFFSET('2020年'!$A$1,本体用データ!$V$4,本体用データ!$F183+3) -> 504 | AH184: =OFFSET('2020年'!$A$1,本体用データ!$V$4,本体用データ!$F183+4) -> 66 | AL184: =OFFSET('2020年'!$A$1,本体用データ!$V$4,本体用データ!$F183+5) -> 2,071 | AQ184: =OFFSET('2020年'!$A$1,本体用データ!$V$4,本体用データ!$F183+6) -> 789 | AU184: =OFFSET('2020年'!$A$1,本体用データ!$V$4,本体用データ!$F183+7) -> 7,125 | AZ184: =OFFSET('2020年'!$A$1,本体用データ!$V$4,本体用データ!$F183+8) -> 368 | BD184: =OFFSET('2020年'!$A$1,本体用データ!$V$4,本体用データ!$F183+9) -> 181 | BI184: =OFFSET('2020年'!$A$1,本体用データ!$V$4,本体用データ!$F183+10) -> 342 | BN184: =OFFSET('2020年'!$A$1,本体用データ!$V$4,本体用データ!$F183+11) -> 64 | BR184: =OFFSET('2020年'!$A$1,本体用データ!$V$4,本体用データ!$F183+12) -> 36 | BV184: =OFFSET('2020年'!$A$1,本体用データ!$V$4,本体用データ!$F183+13) -> 263
H185: うち団体 | N185: =OFFSET('2020年'!$A$1,本体用データ!$V$4,本体用データ!$F184) -> 745 | T185: =OFFSET('2020年'!$A$1,本体用データ!$V$4,本体用データ!$F184+1) -> 347 | Z185: =OFFSET('2020年'!$A$1,本体用データ!$V$4,本体用データ!$F184+2) -> - | AD185: =OFFSET('2020年'!$A$1,本体用データ!$V$4,本体用データ!$F184+3) -> 124 | AH185: =OFFSET('2020年'!$A$1,本体用データ!$V$4,本体用データ!$F184+4) -> - | AL185: =OFFSET('2020年'!$A$1,本体用データ!$V$4,本体用データ!$F184+5) -> 44 | AQ185: =OFFSET('2020年'!$A$1,本体用データ!$V$4,本体用データ!$F184+6) -> 25 | AU185: =OFFSET('2020年'!$A$1,本体用データ!$V$4,本体用データ!$F184+7) -> 49 | AZ185: =OFFSET('2020年'!$A$1,本体用データ!$V$4,本体用データ!$F184+8) -> 24 | BD185: =OFFSET('2020年'!$A$1,本体用データ!$V$4,本体用データ!$F184+9) -> 13 | BI185: =OFFSET('2020年'!$A$1,本体用データ!$V$4,本体用データ!$F184+10) -> 36 | BN185: =OFFSET('2020年'!$A$1,本体用データ!$V$4,本体用データ!$F184+11) -> 29 | BR185: =OFFSET('2020年'!$A$1,本体用データ!$V$4,本体用データ!$F184+12) -> 12 | BV185: =OFFSET('2020年'!$A$1,本体用データ!$V$4,本体用データ!$F184+13) -> 42
D186: 2025年 | H186: 農業経営体 | N186: =OFFSET('2025年'!$A$1,本体用データ!$V$4,本体用データ!$F186) -> 22,241 | T186: =OFFSET('2025年'!$A$1,本体用データ!$V$4,本体用データ!$F186+1) -> 12,264 | Z186: =OFFSET('2025年'!$A$1,本体用データ!$V$4,本体用データ!$F186+2) -> 5 | AD186: =OFFSET('2025年'!$A$1,本体用データ!$V$4,本体用データ!$F186+3) -> 501 | AH186: =OFFSET('2025年'!$A$1,本体用データ!$V$4,本体用データ!$F186+4) -> 42 | AL186: =OFFSET('2025年'!$A$1,本体用データ!$V$4,本体用データ!$F186+5) -> 1,709 | AQ186: =OFFSET('2025年'!$A$1,本体用データ!$V$4,本体用データ!$F186+6) -> 722 | AU186: =OFFSET('2025年'!$A$1,本体用データ!$V$4,本体用データ!$F186+7) -> 5,976 | AZ186: =OFFSET('2025年'!$A$1,本体用データ!$V$4,本体用データ!$F186+8) -> 324 | BD186: =OFFSET('2025年'!$A$1,本体用データ!$V$4,本体用データ!$F186+9) -> 120 | BI186: =OFFSET('2025年'!$A$1,本体用データ!$V$4,本体用データ!$F186+10) -> 250 | BN186: =OFFSET('2025年'!$A$1,本体用データ!$V$4,本体用データ!$F186+11) -> 38 | BR186: =OFFSET('2025年'!$A$1,本体用データ!$V$4,本体用データ!$F186+12) -> 25 | BV186: =OFFSET('2025年'!$A$1,本体用データ!$V$4,本体用データ!$F186+13) -> 265
H187: うち団体 | N187: =OFFSET('2025年'!$A$1,本体用データ!$V$4,本体用データ!$F188) -> 880 | T187: =OFFSET('2025年'!$A$1,本体用データ!$V$4,本体用データ!$F188+1) -> 415 | Z187: =OFFSET('2025年'!$A$1,本体用データ!$V$4,本体用データ!$F188+2) -> - | AD187: =OFFSET('2025年'!$A$1,本体用データ!$V$4,本体用データ!$F188+3) -> 123 | AH187: =OFFSET('2025年'!$A$1,本体用データ!$V$4,本体用データ!$F188+4) -> 1 | AL187: =OFFSET('2025年'!$A$1,本体用データ!$V$4,本体用データ!$F188+5) -> 60 | AQ187: =OFFSET('2025年'!$A$1,本体用データ!$V$4,本体用データ!$F188+6) -> 28 | AU187: =OFFSET('2025年'!$A$1,本体用データ!$V$4,本体用データ!$F188+7) -> 96 | AZ187: =OFFSET('2025年'!$A$1,本体用データ!$V$4,本体用データ!$F188+8) -> 29 | BD187: =OFFSET('2025年'!$A$1,本体用データ!$V$4,本体用データ!$F188+9) -> 9 | BI187: =OFFSET('2025年'!$A$1,本体用データ!$V$4,本体用データ!$F188+10) -> 49 | BN187: =OFFSET('2025年'!$A$1,本体用データ!$V$4,本体用データ!$F188+11) -> 23 | BR187: =OFFSET('2025年'!$A$1,本体用データ!$V$4,本体用データ!$F188+12) -> 11 | BV187: =OFFSET('2025年'!$A$1,本体用データ!$V$4,本体用データ!$F188+13) -> 36
B188: 構成比 | D188: 2020年 | H188: 農業経営体 | N188: =IF(OR(N184="x",$N184="x",本体用データ!$G10="x"),"x",IF(OR($N184="@",$N184=0,$N184="-"),"nc",IF(N184="-","-",N184/$N184%))) -> 100.0 | T188: =IF(OR(T184="x",$N184="x",本体用データ!$G10="x"),"x",IF(OR($N184="@",$N184=0,$N184="-"),"nc",IF(T184="-","-",T184/$N184%))) -> 57.0 | Z188: =IF(OR(Z184="x",$N184="x",本体用データ!$G10="x"),"x",IF(OR($N184="@",$N184=0,$N184="-"),"nc",IF(Z184="-","-",Z184/$N184%))) -> 0.0 | AD188: =IF(OR(AD184="x",$N184="x",本体用データ!$G10="x"),"x",IF(OR($N184="@",$N184=0,$N184="-"),"nc",IF(AD184="-","-",AD184/$N184%))) -> 1.8 | AH188: =IF(OR(AH184="x",$N184="x",本体用データ!$G10="x"),"x",IF(OR($N184="@",$N184=0,$N184="-"),"nc",IF(AH184="-","-",AH184/$N184%))) -> 0.2 | AL188: =IF(OR(AL184="x",$N184="x",本体用データ!$G10="x"),"x",IF(OR($N184="@",$N184=0,$N184="-"),"nc",IF(AL184="-","-",AL184/$N184%))) -> 7.5 | AQ188: =IF(OR(AQ184="x",$N184="x",本体用データ!$G10="x"),"x",IF(OR($N184="@",$N184=0,$N184="-"),"nc",IF(AQ184="-","-",AQ184/$N184%))) -> 2.9 | AU188: =IF(OR(AU184="x",$N184="x",本体用データ!$G10="x"),"x",IF(OR($N184="@",$N184=0,$N184="-"),"nc",IF(AU184="-","-",AU184/$N184%))) -> 25.9 | AZ188: =IF(OR(AZ184="x",$N184="x",本体用データ!$G10="x"),"x",IF(OR($N184="@",$N184=0,$N184="-"),"nc",IF(AZ184="-","-",AZ184/$N184%))) -> 1.3 | BD188: =IF(OR(BD184="x",$N184="x",本体用データ!$G10="x"),"x",IF(OR($N184="@",$N184=0,$N184="-"),"nc",IF(BD184="-","-",BD184/$N184%))) -> 0.7 | BI188: =IF(OR(BI184="x",$N184="x",本体用データ!$G10="x"),"x",IF(OR($N184="@",$N184=0,$N184="-"),"nc",IF(BI184="-","-",BI184/$N184%))) -> 1.2 | BN188: =IF(OR(BN184="x",$N184="x",本体用データ!$G10="x"),"x",IF(OR($N184="@",$N184=0,$N184="-"),"nc",IF(BN184="-","-",BN184/$N184%))) -> 0.2 | BR188: =IF(OR(BR184="x",$N184="x",本体用データ!$G10="x"),"x",IF(OR($N184="@",$N184=0,$N184="-"),"nc",IF(BR184="-","-",BR184/$N184%))) -> 0.1 | BV188: =IF(OR(BV184="x",$N184="x",本体用データ!$G10="x"),"x",IF(OR($N184="@",$N184=0,$N184="-"),"nc",IF(BV184="-","-",BV184/$N184%))) -> 1.0
H189: うち団体 | N189: =IF(OR(N185="x",$N185="x",本体用データ!$G13="x"),"x",IF(OR($N185="@",$N185=0,$N185="-"),"nc",IF(N185="-","-",N185/$N185%))) -> 100.0 | T189: =IF(OR(T185="x",$N185="x",本体用データ!$G13="x"),"x",IF(OR($N185="@",$N185=0,$N185="-"),"nc",IF(T185="-","-",T185/$N185%))) -> 46.6 | Z189: =IF(OR(Z185="x",$N185="x",本体用データ!$G13="x"),"x",IF(OR($N185="@",$N185=0,$N185="-"),"nc",IF(Z185="-","-",Z185/$N185%))) -> - | AD189: =IF(OR(AD185="x",$N185="x",本体用データ!$G13="x"),"x",IF(OR($N185="@",$N185=0,$N185="-"),"nc",IF(AD185="-","-",AD185/$N185%))) -> 16.6 | AH189: =IF(OR(AH185="x",$N185="x",本体用データ!$G13="x"),"x",IF(OR($N185="@",$N185=0,$N185="-"),"nc",IF(AH185="-","-",AH185/$N185%))) -> - | AL189: =IF(OR(AL185="x",$N185="x",本体用データ!$G13="x"),"x",IF(OR($N185="@",$N185=0,$N185="-"),"nc",IF(AL185="-","-",AL185/$N185%))) -> 5.9 | AQ189: =IF(OR(AQ185="x",$N185="x",本体用データ!$G13="x"),"x",IF(OR($N185="@",$N185=0,$N185="-"),"nc",IF(AQ185="-","-",AQ185/$N185%))) -> 3.4 | AU189: =IF(OR(AU185="x",$N185="x",本体用データ!$G13="x"),"x",IF(OR($N185="@",$N185=0,$N185="-"),"nc",IF(AU185="-","-",AU185/$N185%))) -> 6.6 | AZ189: =IF(OR(AZ185="x",$N185="x",本体用データ!$G13="x"),"x",IF(OR($N185="@",$N185=0,$N185="-"),"nc",IF(AZ185="-","-",AZ185/$N185%))) -> 3.2 | BD189: =IF(OR(BD185="x",$N185="x",本体用データ!$G13="x"),"x",IF(OR($N185="@",$N185=0,$N185="-"),"nc",IF(BD185="-","-",BD185/$N185%))) -> 1.7 | BI189: =IF(OR(BI185="x",$N185="x",本体用データ!$G13="x"),"x",IF(OR($N185="@",$N185=0,$N185="-"),"nc",IF(BI185="-","-",BI185/$N185%))) -> 4.8 | BN189: =IF(OR(BN185="x",$N185="x",本体用データ!$G13="x"),"x",IF(OR($N185="@",$N185=0,$N185="-"),"nc",IF(BN185="-","-",BN185/$N185%))) -> 3.9 | BR189: =IF(OR(BR185="x",$N185="x",本体用データ!$G13="x"),"x",IF(OR($N185="@",$N185=0,$N185="-"),"nc",IF(BR185="-","-",BR185/$N185%))) -> 1.6 | BV189: =IF(OR(BV185="x",$N185="x",本体用データ!$G13="x"),"x",IF(OR($N185="@",$N185=0,$N185="-"),"nc",IF(BV185="-","-",BV185/$N185%))) -> 5.6
D190: 2025年 | H190: 農業経営体 | N190: =IF(OR(N186="x",$N186="x",本体用データ!$G17="x"),"x",IF(OR($N186=0,$N186="-"),"nc",IF(N186="-","-",N186/$N186%))) -> 100.0 | T190: =IF(OR(T186="x",$N186="x",本体用データ!$G17="x"),"x",IF(OR($N186=0,$N186="-"),"nc",IF(T186="-","-",T186/$N186%))) -> 55.1 | Z190: =IF(OR(Z186="x",$N186="x",本体用データ!$G17="x"),"x",IF(OR($N186=0,$N186="-"),"nc",IF(Z186="-","-",Z186/$N186%))) -> 0.0 | AD190: =IF(OR(AD186="x",$N186="x",本体用データ!$G17="x"),"x",IF(OR($N186=0,$N186="-"),"nc",IF(AD186="-","-",AD186/$N186%))) -> 2.3 | AH190: =IF(OR(AH186="x",$N186="x",本体用データ!$G17="x"),"x",IF(OR($N186=0,$N186="-"),"nc",IF(AH186="-","-",AH186/$N186%))) -> 0.2 | AL190: =IF(OR(AL186="x",$N186="x",本体用データ!$G17="x"),"x",IF(OR($N186=0,$N186="-"),"nc",IF(AL186="-","-",AL186/$N186%))) -> 7.7 | AQ190: =IF(OR(AQ186="x",$N186="x",本体用データ!$G17="x"),"x",IF(OR($N186=0,$N186="-"),"nc",IF(AQ186="-","-",AQ186/$N186%))) -> 3.2 | AU190: =IF(OR(AU186="x",$N186="x",本体用データ!$G17="x"),"x",IF(OR($N186=0,$N186="-"),"nc",IF(AU186="-","-",AU186/$N186%))) -> 26.9 | AZ190: =IF(OR(AZ186="x",$N186="x",本体用データ!$G17="x"),"x",IF(OR($N186=0,$N186="-"),"nc",IF(AZ186="-","-",AZ186/$N186%))) -> 1.5 | BD190: =IF(OR(BD186="x",$N186="x",本体用データ!$G17="x"),"x",IF(OR($N186=0,$N186="-"),"nc",IF(BD186="-","-",BD186/$N186%))) -> 0.5 | BI190: =IF(OR(BI186="x",$N186="x",本体用データ!$G17="x"),"x",IF(OR($N186=0,$N186="-"),"nc",IF(BI186="-","-",BI186/$N186%))) -> 1.1 | BN190: =IF(OR(BN186="x",$N186="x",本体用データ!$G17="x"),"x",IF(OR($N186=0,$N186="-"),"nc",IF(BN186="-","-",BN186/$N186%))) -> 0.2 | BR190: =IF(OR(BR186="x",$N186="x",本体用データ!$G17="x"),"x",IF(OR($N186=0,$N186="-"),"nc",IF(BR186="-","-",BR186/$N186%))) -> 0.1 | BV190: =IF(OR(BV186="x",$N186="x",本体用データ!$G17="x"),"x",IF(OR($N186=0,$N186="-"),"nc",IF(BV186="-","-",BV186/$N186%))) -> 1.2
H191: うち団体 | N191: =IF(OR(N187="x",$N187="x",本体用データ!$G20="x"),"x",IF(OR($N187=0,$N187="-"),"nc",IF(N187="-","-",N187/$N187%))) -> 100.0 | T191: =IF(OR(T187="x",$N187="x",本体用データ!$G20="x"),"x",IF(OR($N187=0,$N187="-"),"nc",IF(T187="-","-",T187/$N187%))) -> 47.2 | Z191: =IF(OR(Z187="x",$N187="x",本体用データ!$G20="x"),"x",IF(OR($N187=0,$N187="-"),"nc",IF(Z187="-","-",Z187/$N187%))) -> - | AD191: =IF(OR(AD187="x",$N187="x",本体用データ!$G20="x"),"x",IF(OR($N187=0,$N187="-"),"nc",IF(AD187="-","-",AD187/$N187%))) -> 14.0 | AH191: =IF(OR(AH187="x",$N187="x",本体用データ!$G20="x"),"x",IF(OR($N187=0,$N187="-"),"nc",IF(AH187="-","-",AH187/$N187%))) -> 0.1 | AL191: =IF(OR(AL187="x",$N187="x",本体用データ!$G20="x"),"x",IF(OR($N187=0,$N187="-"),"nc",IF(AL187="-","-",AL187/$N187%))) -> 6.8 | AQ191: =IF(OR(AQ187="x",$N187="x",本体用データ!$G20="x"),"x",IF(OR($N187=0,$N187="-"),"nc",IF(AQ187="-","-",AQ187/$N187%))) -> 3.2 | AU191: =IF(OR(AU187="x",$N187="x",本体用データ!$G20="x"),"x",IF(OR($N187=0,$N187="-"),"nc",IF(AU187="-","-",AU187/$N187%))) -> 10.9 | AZ191: =IF(OR(AZ187="x",$N187="x",本体用データ!$G20="x"),"x",IF(OR($N187=0,$N187="-"),"nc",IF(AZ187="-","-",AZ187/$N187%))) -> 3.3 | BD191: =IF(OR(BD187="x",$N187="x",本体用データ!$G20="x"),"x",IF(OR($N187=0,$N187="-"),"nc",IF(BD187="-","-",BD187/$N187%))) -> 1.0 | BI191: =IF(OR(BI187="x",$N187="x",本体用データ!$G20="x"),"x",IF(OR($N187=0,$N187="-"),"nc",IF(BI187="-","-",BI187/$N187%))) -> 5.6 | BN191: =IF(OR(BN187="x",$N187="x",本体用データ!$G20="x"),"x",IF(OR($N187=0,$N187="-"),"nc",IF(BN187="-","-",BN187/$N187%))) -> 2.6 | BR191: =IF(OR(BR187="x",$N187="x",本体用データ!$G20="x"),"x",IF(OR($N187=0,$N187="-"),"nc",IF(BR187="-","-",BR187/$N187%))) -> 1.3 | BV191: =IF(OR(BV187="x",$N187="x",本体用データ!$G20="x"),"x",IF(OR($N187=0,$N187="-"),"nc",IF(BV187="-","-",BV187/$N187%))) -> 4.1
B192: ※その他は、その他の作物、養蚕、その他の畜産の合計
F193: 《農産物販売金額１位の経営体数》 | AR193: 《農産物販売金額１位の経営体数割合》
F194: =本体用データ!W4 -> 山形県 | AR194: 2025年
E210: =IF(本体用データ!K226=0,"",IFERROR(本体用データ!G208&IF(OR(AH6<>"",COUNTIF(本体用データ!L222:V222,2)=0),"",本体用データ!G209)&IF(OR(AH6<>"",COUNTIF(本体用データ!L222:V222,3)=0),"",本体用データ!G213),"")) -> 販売目的の作物作付面積は「稲」が全体の69.1%で最も多く、次いで「その他」(7.1%)、「果樹類」(6.5%)の順
BJ212: 単位：経営体、ha
B213: 区 分 | N213: 計 | T213: 稲 | Z213: 麦類 | AD213: 雑穀 | AH213: いも類 | AL213: 豆類 | AQ213: 工芸 農作物 | AU213: 露地 野菜 | AZ213: 施設 野菜 | BE213: 果樹 | BJ213: 花き・ 花木 | BO213: その他
B215: 経営体数 | J215: 2020年 | N215: =OFFSET('2020年'!$A$1,本体用データ!$V$4,本体用データ!$F208) -> 27,302 | T215: =OFFSET('2020年'!$A$1,本体用データ!$V$4,本体用データ!$F208+1) -> 20,236 | Z215: =OFFSET('2020年'!$A$1,本体用データ!$V$4,本体用データ!$F208+2) -> 48 | AD215: =OFFSET('2020年'!$A$1,本体用データ!$V$4,本体用データ!$F208+3) -> 3,218 | AH215: =OFFSET('2020年'!$A$1,本体用データ!$V$4,本体用データ!$F208+4) -> 489 | AL215: =OFFSET('2020年'!$A$1,本体用データ!$V$4,本体用データ!$F208+5) -> 3,153 | AQ215: =OFFSET('2020年'!$A$1,本体用データ!$V$4,本体用データ!$F208+6) -> 451 | AU215: =OFFSET('2020年'!$A$1,本体用データ!$V$4,本体用データ!$F208+7) -> 6,733 | AZ215: =OFFSET('2020年'!$A$1,本体用データ!$V$4,本体用データ!$F208+8) -> 2,225 | BE215: =OFFSET('2020年'!$A$1,本体用データ!$V$4,本体用データ!$F208+9) -> 10,012 | BJ215: =OFFSET('2020年'!$A$1,本体用データ!$V$4,本体用データ!$F208+10) -> 1,150 | BO215: =OFFSET('2020年'!$A$1,本体用データ!$V$4,本体用データ!$F208+11) -> 3,073
J216: 2025年 | N216: =OFFSET('2025年'!$A$1,本体用データ!$V$4,本体用データ!$F209) -> 22,124 | T216: =OFFSET('2025年'!$A$1,本体用データ!$V$4,本体用データ!$F209+1) -> 15,159 | Z216: =OFFSET('2025年'!$A$1,本体用データ!$V$4,本体用データ!$F209+2) -> 37 | AD216: =OFFSET('2025年'!$A$1,本体用データ!$V$4,本体用データ!$F209+3) -> 2,554 | AH216: =OFFSET('2025年'!$A$1,本体用データ!$V$4,本体用データ!$F209+4) -> 434 | AL216: =OFFSET('2025年'!$A$1,本体用データ!$V$4,本体用データ!$F209+5) -> 2,159 | AQ216: =OFFSET('2025年'!$A$1,本体用データ!$V$4,本体用データ!$F209+6) -> 344 | AU216: =OFFSET('2025年'!$A$1,本体用データ!$V$4,本体用データ!$F209+7) -> 5,112 | AZ216: =OFFSET('2025年'!$A$1,本体用データ!$V$4,本体用データ!$F209+8) -> 1,864 | BE216: =OFFSET('2025年'!$A$1,本体用データ!$V$4,本体用データ!$F209+9) -> 8,311 | BJ216: =OFFSET('2025年'!$A$1,本体用データ!$V$4,本体用データ!$F209+10) -> 944 | BO216: =OFFSET('2025年'!$A$1,本体用データ!$V$4,本体用データ!$F209+11) -> 3,103
B217: 作付（栽培）面積 | J217: 2020年 | N217: =IF(OFFSET('2020年'!$A$1,本体用データ!$V$4,本体用データ!$F213)="x","x",IF(OFFSET('2020年'!$A$1,本体用データ!$V$4,本体用データ!$F213)="-","-",OFFSET('2020年'!$A$1,本体用データ!$V$4,本体用データ!$F213)/100)) -> 89,753 | T217: =IF(OFFSET('2020年'!$A$1,本体用データ!$V$4,本体用データ!$F213+1)="x","x",IF(OFFSET('2020年'!$A$1,本体用データ!$V$4,本体用データ!$F213+1)="-","-",OFFSET('2020年'!$A$1,本体用データ!$V$4,本体用データ!$F213+1)/100)) -> 63,002 | Z217: =IF(OFFSET('2020年'!$A$1,本体用データ!$V$4,本体用データ!$F213+2)="x","x",IF(OFFSET('2020年'!$A$1,本体用データ!$V$4,本体用データ!$F213+2)="-","-",OFFSET('2020年'!$A$1,本体用データ!$V$4,本体用データ!$F213+2)/100)) -> 126 | AD217: =IF(OFFSET('2020年'!$A$1,本体用データ!$V$4,本体用データ!$F213+3)="x","x",IF(OFFSET('2020年'!$A$1,本体用データ!$V$4,本体用データ!$F213+3)="-","-",OFFSET('2020年'!$A$1,本体用データ!$V$4,本体用データ!$F213+3)/100)) -> 5,114 | AH217: =IF(OFFSET('2020年'!$A$1,本体用データ!$V$4,本体用データ!$F213+4)="x","x",IF(OFFSET('2020年'!$A$1,本体用データ!$V$4,本体用データ!$F213+4)="-","-",OFFSET('2020年'!$A$1,本体用データ!$V$4,本体用データ!$F213+4)/100)) -> 38 | AL217: =IF(OFFSET('2020年'!$A$1,本体用データ!$V$4,本体用データ!$F213+5)="x","x",IF(OFFSET('2020年'!$A$1,本体用データ!$V$4,本体用データ!$F213+5)="-","-",OFFSET('2020年'!$A$1,本体用データ!$V$4,本体用データ!$F213+5)/100)) -> 5,073 | AQ217: =IF(OFFSET('2020年'!$A$1,本体用データ!$V$4,本体用データ!$F213+6)="x","x",IF(OFFSET('2020年'!$A$1,本体用データ!$V$4,本体用データ!$F213+6)="-","-",OFFSET('2020年'!$A$1,本体用データ!$V$4,本体用データ!$F213+6)/100)) -> 225 | AU217: =IF(OFFSET('2020年'!$A$1,本体用データ!$V$4,本体用データ!$F213+7)="x","x",IF(OFFSET('2020年'!$A$1,本体用データ!$V$4,本体用データ!$F213+7)="-","-",OFFSET('2020年'!$A$1,本体用データ!$V$4,本体用データ!$F213+7)/100)) -> 4,020 | AZ217: =IF(OFFSET('2020年'!$A$1,本体用データ!$V$4,本体用データ!$F213+8)="x","x",IF(OFFSET('2020年'!$A$1,本体用データ!$V$4,本体用データ!$F213+8)="-","-",OFFSET('2020年'!$A$1,本体用データ!$V$4,本体用データ!$F213+8)/100)) -> 435 | BE217: =IF(OFFSET('2020年'!$A$1,本体用データ!$V$4,本体用データ!$F213+9)="x","x",IF(OFFSET('2020年'!$A$1,本体用データ!$V$4,本体用データ!$F213+9)="-","-",OFFSET('2020年'!$A$1,本体用データ!$V$4,本体用データ!$F213+9)/100)) -> 6,220 | BJ217: =IF(OFFSET('2020年'!$A$1,本体用データ!$V$4,本体用データ!$F213+10)="x","x",IF(OFFSET('2020年'!$A$1,本体用データ!$V$4,本体用データ!$F213+10)="-","-",OFFSET('2020年'!$A$1,本体用データ!$V$4,本体用データ!$F213+10)/100)) -> 574 | BO217: =IF(OFFSET('2020年'!$A$1,本体用データ!$V$4,本体用データ!$F213+11)="x","x",IF(OFFSET('2020年'!$A$1,本体用データ!$V$4,本体用データ!$F213+11)="-","-",OFFSET('2020年'!$A$1,本体用データ!$V$4,本体用データ!$F213+11)/100)) -> 4,926
J218: 2025年 | N218: =IF(OFFSET('2025年'!$A$1,本体用データ!$V$4,本体用データ!$F214)="x","x",IF(OFFSET('2025年'!$A$1,本体用データ!$V$4,本体用データ!$F214)="-","-",OFFSET('2025年'!$A$1,本体用データ!$V$4,本体用データ!$F214)/100)) -> 86,223 | T218: =IF(OFFSET('2025年'!$A$1,本体用データ!$V$4,本体用データ!$F214+1)="x","x",IF(OFFSET('2025年'!$A$1,本体用データ!$V$4,本体用データ!$F214+1)="-","-",OFFSET('2025年'!$A$1,本体用データ!$V$4,本体用データ!$F214+1)/100)) -> 59,573 | Z218: =IF(OFFSET('2025年'!$A$1,本体用データ!$V$4,本体用データ!$F214+2)="x","x",IF(OFFSET('2025年'!$A$1,本体用データ!$V$4,本体用データ!$F214+2)="-","-",OFFSET('2025年'!$A$1,本体用データ!$V$4,本体用データ!$F214+2)/100)) -> 153 | AD218: =IF(OFFSET('2025年'!$A$1,本体用データ!$V$4,本体用データ!$F214+3)="x","x",IF(OFFSET('2025年'!$A$1,本体用データ!$V$4,本体用データ!$F214+3)="-","-",OFFSET('2025年'!$A$1,本体用データ!$V$4,本体用データ!$F214+3)/100)) -> 5,417 | AH218: =IF(OFFSET('2025年'!$A$1,本体用データ!$V$4,本体用データ!$F214+4)="x","x",IF(OFFSET('2025年'!$A$1,本体用データ!$V$4,本体用データ!$F214+4)="-","-",OFFSET('2025年'!$A$1,本体用データ!$V$4,本体用データ!$F214+4)/100)) -> 64 | AL218: =IF(OFFSET('2025年'!$A$1,本体用データ!$V$4,本体用データ!$F214+5)="x","x",IF(OFFSET('2025年'!$A$1,本体用データ!$V$4,本体用データ!$F214+5)="-","-",OFFSET('2025年'!$A$1,本体用データ!$V$4,本体用データ!$F214+5)/100)) -> 4,863 | AQ218: =IF(OFFSET('2025年'!$A$1,本体用データ!$V$4,本体用データ!$F214+6)="x","x",IF(OFFSET('2025年'!$A$1,本体用データ!$V$4,本体用データ!$F214+6)="-","-",OFFSET('2025年'!$A$1,本体用データ!$V$4,本体用データ!$F214+6)/100)) -> 208 | AU218: =IF(OFFSET('2025年'!$A$1,本体用データ!$V$4,本体用データ!$F214+7)="x","x",IF(OFFSET('2025年'!$A$1,本体用データ!$V$4,本体用データ!$F214+7)="-","-",OFFSET('2025年'!$A$1,本体用データ!$V$4,本体用データ!$F214+7)/100)) -> 3,254 | AZ218: =IF(OFFSET('2025年'!$A$1,本体用データ!$V$4,本体用データ!$F214+8)="x","x",IF(OFFSET('2025年'!$A$1,本体用データ!$V$4,本体用データ!$F214+8)="-","-",OFFSET('2025年'!$A$1,本体用データ!$V$4,本体用データ!$F214+8)/100)) -> 410 | BE218: =IF(OFFSET('2025年'!$A$1,本体用データ!$V$4,本体用データ!$F214+9)="x","x",IF(OFFSET('2025年'!$A$1,本体用データ!$V$4,本体用データ!$F214+9)="-","-",OFFSET('2025年'!$A$1,本体用データ!$V$4,本体用データ!$F214+9)/100)) -> 5,648 | BJ218: =IF(OFFSET('2025年'!$A$1,本体用データ!$V$4,本体用データ!$F214+10)="x","x",IF(OFFSET('2025年'!$A$1,本体用データ!$V$4,本体用データ!$F214+10)="-","-",OFFSET('2025年'!$A$1,本体用データ!$V$4,本体用データ!$F214+10)/100)) -> 497 | BO218: =IF(OFFSET('2025年'!$A$1,本体用データ!$V$4,本体用データ!$F214+11)="x","x",IF(OFFSET('2025年'!$A$1,本体用データ!$V$4,本体用データ!$F214+11)="-","-",OFFSET('2025年'!$A$1,本体用データ!$V$4,本体用データ!$F214+11)/100)) -> 6,137
E220: 《販売目的の作物の類別作付（栽培）経営体数》 | AP220: 《販売目的の作物の類別作付（栽培）面積》
G221: =本体用データ!W4 -> 山形県 | AQ221: =本体用データ!W4 -> 山形県
E239: =IF(OR(N246="x",N246="-"),"","基幹的農業従事者は"&TEXT(N246,"#,###人")&本体用データ!G244&IF(OR(BR246="x",BR246="-"),"","、平均年齢は"&TEXT(BR246,"##0.0歳")&本体用データ!G245)) -> 基幹的農業従事者は30,322人で、2020年に比べて8,712人（22.3%）減少、平均年齢は67.5歳で、2020年を0.5歳上回る
BY240: 単位：人、％
B241: 区 分 | N241: 基幹的農業従事者数 | BR241: 平均年齢 （歳）
N242: 計 | T242: 15～ 39 | X242: 40～ 44 | AB242: 45～ 49 | AF242: 50～ 54 | AJ242: 55～ 59 | AN242: 60～ 64 | AR242: 65歳 以上
AX243: 65～ 69 | BB243: 70～ 74 | BF243: 75～ 79 | BJ243: 80～ 84 | BN243: 85歳 以上
B245: 実数 | E245: 2020年 | N245: =OFFSET('2020年'!$A$1,本体用データ!$V$4,本体用データ!$F242) -> 39,034 | T245: =OFFSET('2020年'!$A$1,本体用データ!$V$4,本体用データ!$F242+1) -> 1,938 | X245: =OFFSET('2020年'!$A$1,本体用データ!$V$4,本体用データ!$F242+2) -> 1,127 | AB245: =OFFSET('2020年'!$A$1,本体用データ!$V$4,本体用データ!$F242+3) -> 1,040 | AF245: =OFFSET('2020年'!$A$1,本体用データ!$V$4,本体用データ!$F242+4) -> 1,238 | AJ245: =OFFSET('2020年'!$A$1,本体用データ!$V$4,本体用データ!$F242+5) -> 2,379 | AN245: =OFFSET('2020年'!$A$1,本体用データ!$V$4,本体用データ!$F242+6) -> 4,667 | AR245: =OFFSET('2020年'!$A$1,本体用データ!$V$4,本体用データ!$F242+7) -> 26,645 | AX245: =OFFSET('2020年'!$A$1,本体用データ!$V$4,本体用データ!$F242+8) -> 8,427 | BB245: =OFFSET('2020年'!$A$1,本体用データ!$V$4,本体用データ!$F242+9) -> 7,601 | BF245: =OFFSET('2020年'!$A$1,本体用データ!$V$4,本体用データ!$F242+10) -> 4,945 | BJ245: =OFFSET('2020年'!$A$1,本体用データ!$V$4,本体用データ!$F242+11) -> 3,743 | BN245: =OFFSET('2020年'!$A$1,本体用データ!$V$4,本体用データ!$F242+12) -> 1,929 | BR245: =OFFSET('2020年'!$A$1,本体用データ!$V$4,本体用データ!$F242+13) -> 67.0
E246: 2025年 | N246: =OFFSET('2025年'!$A$1,本体用データ!$V$4,本体用データ!$F243) -> 30,322 | T246: =OFFSET('2025年'!$A$1,本体用データ!$V$4,本体用データ!$F243+1) -> 1,427 | X246: =OFFSET('2025年'!$A$1,本体用データ!$V$4,本体用データ!$F243+2) -> 1,009 | AB246: =OFFSET('2025年'!$A$1,本体用データ!$V$4,本体用データ!$F243+3) -> 1,274 | AF246: =OFFSET('2025年'!$A$1,本体用データ!$V$4,本体用データ!$F243+4) -> 1,140 | AJ246: =OFFSET('2025年'!$A$1,本体用データ!$V$4,本体用データ!$F243+5) -> 1,346 | AN246: =OFFSET('2025年'!$A$1,本体用データ!$V$4,本体用データ!$F243+6) -> 2,613 | AR246: =OFFSET('2025年'!$A$1,本体用データ!$V$4,本体用データ!$F243+7) -> 21,513 | AX246: =OFFSET('2025年'!$A$1,本体用データ!$V$4,本体用データ!$F243+8) -> 4,824 | BB246: =OFFSET('2025年'!$A$1,本体用データ!$V$4,本体用データ!$F243+9) -> 7,227 | BF246: =OFFSET('2025年'!$A$1,本体用データ!$V$4,本体用データ!$F243+10) -> 5,493 | BJ246: =OFFSET('2025年'!$A$1,本体用データ!$V$4,本体用データ!$F243+11) -> 2,520 | BN246: =OFFSET('2025年'!$A$1,本体用データ!$V$4,本体用データ!$F243+12) -> 1,449 | BR246: =OFFSET('2025年'!$A$1,本体用データ!$V$4,本体用データ!$F243+13) -> 67.5
B247: 構成比 | E247: 2020年 | N247: =IF(OR(N245="x",$N245="x"),"x",IF(OR($N245="@",$N245=0,$N245="-"),"nc",IF(N245="-","-",N245/$N245%))) -> 100.0 | T247: =IF(OR(T245="x",$N245="x"),"x",IF(OR($N245="@",$N245=0,$N245="-"),"nc",IF(T245="-","-",T245/$N245%))) -> 5.0 | X247: =IF(OR(X245="x",$N245="x"),"x",IF(OR($N245="@",$N245=0,$N245="-"),"nc",IF(X245="-","-",X245/$N245%))) -> 2.9 | AB247: =IF(OR(AB245="x",$N245="x"),"x",IF(OR($N245="@",$N245=0,$N245="-"),"nc",IF(AB245="-","-",AB245/$N245%))) -> 2.7 | AF247: =IF(OR(AF245="x",$N245="x"),"x",IF(OR($N245="@",$N245=0,$N245="-"),"nc",IF(AF245="-","-",AF245/$N245%))) -> 3.2 | AJ247: =IF(OR(AJ245="x",$N245="x"),"x",IF(OR($N245="@",$N245=0,$N245="-"),"nc",IF(AJ245="-","-",AJ245/$N245%))) -> 6.1 | AN247: =IF(OR(AN245="x",$N245="x"),"x",IF(OR($N245="@",$N245=0,$N245="-"),"nc",IF(AN245="-","-",AN245/$N245%))) -> 12.0 | AR247: =IF(OR(AR245="x",$N245="x"),"x",IF(OR($N245="@",$N245=0,$N245="-"),"nc",IF(AR245="-","-",AR245/$N245%))) -> 68.3 | AX247: =IF(OR(AX245="x",$N245="x"),"x",IF(OR($N245="@",$N245=0,$N245="-"),"nc",IF(AX245="-","-",AX245/$N245%))) -> 21.6 | BB247: =IF(OR(BB245="x",$N245="x"),"x",IF(OR($N245="@",$N245=0,$N245="-"),"nc",IF(BB245="-","-",BB245/$N245%))) -> 19.5 | BF247: =IF(OR(BF245="x",$N245="x"),"x",IF(OR($N245="@",$N245=0,$N245="-"),"nc",IF(BF245="-","-",BF245/$N245%))) -> 12.7 | BJ247: =IF(OR(BJ245="x",$N245="x"),"x",IF(OR($N245="@",$N245=0,$N245="-"),"nc",IF(BJ245="-","-",BJ245/$N245%))) -> 9.6 | BN247: =IF(OR(BN245="x",$N245="x"),"x",IF(OR($N245="@",$N245=0,$N245="-"),"nc",IF(BN245="-","-",BN245/$N245%))) -> 4.9 | BR247: -
E248: 2025年 | N248: =IF(OR(N246="x",$N246="x"),"x",IF(OR($N246=0,$N246="-"),"nc",IF(N246="-","-",N246/$N246%))) -> 100.0 | T248: =IF(OR(T246="x",$N246="x"),"x",IF(OR($N246=0,$N246="-"),"nc",IF(T246="-","-",T246/$N246%))) -> 4.7 | X248: =IF(OR(X246="x",$N246="x"),"x",IF(OR($N246=0,$N246="-"),"nc",IF(X246="-","-",X246/$N246%))) -> 3.3 | AB248: =IF(OR(AB246="x",$N246="x"),"x",IF(OR($N246=0,$N246="-"),"nc",IF(AB246="-","-",AB246/$N246%))) -> 4.2 | AF248: =IF(OR(AF246="x",$N246="x"),"x",IF(OR($N246=0,$N246="-"),"nc",IF(AF246="-","-",AF246/$N246%))) -> 3.8 | AJ248: =IF(OR(AJ246="x",$N246="x"),"x",IF(OR($N246=0,$N246="-"),"nc",IF(AJ246="-","-",AJ246/$N246%))) -> 4.4 | AN248: =IF(OR(AN246="x",$N246="x"),"x",IF(OR($N246=0,$N246="-"),"nc",IF(AN246="-","-",AN246/$N246%))) -> 8.6 | AR248: =IF(OR(AR246="x",$N246="x"),"x",IF(OR($N246=0,$N246="-"),"nc",IF(AR246="-","-",AR246/$N246%))) -> 70.9 | AX248: =IF(OR(AX246="x",$N246="x"),"x",IF(OR($N246=0,$N246="-"),"nc",IF(AX246="-","-",AX246/$N246%))) -> 15.9 | BB248: =IF(OR(BB246="x",$N246="x"),"x",IF(OR($N246=0,$N246="-"),"nc",IF(BB246="-","-",BB246/$N246%))) -> 23.8 | BF248: =IF(OR(BF246="x",$N246="x"),"x",IF(OR($N246=0,$N246="-"),"nc",IF(BF246="-","-",BF246/$N246%))) -> 18.1 | BJ248: =IF(OR(BJ246="x",$N246="x"),"x",IF(OR($N246=0,$N246="-"),"nc",IF(BJ246="-","-",BJ246/$N246%))) -> 8.3 | BN248: =IF(OR(BN246="x",$N246="x"),"x",IF(OR($N246=0,$N246="-"),"nc",IF(BN246="-","-",BN246/$N246%))) -> 4.8 | BR248: -
D250: 《年齢階層別の基幹的農業従事者数》 | AP250: 《年齢階層別の基幹的農業従事者数割合》
S251: =本体用データ!W4 -> 山形県 | BE251: =本体用データ!$W$4 -> 山形県
BE255: =本体用データ!$W$5 -> 山形県
D263: ＝参考＝
B265: 区 分 | N265: 基幹的農業従事者数及び人口
N266: 計 | T266: 15～ 39 | X266: 40～ 44 | AB266: 45～ 49 | AF266: 50～ 54 | AJ266: 55～ 59 | AN266: 60～ 64 | AR266: 65歳 以上
AX267: 65～ 69 | BB267: 70～ 74 | BF267: 75歳 以上
B269: 令和2年 | G269: 人口 | N269: =OFFSET('2020年'!$A$1,本体用データ!$V$4,本体用データ!$F254) -> 947,941 | T269: =OFFSET('2020年'!$A$1,本体用データ!$V$4,本体用データ!$F254+1) -> 234,248 | X269: =OFFSET('2020年'!$A$1,本体用データ!$V$4,本体用データ!$F254+2) -> 66,197 | AB269: =OFFSET('2020年'!$A$1,本体用データ!$V$4,本体用データ!$F254+3) -> 69,537 | AF269: =OFFSET('2020年'!$A$1,本体用データ!$V$4,本体用データ!$F254+4) -> 64,132 | AJ269: =OFFSET('2020年'!$A$1,本体用データ!$V$4,本体用データ!$F254+5) -> 68,753 | AN269: =OFFSET('2020年'!$A$1,本体用データ!$V$4,本体用データ!$F254+6) -> 75,952 | AR269: =OFFSET('2020年'!$A$1,本体用データ!$V$4,本体用データ!$F254+7) -> 369,122 | AX269: =OFFSET('2020年'!$A$1,本体用データ!$V$4,本体用データ!$F254+8) -> 85,619 | BB269: =OFFSET('2020年'!$A$1,本体用データ!$V$4,本体用データ!$F254+9) -> 83,299 | BF269: =OFFSET('2020年'!$A$1,本体用データ!$V$4,本体用データ!$F254+10) -> 200,204
B270: 2020年 | G270: 基幹的農業従事者 | N270: =N245 -> 39,034 | T270: =T245 -> 1,938 | X270: =X245 -> 1,127 | AB270: =AB245 -> 1,040 | AF270: =AF245 -> 1,238 | AJ270: =AJ245 -> 2,379 | AN270: =AN245 -> 4,667 | AR270: =AR245 -> 26,645 | AX270: =AX245 -> 8,427 | BB270: =BB245 -> 7,601 | BF270: =SUM(BF245:BQ245) -> 10,617
B271: 割合（％） | N271: =IF(OR(N270="x",$N270="x"),"x",IF(OR($N270="@",$N270=0,$N270="-"),"nc",IF(N270="-","-",N270/N269%))) -> 4.1 | T271: =IF(OR(T270="x",$N270="x"),"x",IF(OR($N270="@",$N270=0,$N270="-"),"nc",IF(T270="-","-",T270/T269%))) -> 0.8 | X271: =IF(OR(X270="x",$N270="x"),"x",IF(OR($N270="@",$N270=0,$N270="-"),"nc",IF(X270="-","-",X270/X269%))) -> 1.7 | AB271: =IF(OR(AB270="x",$N270="x"),"x",IF(OR($N270="@",$N270=0,$N270="-"),"nc",IF(AB270="-","-",AB270/AB269%))) -> 1.5 | AF271: =IF(OR(AF270="x",$N270="x"),"x",IF(OR($N270="@",$N270=0,$N270="-"),"nc",IF(AF270="-","-",AF270/AF269%))) -> 1.9 | AJ271: =IF(OR(AJ270="x",$N270="x"),"x",IF(OR($N270="@",$N270=0,$N270="-"),"nc",IF(AJ270="-","-",AJ270/AJ269%))) -> 3.5 | AN271: =IF(OR(AN270="x",$N270="x"),"x",IF(OR($N270="@",$N270=0,$N270="-"),"nc",IF(AN270="-","-",AN270/AN269%))) -> 6.1 | AR271: =IF(OR(AR270="x",$N270="x"),"x",IF(OR($N270="@",$N270=0,$N270="-"),"nc",IF(AR270="-","-",AR270/AR269%))) -> 7.2 | AX271: =IF(OR(AX270="x",$N270="x"),"x",IF(OR($N270="@",$N270=0,$N270="-"),"nc",IF(AX270="-","-",AX270/AX269%))) -> 9.8 | BB271: =IF(OR(BB270="x",$N270="x"),"x",IF(OR($N270="@",$N270=0,$N270="-"),"nc",IF(BB270="-","-",BB270/BB269%))) -> 9.1 | BF271: =IF(OR(BF270="x",$N270="x"),"x",IF(OR($N270="@",$N270=0,$N270="-"),"nc",IF(BF270="-","-",BF270/BF269%))) -> 5.3
B272: 令和7年 | G272: 人口 | N272: =OFFSET('2025年'!$A$1,本体用データ!$V$4,本体用データ!$F255) -> 0 | T272: =OFFSET('2025年'!$A$1,本体用データ!$V$4,本体用データ!$F255+1) -> 0 | X272: =OFFSET('2025年'!$A$1,本体用データ!$V$4,本体用データ!$F255+2) -> 0 | AB272: =OFFSET('2025年'!$A$1,本体用データ!$V$4,本体用データ!$F255+3) -> 0 | AF272: =OFFSET('2025年'!$A$1,本体用データ!$V$4,本体用データ!$F255+4) -> 0 | AJ272: =OFFSET('2025年'!$A$1,本体用データ!$V$4,本体用データ!$F255+5) -> 0 | AN272: =OFFSET('2025年'!$A$1,本体用データ!$V$4,本体用データ!$F255+6) -> 0 | AR272: =OFFSET('2025年'!$A$1,本体用データ!$V$4,本体用データ!$F255+7) -> 0 | AX272: =OFFSET('2025年'!$A$1,本体用データ!$V$4,本体用データ!$F255+8) -> 0 | BB272: =OFFSET('2025年'!$A$1,本体用データ!$V$4,本体用データ!$F255+9) -> 0 | BF272: =OFFSET('2025年'!$A$1,本体用データ!$V$4,本体用データ!$F255+10) -> 0
B273: 2025年 | G273: 基幹的農業従事者 | N273: =N246 -> 30,322 | T273: =T246 -> 1,427 | X273: =X246 -> 1,009 | AB273: =AB246 -> 1,274 | AF273: =AF246 -> 1,140 | AJ273: =AJ246 -> 1,346 | AN273: =AN246 -> 2,613 | AR273: =AR246 -> 21,513 | AX273: =AX246 -> 4,824 | BB273: =BB246 -> 7,227 | BF273: =SUM(BF246:BQ246) -> 9,462
B274: 割合（％） | N274: =IF(OR(N273="x",$N273="x"),"x",IF(OR($N273="@",$N273=0,$N273="-",N272=0),"nc",IF(N273="-","-",N273/N272%))) -> nc | T274: =IF(OR(T273="x",$N273="x"),"x",IF(OR($N273="@",$N273=0,$N273="-",T272=0),"nc",IF(T273="-","-",T273/T272%))) -> nc | X274: =IF(OR(X273="x",$N273="x"),"x",IF(OR($N273="@",$N273=0,$N273="-",X272=0),"nc",IF(X273="-","-",X273/X272%))) -> nc | AB274: =IF(OR(AB273="x",$N273="x"),"x",IF(OR($N273="@",$N273=0,$N273="-",AB272=0),"nc",IF(AB273="-","-",AB273/AB272%))) -> nc | AF274: =IF(OR(AF273="x",$N273="x"),"x",IF(OR($N273="@",$N273=0,$N273="-",AF272=0),"nc",IF(AF273="-","-",AF273/AF272%))) -> nc | AJ274: =IF(OR(AJ273="x",$N273="x"),"x",IF(OR($N273="@",$N273=0,$N273="-",AJ272=0),"nc",IF(AJ273="-","-",AJ273/AJ272%))) -> nc | AN274: =IF(OR(AN273="x",$N273="x"),"x",IF(OR($N273="@",$N273=0,$N273="-",AN272=0),"nc",IF(AN273="-","-",AN273/AN272%))) -> nc | AR274: =IF(OR(AR273="x",$N273="x"),"x",IF(OR($N273="@",$N273=0,$N273="-",AR272=0),"nc",IF(AR273="-","-",AR273/AR272%))) -> nc | AX274: =IF(OR(AX273="x",$N273="x"),"x",IF(OR($N273="@",$N273=0,$N273="-",AX272=0),"nc",IF(AX273="-","-",AX273/AX272%))) -> nc | BB274: =IF(OR(BB273="x",$N273="x"),"x",IF(OR($N273="@",$N273=0,$N273="-",BB272=0),"nc",IF(BB273="-","-",BB273/BB272%))) -> nc | BF274: =IF(OR(BF273="x",$N273="x"),"x",IF(OR($N273="@",$N273=0,$N273="-",BF272=0),"nc",IF(BF273="-","-",BF273/BF272%))) -> nc
E279: =IF(OR(S286="x",S286="-"),"","基幹的農業従事者がいる個人経営体の経営耕地面積は"&TEXT(S286,"#,###")&"ha"&本体用データ!G283&IF(OR(AV286="x",AV286="-"),"","、65歳以上は全体の"&TEXT(AV288,"0.0")&"%")) -> 基幹的農業従事者がいる個人経営体の経営耕地面積はhaで、2020年に比べて74,076ha（100.0%）減少、65歳以上は全体のnc%
BP280: 単位：ha、％
B281: 区 分 | N281: 合計 | S281: 基幹的農業従事者の年齢階層別経営耕地面積 | BU281: 基幹的農業従事者がいない経営体の経営耕地面積
S282: 計 | X282: 15～ 39 | AB282: 40～ 44 | AF282: 45～ 49 | AJ282: 50～ 54 | AN282: 55～ 59 | AR282: 60～ 64 | AV282: 65歳 以上
BA283: 65～ 69 | BE283: 70～ 74 | BI283: 75～ 79 | BM283: 80～ 84 | BQ283: 85歳 以上
B285: 実数 | E285: 2020年 | N285: =IFERROR(ROUND(本体用データ!K282/100,0),本体用データ!K282) -> 80,629 | S285: =IFERROR(ROUND(本体用データ!L282/100,0),本体用データ!L282) -> 74,076 | X285: =IFERROR(ROUND(本体用データ!M282/100,0),本体用データ!M282) -> 11,308 | AB285: =IFERROR(ROUND(本体用データ!N282/100,0),本体用データ!N282) -> 6,161 | AF285: =IFERROR(ROUND(本体用データ!O282/100,0),本体用データ!O282) -> 4,354 | AJ285: =IFERROR(ROUND(本体用データ!P282/100,0),本体用データ!P282) -> 4,075 | AN285: =IFERROR(ROUND(本体用データ!Q282/100,0),本体用データ!Q282) -> 6,885 | AR285: =IFERROR(ROUND(本体用データ!R282/100,0),本体用データ!R282) -> 10,686 | AV285: =IFERROR(ROUND(本体用データ!S282/100,0),本体用データ!S282) -> 30,607 | BA285: =IFERROR(ROUND(本体用データ!T282/100,0),本体用データ!T282) -> 14,705 | BE285: =IFERROR(ROUND(本体用データ!U282/100,0),本体用データ!U282) -> 8,952 | BI285: =IFERROR(ROUND(本体用データ!V282/100,0),本体用データ!V282) -> 4,037 | BM285: =IFERROR(ROUND(本体用データ!W282/100,0),本体用データ!W282) -> 2,186 | BQ285: =IFERROR(ROUND(本体用データ!X282/100,0),本体用データ!X282) -> 727 | BU285: =IFERROR(ROUND(本体用データ!Y282/100,0),本体用データ!Y282) -> 6,553
E286: 2025年 | N286: =IFERROR(ROUND(本体用データ!K283/100,0),本体用データ!K283) -> 0 | S286: =IFERROR(ROUND(本体用データ!L283/100,0),本体用データ!L283) -> 0 | X286: =IFERROR(ROUND(本体用データ!M283/100,0),本体用データ!M283) -> 0 | AB286: =IFERROR(ROUND(本体用データ!N283/100,0),本体用データ!N283) -> 0 | AF286: =IFERROR(ROUND(本体用データ!O283/100,0),本体用データ!O283) -> 0 | AJ286: =IFERROR(ROUND(本体用データ!P283/100,0),本体用データ!P283) -> 0 | AN286: =IFERROR(ROUND(本体用データ!Q283/100,0),本体用データ!Q283) -> 0 | AR286: =IFERROR(ROUND(本体用データ!R283/100,0),本体用データ!R283) -> 0 | AV286: =IFERROR(ROUND(本体用データ!S283/100,0),本体用データ!S283) -> 0 | BA286: =IFERROR(ROUND(本体用データ!T283/100,0),本体用データ!T283) -> 0 | BE286: =IFERROR(ROUND(本体用データ!U283/100,0),本体用データ!U283) -> 0 | BI286: =IFERROR(ROUND(本体用データ!V283/100,0),本体用データ!V283) -> 0 | BM286: =IFERROR(ROUND(本体用データ!W283/100,0),本体用データ!W283) -> 0 | BQ286: =IFERROR(ROUND(本体用データ!X283/100,0),本体用データ!X283) -> 0 | BU286: =IFERROR(ROUND(本体用データ!Y283/100,0),本体用データ!Y283) -> 0
B287: 構成比 | E287: 2020年 | N287: =本体用データ!K285 -> 100.0 | S287: =本体用データ!L285 -> 91.9 | X287: =本体用データ!M285 -> 14.0 | AB287: =本体用データ!N285 -> 7.6 | AF287: =本体用データ!O285 -> 5.4 | AJ287: =本体用データ!P285 -> 5.1 | AN287: =本体用データ!Q285 -> 8.5 | AR287: =本体用データ!R285 -> 13.3 | AV287: =本体用データ!S285 -> 38.0 | BA287: =本体用データ!T285 -> 18.2 | BE287: =本体用データ!U285 -> 11.1 | BI287: =本体用データ!V285 -> 5.0 | BM287: =本体用データ!W285 -> 2.7 | BQ287: =本体用データ!X285 -> 0.9 | BU287: =本体用データ!Y285 -> 8.1
E288: 2025年 | N288: =本体用データ!K286 -> nc | S288: =本体用データ!L286 -> nc | X288: =本体用データ!M286 -> nc | AB288: =本体用データ!N286 -> nc | AF288: =本体用データ!O286 -> nc | AJ288: =本体用データ!P286 -> nc | AN288: =本体用データ!Q286 -> nc | AR288: =本体用データ!R286 -> nc | AV288: =本体用データ!S286 -> nc | BA288: =本体用データ!T286 -> nc | BE288: =本体用データ!U286 -> nc | BI288: =本体用データ!V286 -> nc | BM288: =本体用データ!W286 -> nc | BQ288: =本体用データ!X286 -> nc | BU288: =本体用データ!Y286 -> nc
B289: ※１経営体に基幹的農業従事者が複数いる場合、最も若い基幹的農業従事者の年齢階層に計上
G291: 《基幹的農業従事者の年齢階層別経営耕地面積》 | AQ291: 《基幹的農業従事者の年齢階層別経営耕地面積割合》
T292: =本体用データ!$W$4 -> 山形県 | BA292: =本体用データ!$W$4 -> 山形県
BA296: =本体用データ!$W$5 -> 山形県
E305: =IF(OR(V311="x",V311="-",V311="nc"),"","後継者を確保している農業経営体は"&TEXT(V311,"#,###")&"経営体（"&TEXT(ABS(本体用データ!H316),"0.0%）")) -> 後継者を確保している農業経営体は6,838経営体（30.0%)
BY306: 単位：経営体、％
B307: 区 分 | V307: 計 | AB307: 15～ 39 | AF307: 40～ 44 | AJ307: 45～ 49 | AN307: 50～ 54 | AR307: 55～ 59 | AV307: 60～ 64 | AZ307: 65歳 以上
BF308: 65～ 69 | BJ308: 70～ 74 | BN308: 75～ 79 | BR308: 80～ 84 | BV308: 85歳 以上
B310: 実数 | D310: 2025年 | I310: 農業経営体 | V310: =OFFSET('2025年'!$A$1,本体用データ!$V$4,本体用データ!$F310) -> 22,775 | AB310: =OFFSET('2025年'!$A$1,本体用データ!$V$4,本体用データ!$F310+1) -> 581 | AF310: =OFFSET('2025年'!$A$1,本体用データ!$V$4,本体用データ!$F310+2) -> 679 | AJ310: =OFFSET('2025年'!$A$1,本体用データ!$V$4,本体用データ!$F310+3) -> 1,037 | AN310: =OFFSET('2025年'!$A$1,本体用データ!$V$4,本体用データ!$F310+4) -> 1,128 | AR310: =OFFSET('2025年'!$A$1,本体用データ!$V$4,本体用データ!$F310+5) -> 1,527 | AV310: =OFFSET('2025年'!$A$1,本体用データ!$V$4,本体用データ!$F310+6) -> 2,697 | AZ310: =OFFSET('2025年'!$A$1,本体用データ!$V$4,本体用データ!$F310+7) -> 15,126 | BF310: =OFFSET('2025年'!$A$1,本体用データ!$V$4,本体用データ!$F310+8) -> 4,017 | BJ310: =OFFSET('2025年'!$A$1,本体用データ!$V$4,本体用データ!$F310+9) -> 5,169 | BN310: =OFFSET('2025年'!$A$1,本体用データ!$V$4,本体用データ!$F310+10) -> 3,794 | BR310: =OFFSET('2025年'!$A$1,本体用データ!$V$4,本体用データ!$F310+11) -> 1,436 | BV310: =OFFSET('2025年'!$A$1,本体用データ!$V$4,本体用データ!$F310+12) -> 710
D311: うち | H311: 後継者を確保している | V311: =OFFSET('2025年'!$A$1,本体用データ!$V$4,本体用データ!$F311) -> 6,838 | AB311: =OFFSET('2025年'!$A$1,本体用データ!$V$4,本体用データ!$F311+1) -> 100 | AF311: =OFFSET('2025年'!$A$1,本体用データ!$V$4,本体用データ!$F311+2) -> 122 | AJ311: =OFFSET('2025年'!$A$1,本体用データ!$V$4,本体用データ!$F311+3) -> 211 | AN311: =OFFSET('2025年'!$A$1,本体用データ!$V$4,本体用データ!$F311+4) -> 260 | AR311: =OFFSET('2025年'!$A$1,本体用データ!$V$4,本体用データ!$F311+5) -> 377 | AV311: =OFFSET('2025年'!$A$1,本体用データ!$V$4,本体用データ!$F311+6) -> 728 | AZ311: =OFFSET('2025年'!$A$1,本体用データ!$V$4,本体用データ!$F311+7) -> 5,040 | BF311: =OFFSET('2025年'!$A$1,本体用データ!$V$4,本体用データ!$F311+8) -> 1,146 | BJ311: =OFFSET('2025年'!$A$1,本体用データ!$V$4,本体用データ!$F311+9) -> 1,604 | BN311: =OFFSET('2025年'!$A$1,本体用データ!$V$4,本体用データ!$F311+10) -> 1,325 | BR311: =OFFSET('2025年'!$A$1,本体用データ!$V$4,本体用データ!$F311+11) -> 571 | BV311: =OFFSET('2025年'!$A$1,本体用データ!$V$4,本体用データ!$F311+12) -> 394
H312: 後継者を確保していない （5年以内に引き継ぐ意向がない） | V312: =OFFSET('2025年'!$A$1,本体用データ!$V$4,本体用データ!$F313) -> 14,939 | AB312: =OFFSET('2025年'!$A$1,本体用データ!$V$4,本体用データ!$F313+1) -> 476 | AF312: =OFFSET('2025年'!$A$1,本体用データ!$V$4,本体用データ!$F313+2) -> 546 | AJ312: =OFFSET('2025年'!$A$1,本体用データ!$V$4,本体用データ!$F313+3) -> 811 | AN312: =OFFSET('2025年'!$A$1,本体用データ!$V$4,本体用データ!$F313+4) -> 850 | AR312: =OFFSET('2025年'!$A$1,本体用データ!$V$4,本体用データ!$F313+5) -> 1,110 | AV312: =OFFSET('2025年'!$A$1,本体用データ!$V$4,本体用データ!$F313+6) -> 1,891 | AZ312: =OFFSET('2025年'!$A$1,本体用データ!$V$4,本体用データ!$F313+7) -> 9,255 | BF312: =OFFSET('2025年'!$A$1,本体用データ!$V$4,本体用データ!$F313+8) -> 2,720 | BJ312: =OFFSET('2025年'!$A$1,本体用データ!$V$4,本体用データ!$F313+9) -> 3,280 | BN312: =OFFSET('2025年'!$A$1,本体用データ!$V$4,本体用データ!$F313+10) -> 2,220 | BR312: =OFFSET('2025年'!$A$1,本体用データ!$V$4,本体用データ!$F313+11) -> 763 | BV312: =OFFSET('2025年'!$A$1,本体用データ!$V$4,本体用データ!$F313+12) -> 272
H313: 後継者を確保していない （5年以内に引き継ぐ意向がある） | V313: =OFFSET('2025年'!$A$1,本体用データ!$V$4,本体用データ!$F312) -> 998 | AB313: =OFFSET('2025年'!$A$1,本体用データ!$V$4,本体用データ!$F312+1) -> 5 | AF313: =OFFSET('2025年'!$A$1,本体用データ!$V$4,本体用データ!$F312+2) -> 11 | AJ313: =OFFSET('2025年'!$A$1,本体用データ!$V$4,本体用データ!$F312+3) -> 15 | AN313: =OFFSET('2025年'!$A$1,本体用データ!$V$4,本体用データ!$F312+4) -> 18 | AR313: =OFFSET('2025年'!$A$1,本体用データ!$V$4,本体用データ!$F312+5) -> 40 | AV313: =OFFSET('2025年'!$A$1,本体用データ!$V$4,本体用データ!$F312+6) -> 78 | AZ313: =OFFSET('2025年'!$A$1,本体用データ!$V$4,本体用データ!$F312+7) -> 831 | BF313: =OFFSET('2025年'!$A$1,本体用データ!$V$4,本体用データ!$F312+8) -> 151 | BJ313: =OFFSET('2025年'!$A$1,本体用データ!$V$4,本体用データ!$F312+9) -> 285 | BN313: =OFFSET('2025年'!$A$1,本体用データ!$V$4,本体用データ!$F312+10) -> 249 | BR313: =OFFSET('2025年'!$A$1,本体用データ!$V$4,本体用データ!$F312+11) -> 102 | BV313: =OFFSET('2025年'!$A$1,本体用データ!$V$4,本体用データ!$F312+12) -> 44
B314: 構成比 | D314: 2025年 | I314: 農業経営体 | V314: =IF(OR(V310="x",$V310="x"),"x",IF(OR($V310=0,$V310="-"),"nc",IF(V310="-","-",V310/$V310%))) -> 100.0 | AB314: =IF(OR(AB310="x",$V310="x"),"x",IF(OR($V310=0,$V310="-"),"nc",IF(AB310="-","-",AB310/$V310%))) -> 2.6 | AF314: =IF(OR(AF310="x",$V310="x"),"x",IF(OR($V310=0,$V310="-"),"nc",IF(AF310="-","-",AF310/$V310%))) -> 3.0 | AJ314: =IF(OR(AJ310="x",$V310="x"),"x",IF(OR($V310=0,$V310="-"),"nc",IF(AJ310="-","-",AJ310/$V310%))) -> 4.6 | AN314: =IF(OR(AN310="x",$V310="x"),"x",IF(OR($V310=0,$V310="-"),"nc",IF(AN310="-","-",AN310/$V310%))) -> 5.0 | AR314: =IF(OR(AR310="x",$V310="x"),"x",IF(OR($V310=0,$V310="-"),"nc",IF(AR310="-","-",AR310/$V310%))) -> 6.7 | AV314: =IF(OR(AV310="x",$V310="x"),"x",IF(OR($V310=0,$V310="-"),"nc",IF(AV310="-","-",AV310/$V310%))) -> 11.8 | AZ314: =IF(OR(AZ310="x",$V310="x"),"x",IF(OR($V310=0,$V310="-"),"nc",IF(AZ310="-","-",AZ310/$V310%))) -> 66.4 | BF314: =IF(OR(BF310="x",$V310="x"),"x",IF(OR($V310=0,$V310="-"),"nc",IF(BF310="-","-",BF310/$V310%))) -> 17.6 | BJ314: =IF(OR(BJ310="x",$V310="x"),"x",IF(OR($V310=0,$V310="-"),"nc",IF(BJ310="-","-",BJ310/$V310%))) -> 22.7 | BN314: =IF(OR(BN310="x",$V310="x"),"x",IF(OR($V310=0,$V310="-"),"nc",IF(BN310="-","-",BN310/$V310%))) -> 16.7 | BR314: =IF(OR(BR310="x",$V310="x"),"x",IF(OR($V310=0,$V310="-"),"nc",IF(BR310="-","-",BR310/$V310%))) -> 6.3 | BV314: =IF(OR(BV310="x",$V310="x"),"x",IF(OR($V310=0,$V310="-"),"nc",IF(BV310="-","-",BV310/$V310%))) -> 3.1
D315: うち | H315: 後継者を確保している | V315: =IF(OR(V311="x",$V311="x"),"x",IF(OR($V311=0,$V311="-"),"nc",IF(V311="-","-",V311/$V311%))) -> 100.0 | AB315: =IF(OR(AB311="x",$V311="x"),"x",IF(OR($V311=0,$V311="-"),"nc",IF(AB311="-","-",AB311/$V311%))) -> 1.5 | AF315: =IF(OR(AF311="x",$V311="x"),"x",IF(OR($V311=0,$V311="-"),"nc",IF(AF311="-","-",AF311/$V311%))) -> 1.8 | AJ315: =IF(OR(AJ311="x",$V311="x"),"x",IF(OR($V311=0,$V311="-"),"nc",IF(AJ311="-","-",AJ311/$V311%))) -> 3.1 | AN315: =IF(OR(AN311="x",$V311="x"),"x",IF(OR($V311=0,$V311="-"),"nc",IF(AN311="-","-",AN311/$V311%))) -> 3.8 | AR315: =IF(OR(AR311="x",$V311="x"),"x",IF(OR($V311=0,$V311="-"),"nc",IF(AR311="-","-",AR311/$V311%))) -> 5.5 | AV315: =IF(OR(AV311="x",$V311="x"),"x",IF(OR($V311=0,$V311="-"),"nc",IF(AV311="-","-",AV311/$V311%))) -> 10.6 | AZ315: =IF(OR(AZ311="x",$V311="x"),"x",IF(OR($V311=0,$V311="-"),"nc",IF(AZ311="-","-",AZ311/$V311%))) -> 73.7 | BF315: =IF(OR(BF311="x",$V311="x"),"x",IF(OR($V311=0,$V311="-"),"nc",IF(BF311="-","-",BF311/$V311%))) -> 16.8 | BJ315: =IF(OR(BJ311="x",$V311="x"),"x",IF(OR($V311=0,$V311="-"),"nc",IF(BJ311="-","-",BJ311/$V311%))) -> 23.5 | BN315: =IF(OR(BN311="x",$V311="x"),"x",IF(OR($V311=0,$V311="-"),"nc",IF(BN311="-","-",BN311/$V311%))) -> 19.4 | BR315: =IF(OR(BR311="x",$V311="x"),"x",IF(OR($V311=0,$V311="-"),"nc",IF(BR311="-","-",BR311/$V311%))) -> 8.4 | BV315: =IF(OR(BV311="x",$V311="x"),"x",IF(OR($V311=0,$V311="-"),"nc",IF(BV311="-","-",BV311/$V311%))) -> 5.8
H316: 後継者を確保していない （5年以内に引き継ぐ意向がない） | V316: =IF(OR(V312="x",$V312="x"),"x",IF(OR($V312=0,$V312="-"),"nc",IF(V312="-","-",V312/$V312%))) -> 100.0 | AB316: =IF(OR(AB312="x",$V312="x"),"x",IF(OR($V312=0,$V312="-"),"nc",IF(AB312="-","-",AB312/$V312%))) -> 3.2 | AF316: =IF(OR(AF312="x",$V312="x"),"x",IF(OR($V312=0,$V312="-"),"nc",IF(AF312="-","-",AF312/$V312%))) -> 3.7 | AJ316: =IF(OR(AJ312="x",$V312="x"),"x",IF(OR($V312=0,$V312="-"),"nc",IF(AJ312="-","-",AJ312/$V312%))) -> 5.4 | AN316: =IF(OR(AN312="x",$V312="x"),"x",IF(OR($V312=0,$V312="-"),"nc",IF(AN312="-","-",AN312/$V312%))) -> 5.7 | AR316: =IF(OR(AR312="x",$V312="x"),"x",IF(OR($V312=0,$V312="-"),"nc",IF(AR312="-","-",AR312/$V312%))) -> 7.4 | AV316: =IF(OR(AV312="x",$V312="x"),"x",IF(OR($V312=0,$V312="-"),"nc",IF(AV312="-","-",AV312/$V312%))) -> 12.7 | AZ316: =IF(OR(AZ312="x",$V312="x"),"x",IF(OR($V312=0,$V312="-"),"nc",IF(AZ312="-","-",AZ312/$V312%))) -> 62.0 | BF316: =IF(OR(BF312="x",$V312="x"),"x",IF(OR($V312=0,$V312="-"),"nc",IF(BF312="-","-",BF312/$V312%))) -> 18.2 | BJ316: =IF(OR(BJ312="x",$V312="x"),"x",IF(OR($V312=0,$V312="-"),"nc",IF(BJ312="-","-",BJ312/$V312%))) -> 22.0 | BN316: =IF(OR(BN312="x",$V312="x"),"x",IF(OR($V312=0,$V312="-"),"nc",IF(BN312="-","-",BN312/$V312%))) -> 14.9 | BR316: =IF(OR(BR312="x",$V312="x"),"x",IF(OR($V312=0,$V312="-"),"nc",IF(BR312="-","-",BR312/$V312%))) -> 5.1 | BV316: =IF(OR(BV312="x",$V312="x"),"x",IF(OR($V312=0,$V312="-"),"nc",IF(BV312="-","-",BV312/$V312%))) -> 1.8
H317: 後継者を確保していない （5年以内に引き継ぐ意向がある） | V317: =IF(OR(V313="x",$V313="x"),"x",IF(OR($V313=0,$V313="-"),"nc",IF(V313="-","-",V313/$V313%))) -> 100.0 | AB317: =IF(OR(AB313="x",$V313="x"),"x",IF(OR($V313=0,$V313="-"),"nc",IF(AB313="-","-",AB313/$V313%))) -> 0.5 | AF317: =IF(OR(AF313="x",$V313="x"),"x",IF(OR($V313=0,$V313="-"),"nc",IF(AF313="-","-",AF313/$V313%))) -> 1.1 | AJ317: =IF(OR(AJ313="x",$V313="x"),"x",IF(OR($V313=0,$V313="-"),"nc",IF(AJ313="-","-",AJ313/$V313%))) -> 1.5 | AN317: =IF(OR(AN313="x",$V313="x"),"x",IF(OR($V313=0,$V313="-"),"nc",IF(AN313="-","-",AN313/$V313%))) -> 1.8 | AR317: =IF(OR(AR313="x",$V313="x"),"x",IF(OR($V313=0,$V313="-"),"nc",IF(AR313="-","-",AR313/$V313%))) -> 4.0 | AV317: =IF(OR(AV313="x",$V313="x"),"x",IF(OR($V313=0,$V313="-"),"nc",IF(AV313="-","-",AV313/$V313%))) -> 7.8 | AZ317: =IF(OR(AZ313="x",$V313="x"),"x",IF(OR($V313=0,$V313="-"),"nc",IF(AZ313="-","-",AZ313/$V313%))) -> 83.3 | BF317: =IF(OR(BF313="x",$V313="x"),"x",IF(OR($V313=0,$V313="-"),"nc",IF(BF313="-","-",BF313/$V313%))) -> 15.1 | BJ317: =IF(OR(BJ313="x",$V313="x"),"x",IF(OR($V313=0,$V313="-"),"nc",IF(BJ313="-","-",BJ313/$V313%))) -> 28.6 | BN317: =IF(OR(BN313="x",$V313="x"),"x",IF(OR($V313=0,$V313="-"),"nc",IF(BN313="-","-",BN313/$V313%))) -> 24.9 | BR317: =IF(OR(BR313="x",$V313="x"),"x",IF(OR($V313=0,$V313="-"),"nc",IF(BR313="-","-",BR313/$V313%))) -> 10.2 | BV317: =IF(OR(BV313="x",$V313="x"),"x",IF(OR($V313=0,$V313="-"),"nc",IF(BV313="-","-",BV313/$V313%))) -> 4.4
K319: 《経営主の年齢階層別経営体数割合》 | AW319: 《農業後継者を確保している経営主の
AZ320: 年齢階層別経営体数割合》
E334: =IF(OR(V340="x",V340="-",V340="nc"),"","後継者を確保している農業経営体の経営耕地面積は"&TEXT(V340,"#,##0")&"ha（"&TEXT(ABS(本体用データ!H343),"0.0%）")) -> 
BP335: 単位：ha、％
B336: 区 分 | V336: 計 | AB336: 15～ 39 | AF336: 40～ 44 | AJ336: 45～ 49 | AN336: 50～ 54 | AR336: 55～ 59 | AV336: 60～ 64 | AZ336: 65歳 以上
BF337: 65～ 69 | BJ337: 70～ 74 | BN337: 75～ 79 | BR337: 80～ 84 | BV337: 85歳 以上
B339: 実数 | D339: 2025年 | I339: 農業経営体 | V339: =IFERROR(ROUND(本体用データ!K337/100,0),本体用データ!K337) -> 0 | AB339: =IFERROR(ROUND(本体用データ!L337/100,0),本体用データ!L337) -> 0 | AF339: =IFERROR(ROUND(本体用データ!M337/100,0),本体用データ!M337) -> 0 | AJ339: =IFERROR(ROUND(本体用データ!N337/100,0),本体用データ!N337) -> 0 | AN339: =IFERROR(ROUND(本体用データ!O337/100,0),本体用データ!O337) -> 0 | AR339: =IFERROR(ROUND(本体用データ!P337/100,0),本体用データ!P337) -> 0 | AV339: =IFERROR(ROUND(本体用データ!Q337/100,0),本体用データ!Q337) -> 0 | AZ339: =IFERROR(ROUND(本体用データ!R337/100,0),本体用データ!R337) -> 0 | BF339: =IFERROR(ROUND(本体用データ!S337/100,0),本体用データ!S337) -> 0 | BJ339: =IFERROR(ROUND(本体用データ!T337/100,0),本体用データ!T337) -> 0 | BN339: =IFERROR(ROUND(本体用データ!U337/100,0),本体用データ!U337) -> 0 | BR339: =IFERROR(ROUND(本体用データ!V337/100,0),本体用データ!V337) -> 0 | BV339: =IFERROR(ROUND(本体用データ!W337/100,0),本体用データ!W337) -> 0
D340: うち | H340: 後継者を確保している | V340: =IFERROR(ROUND(本体用データ!K338/100,0),本体用データ!K338) -> 0 | AB340: =IFERROR(ROUND(本体用データ!L338/100,0),本体用データ!L338) -> 0 | AF340: =IFERROR(ROUND(本体用データ!M338/100,0),本体用データ!M338) -> 0 | AJ340: =IFERROR(ROUND(本体用データ!N338/100,0),本体用データ!N338) -> 0 | AN340: =IFERROR(ROUND(本体用データ!O338/100,0),本体用データ!O338) -> 0 | AR340: =IFERROR(ROUND(本体用データ!P338/100,0),本体用データ!P338) -> 0 | AV340: =IFERROR(ROUND(本体用データ!Q338/100,0),本体用データ!Q338) -> 0 | AZ340: =IFERROR(ROUND(本体用データ!R338/100,0),本体用データ!R338) -> 0 | BF340: =IFERROR(ROUND(本体用データ!S338/100,0),本体用データ!S338) -> 0 | BJ340: =IFERROR(ROUND(本体用データ!T338/100,0),本体用データ!T338) -> 0 | BN340: =IFERROR(ROUND(本体用データ!U338/100,0),本体用データ!U338) -> 0 | BR340: =IFERROR(ROUND(本体用データ!V338/100,0),本体用データ!V338) -> 0 | BV340: =IFERROR(ROUND(本体用データ!W338/100,0),本体用データ!W338) -> 0
H341: 後継者を確保していない （5年以内に引き継ぐ意向がない） | V341: =IFERROR(ROUND(本体用データ!K339/100,0),本体用データ!K339) -> 0 | AB341: =IFERROR(ROUND(本体用データ!L339/100,0),本体用データ!L339) -> 0 | AF341: =IFERROR(ROUND(本体用データ!M339/100,0),本体用データ!M339) -> 0 | AJ341: =IFERROR(ROUND(本体用データ!N339/100,0),本体用データ!N339) -> 0 | AN341: =IFERROR(ROUND(本体用データ!O339/100,0),本体用データ!O339) -> 0 | AR341: =IFERROR(ROUND(本体用データ!P339/100,0),本体用データ!P339) -> 0 | AV341: =IFERROR(ROUND(本体用データ!Q339/100,0),本体用データ!Q339) -> 0 | AZ341: =IFERROR(ROUND(本体用データ!R339/100,0),本体用データ!R339) -> 0 | BF341: =IFERROR(ROUND(本体用データ!S339/100,0),本体用データ!S339) -> 0 | BJ341: =IFERROR(ROUND(本体用データ!T339/100,0),本体用データ!T339) -> 0 | BN341: =IFERROR(ROUND(本体用データ!U339/100,0),本体用データ!U339) -> 0 | BR341: =IFERROR(ROUND(本体用データ!V339/100,0),本体用データ!V339) -> 0 | BV341: =IFERROR(ROUND(本体用データ!W339/100,0),本体用データ!W339) -> 0
H342: 後継者を確保していない （5年以内に引き継ぐ意向がある） | V342: =IFERROR(ROUND(本体用データ!K340/100,0),本体用データ!K340) -> 0 | AB342: =IFERROR(ROUND(本体用データ!L340/100,0),本体用データ!L340) -> 0 | AF342: =IFERROR(ROUND(本体用データ!M340/100,0),本体用データ!M340) -> 0 | AJ342: =IFERROR(ROUND(本体用データ!N340/100,0),本体用データ!N340) -> 0 | AN342: =IFERROR(ROUND(本体用データ!O340/100,0),本体用データ!O340) -> 0 | AR342: =IFERROR(ROUND(本体用データ!P340/100,0),本体用データ!P340) -> 0 | AV342: =IFERROR(ROUND(本体用データ!Q340/100,0),本体用データ!Q340) -> 0 | AZ342: =IFERROR(ROUND(本体用データ!R340/100,0),本体用データ!R340) -> 0 | BF342: =IFERROR(ROUND(本体用データ!S340/100,0),本体用データ!S340) -> 0 | BJ342: =IFERROR(ROUND(本体用データ!T340/100,0),本体用データ!T340) -> 0 | BN342: =IFERROR(ROUND(本体用データ!U340/100,0),本体用データ!U340) -> 0 | BR342: =IFERROR(ROUND(本体用データ!V340/100,0),本体用データ!V340) -> 0 | BV342: =IFERROR(ROUND(本体用データ!W340/100,0),本体用データ!W340) -> 0
B343: 構成比 | D343: 2025年 | I343: 農業経営体 | V343: =本体用データ!K341 -> nc | AB343: =本体用データ!L341 -> nc | AF343: =本体用データ!M341 -> nc | AJ343: =本体用データ!N341 -> nc | AN343: =本体用データ!O341 -> nc | AR343: =本体用データ!P341 -> nc | AV343: =本体用データ!Q341 -> nc | AZ343: =本体用データ!R341 -> nc | BF343: =本体用データ!S341 -> nc | BJ343: =本体用データ!T341 -> nc | BN343: =本体用データ!U341 -> nc | BR343: =本体用データ!V341 -> nc | BV343: =本体用データ!W341 -> nc
D344: うち | H344: 後継者を確保している | V344: =本体用データ!K342 -> nc | AB344: =本体用データ!L342 -> nc | AF344: =本体用データ!M342 -> nc | AJ344: =本体用データ!N342 -> nc | AN344: =本体用データ!O342 -> nc | AR344: =本体用データ!P342 -> nc | AV344: =本体用データ!Q342 -> nc | AZ344: =本体用データ!R342 -> nc | BF344: =本体用データ!S342 -> nc | BJ344: =本体用データ!T342 -> nc | BN344: =本体用データ!U342 -> nc | BR344: =本体用データ!V342 -> nc | BV344: =本体用データ!W342 -> nc
H345: 後継者を確保していない （5年以内に引き継ぐ意向がない） | V345: =本体用データ!K343 -> nc | AB345: =本体用データ!L343 -> nc | AF345: =本体用データ!M343 -> nc | AJ345: =本体用データ!N343 -> nc | AN345: =本体用データ!O343 -> nc | AR345: =本体用データ!P343 -> nc | AV345: =本体用データ!Q343 -> nc | AZ345: =本体用データ!R343 -> nc | BF345: =本体用データ!S343 -> nc | BJ345: =本体用データ!T343 -> nc | BN345: =本体用データ!U343 -> nc | BR345: =本体用データ!V343 -> nc | BV345: =本体用データ!W343 -> nc
H346: 後継者を確保していない （5年以内に引き継ぐ意向がある） | V346: =本体用データ!K344 -> nc | AB346: =本体用データ!L344 -> nc | AF346: =本体用データ!M344 -> nc | AJ346: =本体用データ!N344 -> nc | AN346: =本体用データ!O344 -> nc | AR346: =本体用データ!P344 -> nc | AV346: =本体用データ!Q344 -> nc | AZ346: =本体用データ!R344 -> nc | BF346: =本体用データ!S344 -> nc | BJ346: =本体用データ!T344 -> nc | BN346: =本体用データ!U344 -> nc | BR346: =本体用データ!V344 -> nc | BV346: =本体用データ!W344 -> nc
I348: 《経営主の年齢階層別経営耕地面積割合》 | AX348: 《農業後継者を確保している経営主の
AZ349: 年齢階層別経営耕地面積割合》
E364: =IF(OR(W370="x",W370="-"),"","データを活用した農業を行っている農業経営体は"&TEXT(W370,"#,###経営体")&本体用データ!G368) -> データを活用した農業を行っている農業経営体は10,035経営体で、全体の44.1%
BU365: 単位：経営体
B366: 区 分 | N366: 計 | W366: データを活用した農業を行っている | BP366: データを活用した農業を行っていない
W367: 実数 | AF367: 気象・市況等のデータを見て農業 | AO367: 農作業履歴等のデータをパソコン等で記録 | AX367: 機器・センサーを用いて生育状況等のデータを計測・取得し分析 | BG367: データ分析を活用した営農上のサービスやサポートを利用
B370: 実数 | D370: 2025年 | H370: 農業経営体 | N370: =OFFSET('2025年'!$A$1,本体用データ!$V$4,本体用データ!$F367) -> 22,775 | W370: =OFFSET('2025年'!$A$1,本体用データ!$V$4,本体用データ!$F367+1) -> 10,035 | AF370: =OFFSET('2025年'!$A$1,本体用データ!$V$4,本体用データ!$F367+2) -> 9,191 | AO370: =OFFSET('2025年'!$A$1,本体用データ!$V$4,本体用データ!$F367+3) -> 2,765 | AX370: =OFFSET('2025年'!$A$1,本体用データ!$V$4,本体用データ!$F367+4) -> 546 | BG370: =OFFSET('2025年'!$A$1,本体用データ!$V$4,本体用データ!$F367+5) -> 1,194 | BP370: =OFFSET('2025年'!$A$1,本体用データ!$V$4,本体用データ!$F367+6) -> 12,740
H371: うち団体 | N371: =OFFSET('2025年'!$A$1,本体用データ!$V$4,本体用データ!$F368) -> 1,035 | W371: =OFFSET('2025年'!$A$1,本体用データ!$V$4,本体用データ!$F368+1) -> 652 | AF371: =OFFSET('2025年'!$A$1,本体用データ!$V$4,本体用データ!$F368+2) -> 572 | AO371: =OFFSET('2025年'!$A$1,本体用データ!$V$4,本体用データ!$F368+3) -> 346 | AX371: =OFFSET('2025年'!$A$1,本体用データ!$V$4,本体用データ!$F368+4) -> 114 | BG371: =OFFSET('2025年'!$A$1,本体用データ!$V$4,本体用データ!$F368+5) -> 133 | BP371: =OFFSET('2025年'!$A$1,本体用データ!$V$4,本体用データ!$F368+6) -> 383
B372: 構成比 | D372: 2025年 | H372: 農業経営体 | N372: =IF(N370="x","x",IF($N370="-","nc",IF(N370="-","-",N370/$N370%))) -> 100.0 | W372: =IF(W370="x","x",IF($N370="-","nc",IF(W370="-","-",W370/$N370%))) -> 44.1 | AF372: =IF(AF370="x","x",IF($N370="-","nc",IF(AF370="-","-",AF370/$N370%))) -> 40.4 | AO372: =IF(AO370="x","x",IF($N370="-","nc",IF(AO370="-","-",AO370/$N370%))) -> 12.1 | AX372: =IF(AX370="x","x",IF($N370="-","nc",IF(AX370="-","-",AX370/$N370%))) -> 2.4 | BG372: =IF(BG370="x","x",IF($N370="-","nc",IF(BG370="-","-",BG370/$N370%))) -> 5.2 | BP372: =IF(BP370="x","x",IF($N370="-","nc",IF(BP370="-","-",BP370/$N370%))) -> 55.9
H373: うち団体 | N373: =IF(N371="x","x",IF(OR($N371="-",$N371=0),"nc",IF(N371="-","-",N371/$N371%))) -> 100.0 | W373: =IF(W371="x","x",IF(OR($N371="-",$N371=0),"nc",IF(W371="-","-",W371/$N371%))) -> 63.0 | AF373: =IF(AF371="x","x",IF(OR($N371="-",$N371=0),"nc",IF(AF371="-","-",AF371/$N371%))) -> 55.3 | AO373: =IF(AO371="x","x",IF(OR($N371="-",$N371=0),"nc",IF(AO371="-","-",AO371/$N371%))) -> 33.4 | AX373: =IF(AX371="x","x",IF(OR($N371="-",$N371=0),"nc",IF(AX371="-","-",AX371/$N371%))) -> 11.0 | BG373: =IF(BG371="x","x",IF(OR($N371="-",$N371=0),"nc",IF(BG371="-","-",BG371/$N371%))) -> 12.9 | BP373: =IF(BP371="x","x",IF(OR($N371="-",$N371=0),"nc",IF(BP371="-","-",BP371/$N371%))) -> 37.0
B374: ※構成比欄は、農業経営体数の計に対する割合
V375: 《データを活用した農業を行っている経営体数割合》
V376: =本体用データ!$W$4 -> 山形県
AF382: =本体用データ!$W$5 -> 山形県
E392: =IF(OR(S398="x",S398="-"),"","有機農業に取り組んでいる農業経営体は"&TEXT(S398,"#,###経営体")&本体用データ!G396) -> 有機農業に取り組んでいる農業経営体は1,277経営体で、全体の5.6%
... 43 more rows

Sheet 本体用データ (hidden)
U2: key | V2: 表示行-1 | W2: 表示名
T3: 2020年 | U3: =IF(Info!D6=name!B8,name!A8,IF(AND(Info!S6="",Info!AH6=""),INDEX(name!A:A,MATCH(Info!D6,name!C:C,0)),INDEX(name!A:A,MATCH(CONCATENATE(Info!D6,Info!S6,Info!AH6),name!F:F,0)))) -> 0600000000 | V3: =MATCH(U3,'2020年'!B:B,0)-1 -> 14 | W3: =IF(ISERROR(V3),"",IF(AND(Info!D6<>"",Info!S6="",Info!AH6=""),Info!D6,IF(AND(Info!D6<>"",Info!S6<>"",Info!AH6=""),Info!S6,Info!AH6))) -> 山形県
T4: 2025年 | U4: =IF(Info!D6=name!B8,name!A8,IF(AND(Info!S6="",Info!AH6=""),INDEX(name!A:A,MATCH(Info!D6,name!C:C,0)),INDEX(name!A:A,MATCH(CONCATENATE(Info!D6,Info!S6,Info!AH6),name!F:F,0)))) -> 0600000000 | V4: =MATCH(U4,'2025年'!B:B,0)-1 -> 14 | W4: =IF(ISERROR(V3),"",IF(AND(Info!D6<>"",Info!S6="",Info!AH6=""),Info!D6,IF(AND(Info!D6<>"",Info!S6<>"",Info!AH6=""),Info!S6,Info!AH6))) -> 山形県
T5: 市町村 | U5: =CONCATENATE(LEFT(U4,LEN(U4)-3),"000") -> 0600000000 | W5: =name!$B$8 -> 山形県
D9: 列番号-1 | G9: 実数 | H9: 概要 | U9: offset
D10: 2020年 | E10: 農業経営体 | F10: =CELL("col",'2020年'!P15)-1 -> 15 | G10: =OFFSET('2020年'!$A$1,$V$4,$F10) -> 28,241 | I10: 主業 | J10: =CELL("col",'2020年'!V9)-1 -> 21 | K10: =OFFSET('2020年'!$A$1,$V$4,$J10) -> 7698 | M10: 農家 | N10: =CELL("col",'2020年'!Y15)-1 -> 24 | O10: =OFFSET('2020年'!$A$1,$V$4,$N10) -> 39628 | T10: row-1 | U10: =MATCH(U5,'農業地域類型（令和５年改定）'!B:B,0)-1 -> 
E11: 家族経営体 | F11: =CELL("col",'2020年'!Q15)-1 -> 16 | G11: =OFFSET('2020年'!$A$1,$V$4,$F11) -> 27,233 | I11: 準主業 | J11: =CELL("col",'2020年'!W9)-1 -> 22 | K11: =OFFSET('2020年'!$A$1,$V$4,$J11) -> 4065 | M11: 販売農家 | N11: =CELL("col",'2020年'!Z15)-1 -> 25 | O11: =OFFSET('2020年'!$A$1,$V$4,$N11) -> 26796 | T11: column-2 | U11: =CELL("col",'農業地域類型（令和５年改定）'!I2)-2 -> 7
E12: うち法人 | F12: =CELL("col",'2020年'!R15)-1 -> 17 | G12: =OFFSET('2020年'!$A$1,$V$4,$F12) -> - | I12: 副業的 | J12: =CELL("col",'2020年'!X9)-1 -> 23 | K12: =OFFSET('2020年'!$A$1,$V$4,$J12) -> 15470 | M12: 自給的農家 | N12: =CELL("col",'2020年'!AA15)-1 -> 26 | O12: =OFFSET('2020年'!$A$1,$V$4,$N12) -> 12832 | U12: =OFFSET('農業地域類型（令和５年改定）'!$B$1,本体用データ!$U$10,$U$11) -> 
E13: 組織経営体 | F13: =CELL("col",'2020年'!S15)-1 -> 18 | G13: =OFFSET('2020年'!$A$1,$V$4,$F13) -> 1,008 | I13: =IFERROR(IF(H17=0,"で、2020年に比べて変化なし","で、2020年に比べて"&TEXT(ABS(G17-G10),"#,##0")&"経営体（"&TEXT(ABS(H17),"0.0%")&"）"&IF(H17>0,"増加","減少")),"") -> で、2020年に比べて5,466経営体（19.4%）減少 | T13: 第1次分類 | U13: =OFFSET('農業地域類型（令和５年改定）'!$B$1,本体用データ!$U$10,$U$11+1) ->  | V13: =IF(RIGHT(Info!D6,1)="県","",IFERROR(INDEX(list!$A$1:$B$5,MATCH(U13,list!$A:$A),2),"")) -> 
E14: うち法人 | F14: =CELL("col",'2020年'!T15)-1 -> 19 | G14: =OFFSET('2020年'!$A$1,$V$4,$F14) -> 626 | T14: 第2次分類 | U14: =OFFSET('農業地域類型（令和５年改定）'!$B$1,本体用データ!$U$10,$U$11+2) ->  | V14: =INDEX(list!$D$1:$E$4,MATCH(U14,list!$D:$D),2) -> 
D17: 2025年 | E17: 農業経営体 | F17: =CELL("col",'2025年'!P15)-1 -> 15 | G17: =OFFSET('2025年'!$A$1,$V$4,$F17) -> 22,775 | H17: =IF(OR(G10="x",G17="x"),"(x)",IF(OR(G10="@",G10=0,G10="-"),"(nc)",IF(G17="-","(-)",G17/G10-1))) -> -0.1935
E18: 個人経営体 | F18: =CELL("col",'2025年'!Q15)-1 -> 16 | G18: =OFFSET('2025年'!$A$1,$V$4,$F18) -> 21,740 | H18: =IF(OR(G11="x",G18="x"),"(x)",IF(OR(G11="@",G11=0,G11="-"),"(nc)",IF(G18="-","(-)",G18/G11-1))) -> -0.2017 | I18: 主業 | J18: =CELL("col",'2025年'!V15)-1 -> 21 | K18: =OFFSET('2025年'!$A$1,$V$4,$J18) -> 6093 | L18: =IF(OR(K10="x",K18="x"),"(x)",IF(OR(K10="@",K10=0,K10="-"),"(nc)",IF(K18="-","(-)",K18/K10-1))) -> -0.2085 | M18: 農家 | N18: =CELL("col",'2025年'!Y15)-1 -> 24 | O18: =OFFSET('2025年'!$A$1,$V$4,$N18) -> 32755 | P18: =IF(OR(O10="x",O18="x"),"(x)",IF(OR(O10="@",O10=0,O10="-"),"(nc)",IF(O18="-","(-)",O18/O10-1))) -> -0.1734
E19: うち法人 | F19: =CELL("col",'2025年'!R15)-1 -> 17 | G19: =OFFSET('2025年'!$A$1,$V$4,$F19) -> - | I19: 準主業 | J19: =CELL("col",'2025年'!W15)-1 -> 22 | K19: =OFFSET('2025年'!$A$1,$V$4,$J19) -> 2226 | L19: =IF(OR(K11="x",K19="x"),"(x)",IF(OR(K11="@",K11=0,K11="-"),"(nc)",IF(K19="-","(-)",K19/K11-1))) -> -0.4524 | M19: 販売農家 | N19: =CELL("col",'2025年'!Z15)-1 -> 25 | O19: =OFFSET('2025年'!$A$1,$V$4,$N19) -> 21442 | P19: =IF(OR(O11="x",O19="x"),"(x)",IF(OR(O11="@",O11=0,O11="-"),"(nc)",IF(O19="-","(-)",O19/O11-1))) -> -0.1998
E20: 団体経営体 | F20: =CELL("col",'2025年'!S15)-1 -> 18 | G20: =OFFSET('2025年'!$A$1,$V$4,$F20) -> 1,035 | H20: =IF(OR(G13="x",G20="x"),"(x)",IF(OR(G13="@",G13=0,G13="-"),"(nc)",IF(G20="-","(-)",G20/G13-1))) -> 0.0268 | I20: 副業的 | J20: =CELL("col",'2025年'!X15)-1 -> 23 | K20: =OFFSET('2025年'!$A$1,$V$4,$J20) -> 13421 | L20: =IF(OR(K12="x",K20="x"),"(x)",IF(OR(K12="@",K12=0,K12="-"),"(nc)",IF(K20="-","(-)",K20/K12-1))) -> -0.1324 | M20: 自給的農家 | N20: =CELL("col",'2025年'!AA15)-1 -> 26 | O20: =OFFSET('2025年'!$A$1,$V$4,$N20) -> 11313 | P20: =IF(OR(O12="x",O20="x"),"(x)",IF(OR(O12="@",O12=0,O12="-"),"(nc)",IF(O20="-","(-)",O20/O12-1))) -> -0.1184
E21: うち法人 | F21: =CELL("col",'2025年'!T15)-1 -> 19 | G21: =OFFSET('2025年'!$A$1,$V$4,$F21) -> 793 | H21: =IF(OR(G14="x",G21="x"),"(x)",IF(OR(G14="@",G14=0,G14="-"),"(nc)",IF(G21="-","(-)",G21/SUM(G12,G14)-1))) -> 0.2668
D22: 2025年（県計） | E22: 農業経営体 | G22: =OFFSET('2025年'!$A$1,14,$F17) -> 22,775
E23: 団体経営体 | G23: =OFFSET('2025年'!$A$1,14,$F20) -> 1,035
E32: 列番号-1 | G32: 概要 | H32: 区分 | K32: 合計 | L32: 法人化している | P32: 地方公 共団体 等 | Q32: 法人化していない
E33: 2020年 | F33: =CELL("col",'2020年'!AB15)-1 -> 27 | G33: =Info!S36/Info!S34-1 -> 0.2667731629 | L33: 計 | M33: 農事組 合法人 | N33: 会社 | O33: 農協等
E34: 団体 | F34: =CELL("col",'2020年'!AI15)-1 -> 34 | G34: =IFERROR(IF(G33=0,"で、2020年に比べて変化なし","で、2020年に比べて"&TEXT(ABS(Info!S36-Info!S34),"#,##0")&"経営体（"&TEXT(ABS(G33),"0.0%")&"）"&IF(G33>0,"増加","減少")),"") -> で、2020年に比べて167経営体（26.7%）増加 | H34: 実数 | I34: 2025年 | J34: 農業経営体 | K34: =OFFSET('2025年'!$A$1,14,$F36) -> 22,775 | L34: =OFFSET('2025年'!$A$1,14,$F36+1) -> 793 | M34: =OFFSET('2025年'!$A$1,14,$F36+2) -> 222 | N34: =OFFSET('2025年'!$A$1,14,$F36+3) -> 530 | O34: =OFFSET('2025年'!$A$1,14,$F36+4) -> 41 | P34: =OFFSET('2025年'!$A$1,14,$F36+5) -> 4 | Q34: =OFFSET('2025年'!$A$1,14,$F36+6) -> 21,978
E36: 2025年 | F36: =CELL("col",'2025年'!AB15)-1 -> 27 | I36: （県計） | J36: うち組織 | K36: =OFFSET('2025年'!$A$1,14,$F38) -> 1,035 | L36: =OFFSET('2025年'!$A$1,14,$F38+1) -> 793 | M36: =OFFSET('2025年'!$A$1,14,$F38+2) -> 222 | N36: =OFFSET('2025年'!$A$1,14,$F38+3) -> 530 | O36: =OFFSET('2025年'!$A$1,14,$F38+4) -> 41 | P36: =OFFSET('2025年'!$A$1,14,$F38+5) -> 4 | Q36: =OFFSET('2025年'!$A$1,14,$F38+6) -> 238
E38: 団体 | F38: =CELL("col",'2025年'!AI15)-1 -> 34
E49: 列番号-1 | G49: 概要
E50: 2020年 | F50: =CELL("col",'2020年'!AP15)-1 -> 41 | G50: =Info!N56/Info!N54-1 -> 0.1559381238
E51: 団体 | F51: =CELL("col",'2020年'!AU15)-1 -> 46 | G51: =IFERROR(IF(G50=0,"で、2020年に比べて変化なし","で、2020年に比べて"&TEXT(ABS(Info!N56-Info!N54),"#,##0")&"経営体（"&TEXT(ABS(G50),"0.0%")&"）"&IF(G50>0,"増加","減少")),"") -> で、2020年に比べて1,250経営体（15.6%）増加
E52: 2025年 | F52: =CELL("col",'2025年'!AP15)-1 -> 41
E53: 団体 | F53: =CELL("col",'2025年'!AU15)-1 -> 46
E73: 列番号-1 | G73: 概要 | H73: 区 分 | K73: 経営耕地のある 経営体計 | L73: 0.5ha 未満 | M73: 0.5 ～ 1.0 | N73: 1.0 ～ 2.0 | O73: 2.0 ～ 3.0 | P73: 3.0 ～ 5.0 | Q73: 5.0 ～ 10.0 | R73: 10.0ha 以上 | S73: 10.0～ 20.0 | T73: 20.0～ 30.0 | U73: 30.0～ 50.0 | V73: 50.0～ 100.0 | W73: 100ha 以上
E74: 2020年 | F74: =CELL("col",'2020年'!AZ15)-1 -> 51 | G74: =Info!AW77/Info!AW75-1 -> 0.1249323959 | H74: 実数 | I74: 2025年 | J74: 農業経営体 | K74: =OFFSET('2025年'!$A$1,14,$F77) -> 22,525 | L74: =OFFSET('2025年'!$A$1,14,$F77+1) -> 3,472 | M74: =OFFSET('2025年'!$A$1,14,$F77+2) -> 3,914 | N74: =OFFSET('2025年'!$A$1,14,$F77+3) -> 4,594 | O74: =OFFSET('2025年'!$A$1,14,$F77+4) -> 2,622 | P74: =OFFSET('2025年'!$A$1,14,$F77+5) -> 2,998 | Q74: =OFFSET('2025年'!$A$1,14,$F77+6) -> 2,845 | R74: =OFFSET('2025年'!$A$1,14,$F77+7) -> 2,080 | S74: =OFFSET('2025年'!$A$1,14,$F77+8) -> 1,398 | T74: =OFFSET('2025年'!$A$1,14,$F77+9) -> 356 | U74: =OFFSET('2025年'!$A$1,14,$F77+10) -> 223 | V74: =OFFSET('2025年'!$A$1,14,$F77+11) -> 81 | W74: =OFFSET('2025年'!$A$1,14,$F77+12) -> 22
E75: 組織 | F75: =CELL("col",'2020年'!BM15)-1 -> 64 | G75: =IFERROR(IF(G74=0,"で、2020年に比べて変化なし","で、2020年に比べて"&TEXT(ABS(Info!AW77-Info!AW75),"#,##0")&"経営体（"&TEXT(ABS(G74),"0.0%")&"）"&IF(G74>0,"増加","減少")),"") -> で、2020年に比べて231経営体（12.5%）増加 | I75: （県計） | J75: うち組織 | K75: =OFFSET('2025年'!$A$1,14,$F79) -> 842 | L75: =OFFSET('2025年'!$A$1,14,$F79+1) -> 50 | M75: =OFFSET('2025年'!$A$1,14,$F79+2) -> 33 | N75: =OFFSET('2025年'!$A$1,14,$F79+3) -> 54 | O75: =OFFSET('2025年'!$A$1,14,$F79+4) -> 37 | P75: =OFFSET('2025年'!$A$1,14,$F79+5) -> 78 | Q75: =OFFSET('2025年'!$A$1,14,$F79+6) -> 111 | R75: =OFFSET('2025年'!$A$1,14,$F79+7) -> 479 | S75: =OFFSET('2025年'!$A$1,14,$F79+8) -> 138 | T75: =OFFSET('2025年'!$A$1,14,$F79+9) -> 107 | U75: =OFFSET('2025年'!$A$1,14,$F79+10) -> 140 | V75: =OFFSET('2025年'!$A$1,14,$F79+11) -> 72 | W75: =OFFSET('2025年'!$A$1,14,$F79+12) -> 22
E77: 2025年 | F77: =CELL("col",'2025年'!AZ15)-1 -> 51 | I77: グラフ：面積規模別経営体数
E79: 組織 | F79: =CELL("col",'2025年'!BM15)-1 -> 64 | I79: 区分 | J79: 0.5ha 未満 | K79: 0.5 ～ 1.0 | L79: 1.0 ～ 2.0 | M79: 2.0 ～ 3.0 | N79: 3.0 ～ 5.0 | O79: 5.0 ～ 10.0 | P79: 10.0ha 以上
H81: 総数 | I81: 2020年 | J81: =Info!S75 -> 4,152 | K81: =Info!X75 -> 5,089 | L81: =Info!AC75 -> 6,160 | M81: =Info!AH75 -> 3,548 | N81: =Info!AM75 -> 3,704 | O81: =Info!AR75 -> 3,361 | P81: =Info!AW75 -> 1,849
I83: 2025年 | J83: =Info!S77 -> 3,472 | K83: =Info!X77 -> 3,914 | L83: =Info!AC77 -> 4,594 | M83: =Info!AH77 -> 2,622 | N83: =Info!AM77 -> 2,998 | O83: =Info!AR77 -> 2,845 | P83: =Info!AW77 -> 2,080
H84: うち団体 | I84: 2020年 | J84: =Info!S76 -> 32 | K84: =Info!X76 -> 38 | L84: =Info!AC76 -> 44 | M84: =Info!AH76 -> 35 | N84: =Info!AM76 -> 54 | O84: =Info!AR76 -> 100 | P84: =Info!AW76 -> 410
I85: 2025年 | J85: =Info!S78 -> 50 | K85: =Info!X78 -> 33 | L85: =Info!AC78 -> 54 | M85: =Info!AH78 -> 37 | N85: =Info!AM78 -> 78 | O85: =Info!AR78 -> 111 | P85: =Info!AW78 -> 479
I86: グラフ：面積規模別経営体数割合
I87: 区分 | J87: 0.5ha 未満 | K87: 0.5 ～ 1.0 | L87: 1.0 ～ 2.0 | M87: 2.0 ～ 3.0 | N87: 3.0 ～ 5.0 | O87: 5.0 ～ 10.0 | P87: 10.0ha 以上
H88: 総数 | I88: =$W$4 -> 山形県 | J88: =Info!S81 -> 15.4 | K88: =Info!X81 -> 17.4 | L88: =Info!AC81 -> 20.4 | M88: =Info!AH81 -> 11.6 | N88: =Info!AM81 -> 13.3 | O88: =Info!AR81 -> 12.6 | P88: =Info!AW81 -> 9.2
I89: =$W$5 -> 山形県 | J89: =IF($K$74="x","x",IF(OR($K74=0,$K74="-"),"nc",IF(L74="-","-",L74/$K74%))) -> 15.4 | K89: 17.4 | L89: 20.4 | M89: 11.6 | N89: 13.3 | O89: 12.6 | P89: =R74/K74% -> 9.2
H90: うち団体 | I90: =$W$4 -> 山形県 | J90: =Info!S82 -> 5.9 | K90: =Info!X82 -> 3.9 | L90: =Info!AC82 -> 6.4 | M90: =Info!AH82 -> 4.4 | N90: =Info!AM82 -> 9.3 | O90: =Info!AR82 -> 13.2 | P90: =Info!AW82 -> 56.9
I91: =$W$5 -> 山形県 | J91: =IF($K$74="x","x",IF(OR($K75=0,$K75="-"),"nc",IF(L75="-","-",L75/$K75%))) -> 5.9 | K91: 3.9 | L91: 6.4 | M91: 4.4 | N91: 9.3 | O91: 13.2 | P91: =R75/K75% -> 56.9
H103: 面積がa単位の原数（構成割合等の％は原数で計算している） | AB103: 単位：a、％
E104: 列番号-1 | G104: 概要 | H104: 区 分 | K104: 経営耕地 のある 経営体計 | L104: 1.0ha 未満 | M104: 1.0 ～ 2.0 | N104: 2.0 ～ 3.0 | O104: 3.0 ～ 5.0 | P104: 5.0 ～ 10.0 | Q104: 10.0 ha以上 | R104: 10.0～ 20.0 | S104: 20.0～ 30.0 | T104: 30.0～ 50.0 | U104: 50.0～ 100.0 | V104: 100ha 以上 | W104: 1.0ha 未満 | X104: 1.0～ 3.0 | Y104: 3.0～ 5.0 | Z104: 5.0～ 10.0 | AA104: 10.0～ 30.0 | AB104: 30.0～ 50.0 | AC104: 50ha 以上
E105: 2020年 | F105: =CELL("col",'2020年'!BZ15)-1 -> 77 | G105: =Info!AV108/Info!AV106-1 -> 0.1757517328 | H105: 実数 | I105: 2020年 | J105: 農業経営体 | K105: =OFFSET('2020年'!$A$1,$V$4,$F105) -> 9,797,013 | L105: =OFFSET('2020年'!$A$1,$V$4,$F105+1) -> 489,541 | M105: =OFFSET('2020年'!$A$1,$V$4,$F105+2) -> 872,801 | N105: =OFFSET('2020年'!$A$1,$V$4,$F105+3) -> 855,981 | O105: =OFFSET('2020年'!$A$1,$V$4,$F105+4) -> 1,424,440 | P105: =OFFSET('2020年'!$A$1,$V$4,$F105+5) -> 2,316,465 | Q105: =OFFSET('2020年'!$A$1,$V$4,$F105+6) -> 3,837,785 | R105: =OFFSET('2020年'!$A$1,$V$4,$F105+7) -> 1,740,791 | S105: =OFFSET('2020年'!$A$1,$V$4,$F105+8) -> 699,955 | T105: =OFFSET('2020年'!$A$1,$V$4,$F105+9) -> 534,582 | U105: =OFFSET('2020年'!$A$1,$V$4,$F105+10) -> 480,968 | V105: =OFFSET('2020年'!$A$1,$V$4,$F105+11) -> 381,489 | W105: =L105 -> 489,541 | X105: =IF(OR(M105="x",N105="x"),"x",IF(AND(M105="-",N105="-"),"-",SUM(M105,N105))) -> 1,728,782 | Y105: =O105 -> 1,424,440 | Z105: =P105 -> 2,316,465 | AA105: =IF(OR(R105="x",S105="x"),"x",IF(AND(R105="-",S105="-"),"-",SUM(R105,S105))) -> 2,440,746 | AB105: =T105 -> 534,582 | AC105: =IF(OR(U105="x",V105="x"),"x",IF(AND(U105="-",V105="-"),"-",SUM(U105,V105))) -> 862,457
E106: 組織 | F106: =CELL("col",'2020年'!CL15)-1 -> 89 | G106: =IFERROR(IF(G105=0,"で、2020年に比べて変化なし","で、2020年に比べて"&TEXT(ABS(Info!AV108-Info!AV106),"#,##0")&"ha（"&TEXT(ABS(G105),"0.0%")&"）"&IF(G105>0,"増加","減少")),"") -> で、2020年に比べて6,745ha（17.6%）増加 | J106: うち組織 | K106: =OFFSET('2020年'!$A$1,$V$4,$F106) -> 1,734,128 | L106: =OFFSET('2020年'!$A$1,$V$4,$F106+1) -> 3,778 | M106: =OFFSET('2020年'!$A$1,$V$4,$F106+2) -> 6,155 | N106: =OFFSET('2020年'!$A$1,$V$4,$F106+3) -> 8,457 | O106: =OFFSET('2020年'!$A$1,$V$4,$F106+4) -> 20,710 | P106: =OFFSET('2020年'!$A$1,$V$4,$F106+5) -> 74,464 | Q106: =OFFSET('2020年'!$A$1,$V$4,$F106+6) -> 1,620,564 | R106: =OFFSET('2020年'!$A$1,$V$4,$F106+7) -> 190,412 | S106: =OFFSET('2020年'!$A$1,$V$4,$F106+8) -> 231,054 | T106: =OFFSET('2020年'!$A$1,$V$4,$F106+9) -> 383,006 | U106: =OFFSET('2020年'!$A$1,$V$4,$F106+10) -> 434,603 | V106: =OFFSET('2020年'!$A$1,$V$4,$F106+11) -> 381,489 | W106: =L106 -> 3,778 | X106: =IF(OR(M106="x",N106="x"),"x",IF(AND(M106="-",N106="-"),"-",SUM(M106,N106))) -> 14,612 | Y106: =O106 -> 20,710 | Z106: =P106 -> 74,464 | AA106: =IF(OR(R106="x",S106="x"),"x",IF(AND(R106="-",S106="-"),"-",SUM(R106,S106))) -> 421,466 | AB106: =T106 -> 383,006 | AC106: =IF(OR(U106="x",V106="x"),"x",IF(AND(U106="-",V106="-"),"-",SUM(U106,V106))) -> 816,092
E108: 2025年 | F108: =CELL("col",'2025年'!BZ15)-1 -> 77 | I108: 2025年 | J108: 農業経営体 | K108: =OFFSET('2025年'!$A$1,$V$4,$F108) -> 9,296,826 | L108: =OFFSET('2025年'!$A$1,$V$4,$F108+1) -> 380,858 | M108: =OFFSET('2025年'!$A$1,$V$4,$F108+2) -> 649,662 | N108: =OFFSET('2025年'!$A$1,$V$4,$F108+3) -> 630,887 | O108: =OFFSET('2025年'!$A$1,$V$4,$F108+4) -> 1,150,215 | P108: =OFFSET('2025年'!$A$1,$V$4,$F108+5) -> 1,972,871 | Q108: =OFFSET('2025年'!$A$1,$V$4,$F108+6) -> 4,512,333 | R108: =OFFSET('2025年'!$A$1,$V$4,$F108+7) -> 1,874,031 | S108: =OFFSET('2025年'!$A$1,$V$4,$F108+8) -> 842,617 | T108: =OFFSET('2025年'!$A$1,$V$4,$F108+9) -> 827,999 | U108: =OFFSET('2025年'!$A$1,$V$4,$F108+10) -> 545,267 | V108: =OFFSET('2025年'!$A$1,$V$4,$F108+11) -> 422,419 | W108: =L108 -> 380,858 | X108: =IF(OR(M108="x",N108="x"),"x",IF(AND(M108="-",N108="-"),"-",SUM(M108,N108))) -> 1,280,549 | Y108: =O108 -> 1,150,215 | Z108: =P108 -> 1,972,871 | AA108: =IF(OR(R108="x",S108="x"),"x",IF(AND(R108="-",S108="-"),"-",SUM(R108,S108))) -> 2,716,648 | AB108: =T108 -> 827,999 | AC108: =IF(OR(U108="x",V108="x"),"x",IF(AND(U108="-",V108="-"),"-",SUM(U108,V108))) -> 967,686
E110: 団体 | F110: =CELL("col",'2025年'!CL15)-1 -> 89 | J110: うち組織 | K110: =OFFSET('2025年'!$A$1,$V$4,$F110) -> 2,034,481 | L110: =OFFSET('2025年'!$A$1,$V$4,$F110+1) -> 3,744 | M110: =OFFSET('2025年'!$A$1,$V$4,$F110+2) -> 7,878 | N110: =OFFSET('2025年'!$A$1,$V$4,$F110+3) -> 8,884 | O110: =OFFSET('2025年'!$A$1,$V$4,$F110+4) -> 29,100 | P110: =OFFSET('2025年'!$A$1,$V$4,$F110+5) -> 82,393 | Q110: =OFFSET('2025年'!$A$1,$V$4,$F110+6) -> 1,902,482 | R110: =OFFSET('2025年'!$A$1,$V$4,$F110+7) -> 195,420 | S110: =OFFSET('2025年'!$A$1,$V$4,$F110+8) -> 262,465 | T110: =OFFSET('2025年'!$A$1,$V$4,$F110+9) -> 532,362 | U110: =OFFSET('2025年'!$A$1,$V$4,$F110+10) -> 489,816 | V110: =OFFSET('2025年'!$A$1,$V$4,$F110+11) -> 422,419 | W110: =L110 -> 3,744 | X110: =IF(OR(M110="x",N110="x"),"x",IF(AND(M110="-",N110="-"),"-",SUM(M110,N110))) -> 16,762 | Y110: =O110 -> 29,100 | Z110: =P110 -> 82,393 | AA110: =IF(OR(R110="x",S110="x"),"x",IF(AND(R110="-",S110="-"),"-",SUM(R110,S110))) -> 457,885 | AB110: =T110 -> 532,362 | AC110: =IF(OR(U110="x",V110="x"),"x",IF(AND(U110="-",V110="-"),"-",SUM(U110,V110))) -> 912,235
I112: 2025年 | J112: 農業経営体 | K112: =OFFSET('2025年'!$A$1,14,$F108) -> 9,296,826 | L112: =OFFSET('2025年'!$A$1,14,$F108+1) -> 380,858 | M112: =OFFSET('2025年'!$A$1,14,$F108+2) -> 649,662 | N112: =OFFSET('2025年'!$A$1,14,$F108+3) -> 630,887 | O112: =OFFSET('2025年'!$A$1,14,$F108+4) -> 1,150,215 | P112: =OFFSET('2025年'!$A$1,14,$F108+5) -> 1,972,871 | Q112: =OFFSET('2025年'!$A$1,14,$F108+6) -> 4,512,333 | R112: =OFFSET('2025年'!$A$1,14,$F108+7) -> 1,874,031 | S112: =OFFSET('2025年'!$A$1,14,$F108+8) -> 842,617 | T112: =OFFSET('2025年'!$A$1,14,$F108+9) -> 827,999 | U112: =OFFSET('2025年'!$A$1,14,$F108+10) -> 545,267 | V112: =OFFSET('2025年'!$A$1,14,$F108+11) -> 422,419 | W112: =L112 -> 380,858 | X112: =IF(OR(M112="x",N112="x"),"x",IF(AND(M112="-",N112="-"),"-",SUM(M112,N112))) -> 1,280,549 | Y112: =O112 -> 1,150,215 | Z112: =P112 -> 1,972,871 | AA112: =IF(OR(R112="x",S112="x"),"x",IF(AND(R112="-",S112="-"),"-",SUM(R112,S112))) -> 2,716,648 | AB112: =T112 -> 827,999 | AC112: =IF(OR(U112="x",V112="x"),"x",IF(AND(U112="-",V112="-"),"-",SUM(U112,V112))) -> 967,686
I114: （県計） | J114: うち組織 | K114: =OFFSET('2025年'!$A$1,14,$F110) -> 2,034,481 | L114: =OFFSET('2025年'!$A$1,14,$F110+1) -> 3,744 | M114: =OFFSET('2025年'!$A$1,14,$F110+2) -> 7,878 | N114: =OFFSET('2025年'!$A$1,14,$F110+3) -> 8,884 | O114: =OFFSET('2025年'!$A$1,14,$F110+4) -> 29,100 | P114: =OFFSET('2025年'!$A$1,14,$F110+5) -> 82,393 | Q114: =OFFSET('2025年'!$A$1,14,$F110+6) -> 1,902,482 | R114: =OFFSET('2025年'!$A$1,14,$F110+7) -> 195,420 | S114: =OFFSET('2025年'!$A$1,14,$F110+8) -> 262,465 | T114: =OFFSET('2025年'!$A$1,14,$F110+9) -> 532,362 | U114: =OFFSET('2025年'!$A$1,14,$F110+10) -> 489,816 | V114: =OFFSET('2025年'!$A$1,14,$F110+11) -> 422,419 | W114: =L114 -> 3,744 | X114: =IF(OR(M114="x",N114="x"),"x",IF(AND(M114="-",N114="-"),"-",SUM(M114,N114))) -> 16,762 | Y114: =O114 -> 29,100 | Z114: =P114 -> 82,393 | AA114: =IF(OR(R114="x",S114="x"),"x",IF(AND(R114="-",S114="-"),"-",SUM(R114,S114))) -> 457,885 | AB114: =T114 -> 532,362 | AC114: =IF(OR(U114="x",V114="x"),"x",IF(AND(U114="-",V114="-"),"-",SUM(U114,V114))) -> 912,235
H115: 構成比 | I115: 2020年 | J115: 農業経営体 | K115: =IF(OR(K105="x",$K105="x",$G10="x"),"x",IF(OR($K105="@",$K105=0,$K105="-"),"nc",IF(K105="-","-",K105/$K105%))) -> 100.0 | L115: 5.0 | M115: 8.9 | N115: 8.7 | O115: 14.5 | P115: 23.6 | Q115: 39.2 | R115: 17.8 | S115: 7.1 | T115: 5.5 | U115: 4.9 | V115: 3.9 | W115: 5.0 | X115: 17.6 | Y115: 14.5 | Z115: 23.6 | AA115: 24.9 | AB115: 5.5 | AC115: 8.8
J116: うち組織 | K116: =IF(OR(K106="x",$K106="x",$G13="x"),"x",IF(OR($K106="@",$K106=0,$K106="-"),"nc",IF(K106="-","-",K106/$K106%))) -> 100.0 | L116: 0.2 | M116: 0.4 | N116: 0.5 | O116: 1.2 | P116: 4.3 | Q116: 93.5 | R116: 11.0 | S116: 13.3 | T116: 22.1 | U116: 25.1 | V116: 22.0 | W116: 0.2 | X116: 0.8 | Y116: 1.2 | Z116: 4.3 | AA116: 24.3 | AB116: 22.1 | AC116: 47.1
I117: 2025年 | J117: 農業経営体 | K117: =IF(OR(K108="x",$K108="x",$G17="x"),"x",IF(OR($K108=0,$K108="-"),"nc",IF(K108="-","-",K108/$K108%))) -> 100.0 | L117: 4.1 | M117: 7.0 | N117: 6.8 | O117: 12.4 | P117: 21.2 | Q117: 48.5 | R117: 20.2 | S117: 9.1 | T117: 8.9 | U117: 5.9 | V117: 4.5 | W117: 4.1 | X117: 13.8 | Y117: 12.4 | Z117: 21.2 | AA117: 29.2 | AB117: 8.9 | AC117: 10.4
J118: うち組織 | K118: =IF(OR(K110="x",$K110="x",$G20="x"),"x",IF(OR($K110=0,$K110="-"),"nc",IF(K110="-","-",K110/$K110%))) -> 100.0 | L118: 0.2 | M118: 0.4 | N118: 0.4 | O118: 1.4 | P118: 4.0 | Q118: 93.5 | R118: 9.6 | S118: 12.9 | T118: 26.2 | U118: 24.1 | V118: 20.8 | W118: 0.2 | X118: 0.8 | Y118: 1.4 | Z118: 4.0 | AA118: 22.5 | AB118: 26.2 | AC118: 44.8
I119: 2025年 | J119: 農業経営体 | K119: =IF(OR(K112="x",$K112="x",$G22="x"),"x",IF(OR($K112=$K112="-"),"nc",IF(K112="-","-",K112/$K112%))) -> 100.0 | L119: 4.1 | M119: 7.0 | N119: 6.8 | O119: 12.4 | P119: 21.2 | Q119: 48.5 | R119: 20.2 | S119: 9.1 | T119: 8.9 | U119: 5.9 | V119: 4.5 | W119: 4.1 | X119: 13.8 | Y119: 12.4 | Z119: 21.2 | AA119: 29.2 | AB119: 8.9 | AC119: 10.4
I120: （県計） | J120: うち組織 | K120: =IF(OR(K114="x",$K114="x",$G23="x"),"x",IF(OR($K114=0,$K114="-"),"nc",IF(K114="-","-",K114/$K114%))) -> 100.0 | L120: 0.2 | M120: 0.4 | N120: 0.4 | O120: 1.4 | P120: 4.0 | Q120: 93.5 | R120: 9.6 | S120: 12.9 | T120: 26.2 | U120: 24.1 | V120: 20.8 | W120: 0.2 | X120: 0.8 | Y120: 1.4 | Z120: 4.0 | AA120: 22.5 | AB120: 26.2 | AC120: 44.8
H121: グラフ用
M122: 団体経営 | N122: 個人経営 | V122: 県計 2025年 | W122: =W119 -> 4.1 | X122: 13.8 | Y122: 12.4 | Z122: 21.2 | AA122: 29.2 | AB122: 8.9 | AC122: 10.4
K123: 2025年 | L123: 県計 2025年 | M123: =K114/K112% -> 21.9 | N123: =(K112-K114)/K112% -> 78.1
V124: 2025年 | W124: =W117 -> 4.1 | X124: 13.8 | Y124: 12.4 | Z124: 21.2 | AA124: 29.2 | AB124: 8.9 | AC124: 10.4
L125: 2025年 | M125: =SUM(K110)/K108% -> 21.9 | N125: =(K108-SUM(K110))/K108% -> 78.1 | V125: 2020年 | W125: =W115 -> 5.0 | X125: 17.6 | Y125: 14.5 | Z125: 23.6 | AA125: 24.9 | AB125: 5.5 | AC125: 8.8
L126: 2020年 | M126: =SUM(K106)/K105% -> 17.7 | N126: =(K105-SUM(K106))/K105% -> 82.3
L133: 単位：ha、％
E134: 列番号-1 | G134: 概要 | H134: 区 分 | K134: 合計 | L134: 自作地 | M134: 借入耕地 | N134: 自作地 | O134: 借入耕地
E135: 2020年 | F135: =CELL("col",'2020年'!CX15)-1 -> 101 | G135: =Info!N138/Info!N136-1 -> 0.1714285714 | H135: 実数 | I135: 2020年 | J135: 農業経営体 | K135: =OFFSET('2020年'!$A$1,$V$4,$F135) -> 351.6137171 | L135: =OFFSET('2020年'!$A$1,$V$4,$F135+1) -> 191.4244697 | M135: =OFFSET('2020年'!$A$1,$V$4,$F135+2) -> 160.1892474
E136: 組織 | F136: =CELL("col",'2020年'!DA15)-1 -> 104 | G136: =IFERROR(IF(G135=0,"で、2020年に比べて変化なし","で、2020年に比べて"&TEXT(ABS(Info!N138-Info!N136),"#,##0.0")&"ha（"&TEXT(ABS(G135),"0.0%")&"）"&IF(G135>0,"増加","減少")),"") -> で、2020年に比べて0.6ha（17.1%）増加 | J136: うち組織 | K136: =OFFSET('2020年'!$A$1,$V$4,$F136) -> 2432.157083 | L136: =OFFSET('2020年'!$A$1,$V$4,$F136+1) -> 235.9887798 | M136: =OFFSET('2020年'!$A$1,$V$4,$F136+2) -> 2196.168303
E138: 2025年 | F138: =CELL("col",'2025年'!CX15)-1 -> 101 | I138: 2025年 | J138: 農業経営体 | K138: =OFFSET('2025年'!$A$1,$V$4,$F138) -> 412.7336737 | L138: =OFFSET('2025年'!$A$1,$V$4,$F138+1) -> 196.3882797 | M138: =OFFSET('2025年'!$A$1,$V$4,$F138+2) -> 216.345394 | N138: =IF(OR(L138="x",$K138="x",$G10="x"),"x",IF(OR(L138="nc",$K138="nc",$K138=0,$K138="-"),"nc",IF(L138="-","-",L138/$K138%))) -> 47.6 | O138: =IF(OR(M138="x",$K138="x",$G10="x"),"x",IF(OR(M138="nc",$K138="nc",$K138=0,$K138="-"),"nc",IF(M138="-","-",M138/$K138%))) -> 52.4
E140: 団体 | F140: =CELL("col",'2025年'!DA15)-1 -> 104 | J140: うち団体 | K140: =OFFSET('2025年'!$A$1,$V$4,$F140) -> 2416.248219 | L140: =OFFSET('2025年'!$A$1,$V$4,$F140+1) -> 291.7992874 | M140: =OFFSET('2025年'!$A$1,$V$4,$F140+2) -> 2124.448931
I142: 2025年 | J142: 農業経営体 | K142: =OFFSET('2025年'!$A$1,14,$F138) -> 412.7336737 | L142: =OFFSET('2025年'!$A$1,14,$F138+1) -> 196.3882797 | M142: =OFFSET('2025年'!$A$1,14,$F138+2) -> 216.345394 | N142: =L142/$K142% -> 47.6 | O142: =M142/$K142% -> 52.4
I144: （県計） | J144: うち団体 | K144: =OFFSET('2025年'!$A$1,14,$F140) -> 2416.248219 | L144: =OFFSET('2025年'!$A$1,14,$F140+1) -> 291.7992874 | M144: =OFFSET('2025年'!$A$1,14,$F140+2) -> 2124.448931
R153: 単位：経営体、％
E154: 列番号-1 | G154: 概要 | H154: 区 分 | K154: 農産物販売のある経営体計 | L154: 100万円未満 | M154: 100～ 300 | N154: 300～1,000 | O154: 1,000～3,000 | P154: 3,000万円以上
E155: 2020年 | F155: =CELL("col",'2020年'!DD15)-1 -> 107 | G155: =Info!AX158/Info!AX156-1 -> 0.1711568938 | Q155: 3,000～ 5,000 | R155: 5,000万～ 1億 | S155: 1億円以上
E156: 組織 | F156: =CELL("col",'2020年'!DM15)-1 -> 116 | G156: =IFERROR(IF(G155=0,"で、2020年に比べて変化なし","で、2020年に比べて"&TEXT(ABS(Info!AX158-Info!AX156),"#,###経営体")&"（"&TEXT(ABS(G155),"0.0%")&"）"&IF(G155>0,"増加","減少")),"") -> で、2020年に比べて108経営体（17.1%）増加 | H156: =W4 -> 山形県 | I156: 2020年 | J156: 農業経営体 | K156: =Info!N156 -> 27,461 | L156: =Info!V156 -> 7,498 | M156: =Info!AC156 -> 7,825 | N156: =Info!AJ156 -> 8,696 | O156: =Info!AQ156 -> 2,811 | P156: =Info!AX156 -> 631
E158: 2025年 | F158: =CELL("col",'2025年'!DD15)-1 -> 107 | I158: 2025年 | J158: 農業経営体 | K158: =Info!N158 -> 22,241 | L158: =Info!V158 -> 5,676 | M158: =Info!AC158 -> 5,745 | N158: =Info!AJ158 -> 7,062 | O158: =Info!AQ158 -> 3,019 | P158: =Info!AX158 -> 739
E160: 団体 | F160: =CELL("col",'2025年'!DM15)-1 -> 116 | H160: 県計 | I160: 県計 | J160: 農業経営体 | K160: =OFFSET('2025年'!$A$1,14,$F158) -> 22,241 | L160: =OFFSET('2025年'!$A$1,14,$F158+1) -> 5,676 | M160: =OFFSET('2025年'!$A$1,14,$F158+2) -> 5,745 | N160: =OFFSET('2025年'!$A$1,14,$F158+3) -> 7,062 | O160: =OFFSET('2025年'!$A$1,14,$F158+4) -> 3,019 | P160: =OFFSET('2025年'!$A$1,14,$F158+5) -> 739 | Q160: =OFFSET('2025年'!$A$1,14,$F158+6) -> 414 | R160: =OFFSET('2025年'!$A$1,14,$F158+7) -> 206 | S160: =OFFSET('2025年'!$A$1,14,$F158+8) -> 119
I162: （県計） | J162: うち組織 | K162: =OFFSET('2025年'!$A$1,14,$F160) -> 880 | L162: =OFFSET('2025年'!$A$1,14,$F160+1) -> 101 | M162: =OFFSET('2025年'!$A$1,14,$F160+2) -> 53 | N162: =OFFSET('2025年'!$A$1,14,$F160+3) -> 142 | O162: =OFFSET('2025年'!$A$1,14,$F160+4) -> 206 | P162: =OFFSET('2025年'!$A$1,14,$F160+5) -> 378 | Q162: =OFFSET('2025年'!$A$1,14,$F160+6) -> 144 | R162: =OFFSET('2025年'!$A$1,14,$F160+7) -> 126 | S162: =OFFSET('2025年'!$A$1,14,$F160+8) -> 108
L164: =L154 -> 100万円未満 | M164: =M154 -> 100～ 300 | N164: =N154 -> 300～1,000 | O164: =O154 -> 1,000～3,000 | P164: =P154 -> 3,000万円以上
J165: グラフ用 | K165: 県計 2025年 | L165: =L160/$K$160*100 -> 25.5 | M165: =M160/$K$160*100 -> 25.8 | N165: =N160/$K$160*100 -> 31.8 | O165: =O160/$K$160*100 -> 13.6 | P165: =P160/$K$160*100 -> 3.3
K167: 2025年 | L167: =L158/$K$158*100 -> 25.5 | M167: =M158/$K$158*100 -> 25.8 | N167: =N158/$K$158*100 -> 31.8 | O167: =O158/$K$158*100 -> 13.6 | P167: =P158/$K$158*100 -> 3.3
K168: 2020年 | L168: =L156/$K$156*100 -> 27.3 | M168: =M156/$K$156*100 -> 28.5 | N168: =N156/$K$156*100 -> 31.7 | O168: =O156/$K$156*100 -> 10.2 | P168: =P156/$K$156*100 -> 2.3
X181: 単位：経営体、％
E182: 列番号-1 | G182: 概要 | H182: 区 分 | K182: 計 | L182: 稲作 | M182: 麦類作 | N182: 雑穀・ いも類・ 豆類 | O182: 工芸 農作物 | P182: 露地 野菜 | Q182: 施設 野菜 | R182: 果樹類 | S182: 花き・ 花木 | T182: 酪農 | U182: 肉用牛 | V182: 養豚 | W182: 養鶏 | X182: その他
E183: 2020年 | F183: =CELL("col",'2020年'!DV15)-1 -> 125 | G183: ="農業経営体のうち"&K188&"が１位の農業経営体が"&TEXT(MAX(L193:X193),"0.0")&"%"&IF(COUNTIF(L186:X186,2)=0,"","で最も多"&IF(Info!AH6<>"","い","く、")) -> 農業経営体のうち「稲作」が１位の農業経営体が55.1%で最も多く、 | H183: 実数 | I183: 2025年 | J183: 農業経営体 | K183: =OFFSET('2025年'!$A$1,14,$F186) -> 22,241 | L183: =OFFSET('2025年'!$A$1,14,$F186+1) -> 12,264 | M183: =OFFSET('2025年'!$A$1,14,$F186+2) -> 5 | N183: =OFFSET('2025年'!$A$1,14,$F186+3) -> 501 | O183: =OFFSET('2025年'!$A$1,14,$F186+4) -> 42 | P183: =OFFSET('2025年'!$A$1,14,$F186+5) -> 1,709 | Q183: =OFFSET('2025年'!$A$1,14,$F186+6) -> 722 | R183: =OFFSET('2025年'!$A$1,14,$F186+7) -> 5,976 | S183: =OFFSET('2025年'!$A$1,14,$F186+8) -> 324 | T183: =OFFSET('2025年'!$A$1,14,$F186+9) -> 120 | U183: =OFFSET('2025年'!$A$1,14,$F186+10) -> 250 | V183: =OFFSET('2025年'!$A$1,14,$F186+11) -> 38 | W183: =OFFSET('2025年'!$A$1,14,$F186+12) -> 25 | X183: =OFFSET('2025年'!$A$1,14,$F186+13) -> 265
E184: 団体 | F184: =CELL("col",'2020年'!EJ15)-1 -> 139 | G184: =IF(COUNTIF(L186:X186,2)=0,"","次いで"&K190&"("&TEXT(LARGE(L193:X193,2),"0.0")&"%)"&IF(COUNTIF(L186:X186,3)=0,"の順","、")) -> 次いで「果樹類」(26.9%)、 | I184: （県計） | J184: うち団体 | K184: =OFFSET('2025年'!$A$1,14,$F188) -> 880 | L184: =OFFSET('2025年'!$A$1,14,$F188+1) -> 415 | M184: =OFFSET('2025年'!$A$1,14,$F188+2) -> - | N184: =OFFSET('2025年'!$A$1,14,$F188+3) -> 123 | O184: =OFFSET('2025年'!$A$1,14,$F188+4) -> 1 | P184: =OFFSET('2025年'!$A$1,14,$F188+5) -> 60 | Q184: =OFFSET('2025年'!$A$1,14,$F188+6) -> 28 | R184: =OFFSET('2025年'!$A$1,14,$F188+7) -> 96 | S184: =OFFSET('2025年'!$A$1,14,$F188+8) -> 29 | T184: =OFFSET('2025年'!$A$1,14,$F188+9) -> 9 | U184: =OFFSET('2025年'!$A$1,14,$F188+10) -> 49 | V184: =OFFSET('2025年'!$A$1,14,$F188+11) -> 23 | W184: =OFFSET('2025年'!$A$1,14,$F188+12) -> 11 | X184: =OFFSET('2025年'!$A$1,14,$F188+13) -> 36
E186: 2025年 | F186: =CELL("col",'2025年'!DV15)-1 -> 125 | G186: =IF(COUNTIF(L186:X186,3)=0,"",IF(COUNTIF(L186:X186,2)=0,"次いで","")&K192&"("&TEXT(LARGE(L193:X193,3),"0.0")&"%)の順") -> 「露地野菜」(7.7%)の順 | J186: 上位３部門 | K186: 順位 | L186: =IFERROR(_xlfn.RANK.EQ(Info!T186,Info!$T$186:$BY$186),99) -> 1 | M186: =IFERROR(_xlfn.RANK.EQ(Info!Z186,Info!$T$186:$BY$186),99) -> 13 | N186: =IFERROR(_xlfn.RANK.EQ(Info!AD186,Info!$T$186:$BY$186),99) -> 5 | O186: =IFERROR(_xlfn.RANK.EQ(Info!AH186,Info!$T$186:$BY$186),99) -> 10 | P186: =IFERROR(_xlfn.RANK.EQ(Info!AL186,Info!$T$186:$BY$186),99) -> 3 | Q186: =IFERROR(_xlfn.RANK.EQ(Info!AQ186,Info!$T$186:$BY$186),99) -> 4 | R186: =IFERROR(_xlfn.RANK.EQ(Info!AU186,Info!$T$186:$BY$186),99) -> 2 | S186: =IFERROR(_xlfn.RANK.EQ(Info!AZ186,Info!$T$186:$BY$186),99) -> 6 | T186: =IFERROR(_xlfn.RANK.EQ(Info!BD186,Info!$T$186:$BY$186),99) -> 9 | U186: =IFERROR(_xlfn.RANK.EQ(Info!BI186,Info!$T$186:$BY$186),99) -> 8 | V186: =IFERROR(_xlfn.RANK.EQ(Info!BN186,Info!$T$186:$BY$186),99) -> 11 | W186: =IFERROR(_xlfn.RANK.EQ(Info!BR186,Info!$T$186:$BY$186),99) -> 12 | X186: =IFERROR(_xlfn.RANK.EQ(Info!BV186,Info!$T$186:$BY$186),99) -> 7
E188: 団体 | F188: =CELL("col",'2025年'!EJ15)-1 -> 139 | J188: 1位 | K188: =SUBSTITUTE(L188&M188&N188&O188&P188&Q188&R188&S188&T188&U188&V188&W188&X188,"」「","」と「") -> 「稲作」 | L188: =IF(INT(L186)=1,"「"&CLEAN(L182)&"」","") -> 「稲作」
J190: ２位 | K190: =SUBSTITUTE(L190&M190&N190&O190&P190&Q190&R190&S190&T190&U190&V190&W190&X190,"」「","」と「") -> 「果樹類」 | L190: =IF(INT(L186)=2,"「"&CLEAN(L182)&"」","") ->  | R190: 「果樹類」
J192: ３位 | K192: =SUBSTITUTE(L192&M192&N192&O192&P192&Q192&R192&S192&T192&U192&V192&W192&X192,"」「","」と「") -> 「露地野菜」 | L192: =IF(INT(L186)=3,"「"&CLEAN(L182)&"」","") ->  | P192: 「露地野菜」
J193: 割合 | K193: =SUM(L193:X193) -> 89.7 | L193: =IF(L186<4,Info!T190,0) -> 55.1 | M193: =IF(M186<4,Info!Z190,0) -> 0.0 | N193: =IF(N186<4,Info!AD190,0) -> 0.0 | O193: =IF(O186<4,Info!AH190,0) -> 0.0 | P193: =IF(P186<4,Info!AL190,0) -> 7.7 | Q193: =IF(Q186<4,Info!AQ190,0) -> 0.0 | R193: =IF(R186<4,Info!AU190,0) -> 26.9 | S193: =IF(S186<4,Info!AZ190,0) -> 0.0 | T193: =IF(T186<4,Info!BD190,0) -> 0.0 | U193: =IF(U186<4,Info!BI190,0) -> 0.0 | V193: =IF(V186<4,Info!BN190,0) -> 0.0 | W193: =IF(W186<4,Info!BR190,0) -> 0.0 | X193: =IF(X186<4,Info!BV190,0) -> 0.0
K194: グラフ：面積規模別経営体数割合
K195: 区分 | L195: 稲作 | M195: 麦類作 | N195: 雑穀・ いも類・ 豆類 | O195: 工芸 農作物 | P195: 露地 野菜 | Q195: 施設 野菜 | R195: 果樹類 | S195: 花き・ 花木 | T195: 酪農 | U195: 肉用牛 | V195: 養豚 | W195: 養鶏 | X195: その他
J196: 総数 | K196: =$W$4 -> 山形県 | L196: =Info!T190 -> 55.1 | M196: =Info!Z190 -> 0.0 | N196: =Info!AD190 -> 2.3 | O196: =Info!AH190 -> 0.2 | P196: =Info!AL190 -> 7.7 | Q196: =Info!AQ190 -> 3.2 | R196: =Info!AU190 -> 26.9 | S196: =Info!AZ190 -> 1.5 | T196: =Info!BD190 -> 0.5 | U196: =Info!BI190 -> 1.1 | V196: =Info!BN190 -> 0.2 | W196: =Info!BR190 -> 0.1 | X196: =Info!BV190 -> 1.2
K197: =$W$5 -> 山形県 | L197: =IF(OR(L183="x",$K183="x"),"x",IF(OR($K183=0,$K183="-"),"nc",IF(L183="-","-",L183/$K183%))) -> 55.1 | M197: 0.0 | N197: 2.3 | O197: 0.2 | P197: 7.7 | Q197: 3.2 | R197: 26.9 | S197: 1.5 | T197: 0.5 | U197: 1.1 | V197: 0.2 | W197: 0.1 | X197: 1.2
G198: ="農業経営体のうち"&K207&"が１位の農業経営体が"&TEXT(MAX(L212:X212),"0.0")&"%"&IF(COUNTIF(L201:X201,2)=0,"","で最も多"&IF(Info!AT21<>"","い","く、")) -> 農業経営体のうち実経営体数が１位の農業経営体が0.0% | J198: うち団体 | K198: =$W$4 -> 山形県 | L198: =Info!T191 -> 47.2 | M198: =Info!Z191 -> - | N198: =Info!AD191 -> 14.0 | O198: =Info!AH191 -> 0.1 | P198: =Info!AL191 -> 6.8 | Q198: =Info!AQ191 -> 3.2 | R198: =Info!AU191 -> 10.9 | S198: =Info!AZ191 -> 3.3 | T198: =Info!BD191 -> 1.0 | U198: =Info!BI191 -> 5.6 | V198: =Info!BN191 -> 2.6 | W198: =Info!BR191 -> 1.3 | X198: =Info!BV191 -> 4.1
G199: =IF(COUNTIF(L201:X201,2)=0,"","次いで"&K209&"("&TEXT(LARGE(L212:X212,2),"0.0")&"%)"&IF(COUNTIF(L201:X201,3)=0,"の順","、")) ->  | K199: =$W$5 -> 山形県 | L199: =IF(OR(L184="x",$K184="x"),"x",IF(OR($K184=0,$K184="-"),"nc",IF(L184="-","-",L184/$K184%))) -> 47.2 | M199: - | N199: 14.0 | O199: 0.1 | P199: 6.8 | Q199: 3.2 | R199: 10.9 | S199: 3.3 | T199: 1.0 | U199: 5.6 | V199: 2.6 | W199: 1.3 | X199: 4.1
G200: =IF(COUNTIF(L200:X200,3)=0,"",IF(COUNTIF(L200:X200,2)=0,"次いで","")&K210&"("&TEXT(LARGE(L211:X211,3),"0.0")&"%)の順") -> 
E207: 列番号-1 | G207: 概要 | H207: 区 分 | K207: 実経営体数 | L207: 稲 | M207: 麦類 | N207: 雑穀 | O207: いも類 | P207: 豆類 | Q207: 工芸農作物 | R207: 露地野菜 | S207: 施設野菜 | T207: 果樹類 | U207: 花き・花木 | V207: その他
E208: 2020年 | F208: =CELL("col",'2020年'!EX36)-1 -> 153 | G208: ="販売目的の作物作付面積は"&K223&"が全体の"&TEXT(MAX(L226:V226),"0.0")&"%"&IF(COUNTIF(L222:V222,2)=0,"","で最も多"&IF(Info!AH6<>"","い","く、")) -> 販売目的の作物作付面積は「稲」が全体の69.1%で最も多く、 | J208: 経営体数 | K208: =OFFSET('2020年'!$A$1,$V$3,$F209) -> 27,302 | L208: =OFFSET('2020年'!$A$1,$V$3,$F209+1) -> 20,236 | M208: =OFFSET('2020年'!$A$1,$V$3,$F209+2) -> 48 | N208: =OFFSET('2020年'!$A$1,$V$3,$F209+3) -> 3,218 | O208: =OFFSET('2020年'!$A$1,$V$3,$F209+4) -> 489 | P208: =OFFSET('2020年'!$A$1,$V$3,$F209+5) -> 3,153 | Q208: =OFFSET('2020年'!$A$1,$V$3,$F209+6) -> 451 | R208: =OFFSET('2020年'!$A$1,$V$3,$F209+7) -> 6,733 | S208: =OFFSET('2020年'!$A$1,$V$3,$F209+8) -> 2,225 | T208: =OFFSET('2020年'!$A$1,$V$3,$F209+9) -> 10,012 | U208: =OFFSET('2020年'!$A$1,$V$3,$F209+10) -> 1,150 | V208: =OFFSET('2020年'!$A$1,$V$3,$F209+11) -> 3,073
E209: 2025年 | F209: =CELL("col",'2025年'!EX36)-1 -> 153 | G209: =IF(COUNTIF(L222:X222,2)=0,"","次いで"&K224&"("&TEXT(LARGE(L226:X226,2),"0.0")&"%)"&IF(COUNTIF(L222:X222,3)=0,"の順","、")) -> 次いで「その他」(7.1%)、 | J209: 経営体数 | K209: =OFFSET('2025年'!$A$1,$V$4,$F209) -> 22,124 | L209: =OFFSET('2025年'!$A$1,$V$4,$F209+1) -> 15,159 | M209: =OFFSET('2025年'!$A$1,$V$4,$F209+2) -> 37 | N209: =OFFSET('2025年'!$A$1,$V$4,$F209+3) -> 2,554 | O209: =OFFSET('2025年'!$A$1,$V$4,$F209+4) -> 434 | P209: =OFFSET('2025年'!$A$1,$V$4,$F209+5) -> 2,159 | Q209: =OFFSET('2025年'!$A$1,$V$4,$F209+6) -> 344 | R209: =OFFSET('2025年'!$A$1,$V$4,$F209+7) -> 5,112 | S209: =OFFSET('2025年'!$A$1,$V$4,$F209+8) -> 1,864 | T209: =OFFSET('2025年'!$A$1,$V$4,$F209+9) -> 8,311 | U209: =OFFSET('2025年'!$A$1,$V$4,$F209+10) -> 944 | V209: =OFFSET('2025年'!$A$1,$V$4,$F209+11) -> 3,103
K212: 作付（栽培）面積 | L212: 稲 | M212: 麦類 | N212: 雑穀 | O212: いも類 | P212: 豆類 | Q212: 工芸農作物 | R212: 露地野菜 | S212: 施設野菜 | T212: 果樹類 | U212: 花き・花木 | V212: その他
E213: 2020年 | F213: =CELL("col",'2020年'!FJ36)-1 -> 165 | G213: =IF(COUNTIF(L222:X222,3)=0,"",IF(COUNTIF(L222:X222,2)=0,"次いで","")&K225&"("&TEXT(LARGE(L226:X226,3),"0.0")&"%)の順") -> 「果樹類」(6.5%)の順 | J213: 作付（栽培）面積 | K213: =OFFSET('2020年'!$A$1,$V$3,$F213) -> 8,975,314 | L213: =OFFSET('2020年'!$A$1,$V$3,$F213+1) -> 6,300,234 | M213: =OFFSET('2020年'!$A$1,$V$3,$F213+2) -> 12,609 | N213: =OFFSET('2020年'!$A$1,$V$3,$F213+3) -> 511,412 | O213: =OFFSET('2020年'!$A$1,$V$3,$F213+4) -> 3,793 | P213: =OFFSET('2020年'!$A$1,$V$3,$F213+5) -> 507,300 | Q213: =OFFSET('2020年'!$A$1,$V$3,$F213+6) -> 22,509 | R213: =OFFSET('2020年'!$A$1,$V$3,$F213+7) -> 401,965 | S213: =OFFSET('2020年'!$A$1,$V$3,$F213+8) -> 43,528 | T213: =OFFSET('2020年'!$A$1,$V$3,$F213+9) -> 622,033 | U213: =OFFSET('2020年'!$A$1,$V$3,$F213+10) -> 57,361 | V213: =OFFSET('2020年'!$A$1,$V$3,$F213+11) -> 492,569
E214: 2025年 | F214: =CELL("col",'2025年'!FJ36)-1 -> 165 | J214: 作付（栽培）面積 | K214: =OFFSET('2025年'!$A$1,$V$4,$F214) -> 8,622,281 | L214: =OFFSET('2025年'!$A$1,$V$4,$F214+1) -> 5,957,265 | M214: =OFFSET('2025年'!$A$1,$V$4,$F214+2) -> 15,255 | N214: =OFFSET('2025年'!$A$1,$V$4,$F214+3) -> 541,722 | O214: =OFFSET('2025年'!$A$1,$V$4,$F214+4) -> 6,373 | P214: =OFFSET('2025年'!$A$1,$V$4,$F214+5) -> 486,294 | Q214: =OFFSET('2025年'!$A$1,$V$4,$F214+6) -> 20,769 | R214: =OFFSET('2025年'!$A$1,$V$4,$F214+7) -> 325,427 | S214: =OFFSET('2025年'!$A$1,$V$4,$F214+8) -> 40,997 | T214: =OFFSET('2025年'!$A$1,$V$4,$F214+9) -> 564,759 | U214: =OFFSET('2025年'!$A$1,$V$4,$F214+10) -> 49,741 | V214: =OFFSET('2025年'!$A$1,$V$4,$F214+11) -> 613,680
G215: =(Info!$T$187,Info!$Z$187,Info!$AD$187,Info!$AH$187,Info!$AL$187,Info!$AQ$187,Info!$AU$187,Info!$AZ$187,Info!$BD$187,Info!$BI$187,Info!$BN$187,Info!$BR$187,Info!$BV$187) -> 
J216: 上位３部門(経営体数） | K216: 順位 | L216: =IFERROR(_xlfn.RANK.EQ(Info!T216,Info!$T$216:$BS$216),99) -> 1 | M216: =IFERROR(_xlfn.RANK.EQ(Info!Z216,Info!$T$216:$BS$216),99) -> 11 | N216: =IFERROR(_xlfn.RANK.EQ(Info!AD216,Info!$T$216:$BS$216),99) -> 5 | O216: =IFERROR(_xlfn.RANK.EQ(Info!AH216,Info!$T$216:$BS$216),99) -> 9 | P216: =IFERROR(_xlfn.RANK.EQ(Info!AL216,Info!$T$216:$BS$216),99) -> 6 | Q216: =IFERROR(_xlfn.RANK.EQ(Info!AQ216,Info!$T$216:$BS$216),99) -> 10 | R216: =IFERROR(_xlfn.RANK.EQ(Info!AU216,Info!$T$216:$BS$216),99) -> 3 | S216: =IFERROR(_xlfn.RANK.EQ(Info!AZ216,Info!$T$216:$BS$216),99) -> 7 | T216: =IFERROR(_xlfn.RANK.EQ(Info!BE216,Info!$T$216:$BS$216),99) -> 2 | U216: =IFERROR(_xlfn.RANK.EQ(Info!BJ216,Info!$T$216:$BS$216),99) -> 8 | V216: =IFERROR(_xlfn.RANK.EQ(Info!BO216,Info!$T$216:$BS$216),99) -> 4
J217: 1位 | K217: =SUBSTITUTE(L217&M217&N217&O217&P217&Q217&R217&S217&T217&U217&V217,"」「","」と「") -> 「稲」 | L217: =IF(INT(L216)=1,"「"&CLEAN(L207)&"」","") -> 「稲」
J218: ２位 | K218: =SUBSTITUTE(L218&M218&N218&O218&P218&Q218&R218&S218&T218&U218&V218,"」「","」と「") -> 「果樹類」 | L218: =IF(INT(L216)=2,"「"&CLEAN(L207)&"」","") ->  | T218: 「果樹類」
J219: ３位 | K219: =SUBSTITUTE(L219&M219&N219&O219&P219&Q219&R219&S219&T219&U219&V219,"」「","」と「") -> 「露地野菜」 | L219: =IF(INT(L216)=3,"「"&CLEAN(L207)&"」","") ->  | R219: 「露地野菜」 | X219: =IF(INT(X217)=1,"「"&CLEAN(X213)&"」","") -> 
J220: 割合 | K220: =SUM(L220:X220) -> 71.4 | L220: =IF(L216<4,L209/SUM($L$209:$V$209)%,0) -> 37.9 | M220: 0.0 | N220: 0.0 | O220: 0.0 | P220: 0.0 | Q220: 0.0 | R220: 12.8 | S220: 0.0 | T220: 20.8 | U220: 0.0 | V220: 0.0
J222: 上位３部門(作付（栽培）面積） | K222: 順位 | L222: =IFERROR(_xlfn.RANK.EQ(Info!T218,Info!$T$218:$BS$218),99) -> 1 | M222: =IFERROR(_xlfn.RANK.EQ(Info!Z218,Info!$T$218:$BS$218),99) -> 10 | N222: =IFERROR(_xlfn.RANK.EQ(Info!AD218,Info!$T$218:$BS$218),99) -> 4 | O222: =IFERROR(_xlfn.RANK.EQ(Info!AH218,Info!$T$218:$BS$218),99) -> 11 | P222: =IFERROR(_xlfn.RANK.EQ(Info!AL218,Info!$T$218:$BS$218),99) -> 5 | Q222: =IFERROR(_xlfn.RANK.EQ(Info!AQ218,Info!$T$218:$BS$218),99) -> 9 | R222: =IFERROR(_xlfn.RANK.EQ(Info!AU218,Info!$T$218:$BS$218),99) -> 6 | S222: =IFERROR(_xlfn.RANK.EQ(Info!AZ218,Info!$T$218:$BS$218),99) -> 8 | T222: =IFERROR(_xlfn.RANK.EQ(Info!BE218,Info!$T$218:$BS$218),99) -> 3 | U222: =IFERROR(_xlfn.RANK.EQ(Info!BJ218,Info!$T$218:$BS$218),99) -> 7 | V222: =IFERROR(_xlfn.RANK.EQ(Info!BO218,Info!$T$218:$BS$218),99) -> 2 | W222: =IF(INT(W217)=2,"「"&CLEAN(W213)&"」","") ->  | X222: =IF(INT(X217)=2,"「"&CLEAN(X213)&"」","") -> 
J223: 1位 | K223: =SUBSTITUTE(L223&M223&N223&O223&P223&Q223&R223&S223&T223&U223&V223,"」「","」と「") -> 「稲」 | L223: =IF(INT(L222)=1,"「"&CLEAN(L212)&"」","") -> 「稲」
J224: ２位 | K224: =SUBSTITUTE(L224&M224&N224&O224&P224&Q224&R224&S224&T224&U224&V224,"」「","」と「") -> 「その他」 | L224: =IF(INT(L222)=2,"「"&CLEAN(L212)&"」","") ->  | V224: 「その他」
J225: ３位 | K225: =SUBSTITUTE(L225&M225&N225&O225&P225&Q225&R225&S225&T225&U225&V225,"」「","」と「") -> 「果樹類」 | L225: =IF(INT(L222)=3,"「"&CLEAN(L212)&"」","") ->  | T225: 「果樹類」
J226: 割合 | K226: =SUM(L226:X226) -> 82.8 | L226: =IF(L222<4,L214/$K$214%,0) -> 69.1 | M226: 0.0 | N226: 0.0 | O226: 0.0 | P226: 0.0 | Q226: 0.0 | R226: 0.0 | S226: 0.0 | T226: 6.5 | U226: 0.0 | V226: 7.1
AC239: 単位：人、％
E241: 列番号-1 | G241: 概要 | H241: 区 分 | K241: 計 | L241: 15～39 | M241: 40～44 | N241: 45～49 | O241: 50～54 | P241: 55～59 | Q241: 60～64 | R241: 65歳以上 | S241: 65～69 | T241: 70～74 | U241: 75～79 | V241: 80～84 | W241: 85歳以上 | X241: 15～ 49 | Y241: 50～ 59 | Z241: 60～ 64 | AA241: 65～ 69 | AB241: 70～ 74 | AC241: 75歳 以上
E242: 2020年 | F242: =CELL("col",'2020年'!FV15)-1 -> 177 | G242: =Info!N246/Info!N245-1 -> -0.2231900395 | H242: 実数 | I242: 2020年 | J242: 販売農家 | X242: =IF(OR(Info!T245="x",Info!X245="x",Info!AB245="x"),"x",IF(AND(Info!T245="-",Info!X245="-",Info!AB245="-"),"-",SUM(Info!T245,Info!X245,Info!AB245))) -> 4,105 | Y242: =IF(OR(Info!AF245="x",Info!AJ245="x"),"x",IF(AND(Info!AF245="-",Info!AJ245="-"),"-",SUM(Info!AF245,Info!AJ245))) -> 3,617 | Z242: =Info!AN245 -> 4,667 | AA242: =Info!AX245 -> 8,427 | AB242: =Info!BB245 -> 7,601 | AC242: =IF(OR(Info!BF245="x",Info!BJ245="x",Info!BN245="x"),"x",IF(AND(Info!BF245="-",Info!BJ245="-",Info!BN245="-"),"-",SUM(Info!BF245,Info!BJ245,Info!BN245))) -> 10,617
E243: 2025年 | F243: =CELL("col",'2025年'!FV15)-1 -> 177 | G243: =Info!BR246-Info!BR245 -> 0.5 | I243: 2025年 | J243: 販売農家 | X243: =IF(OR(Info!T246="x",Info!X246="x",Info!AB246="x"),"x",IF(AND(Info!T246="-",Info!X246="-",Info!AB246="-"),"-",SUM(Info!T246,Info!X246,Info!AB246))) -> 3,710 | Y243: =IF(OR(Info!AF246="x",Info!AJ246="x"),"x",IF(AND(Info!AF246="-",Info!AJ246="-"),"-",SUM(Info!AF246,Info!AJ246))) -> 2,486 | Z243: =Info!AN246 -> 2,613 | AA243: =Info!AX246 -> 4,824 | AB243: =Info!BB246 -> 7,227 | AC243: =IF(OR(Info!BF246="x",Info!BJ246="x",Info!BN246="x"),"x",IF(AND(Info!BF246="-",Info!BJ246="-",Info!BN246="-"),"-",SUM(Info!BF246,Info!BJ246,Info!BN246))) -> 9,462
G244: =IFERROR(IF(G242=0,"で、2020年に比べて変化なし","で、2020年に比べて"&TEXT(ABS(Info!N246-Info!N245),"#,###")&"人（"&TEXT(ABS(G242),"0.0%")&"）"&IF(G242>0,"増加","減少")),"") -> で、2020年に比べて8,712人（22.3%）減少 | I244: （県計） | J244: 販売農家 | K244: =OFFSET('2025年'!$A$1,14,$F243) -> 30322 | L244: =OFFSET('2025年'!$A$1,14,$F243+1) -> 1,427 | M244: =OFFSET('2025年'!$A$1,14,$F243+2) -> 1,009 | N244: =OFFSET('2025年'!$A$1,14,$F243+3) -> 1,274 | O244: =OFFSET('2025年'!$A$1,14,$F243+4) -> 1,140 | P244: =OFFSET('2025年'!$A$1,14,$F243+5) -> 1,346 | Q244: =OFFSET('2025年'!$A$1,14,$F243+6) -> 2,613 | R244: =OFFSET('2025年'!$A$1,14,$F243+7) -> 21,513 | S244: =OFFSET('2025年'!$A$1,14,$F243+8) -> 4,824 | T244: =OFFSET('2025年'!$A$1,14,$F243+9) -> 7,227 | U244: =OFFSET('2025年'!$A$1,14,$F243+10) -> 5,493 | V244: =OFFSET('2025年'!$A$1,14,$F243+11) -> 2,520 | W244: =OFFSET('2025年'!$A$1,14,$F243+12) -> 1,449 | X244: =IF(OR(L244="x",M244="x",N244="x"),"x",IF(AND(L244="-",M244="-",N244="-"),"-",SUM(L244,M244,N244))) -> 3,710 | Y244: =IF(OR(O244="x",P244="x"),"x",IF(AND(O244="-",P244="-"),"-",SUM(O244,P244))) -> 2,486 | Z244: =Q244 -> 2,613 | AA244: =S244 -> 4,824 | AB244: =T244 -> 7,227 | AC244: =IF(OR(U244="x",V244="x",W244="x"),"x",IF(AND(U244="-",V244="-",W244="-"),"-",SUM(U244,V244,W244))) -> 9,462
G245: =IFERROR(IF(G243=0,"で、2020年に比べて変化なし","で、2020年を"&TEXT(ABS(G243),"##0.0歳")&IF(G243>0,"上回る","下回る")),"") -> で、2020年を0.5歳上回る | H245: グラフ用 | W245: グラフ
W246: 区分 | X246: 15～49 | Y246: 50～59 | Z246: 60～64 | AA246: 65～69 | AB246: 70～74 | AC246: 75歳以上
W247: 県計 2025年 | X247: =IF(OR(X244="x",$K244="x"),"x",IF($K244=0,"nc",IF($K244="-","nc",IF(X244="-","-",X244/$K244%)))) -> 12.2 | Y247: 8.2 | Z247: 8.6 | AA247: 15.9 | AB247: 23.8 | AC247: 31.2
W249: 2025年 | X249: =IF(Info!$N246="x","x",IF(Info!$N246=0,"nc",IF(Info!$N246="-","nc",IF(X243="-","-",X243/Info!$N246%)))) -> 12.2 | Y249: =IF(Info!$N246="x","x",IF(Info!$N246=0,"nc",IF(Info!$N246="-","nc",IF(Y243="-","-",Y243/Info!$N246%)))) -> 8.2 | Z249: =IF(Info!$N246="x","x",IF(Info!$N246=0,"nc",IF(Info!$N246="-","nc",IF(Z243="-","-",Z243/Info!$N246%)))) -> 8.6 | AA249: =IF(Info!$N246="x","x",IF(Info!$N246=0,"nc",IF(Info!$N246="-","nc",IF(AA243="-","-",AA243/Info!$N246%)))) -> 15.9 | AB249: =IF(Info!$N246="x","x",IF(Info!$N246=0,"nc",IF(Info!$N246="-","nc",IF(AB243="-","-",AB243/Info!$N246%)))) -> 23.8 | AC249: =IF(Info!$N246="x","x",IF(Info!$N246=0,"nc",IF(Info!$N246="-","nc",IF(AC243="-","-",AC243/Info!$N246%)))) -> 31.2
W250: 2020年 | X250: =IF(Info!$N245="x","x",IF(Info!$N245=0,"nc",IF(Info!$N245="-","nc",IF(X242="-","-",X242/Info!$N245%)))) -> 10.5 | Y250: =IF(Info!$N245="x","x",IF(Info!$N245=0,"nc",IF(Info!$N245="-","nc",IF(Y242="-","-",Y242/Info!$N245%)))) -> 9.3 | Z250: =IF(Info!$N245="x","x",IF(Info!$N245=0,"nc",IF(Info!$N245="-","nc",IF(Z242="-","-",Z242/Info!$N245%)))) -> 12.0 | AA250: =IF(Info!$N245="x","x",IF(Info!$N245=0,"nc",IF(Info!$N245="-","nc",IF(AA242="-","-",AA242/Info!$N245%)))) -> 21.6 | AB250: =IF(Info!$N245="x","x",IF(Info!$N245=0,"nc",IF(Info!$N245="-","nc",IF(AB242="-","-",AB242/Info!$N245%)))) -> 19.5 | AC250: =IF(Info!$N245="x","x",IF(Info!$N245=0,"nc",IF(Info!$N245="-","nc",IF(AC242="-","-",AC242/Info!$N245%)))) -> 27.2
E253: 列番号-1 | G253: 概要 | H253: 区 分 | K253: 計 | L253: 15～39 | M253: 40～44 | N253: 45～49 | O253: 50～54 | P253: 55～59 | Q253: 60～64 | R253: 65歳以上 | S253: 65～69 | T253: 70～74 | U253: 75～79 | V253: 80～84 | W253: 85歳以上 | X253: 15～ 49 | Y253: 50～ 59 | Z253: 60～ 64 | AA253: 65～ 69 | AB253: 70～ 74 | AC253: 75歳 以上
E254: 2020年 | F254: =CELL("col",'2020年'!GJ29)-1 -> 191 | G254: =Info!N260/Info!N259-1 ->  | H254: 実数 | I254: 2020年 | J254: 人口 | X254: =SUM(Info!T269,Info!X269,Info!AB269) -> 369,982 | Y254: =SUM(Info!AF269,Info!AJ269) -> 132,885 | Z254: =Info!AN269 -> 75,952 | AA254: =Info!AX269 -> 85,619 | AB254: =Info!BB269 -> 83,299 | AC254: =Info!BF269 -> 200,204
E255: 2025年 | F255: =CELL("col",'2025年'!GJ29)-1 -> 191 | G255: =Info!BR260-Info!BR259 -> 0.0 | I255: 2025年 | J255: 人口 | X255: =SUM(Info!T272,Info!X272,Info!AB272) -> 0 | Y255: =SUM(Info!AF272,Info!AJ272) -> 0 | Z255: =Info!AN272 -> 0 | AA255: =Info!AX272 -> 0 | AB255: =Info!BB272 -> 0 | AC255: =Info!BF272 -> 0
G256: =IFERROR(IF(G254=0,"で、2020年に比べて変化なし","で、2020年に比べて"&TEXT(ABS(Info!N260-Info!N259),"#,###")&"人（"&TEXT(ABS(G254),"0.0%")&"）"&IF(G254>0,"増加","減少")),"") ->  | I256: （県計） | J256: 人口 | K256: =OFFSET('2025年'!$A$1,14,$F255) -> 0 | L256: =OFFSET('2025年'!$A$1,14,$F255+1) -> 0 | M256: =OFFSET('2025年'!$A$1,14,$F255+2) -> 0 | N256: =OFFSET('2025年'!$A$1,14,$F255+3) -> 0 | O256: =OFFSET('2025年'!$A$1,14,$F255+4) -> 0 | P256: =OFFSET('2025年'!$A$1,14,$F255+5) -> 0 | Q256: =OFFSET('2025年'!$A$1,14,$F255+6) -> 0 | R256: =OFFSET('2025年'!$A$1,14,$F255+7) -> 0 | S256: =OFFSET('2025年'!$A$1,14,$F255+8) -> 0 | T256: =OFFSET('2025年'!$A$1,14,$F255+9) -> 0 | U256: =OFFSET('2025年'!$A$1,14,$F255+10) -> 0 | V256: =OFFSET('2025年'!$A$1,14,$F255+11) -> 0 | W256: =OFFSET('2025年'!$A$1,14,$F255+12) -> 0 | X256: =IF(OR(L256="x",M256="x",N256="x"),"x",IF(AND(L256="-",M256="-",N256="-"),"-",SUM(L256,M256,N256))) -> 0 | Y256: =IF(OR(O256="x",P256="x"),"x",IF(AND(O256="-",P256="-"),"-",SUM(O256,P256))) -> 0 | Z256: =Q256 -> 0 | AA256: =S256 -> 0 | AB256: =T256 -> 0 | AC256: =IF(OR(U256="x",V256="x",W256="x"),"x",IF(AND(U256="-",V256="-",W256="-"),"-",SUM(U256,V256,W256))) -> 0
G257: =IFERROR(IF(G255=0,"で、2020年に比べて変化なし","で、2020年を"&TEXT(ABS(G255),"##0.0歳")&IF(G255>0,"上回る","下回る")),"") -> で、2020年に比べて変化なし | H257: グラフ用 | W257: グラフ
W258: 区分 | X258: 15～49 | Y258: 50～59 | Z258: 60～64 | AA258: 65～69 | AB258: 70～74 | AC258: 75歳以上
W259: 県計 2025年 | X259: =IF(OR(X256="x",$K256="x",$G38="x"),"x",IF($K256=0,"nc",IF($K256="-","nc",IF(X256="-","-",X256/$K256%)))) -> nc | Y259: nc | Z259: nc | AA259: nc | AB259: nc | AC259: nc
W261: 2025年 | X261: =IF(Info!$N272="x","x",IF(Info!$N272=0,"nc",IF(Info!$N272="-","nc",IF(X255="-","-",X255/Info!$N272%)))) -> nc | Y261: =IF(Info!$N272="x","x",IF(Info!$N272=0,"nc",IF(Info!$N272="-","nc",IF(Y255="-","-",Y255/Info!$N272%)))) -> nc | Z261: =IF(Info!$N272="x","x",IF(Info!$N272=0,"nc",IF(Info!$N272="-","nc",IF(Z255="-","-",Z255/Info!$N272%)))) -> nc | AA261: =IF(Info!$N272="x","x",IF(Info!$N272=0,"nc",IF(Info!$N272="-","nc",IF(AA255="-","-",AA255/Info!$N272%)))) -> nc | AB261: =IF(Info!$N272="x","x",IF(Info!$N272=0,"nc",IF(Info!$N272="-","nc",IF(AB255="-","-",AB255/Info!$N272%)))) -> nc | AC261: =IF(Info!$N272="x","x",IF(Info!$N272=0,"nc",IF(Info!$N272="-","nc",IF(AC255="-","-",AC255/Info!$N272%)))) -> nc
W262: 2020年 | X262: =IF(Info!$N269="x","x",IF(Info!$N269=0,"nc",IF(Info!$N269="-","nc",IF(X254="-","-",X254/Info!$N269%)))) -> 39.0 | Y262: =IF(Info!$N269="x","x",IF(Info!$N269=0,"nc",IF(Info!$N269="-","nc",IF(Y254="-","-",Y254/Info!$N269%)))) -> 14.0 | Z262: =IF(Info!$N269="x","x",IF(Info!$N269=0,"nc",IF(Info!$N269="-","nc",IF(Z254="-","-",Z254/Info!$N269%)))) -> 8.0 | AA262: =IF(Info!$N269="x","x",IF(Info!$N269=0,"nc",IF(Info!$N269="-","nc",IF(AA254="-","-",AA254/Info!$N269%)))) -> 9.0 | AB262: =IF(Info!$N269="x","x",IF(Info!$N269=0,"nc",IF(Info!$N269="-","nc",IF(AB254="-","-",AB254/Info!$N269%)))) -> 8.8 | AC262: =IF(Info!$N269="x","x",IF(Info!$N269=0,"nc",IF(Info!$N269="-","nc",IF(AC254="-","-",AC254/Info!$N269%)))) -> 21.1
K265: 計 | L265: 15～39 | M265: 40～44 | N265: 45～49 | O265: 50～54 | P265: 55～59 | Q265: 60～64 | R265: 65歳以上 | S265: 65～69 | T265: 70～74 | U265: 75～79 | V265: 80～84 | W265: 85歳以上 | X265: 15～ 49 | Y265: 50～ 59 | Z265: 60～ 64 | AA265: 65～ 69 | AB265: 70～ 74 | AC265: 75歳 以上
I266: 2020年 | J266: 販売農家 基幹的農業従事者 | X266: =X242 -> 4,105 | Y266: 3,617 | Z266: 4,667 | AA266: 8,427 | AB266: 7,601 | AC266: 10,617
I267: 2020年 | J267: 人口 | X267: =X254 -> 369,982 | Y267: 132,885 | Z267: 75,952 | AA267: 85,619 | AB267: 83,299 | AC267: 200,204
I268: 2025年 | J268: 販売農家 基幹的農業従事者 | X268: =X243 -> 3,710 | Y268: 2,486 | Z268: 2,613 | AA268: 4,824 | AB268: 7,227 | AC268: 9,462
I269: 2025年 | J269: 人口 | X269: =X255 -> 0 | Y269: 0 | Z269: 0 | AA269: 0 | AB269: 0 | AC269: 0
H279: 面積がa単位の原数（構成割合等の％は原数で計算している） | AD279: 単位：ha、％
L280: 1 | M280: 2 | N280: 3 | O280: 4 | P280: 5 | Q280: 6 | R280: 7 | S280: 8 | T280: 9 | U280: 10 | V280: 11 | W280: 12 | X280: 13 | Y280: 14
E281: 列番号-1 | G281: 概要 | H281: 区 分 | K281: 合計 | L281: 計 | M281: 15～39 | N281: 40～44 | O281: 45～49 | P281: 50～54 | Q281: 55～59 | R281: 60～64 | S281: 65歳以上 | T281: 65～69 | U281: 70～74 | V281: 75～79 | W281: 80～84 | X281: 85歳以上 | Y281: いない | Z281: 15～49 | AA281: 50～59 | AB281: 60～64 | AC281: 65～69 | AD281: 70～74 | AE281: 75歳以上 | AF281: いない
E282: 2020年 | F282: =CELL("col",'2020年'!GU43)-1 -> 202 | G282: =Info!S286/Info!S285-1 -> -1 | H282: 実数 | I282: 2020年 | J282: 個人経営体 | K282: =OFFSET('2020年'!$A$1,$V$4,$F282) -> 8062885 | L282: =OFFSET('2020年'!$A$1,$V$4,$F282+L280) -> 7407594 | M282: =OFFSET('2020年'!$A$1,$V$4,$F282+M280) -> 1130768 | N282: =OFFSET('2020年'!$A$1,$V$4,$F282+N280) -> 616083 | O282: =OFFSET('2020年'!$A$1,$V$4,$F282+O280) -> 435446 | P282: =OFFSET('2020年'!$A$1,$V$4,$F282+P280) -> 407545 | Q282: =OFFSET('2020年'!$A$1,$V$4,$F282+Q280) -> 688468 | R282: =OFFSET('2020年'!$A$1,$V$4,$F282+R280) -> 1068628 | S282: =OFFSET('2020年'!$A$1,$V$4,$F282+S280) -> 3060656 | T282: =OFFSET('2020年'!$A$1,$V$4,$F282+T280) -> 1470518 | U282: =OFFSET('2020年'!$A$1,$V$4,$F282+U280) -> 895223 | V282: =OFFSET('2020年'!$A$1,$V$4,$F282+V280) -> 403651 | W282: =OFFSET('2020年'!$A$1,$V$4,$F282+W280) -> 218573 | X282: =OFFSET('2020年'!$A$1,$V$4,$F282+X280) -> 72691 | Y282: =OFFSET('2020年'!$A$1,$V$4,$F282+Y280) -> 655291 | Z282: =IF(OR(M282="x",N282="x",O282="x"),"x",IF(AND(M282="-",N282="-",O282="-"),"-",SUM(M282,N282,O282))) -> 2,182,297 | AA282: =IF(OR(P282="x",Q282="x"),"x",IF(AND(P282="-",Q282="-"),"-",SUM(P282,Q282))) -> 1,096,013 | AB282: =R282 -> 1,068,628 | AC282: =T282 -> 1,470,518 | AD282: 895,223 | AE282: =IF(OR(V282="x",W282="x",X282="x"),"x",IF(AND(V282="-",W282="-",X282="-"),"-",SUM(V282,W282,X282))) -> 694,915 | AF282: =Y282 -> 655,291
E283: 2025年 | F283: =CELL("col",'2025年'!GU43)-1 -> 202 | G283: =IFERROR(IF(G282=0,"で、2020年に比べて変化なし","で、2020年に比べて"&TEXT(ABS(Info!S286-Info!S285),"#,###")&"ha（"&TEXT(ABS(G282),"0.0%")&"）"&IF(G282>0,"増加","減少")),"") -> で、2020年に比べて74,076ha（100.0%）減少 | I283: 2025年 | J283: 個人経営体 | K283: =OFFSET('2025年'!$A$1,$V$4,$F283) -> 0 | L283: =OFFSET('2025年'!$A$1,$V$4,$F283+L280) -> 0 | M283: =OFFSET('2025年'!$A$1,$V$4,$F283+M280) -> 0 | N283: =OFFSET('2025年'!$A$1,$V$4,$F283+N280) -> 0 | O283: =OFFSET('2025年'!$A$1,$V$4,$F283+O280) -> 0 | P283: =OFFSET('2025年'!$A$1,$V$4,$F283+P280) -> 0 | Q283: =OFFSET('2025年'!$A$1,$V$4,$F283+Q280) -> 0 | R283: =OFFSET('2025年'!$A$1,$V$4,$F283+R280) -> 0 | S283: =OFFSET('2025年'!$A$1,$V$4,$F283+S280) -> 0 | T283: =OFFSET('2025年'!$A$1,$V$4,$F283+T280) -> 0 | U283: =OFFSET('2025年'!$A$1,$V$4,$F283+U280) -> 0 | V283: =OFFSET('2025年'!$A$1,$V$4,$F283+V280) -> 0 | W283: =OFFSET('2025年'!$A$1,$V$4,$F283+W280) -> 0 | X283: =OFFSET('2025年'!$A$1,$V$4,$F283+X280) -> 0 | Y283: =OFFSET('2025年'!$A$1,$V$4,$F283+Y280) -> 0 | Z283: =IF(OR(M283="x",N283="x",O283="x"),"x",IF(AND(M283="-",N283="-",O283="-"),"-",SUM(M283,N283,O283))) -> 0 | AA283: =IF(OR(P283="x",Q283="x"),"x",IF(AND(P283="-",Q283="-"),"-",SUM(P283,Q283))) -> 0 | AB283: =R283 -> 0 | AC283: 0 | AD283: 0 | AE283: =IF(OR(V283="x",W283="x",X283="x"),"x",IF(AND(V283="-",W283="-",X283="-"),"-",SUM(V283,W283,X283))) -> 0 | AF283: =Y283 -> 0
I284: （県計） | J284: 個人経営体 | K284: =OFFSET('2025年'!$A$1,14,$F283) -> 0 | L284: =OFFSET('2025年'!$A$1,14,$F283+1) -> 0 | M284: =OFFSET('2025年'!$A$1,14,$F283+2) -> 0 | N284: =OFFSET('2025年'!$A$1,14,$F283+3) -> 0 | O284: =OFFSET('2025年'!$A$1,14,$F283+4) -> 0 | P284: =OFFSET('2025年'!$A$1,14,$F283+5) -> 0 | Q284: =OFFSET('2025年'!$A$1,14,$F283+6) -> 0 | R284: =OFFSET('2025年'!$A$1,14,$F283+7) -> 0 | S284: =OFFSET('2025年'!$A$1,14,$F283+8) -> 0 | T284: =OFFSET('2025年'!$A$1,14,$F283+9) -> 0 | U284: =OFFSET('2025年'!$A$1,14,$F283+10) -> 0 | V284: =OFFSET('2025年'!$A$1,14,$F283+11) -> 0 | W284: =OFFSET('2025年'!$A$1,14,$F283+12) -> 0 | X284: =OFFSET('2025年'!$A$1,14,$F283+13) -> 0 | Y284: =OFFSET('2025年'!$A$1,14,$F283+14) -> 0 | Z284: =IF(OR(M284="x",N284="x",O284="x"),"x",IF(AND(M284="-",N284="-",O284="-"),"-",SUM(M284,N284,O284))) -> 0 | AA284: =IF(OR(P284="x",Q284="x"),"x",IF(AND(P284="-",Q284="-"),"-",SUM(P284,Q284))) -> 0 | AB284: =R284 -> 0 | AC284: 0 | AD284: 0 | AE284: =IF(OR(V284="x",W284="x",X284="x"),"x",IF(AND(V284="-",W284="-",X284="-"),"-",SUM(V284,W284,X284))) -> 0 | AF284: =Y284 -> 0
H285: 構成比 | I285: 2020年 | J285: 個人経営体 | K285: =IF(OR(K282="x",$K282="x",$G17="x"),"x",IF(OR($K282=0,$K282="-",$K282="@",K282="@"),"nc",IF(K282="-","-",K282/$K282%))) -> 100.0 | L285: 91.9 | M285: 14.0 | N285: 7.6 | O285: 5.4 | P285: 5.1 | Q285: 8.5 | R285: 13.3 | S285: 38.0 | T285: 18.2 | U285: 11.1 | V285: 5.0 | W285: 2.7 | X285: 0.9 | Y285: 8.1 | Z285: 27.1 | AA285: 13.6 | AB285: 13.3 | AC285: 18.2 | AD285: 11.1 | AE285: 8.6 | AF285: 8.1
I286: 2025年 | J286: 個人経営体 | K286: =IF(OR(K283="x",$K283="x",$G23="x"),"x",IF(OR($K283=0,$K283="-"),"nc",IF(K283="-","-",K283/$K283%))) -> nc | L286: nc | M286: nc | N286: nc | O286: nc | P286: nc | Q286: nc | R286: nc | S286: nc | T286: nc | U286: nc | V286: nc | W286: nc | X286: nc | Y286: nc | Z286: nc | AA286: nc | AB286: nc | AC286: nc | AD286: nc | AE286: nc | AF286: nc
I287: （県計） | J287: 個人経営体 | K287: =IF(OR(K284="x",$K284="x"),"x",IF(OR($K284=0,$K284="-"),"nc",IF(K284="-","-",K284/$K284%))) -> nc | L287: nc | M287: nc | N287: nc | O287: nc | P287: nc | Q287: nc | R287: nc | S287: nc | T287: nc | U287: nc | V287: nc | W287: nc | X287: nc | Y287: nc | Z287: nc | AA287: nc | AB287: nc | AC287: nc | AD287: nc | AE287: nc | AF287: nc
H288: グラフ用 | N288: 棒グラフ | O288: 15～ 49 | P288: 50～ 59 | Q288: 60～ 64 | R288: 65～ 69 | S288: 70～ 74 | T288: 75歳 以上 | U288: いない | Y288: 横棒グラフ | Z288: 15～49 | AA288: 50～59 | AB288: 60～64 | AC288: 65～69 | AD288: 70～74 | AE288: 75歳以上 | AF288: いない
N289: 2020年 | O289: =IFERROR(ROUND(Z282/100,0),Z282) -> 21,823 | P289: 10,960 | Q289: 10,686 | R289: 14,705 | S289: 8,952 | T289: 6,949 | U289: 6,553 | Y289: 県計 2025年 | Z289: =Z287 -> nc | AA289: nc | AB289: nc | AC289: nc | AD289: nc | AE289: nc | AF289: nc
N291: 2025年 | O291: =IFERROR(ROUND(Z283/100,0),Z283) -> 0 | P291: 0 | Q291: 0 | R291: 0 | S291: 0 | T291: 0 | U291: 0
Y292: 2025年 | Z292: =Z286 -> nc | AA292: nc | AB292: nc | AC292: nc | AD292: nc | AE292: nc | AF292: nc
Y293: 2020年 | Z293: =Z285 -> 27.1 | AA293: 13.6 | AB293: 13.3 | AC293: 18.2 | AD293: 11.1 | AE293: 8.6 | AF293: 8.1
AC305: 単位：人、％
E307: 列番号-1 | G307: 概要 | H307: 区 分 | K307: 計 | L307: 15～39 | M307: 40～44 | N307: 45～49 | O307: 50～54 | P307: 55～59 | Q307: 60～64 | R307: 65歳以上 | S307: 65～69 | T307: 70～74 | U307: 75～79 | V307: 80～84 | W307: 85歳以上 | X307: 15～49 | Y307: 50～59 | Z307: 60～64 | AA307: 65～69 | AB307: 70～74 | AC307: 75歳以上 | AD307: 合計
H308: 実数 | I308: 2025年 | J308: 経営体・総数 | X308: =IF(OR(Info!AB310="x",Info!AF310="x",Info!AJ310="x"),"x",IF(AND(Info!AB310="-",Info!AF310="-",Info!AJ310="-"),"-",SUM(Info!AB310,Info!AF310,Info!AJ310))) -> 2,297 | Y308: =IF(OR(Info!AN310="x",Info!AR310="x"),"x",IF(AND(Info!AN310="-",Info!AR310="-"),"-",SUM(Info!AN310,Info!AR310))) -> 2,655 | Z308: =Info!AV310 -> 2,697 | AA308: =Info!BF310 -> 4,017 | AB308: =Info!BJ310 -> 5,169 | AC308: =IF(OR(Info!BN310="x",Info!BR310="x",Info!BV310="x"),"x",IF(AND(Info!BN310="-",Info!BR310="-",Info!BV310="-"),"-",SUM(Info!BN310,Info!BR310,Info!BV310))) -> 5,940 | AD308: =Info!V310 -> 22,775
E309: 2025年 | J309: 後継者確保 | X309: =IF(Info!$V$311="x","x",IF(SUM(Info!AB311:AM311)=0,"-",SUM(Info!AB311:AM311))) -> 433 | Y309: =IF(Info!$V$311="x","x",IF(SUM(Info!AN311:AU311)=0,"-",SUM(Info!AN311:AU311))) -> 637 | Z309: =IF(Info!$V$311="x","x",IF(SUM(Info!AV311:AY311)=0,"-",SUM(Info!AV311:AY311))) -> 728 | AA309: =IF(Info!$V$311="x","x",IF(SUM(Info!BF311:BI311)=0,"-",SUM(Info!BF311:BI311))) -> 1,146 | AB309: =IF(Info!$V$311="x","x",IF(SUM(Info!BJ311:BM311)=0,"-",SUM(Info!BJ311:BM311))) -> 1,604 | AC309: =IF(Info!$V$311="x","x",IF(SUM(Info!BN311:BY311)=0,"-",SUM(Info!BN311:BY311))) -> 2,290 | AD309: =IF(Info!V310="x","x",IF(SUM(Info!V311:AA311)=0,"-",SUM(Info!V311:AA311))) -> 6,838
E310: 農業経営体 | F310: =CELL("col",'2025年'!HJ15)-1 -> 217 | I310: 県計 | J310: 経営体・総数 | K310: =OFFSET('2025年'!$A$1,14,$F310) -> 22,775 | L310: =OFFSET('2025年'!$A$1,14,$F310+1) -> 581 | M310: =OFFSET('2025年'!$A$1,14,$F310+2) -> 679 | N310: =OFFSET('2025年'!$A$1,14,$F310+3) -> 1,037 | O310: =OFFSET('2025年'!$A$1,14,$F310+4) -> 1,128 | P310: =OFFSET('2025年'!$A$1,14,$F310+5) -> 1,527 | Q310: =OFFSET('2025年'!$A$1,14,$F310+6) -> 2,697 | R310: =OFFSET('2025年'!$A$1,14,$F310+7) -> 15,126 | S310: =OFFSET('2025年'!$A$1,14,$F310+8) -> 4,017 | T310: =OFFSET('2025年'!$A$1,14,$F310+9) -> 5,169 | U310: =OFFSET('2025年'!$A$1,14,$F310+10) -> 3,794 | V310: =OFFSET('2025年'!$A$1,14,$F310+11) -> 1,436 | W310: =OFFSET('2025年'!$A$1,14,$F310+12) -> 710 | X310: =IF(OR(L310="x",M310="x",N310="x"),"x",IF(AND(L310="-",M310="-",N310="-"),"-",SUM(L310,M310,N310))) -> 2,297 | Y310: =IF(OR(O310="x",P310="x",),"x",IF(AND(O310="-",P310="-"),"-",SUM(O310,P310))) -> 2,655 | Z310: =Q310 -> 2,697 | AA310: =S310 -> 4,017 | AB310: 5,169 | AC310: =IF(OR(U310="x",V310="x",W310="x"),"x",IF(AND(U310="-",V310="-",W310="-"),"-",SUM(U310,V310,W310))) -> 5,940 | AD310: =K310 -> 22,775
E311: 後継者確保 | F311: =CELL("col",'2025年'!HW15)-1 -> 230 | I311: 2025年 | J311: 後継者確保 | K311: =OFFSET('2025年'!$A$1,14,$F311) -> 6,838 | L311: =OFFSET('2025年'!$A$1,14,$F311+1) -> 100 | M311: =OFFSET('2025年'!$A$1,14,$F311+2) -> 122 | N311: =OFFSET('2025年'!$A$1,14,$F311+3) -> 211 | O311: =OFFSET('2025年'!$A$1,14,$F311+4) -> 260 | P311: =OFFSET('2025年'!$A$1,14,$F311+5) -> 377 | Q311: =OFFSET('2025年'!$A$1,14,$F311+6) -> 728 | R311: =OFFSET('2025年'!$A$1,14,$F311+7) -> 5,040 | S311: =OFFSET('2025年'!$A$1,14,$F311+8) -> 1,146 | T311: =OFFSET('2025年'!$A$1,14,$F311+9) -> 1,604 | U311: =OFFSET('2025年'!$A$1,14,$F311+10) -> 1,325 | V311: =OFFSET('2025年'!$A$1,14,$F311+11) -> 571 | W311: =OFFSET('2025年'!$A$1,14,$F311+12) -> 394 | X311: =IF(OR(L311="x",M311="x",N311="x"),"x",IF(AND(L311="-",M311="-",N311="-"),"-",SUM(L311,M311,N311))) -> 433 | Y311: =IF(OR(O311="x",P311="x",),"x",IF(AND(O311="-",P311="-"),"-",SUM(O311,P311))) -> 637 | Z311: =Q311 -> 728 | AA311: 1,146 | AB311: 1,604 | AC311: =IF(OR(U311="x",V311="x",W311="x"),"x",IF(AND(U311="-",V311="-",W311="-"),"-",SUM(U311,V311,W311))) -> 2,290 | AD311: =K311 -> 6,838
E312: ５年以内に引き継がない | F312: =CELL("col",'2025年'!IJ15)-1 -> 243 | J312: ５年以内に引き継がない | K312: =OFFSET('2025年'!$A$1,14,$F312) -> 998 | L312: =OFFSET('2025年'!$A$1,14,$F312+1) -> 5 | M312: =OFFSET('2025年'!$A$1,14,$F312+2) -> 11 | N312: =OFFSET('2025年'!$A$1,14,$F312+3) -> 15 | O312: =OFFSET('2025年'!$A$1,14,$F312+4) -> 18 | P312: =OFFSET('2025年'!$A$1,14,$F312+5) -> 40 | Q312: =OFFSET('2025年'!$A$1,14,$F312+6) -> 78 | R312: =OFFSET('2025年'!$A$1,14,$F312+7) -> 831 | S312: =OFFSET('2025年'!$A$1,14,$F312+8) -> 151 | T312: =OFFSET('2025年'!$A$1,14,$F312+9) -> 285 | U312: =OFFSET('2025年'!$A$1,14,$F312+10) -> 249 | V312: =OFFSET('2025年'!$A$1,14,$F312+11) -> 102 | W312: =OFFSET('2025年'!$A$1,14,$F312+12) -> 44 | X312: =IF(OR(L312="x",M312="x",N312="x"),"x",IF(AND(L312="-",M312="-",N312="-"),"-",SUM(L312,M312,N312))) -> 31 | Y312: =IF(OR(O312="x",P312="x",),"x",IF(AND(O312="-",P312="-"),"-",SUM(O312,P312))) -> 58 | Z312: =Q312 -> 78 | AA312: 151 | AB312: 285 | AC312: =IF(OR(U312="x",V312="x",W312="x"),"x",IF(AND(U312="-",V312="-",W312="-"),"-",SUM(U312,V312,W312))) -> 395 | AD312: =K312 -> 998
E313: 確保していない | F313: =CELL("col",'2025年'!IW15)-1 -> 256 | J313: 後継者がいる計 | K313: =IF(K311="x","x",IF(SUM(K311:K312)=0,"-",SUM(K311:K312))) -> 7,836 | L313: 105 | M313: 133 | N313: 226 | O313: 278 | P313: 417 | Q313: 806 | R313: 5,871 | S313: 1,297 | T313: 1,889 | U313: 1,574 | V313: 673 | W313: 438 | X313: =IF(OR(L313="x",M313="x",N313="x"),"x",IF(AND(L313="-",M313="-",N313="-"),"-",SUM(L313,M313,N313))) -> 464 | Y313: =IF(OR(O313="x",P313="x",),"x",IF(AND(O313="-",P313="-"),"-",SUM(O313,P313))) -> 695 | Z313: =Q313 -> 806 | AA313: 1,297 | AB313: 1,889 | AC313: =IF(OR(U313="x",V313="x",W313="x"),"x",IF(AND(U313="-",V313="-",W313="-"),"-",SUM(U313,V313,W313))) -> 2,685 | AD313: =K313 -> 7,836
K314: グラフ：経営主年齢階層別経営体数割合 | X314: グラフ：農業後継者を確保している経営主の年齢階層別割合
H315: 確保している割合 | K315: 15～ 49 | L315: 50～ 59 | M315: 60～ 64 | N315: 65～ 69 | O315: 70～ 74 | P315: 75歳 以上 | Q315: 合計 | X315: 15～49 | Y315: 50～59 | Z315: 60～64 | AA315: 65～69 | AB315: 70～74 | AC315: 75歳以上 | AD315: 合計
H316: =Info!V311/Info!V310 -> 0.3002414929 | J316: =$W$4 -> 山形県 | K316: =IF(X308="x","x",IF(SUM($AD308=0),"nc",IF(SUM(X308)=0,"-",X308/$AD308%))) -> 10.1 | L316: 11.7 | M316: 11.8 | N316: 17.6 | O316: 22.7 | P316: 26.1 | Q316: 100.0 | W316: =$W$5 -> 山形県 | X316: =X311/$AD311% -> 6.3 | Y316: 9.3 | Z316: 10.6 | AA316: 16.8 | AB316: 23.5 | AC316: 33.5 | AD316: 100.0
J317: =$W$5 -> 山形県 | K317: =IF(X310="x","x",IF(SUM($AD310=0),"nc",IF(SUM(X310)=0,"-",X310/$AD310%))) -> 10.1 | L317: 11.7 | M317: 11.8 | N317: 17.6 | O317: 22.7 | P317: 26.1 | Q317: 100.0 | W317: =$W$4 -> 山形県 | X317: =IF(X309="x","x",IF(SUM($AD309=0),"nc",IF(SUM(X309)=0,"-",X309/$AD309%))) -> 6.3 | Y317: 9.3 | Z317: 10.6 | AA317: 16.8 | AB317: 23.5 | AC317: 33.5 | AD317: 100.0
H334: 面積がa単位の原数（構成割合等の％は原数で計算している） | AC334: 単位：ha、％
L335: 1 | M335: 2 | N335: 3 | O335: 4 | P335: 5 | Q335: 6 | R335: 7 | S335: 8 | T335: 9 | U335: 10 | V335: 11 | W335: 12
E336: 列番号-1 | G336: 概要 | H336: 区 分 | K336: 計 | L336: 15～39 | M336: 40～44 | N336: 45～49 | O336: 50～54 | P336: 55～59 | Q336: 60～64 | R336: 65歳以上 | S336: 65～69 | T336: 70～74 | U336: 75～79 | V336: 80～84 | W336: 85歳以上 | X336: 15～49 | Y336: 50～59 | Z336: 60～64 | AA336: 65～69 | AB336: 70～74 | AC336: 75歳以上 | AD336: 合計
E337: 2025年 | F337: =CELL("col",'2025年'!JJ15)-1 -> 269 | I337: 2025年 | J337: 経営体総数 | K337: =OFFSET('2025年'!$A$1,$V$4,$F337) -> 0 | L337: =OFFSET('2025年'!$A$1,$V$4,$F337+L$335) -> 0 | M337: =OFFSET('2025年'!$A$1,$V$4,$F337+M$335) -> 0 | N337: =OFFSET('2025年'!$A$1,$V$4,$F337+N$335) -> 0 | O337: =OFFSET('2025年'!$A$1,$V$4,$F337+O$335) -> 0 | P337: =OFFSET('2025年'!$A$1,$V$4,$F337+P$335) -> 0 | Q337: =OFFSET('2025年'!$A$1,$V$4,$F337+Q$335) -> 0 | R337: =OFFSET('2025年'!$A$1,$V$4,$F337+R$335) -> 0 | S337: =OFFSET('2025年'!$A$1,$V$4,$F337+S$335) -> 0 | T337: =OFFSET('2025年'!$A$1,$V$4,$F337+T$335) -> 0 | U337: =OFFSET('2025年'!$A$1,$V$4,$F337+U$335) -> 0 | V337: =OFFSET('2025年'!$A$1,$V$4,$F337+V$335) -> 0 | W337: =OFFSET('2025年'!$A$1,$V$4,$F337+W$335) -> 0 | X337: =IF(OR(L337="x",M337="x",N337="x"),"x",IF(AND(L337="-",M337="-",N337="-"),"-",SUM(L337,M337,N337))) -> 0 | Y337: =IF(OR(O337="x",P337="x",),"x",IF(AND(O337="-",P337="-"),"-",SUM(O337,P337))) -> 0 | Z337: =Q337 -> 0 | AA337: =S337 -> 0 | AB337: 0 | AC337: =IF(OR(U337="x",V337="x",W337="x"),"x",IF(AND(U337="-",V337="-",W337="-"),"-",SUM(U337,V337,W337))) -> 0 | AD337: =K337 -> 0
E338: 後継者確保 | F338: =CELL("col",'2025年'!JW15)-1 -> 282 | J338: 後継者確保 | K338: =OFFSET('2025年'!$A$1,$V$4,$F338) -> 0 | L338: =OFFSET('2025年'!$A$1,$V$4,$F338+L335) -> 0 | M338: =OFFSET('2025年'!$A$1,$V$4,$F338+M335) -> 0 | N338: =OFFSET('2025年'!$A$1,$V$4,$F338+N335) -> 0 | O338: =OFFSET('2025年'!$A$1,$V$4,$F338+O335) -> 0 | P338: =OFFSET('2025年'!$A$1,$V$4,$F338+P335) -> 0 | Q338: =OFFSET('2025年'!$A$1,$V$4,$F338+Q335) -> 0 | R338: =OFFSET('2025年'!$A$1,$V$4,$F338+R335) -> 0 | S338: =OFFSET('2025年'!$A$1,$V$4,$F338+S335) -> 0 | T338: =OFFSET('2025年'!$A$1,$V$4,$F338+T335) -> 0 | U338: =OFFSET('2025年'!$A$1,$V$4,$F338+U335) -> 0 | V338: =OFFSET('2025年'!$A$1,$V$4,$F338+V335) -> 0 | W338: =OFFSET('2025年'!$A$1,$V$4,$F338+W335) -> 0 | X338: =IF(OR(L338="x",M338="x",N338="x"),"x",IF(AND(L338="-",M338="-",N338="-"),"-",SUM(L338,M338,N338))) -> 0 | Y338: =IF(OR(O338="x",P338="x",),"x",IF(AND(O338="-",P338="-"),"-",SUM(O338,P338))) -> 0 | Z338: =Q338 -> 0 | AA338: 0 | AB338: 0 | AC338: =IF(OR(U338="x",V338="x",W338="x"),"x",IF(AND(U338="-",V338="-",W338="-"),"-",SUM(U338,V338,W338))) -> 0 | AD338: =K338 -> 0
E339: ５年以内に引き継がない | F339: =CELL("col",'2025年'!KJ15)-1 -> 295 | J339: 後継者がいない | K339: =OFFSET('2025年'!$A$1,$V$4,$F340+K335) -> 0 | L339: =OFFSET('2025年'!$A$1,$V$4,$F340+L335) -> 0 | M339: =OFFSET('2025年'!$A$1,$V$4,$F340+M335) -> 0 | N339: =OFFSET('2025年'!$A$1,$V$4,$F340+N335) -> 0 | O339: =OFFSET('2025年'!$A$1,$V$4,$F340+O335) -> 0 | P339: =OFFSET('2025年'!$A$1,$V$4,$F340+P335) -> 0 | Q339: =OFFSET('2025年'!$A$1,$V$4,$F340+Q335) -> 0 | R339: =OFFSET('2025年'!$A$1,$V$4,$F340+R335) -> 0 | S339: =OFFSET('2025年'!$A$1,$V$4,$F340+S335) -> 0 | T339: =OFFSET('2025年'!$A$1,$V$4,$F340+T335) -> 0 | U339: =OFFSET('2025年'!$A$1,$V$4,$F340+U335) -> 0 | V339: =OFFSET('2025年'!$A$1,$V$4,$F340+V335) -> 0 | W339: =OFFSET('2025年'!$A$1,$V$4,$F340+W335) -> 0 | X339: =IF(OR(L339="x",M339="x",N339="x"),"x",IF(AND(L339="-",M339="-",N339="-"),"-",SUM(L339,M339,N339))) -> 0 | Y339: =IF(OR(O339="x",P339="x",),"x",IF(AND(O339="-",P339="-"),"-",SUM(O339,P339))) -> 0 | Z339: =Q339 -> 0 | AA339: 0 | AB339: 0 | AC339: =IF(OR(U339="x",V339="x",W339="x"),"x",IF(AND(U339="-",V339="-",W339="-"),"-",SUM(U339,V339,W339))) -> 0 | AD339: =K339 -> 0
E340: 確保していない | F340: =CELL("col",'2025年'!KW15)-1 -> 308 | J340: ５年以内に引き継がない | K340: =OFFSET('2025年'!$A$1,$V$4,$F339) -> 0 | L340: =OFFSET('2025年'!$A$1,$V$4,$F339+L335) -> 0 | M340: =OFFSET('2025年'!$A$1,$V$4,$F339+M335) -> 0 | N340: =OFFSET('2025年'!$A$1,$V$4,$F339+N335) -> 0 | O340: =OFFSET('2025年'!$A$1,$V$4,$F339+O335) -> 0 | P340: =OFFSET('2025年'!$A$1,$V$4,$F339+P335) -> 0 | Q340: =OFFSET('2025年'!$A$1,$V$4,$F339+Q335) -> 0 | R340: =OFFSET('2025年'!$A$1,$V$4,$F339+R335) -> 0 | S340: =OFFSET('2025年'!$A$1,$V$4,$F339+S335) -> 0 | T340: =OFFSET('2025年'!$A$1,$V$4,$F339+T335) -> 0 | U340: =OFFSET('2025年'!$A$1,$V$4,$F339+U335) -> 0 | V340: =OFFSET('2025年'!$A$1,$V$4,$F339+V335) -> 0 | W340: =OFFSET('2025年'!$A$1,$V$4,$F339+W335) -> 0 | X340: =IF(OR(L340="x",M340="x",N340="x"),"x",IF(AND(L340="-",M340="-",N340="-"),"-",SUM(L340,M340,N340))) -> 0 | Y340: =IF(OR(O340="x",P340="x",),"x",IF(AND(O340="-",P340="-"),"-",SUM(O340,P340))) -> 0 | Z340: =Q340 -> 0 | AA340: 0 | AB340: 0 | AC340: =IF(OR(U340="x",V340="x",W340="x"),"x",IF(AND(U340="-",V340="-",W340="-"),"-",SUM(U340,V340,W340))) -> 0 | AD340: =K340 -> 0
I341: 割合 | J341: 経営体総数 | K341: =IF(OR($K337="x",K337="x"),"x",IF(OR($K337=0,$K337="-"),"nc",IF(K337="-","-",K337/$K337%))) -> nc | L341: nc | M341: nc | N341: nc | O341: nc | P341: nc | Q341: nc | R341: nc | S341: nc | T341: nc | U341: nc | V341: nc | W341: nc | X341: nc | Y341: nc | Z341: nc | AA341: nc | AB341: nc | AC341: nc | AD341: nc
H342: 確保している割合 | J342: 後継者確保 | K342: =IF(OR($K338="x",K338="x"),"x",IF(OR($K338=0,$K338="-"),"nc",IF(K338="-","-",K338/$K338%))) -> nc | L342: nc | M342: nc | N342: nc | O342: nc | P342: nc | Q342: nc | R342: nc | S342: nc | T342: nc | U342: nc | V342: nc | W342: nc | X342: nc | Y342: nc | Z342: nc | AA342: nc | AB342: nc | AC342: nc | AD342: nc
H343: =Info!V340/Info!V339 ->  | J343: ５年以内に引き継がない | K343: =IF(OR($K339="x",K339="x"),"x",IF(OR($K339=0,$K339="-"),"nc",IF(K339="-","-",K339/$K339%))) -> nc | L343: nc | M343: nc | N343: nc | O343: nc | P343: nc | Q343: nc | R343: nc | S343: nc | T343: nc | U343: nc | V343: nc | W343: nc | X343: nc | Y343: nc | Z343: nc | AA343: nc | AB343: nc | AC343: nc | AD343: nc
J344: 後継者がいない | K344: =IF(OR($K340="x",K340="x"),"x",IF(OR($K340=0,$K340="-"),"nc",IF(K340="-","-",K340/$K340%))) -> nc | L344: nc | M344: nc | N344: nc | O344: nc | P344: nc | Q344: nc | R344: nc | S344: nc | T344: nc | U344: nc | V344: nc | W344: nc | X344: nc | Y344: nc | Z344: nc | AA344: nc | AB344: nc | AC344: nc | AD344: nc
I346: 2025年・県計 | J346: 経営体・総数 | K346: =OFFSET('2025年'!$A$1,14,$F337) -> 0 | L346: =OFFSET('2025年'!$A$1,14,$F337+1) -> 0 | M346: =OFFSET('2025年'!$A$1,14,$F337+2) -> 0 | N346: =OFFSET('2025年'!$A$1,14,$F337+3) -> 0 | O346: =OFFSET('2025年'!$A$1,14,$F337+4) -> 0 | P346: =OFFSET('2025年'!$A$1,14,$F337+5) -> 0 | Q346: =OFFSET('2025年'!$A$1,14,$F337+6) -> 0 | R346: =OFFSET('2025年'!$A$1,14,$F337+7) -> 0 | S346: =OFFSET('2025年'!$A$1,14,$F337+8) -> 0 | T346: =OFFSET('2025年'!$A$1,14,$F337+9) -> 0 | U346: =OFFSET('2025年'!$A$1,14,$F337+10) -> 0 | V346: =OFFSET('2025年'!$A$1,14,$F337+11) -> 0 | W346: =OFFSET('2025年'!$A$1,14,$F337+12) -> 0 | X346: =IF(OR(L346="x",M346="x",N346="x"),"x",IF(AND(L346="-",M346="-",N346="-"),"-",SUM(L346,M346,N346))) -> 0 | Y346: =IF(OR(O346="x",P346="x",),"x",IF(AND(O346="-",P346="-"),"-",SUM(O346,P346))) -> 0 | Z346: =Q346 -> 0 | AA346: =S346 -> 0 | AB346: 0 | AC346: =IF(OR(U346="x",V346="x",W346="x"),"x",IF(AND(U346="-",V346="-",W346="-"),"-",SUM(U346,V346,W346))) -> 0 | AD346: =K346 -> 0
J347: 後継者確保 | K347: =OFFSET('2025年'!$A$1,14,$F338) -> 0 | L347: =OFFSET('2025年'!$A$1,14,$F338+1) -> 0 | M347: =OFFSET('2025年'!$A$1,14,$F338+2) -> 0 | N347: =OFFSET('2025年'!$A$1,14,$F338+3) -> 0 | O347: =OFFSET('2025年'!$A$1,14,$F338+4) -> 0 | P347: =OFFSET('2025年'!$A$1,14,$F338+5) -> 0 | Q347: =OFFSET('2025年'!$A$1,14,$F338+6) -> 0 | R347: =OFFSET('2025年'!$A$1,14,$F338+7) -> 0 | S347: =OFFSET('2025年'!$A$1,14,$F338+8) -> 0 | T347: =OFFSET('2025年'!$A$1,14,$F338+9) -> 0 | U347: =OFFSET('2025年'!$A$1,14,$F338+10) -> 0 | V347: =OFFSET('2025年'!$A$1,14,$F338+11) -> 0 | W347: =OFFSET('2025年'!$A$1,14,$F338+12) -> 0 | X347: =IF(OR(L347="x",M347="x",N347="x"),"x",IF(AND(L347="-",M347="-",N347="-"),"-",SUM(L347,M347,N347))) -> 0 | Y347: =IF(OR(O347="x",P347="x",),"x",IF(AND(O347="-",P347="-"),"-",SUM(O347,P347))) -> 0 | Z347: =Q347 -> 0 | AA347: 0 | AB347: 0 | AC347: =IF(OR(U347="x",V347="x",W347="x"),"x",IF(AND(U347="-",V347="-",W347="-"),"-",SUM(U347,V347,W347))) -> 0 | AD347: =K347 -> 0
J348: 後継者がいる計いない | K348: =OFFSET('2025年'!$A$1,14,$F340+K335) -> 0 | L348: =OFFSET('2025年'!$A$1,14,$F340+L335) -> 0 | M348: =OFFSET('2025年'!$A$1,14,$F340+M335) -> 0 | N348: =OFFSET('2025年'!$A$1,14,$F340+N335) -> 0 | O348: =OFFSET('2025年'!$A$1,14,$F340+O335) -> 0 | P348: =OFFSET('2025年'!$A$1,14,$F340+P335) -> 0 | Q348: =OFFSET('2025年'!$A$1,14,$F340+Q335) -> 0 | R348: =OFFSET('2025年'!$A$1,14,$F340+R335) -> 0 | S348: =OFFSET('2025年'!$A$1,14,$F340+S335) -> 0 | T348: =OFFSET('2025年'!$A$1,14,$F340+T335) -> 0 | U348: =OFFSET('2025年'!$A$1,14,$F340+U335) -> 0 | V348: =OFFSET('2025年'!$A$1,14,$F340+V335) -> 0 | W348: =OFFSET('2025年'!$A$1,14,$F340+W335) -> 0 | X348: =IF(OR(L348="x",M348="x",N348="x"),"x",IF(AND(L348="-",M348="-",N348="-"),"-",SUM(L348,M348,N348))) -> 0 | Y348: =IF(OR(O348="x",P348="x",),"x",IF(AND(O348="-",P348="-"),"-",SUM(O348,P348))) -> 0 | Z348: =Q348 -> 0 | AA348: 0 | AB348: 0 | AC348: =IF(OR(U348="x",V348="x",W348="x"),"x",IF(AND(U348="-",V348="-",W348="-"),"-",SUM(U348,V348,W348))) -> 0 | AD348: =K348 -> 0
J349: ５年以内に引き継がない | K349: =OFFSET('2025年'!$A$1,14,$F339) -> 0 | L349: =OFFSET('2025年'!$A$1,14,$F339+1) -> 0 | M349: =OFFSET('2025年'!$A$1,14,$F339+2) -> 0 | N349: =OFFSET('2025年'!$A$1,14,$F339+3) -> 0 | O349: =OFFSET('2025年'!$A$1,14,$F339+4) -> 0 | P349: =OFFSET('2025年'!$A$1,14,$F339+5) -> 0 | Q349: =OFFSET('2025年'!$A$1,14,$F339+6) -> 0 | R349: =OFFSET('2025年'!$A$1,14,$F339+7) -> 0 | S349: =OFFSET('2025年'!$A$1,14,$F339+8) -> 0 | T349: =OFFSET('2025年'!$A$1,14,$F339+9) -> 0 | U349: =OFFSET('2025年'!$A$1,14,$F339+10) -> 0 | V349: =OFFSET('2025年'!$A$1,14,$F339+11) -> 0 | W349: =OFFSET('2025年'!$A$1,14,$F339+12) -> 0 | X349: =IF(OR(L349="x",M349="x",N349="x"),"x",IF(AND(L349="-",M349="-",N349="-"),"-",SUM(L349,M349,N349))) -> 0 | Y349: =IF(OR(O349="x",P349="x",),"x",IF(AND(O349="-",P349="-"),"-",SUM(O349,P349))) -> 0 | Z349: =Q349 -> 0 | AA349: 0 | AB349: 0 | AC349: =IF(OR(U349="x",V349="x",W349="x"),"x",IF(AND(U349="-",V349="-",W349="-"),"-",SUM(U349,V349,W349))) -> 0 | AD349: =K349 -> 0
K352: グラフ：経営主年齢階層別経営面積割合 | X352: グラフ：農業後継者を確保している経営主の年齢階層別面積割合
J353: 区分 | K353: 15～ 49 | L353: 50～ 59 | M353: 60～ 64 | N353: 65～ 69 | O353: 70～ 74 | P353: 75歳 以上 | Q353: 合計 | W353: 区分 | X353: 15～49 | Y353: 50～59 | Z353: 60～64 | AA353: 65～69 | AB353: 70～74 | AC353: 75歳以上 | AD353: 合計
J354: =$W$4 -> 山形県 | K354: =X341 -> nc | L354: nc | M354: nc | N354: nc | O354: nc | P354: nc | Q354: nc | W354: =$W$5 -> 山形県 | X354: =X347/$AD347% -> 
J355: =$W$5 -> 山形県 | K355: =X346/$AD346% ->  | W355: =$W$4 -> 山形県 | X355: =X342 -> nc | Y355: nc | Z355: nc | AA355: nc | AB355: nc | AC355: nc | AD355: nc
E366: 列番号-1 | G366: 概要 | H366: 区 分 | K366: 雇用者あり | Q366: 行っていない
E367: 2025年 | F367: =CELL("col",'2025年'!LJ396)-1 -> 321 | G367: =Info!W370/SUM(Info!W370,Info!BP370) -> 0.4406147091 | K367: 計 | L367: 行っている
E368: 団体 | F368: =CELL("col",'2025年'!LQ396)-1 -> 328 | G368: =IFERROR(IF(G367=0,"で、2020年に比べて変化なし","で、全体の"&TEXT(ABS(G367),"0.0％")),"") -> で、全体の44.1% | L368: 小計 | M368: 気象・市況等のデータを見て農業 | N368: 農作業履歴等のデータをパソコン等で記録 | O368: 機器・センサーを用いて生育状況等のデータを計測・取得し分析 | P368: データ分析を活用した営農上のサービスやサポートを利用 | Q368: 行っていない
H370: 実数 | I370: 県計 | K370: （経営体） | L370: （経営体） | M370: （経営体） | N370: （経営体） | O370: （経営体） | Q370: （経営体）
I372: 2025年 | J372: 総数 | K372: =OFFSET('2025年'!$A$1,14,$F367) -> 22,775 | L372: =OFFSET('2025年'!$A$1,14,$F367+1) -> 10,035 | M372: =OFFSET('2025年'!$A$1,14,$F367+2) -> 9,191 | N372: =OFFSET('2025年'!$A$1,14,$F367+3) -> 2,765 | O372: =OFFSET('2025年'!$A$1,14,$F367+4) -> 546 | P372: =OFFSET('2025年'!$A$1,14,$F367+5) -> 1,194 | Q372: =OFFSET('2025年'!$A$1,14,$F367+6) -> 12,740
J374: うち団体 | K374: =OFFSET('2025年'!$A$1,14,$F368) -> 1,035 | L374: =OFFSET('2025年'!$A$1,14,$F368+1) -> 652 | M374: =OFFSET('2025年'!$A$1,14,$F368+2) -> 572 | N374: =OFFSET('2025年'!$A$1,14,$F368+3) -> 346 | O374: =OFFSET('2025年'!$A$1,14,$F368+4) -> 114 | P374: =OFFSET('2025年'!$A$1,14,$F368+5) -> 133 | Q374: =OFFSET('2025年'!$A$1,14,$F368+6) -> 383
H375: 構成比 | I375: 2025年 | J375: 総数 | K375: =IF(K372="x","x",IF($K372=0,"nc",IF($K372="-","nc",IF(K372="-","-",K372/$K372%)))) -> 100.0 | L375: 44.1 | M375: 40.4 | N375: 12.1 | O375: 2.4 | P375: 5.2 | Q375: 55.9
J376: うち組織 | K376: =IF(K374="x","x",IF($K374=0,"nc",IF($K374="-","nc",IF(K374="-","-",K374/$K374%)))) -> 100.0 | L376: 63.0 | M376: 55.3 | N376: 33.4 | O376: 11.0 | P376: 12.9 | Q376: 37.0
H378: グラフ用
H379: 区分 | I379: 気象・市況等のデータを見て農業 | J379: 農作業履歴等のデータをパソコン等で記録 | K379: 機器・センサーを用いて生育状況等のデータを計測・取得し分析 | L379: データ分析を活用した営農上のサービスやサポートを利用 | M379: 活用していない
G380: =$W$5 -> 山形県 | H380: 県計 | I380: =M375 -> 40.4 | J380: =N375 -> 12.1 | K380: =O375 -> 2.4 | L380: =P375 -> 5.2 | M380: =Q375 -> 55.9
G382: =Info!V376 -> 山形県 | H382: うち団体 | I382: =Info!AF373 -> 55.3 | J382: =Info!AO373 -> 33.4 | K382: =Info!AX373 -> 11.0 | L382: =Info!BG373 -> 12.9 | M382: =Info!BP373 -> 37.0
H383: 総数 | I383: =Info!AF372 -> 40.4 | J383: =Info!AO372 -> 12.1 | K383: =Info!AX372 -> 2.4 | L383: =Info!BG372 -> 5.2 | M383: =Info!BP372 -> 55.9
H393: 区 分 | K393: 0 | L393: 1 | M393: 2 | N393: 3 | O393: 4 | P393: 5 | Q393: 6 | R393: 7 | S393: 8 | T393: 9 | U393: 10 | V393: 11 | W393: 12 | X393: 13 | Y393: 14
E394: 列番号-1 | G394: 概要 | K394: 合計 | L394: 有機農業に取り組んでいる | X394: 有機農業に取り組んでいない | Y394: 経営耕地面積 | Z394: 取り組んでいない経営耕地面積
E395: 2025年 | F395: =CELL("col",'2025年'!LX15)-1 -> 335 | G395: =Info!U398/Info!N398 -> 0 | L395: 計 | N395: 水稲 | P395: 大豆 | R395: 野菜 | T395: 果樹 | V395: その他
E396: 個人 | F396: =CELL("col",'2025年'!#REF!)-1 ->  | G396: ="で、全体の"&TEXT(Info!S400/100,"0.0%") -> で、全体の5.6% | L396: 作付(栽培)実経営体数 | M396: 作付(栽培)面積 | N396: 経営体数 | O396: 面積 | P396: 経営体数 | Q396: 面積 | R396: 経営体数 | S396: 面積 | T396: 経営体数 | U396: 面積 | V396: 経営体数 | W396: 面積
... 15 more rows

Sheet 2025年 (hidden)
B1: 1 | C1: 2 | D1: 3 | E1: 4 | F1: 5 | G1: 6 | H1: 7 | I1: 8 | J1: 9 | K1: 10 | L1: 11 | M1: 12 | N1: 13 | O1: 14 | P1: 15 | Q1: 16 | R1: 17 | S1: 18 | T1: 19 | U1: 20 | V1: 21 | W1: 22 | X1: 23 | Y1: 24 | Z1: 25 | AA1: 26 | AB1: 27 | AC1: 28 | AD1: 29 | AE1: 30 | AF1: 31 | AG1: 32 | AH1: 33 | AI1: 34 | AJ1: 35 | AK1: 36 | AL1: 37 | AM1: 38 | AN1: 39 | AO1: 40 | AP1: 41 | AQ1: 42 | AR1: 43 | AS1: 44 | AT1: 45 | AU1: 46 | AV1: 47 | AW1: 48 | AX1: 49 | AY1: 50 | AZ1: 51 | BA1: 52 | BB1: 53 | BC1: 54 | BD1: 55 | BE1: 56 | BF1: 57 | BG1: 58 | BH1: 59 | BI1: 60 | BJ1: 61 | BK1: 62 | BL1: 63 | BM1: 64 | BN1: 65 | BO1: 66 | BP1: 67 | BQ1: 68 | BR1: 69 | BS1: 70 | BT1: 71 | BU1: 72 | BV1: 73 | BW1: 74 | BX1: 75 | BY1: 76 | BZ1: 77 | CA1: 78 | CB1: 79 | CC1: 80 | CD1: 81 | CE1: 82 | CF1: 83 | CG1: 84 | CH1: 85 | CI1: 86 | CJ1: 87 | CK1: 88 | CL1: 89 | CM1: 90 | CN1: 91 | CO1: 92 | CP1: 93 | CQ1: 94 | CR1: 95 | CS1: 96 | CT1: 97 | CU1: 98 | CV1: 99 | CW1: 100 | CX1: 101 | CY1: 102 | CZ1: 103 | DA1: 104 | DB1: 105 | DC1: 106 | DD1: 107 | DE1: 108 | DF1: 109 | DG1: 110 | DH1: 111 | DI1: 112 | DJ1: 113 | DK1: 114 | DL1: 115 | DM1: 116 | DN1: 117 | DO1: 118 | DP1: 119 | DQ1: 120 | DR1: 121 | DS1: 122 | DT1: 123 | DU1: 124 | DV1: 125 | DW1: 126 | DX1: 127 | DY1: 128 | DZ1: 129 | EA1: 130 | EB1: 131 | EC1: 132 | ED1: 133 | EE1: 134 | EF1: 135 | EG1: 136 | EH1: 137 | EI1: 138 | EJ1: 139 | EK1: 140 | EL1: 141 | EM1: 142 | EN1: 143 | EO1: 144 | EP1: 145 | EQ1: 146 | ER1: 147 | ES1: 148 | ET1: 149 | EU1: 150 | EV1: 151 | EW1: 152 | EX1: 153 | EY1: 154 | EZ1: 155 | FA1: 156 | FB1: 157 | FC1: 158 | FD1: 159 | FE1: 160 | FF1: 161 | FG1: 162 | FH1: 163 | FI1: 164 | FJ1: 165 | FK1: 166 | FL1: 167 | FM1: 168 | FN1: 169 | FO1: 170 | FP1: 171 | FQ1: 172 | FR1: 173 | FS1: 174 | FT1: 175 | FU1: 176 | FV1: 177 | FW1: 178 | FX1: 179 | FY1: 180 | FZ1: 181 | GA1: 182 | GB1: 183 | GC1: 184 | GD1: 185 | GE1: 186 | GF1: 187 | GG1: 188 | GH1: 189 | GI1: 190 | GJ1: 191 | GK1: 192 | GL1: 193 | GM1: 194 | GN1: 195 | GO1: 196 | GP1: 197 | GQ1: 198 | GR1: 199 | GS1: 200 | GT1: 201 | GU1: 202 | GV1: 203 | GW1: 204 | GX1: 205 | GY1: 206 | GZ1: 207 | HA1: 208 | HB1: 209 | HC1: 210 | HD1: 211 | HE1: 212 | HF1: 213 | HG1: 214 | HH1: 215 | HI1: 216 | HJ1: 217 | HK1: 218 | HL1: 219 | HM1: 220 | HN1: 221 | HO1: 222 | HP1: 223 | HQ1: 224 | HR1: 225 | HS1: 226 | HT1: 227 | HU1: 228 | HV1: 229 | HW1: 230 | HX1: 231 | HY1: 232 | HZ1: 233 | IA1: 234 | IB1: 235 | IC1: 236 | ID1: 237 | IE1: 238 | IF1: 239 | IG1: 240 | IH1: 241 | II1: 242 | IJ1: 243 | IK1: 244 | IL1: 245 | IM1: 246 | IN1: 247 | IO1: 248 | IP1: 249 | IQ1: 250 | IR1: 251 | IS1: 252 | IT1: 253 | IU1: 254 | IV1: 255 | IW1: 256 | IX1: 257 | IY1: 258 | IZ1: 259 | JA1: 260 | JB1: 261 | JC1: 262 | JD1: 263 | JE1: 264 | JF1: 265 | JG1: 266 | JH1: 267 | JI1: 268 | JJ1: 269 | JK1: 270 | JL1: 271 | JM1: 272 | JN1: 273 | JO1: 274 | JP1: 275 | JQ1: 276 | JR1: 277 | JS1: 278 | JT1: 279 | JU1: 280 | JV1: 281 | JW1: 282 | JX1: 283 | JY1: 284 | JZ1: 285 | KA1: 286 | KB1: 287 | KC1: 288 | KD1: 289 | KE1: 290 | KF1: 291 | KG1: 292 | KH1: 293 | KI1: 294 | KJ1: 295 | KK1: 296 | KL1: 297 | KM1: 298 | KN1: 299 | KO1: 300 | KP1: 301 | KQ1: 302 | KR1: 303 | KS1: 304 | KT1: 305 | KU1: 306 | KV1: 307 | KW1: 308 | KX1: 309 | KY1: 310 | KZ1: 311 | LA1: 312 | LB1: 313 | LC1: 314 | LD1: 315 | LE1: 316 | LF1: 317 | LG1: 318 | LH1: 319 | LI1: 320 | LJ1: 321 | LK1: 322 | LL1: 323 | LM1: 324 | LN1: 325 | LO1: 326 | LP1: 327 | LQ1: 328 | LR1: 329 | LS1: 330 | LT1: 331 | LU1: 332 | LV1: 333 | LW1: 334 | LX1: 335 | LY1: 336 | LZ1: 337 | MA1: 338 | MB1: 339 | MC1: 340 | MD1: 341 | ME1: 342 | MF1: 343 | MG1: 344 | MH1: 345 | MI1: 346 | MJ1: 347 | MK1: 348 | ML1: 349 | MM1: 350 | MN1: 351 | MO1: 352 | MP1: 353 | MQ1: 354 | MR1: 355 | MS1: 356 | MT1: 357 | MU1: 358 | MV1: 359 | MW1: 360 | MX1: 361 | MY1: 362
P2: 農業経営体(総数) | U2: 農業経営体(個人) | Y2: 総農家 | AB2: 農業経営体(総数) | AI2: 農業経営体(団体) | AP2: 農業経営体(総数) | AU2: 農業経営体(団体) | AZ2: 農業経営体(総数) | BM2: 農業経営体(団体) | BZ2: 農業経営体(総数) | CL2: 農業経営体(団体) | CX2: 農業経営体(総数) | DA2: 農業経営体(団体) | DD2: 農業経営体(総数) | DM2: 農業経営体（団体） | DV2: 農業経営体(総数) | EJ2: 農業経営体（団体） | EX2: 農業経営体(総数) | FV2: 農業経営体（個人経営体） | GJ2: 令和2年国勢調査_年齢別人口 | GU2: 個人経営 | HJ2: 農業経営体（総数） | HW2: 農業経営体（総数） | IJ2: 農業経営体（総数） | IW2: 農業経営体（総数） | JJ2: 農業経営体（総数） | JW2: 農業経営体（総数） | KJ2: 農業経営体（総数） | KW2: 農業経営体（総数） | LJ2: 農業経営体(総数) | LQ2: 農業経営体(団体) | LX2: 農業経営体(総数) | ML2: 農業経営体(団体)
P3: １ 農業経営の特徴 | U3: ９ 個人農業経営 | Y3: 調査客体名簿 | AB3: １ 農業経営の特徴 | AI3: １ 農業経営の特徴 | AP3: ８ 雇用労働の状況 | AU3: ８ 雇用労働の状況 | AZ3: ２ 土地 | BM3: ２ 土地 | BZ3: ２ 土地 | CL3: ２ 土地 | CX3: ２ 土地 | DA3: 土地 | DD3: 農業経営の特徴 | DM3: 農業経営の特徴 | DV3: 農業経営の特徴 | EJ3: 農業経営の特徴 | EX3: ３ 農作物 | FV3: 農業経営内部の労働力の状況 | GU3: 組替え集計値 | GW3: コードの「99」は組替集計 | HJ3: ６ 経営主の状況 | HW3: 経営主の状況 | IJ3: 経営主の状況 | IW3: 経営主の状況 | JJ3: 組み替え集計 | JL3: コードの「99」は組替集計 | JW3: 組み替え集計 | KJ3: 組み替え集計 | KW3: 組み替え集計 | LJ3: １ 農業経営の特徴 | LQ3: １ 農業経営の特徴 | LX3: 農業経営 ３農作物 | ML3: 農業経営 ３農作物
P4: （１）組織形態別経営体数 | U4: （１）主副業別経営体数 | Y4: （１）総農家数 | AB4: （１）組織形態別経営体数 | AI4: （１）組織形態別経営体数 | AP4: （１）雇用者の状況 | AU4: （１）雇用者の状況 | AZ4: （２）経営耕地面積規模別経営体数 | BM4: （２）経営耕地面積規模別経営体数 | BZ4: （３）経営耕地面積規模別面積 | CL4: （３）経営耕地面積規模別面積 | CX4: （１）経営耕地の状況（経営耕地、うち所有、うち借入） | DA4: （１）経営耕地の状況（経営耕地、うち所有、うち借入） | DD4: （３）農産物販売金額規模別経営体数 | DM4: （３）農産物販売金額規模別経営体数 | DV4: （４）農産物販売金額１位の部門別経営体数 | EJ4: （４）農産物販売金額１位の部門別経営体数 | EX4: （１）販売目的の作物の類別作付（栽培）経営体数と作付（栽培）面積 | FV4: （12）年齢別の基幹的農業従事者数（仕事が主で、主に自営農業に従事した世帯員数） | GU4: 基幹的農業従事者がいる販売農家の年齢階層別経営耕地面積 | HJ4: （１）経営主年齢階層別の経営体数 | HW4: （５） 後継者の確保状況別経営主年齢階層別の経営体数 ア 後継者を確保している経営体 | IJ4: （５） 後継者の確保状況別経営主年齢階層別の経営体数 イ 後継者を確保していない（5年以内に後継者に引き継ぐ意向がある） | IW4: （５） 後継者の確保状況別経営主年齢階層別の経営体数 ウ 後継者を確保していない（5年以内に後継者に引き継ぐ意向がない） | JJ4: （１）経営主年齢階層別の経営耕地面積 | JW4: （５） 後継者の確保状況別経営主年齢階層別の経営耕地面積 ア 後継者を確保している経営耕地面積 | KJ4: （５） 後継者の確保状況別経営主年齢階層別の経営耕地面積 イ ５年以内に農業経営を引き継がない経営耕地面積 | KW4: （５） 後継者の確保状況別経営主年齢階層別の経営耕地面積 ウ 後継者を確保していない経営耕地面積 | LJ4: （14)データを活用した農業を行っている経営体数 | LQ4: （14)データを活用した農業を行っている経営体数 | LX4: （11）有機農業に取り組んでいる経営体の取組品目別作付（栽培）経営体数と作付（栽培）面積 | ML4: （11）有機農業に取り組んでいる経営体の取組品目別作付（栽培）経営体数と作付（栽培）面積
P5: 1 | Q5: 秘匿不要 | U5: 1 | Y5: 1 | Z5: 秘匿不要 | AB5: 2 | AI5: 2 | AP5: 3 | AU5: 3 | AZ5: 4 | BM5: 4 | BZ5: 5 | CL5: 5 | CX5: 6 | CY5: １経営体当たり経営耕地面積 | DA5: 6 | DB5: １経営体当たり経営耕地面積 | DD5: 7 | DM5: 7 | DV5: 8 | EJ5: 8 | FV5: 10 | GJ5: 参考 | GU5: 11 | HJ5: 12 | HW5: 12 | IJ5: 12 | IW5: 12 | JJ5: 13 | JW5: 13 | KJ5: 13 | KW5: 13 | LJ5: 14 | LQ5: 14 | LX5: 15 | MK5: 05_99_173より | ML5: 15
T6: 単位：経営体 | X6: 単位：経営体 | AA6: 単位：戸 | AH6: 単位：経営体 | AO6: 単位：経営体 | AT6: 単位：経営体、人日 | AY6: 単位：経営体、人日 | BL6: 単位：経営体 | BY6: 単位：経営体 | CK6: 単位：a | CW6: 単位：a | CZ6: 単位：ａ | DC6: 単位：ａ | DL6: 単位：経営体 | DU6: 単位：経営体 | EI6: 単位：経営体 | EW6: 単位：経営体 | FI6: 単位：経営体 | FU6: 単位：a | GH6: 単位：人 | HI6: 単位：ａ | LP6: 単位：経営体 | LW6: 単位：経営体 | LX6: 05_99_173より | LY6: 05_99_174より | MK6: 単位：経営体 | MY6: 単位：経営体
B7: 指標部 | H7: 基本指標 | L7: 名称等 | P7: 農業経営体 | U7: 計 | V7: 主業 | W7: 準主業 | X7: 副業的 | Y7: 総農家数 | Z7: 販売農家 | AA7: 自給的農家 | AB7: 合計 | AD7: 法人化している | AG7: 地方公共 団体等 | AH7: 法人化し ていない | AI7: 合計 | AK7: 法人化している | AN7: 地方公共 団体等 | AO7: 法人化し ていない | AP7: 雇用者あり | AT7: 雇用者なし | AU7: 雇用者あり | AY7: 雇用者なし | AZ7: 経営耕地のある経営体計 | BA7: 0.5ha 未満 | BB7: 0.5 ～ 1.0 | BC7: 1.0 ～ 2.0 | BD7: 2.0 ～ 3.0 | BE7: 3.0 ～ 5.0 | BF7: 5.0 ～10.0 | BG7: 10.0ha以上 | BM7: 経営耕地のある経営体計 | BN7: 0.5ha 未満 | BO7: 0.5 ～ 1.0 | BP7: 1.0 ～ 2.0 | BQ7: 2.0 ～ 3.0 | BR7: 3.0 ～ 5.0 | BS7: 5.0 ～10.0 | BT7: 10.0ha以上 | BZ7: 経営耕地のある経営体面積計 | CA7: 1.0ha 未満 | CB7: 1.0 ～ 2.0 | CC7: 2.0 ～ 3.0 | CD7: 3.0 ～ 5.0 | CE7: 5.0 ～10.0 | CF7: 10.0ha以上 | CL7: 経営耕地のある経営体面積計 | CM7: 1.0ha 未満 | CN7: 1.0 ～ 2.0 | CO7: 2.0 ～ 3.0 | CP7: 3.0 ～ 5.0 | CQ7: 5.0 ～10.0 | CR7: 10.0ha以上 | CX7: 合計 | CY7: 自作地 | CZ7: 借入耕地 | DA7: 合計 | DB7: 自作地 | DC7: 借入耕地 | DD7: 農産物販売のある経営体計 | DE7: 100万円 未満 | DF7: 100 ～ 300 | DG7: 300～ 1,000 | DH7: 1,000～ 3,000 | DI7: 3,000万円以上 | DM7: 農産物販売のある経営体計 | DN7: 100万円 未満 | DO7: 100 ～ 300 | DP7: 300～ 1,000 | DQ7: 1,000～ 3,000 | DR7: 3,000万円以上 | DV7: 計 | DW7: 稲作 | DX7: 麦類作 | DY7: 雑穀・いも類・豆類 | DZ7: 工芸 農作物 | EA7: 露地野菜 | EB7: 施設野菜 | EC7: 果樹類 | ED7: 花き ・花木 | EE7: 酪農 | EF7: 肉用牛 | EG7: 養豚 | EH7: 養鶏 | EI7: その他 | EJ7: 計 | EK7: 稲作 | EL7: 麦類作 | EM7: 雑穀・いも類・豆類 | EN7: 工芸 農作物 | EO7: 露地野菜 | EP7: 施設野菜 | EQ7: 果樹類 | ER7: 花き ・花木 | ES7: 酪農 | ET7: 肉用牛 | EU7: 養豚 | EV7: 養鶏 | EW7: その他 | FV7: 基幹的農業従事者数 | GI7: 平均年齢（歳） | GJ7: 人口 | GV7: 基幹的農業従事者の年齢階層別経営耕地面積 | HI7: 基幹的農業従事者がいない経営体の経営耕地面積 | HJ7: 計 | HK7: 15～39 | HL7: 40～44 | HM7: 45～49 | HN7: 50～54 | HO7: 55～59 | HP7: 60～64 | HQ7: 65歳以上 | HW7: 計 | HX7: 15～39 | HY7: 40～44 | HZ7: 45～49 | IA7: 50～54 | IB7: 55～59 | IC7: 60～64 | ID7: 65歳以上 | IJ7: 計 | IK7: 15～39 | IL7: 40～44 | IM7: 45～49 | IN7: 50～54 | IO7: 55～59 | IP7: 60～64 | IQ7: 65歳以上 | IW7: 計 | IX7: 15～39 | IY7: 40～44 | IZ7: 45～49 | JA7: 50～54 | JB7: 55～59 | JC7: 60～64 | JD7: 65歳以上 | JJ7: 計 | JK7: 15～39 | JL7: 40～44 | JM7: 45～49 | JN7: 50～54 | JO7: 55～59 | JP7: 60～64 | JQ7: 65歳以上 | JW7: 計 | JX7: 15～39 | JY7: 40～44 | JZ7: 45～49 | KA7: 50～54 | KB7: 55～59 | KC7: 60～64 | KD7: 65歳以上 | KJ7: 計 | KK7: 15～39 | KL7: 40～44 | KM7: 45～49 | KN7: 50～54 | KO7: 55～59 | KP7: 60～64 | KQ7: 65歳以上 | KW7: 計 | KX7: 15～39 | KY7: 40～44 | KZ7: 45～49 | LA7: 50～54 | LB7: 55～59 | LC7: 60～64 | LD7: 65歳以上 | LJ7: 計 | LK7: データを活用した農業を行っている | LP7: データを活用した農業を行っていない | LQ7: 計 | LR7: データを活用した農業を行っている | LW7: データを活用した農業を行っていない | LX7: 合計 | LY7: 有機農業に取り組んでいる | MK7: 有機農業に取り組んでいない | ML7: 合計 | MM7: 有機農業に取り組んでいる | MY7: 有機農業に取り組んでいない
B8: コード連結 基本指標 | C8: 重複確認 | D8: 空き | E8: 空き | F8: 空き | G8: 空き | H8: 都道府県 | I8: 市区町村 | J8: 旧市区町村 | K8: 農業集落 | L8: 都道府県 | M8: 市区町村 | N8: 旧市区町村 | O8: 農業集落 | AC8: 計 | AD8: 農事 組合法人 | AE8: 会社 | AF8: 農協等 | AJ8: 計 | AK8: 農事 組合法人 | AL8: 会社 | AM8: 農協等 | AP8: 経営体数 | AQ8: 雇用者のべ人日 | AR8: うち常雇 | AU8: 経営体数 | AV8: 雇用者のべ人日 | AW8: うち常雇 | FV8: 計 | FW8: 15～39 | FX8: 40～44 | FY8: 45～49 | FZ8: 50～54 | GA8: 55～59 | GB8: 60～64 | GC8: 65歳以上 | GJ8: 計 | GK8: 15～39 | GL8: 40～44 | GM8: 45～49 | GN8: 50～54 | GO8: 55～59 | GP8: 60～64 | GQ8: 65歳以上 | GU8: 合計 | GV8: 計 | GW8: 15～39 | GX8: 40～44 | GY8: 45～49 | GZ8: 50～54 | HA8: 55～59 | HB8: 60～64 | HC8: 65歳以上 | LK8: 経営体数 | LL8: 気象・市況等のデータを見て農業 | LM8: 農作業履歴等のデータをパソコン等で記録 | LN8: 機器・センサーを用いて生育状況等のデータを計測・取得し分析 | LO8: データ分析を活用した営農上のサービスやサポートを利用 | LR8: 経営体数 | LS8: 気象・市況等のデータを見て農業 | LT8: 農作業履歴等のデータをパソコン等で記録 | LU8: 機器・センサーを用いて生育状況等のデータを計測・取得し分析 | LV8: データ分析を活用した営農上のサービスやサポートを利用 | LY8: 計 | MA8: 水稲 | MC8: 大豆 | ME8: 野菜 | MG8: 果樹 | MI8: その他 | MM8: 計 | MO8: 水稲 | MQ8: 大豆 | MS8: 野菜 | MU8: 果樹 | MW8: その他
Q9: 個人経営体 | S9: 団体経営体 | AR9: 経営体数 | AS9: 雇用者 実人数 | AW9: 経営体数 | AX9: 雇用者 実人数 | BH9: 10.0 ～20.0 | BI9: 20.0 ～30.0 | BJ9: 30.0 ～50.0 | BK9: 50.0 ～100.0 | BL9: 100ha以上 | BU9: 10.0 ～20.0 | BV9: 20.0 ～30.0 | BW9: 30.0 ～50.0 | BX9: 50.0 ～100.0 | BY9: 100ha以上 | CG9: 10.0 ～20.0 | CH9: 20.0 ～30.0 | CI9: 30.0 ～50.0 | CJ9: 50.0 ～100.0 | CK9: 100ha以上 | CS9: 10.0 ～20.0 | CT9: 20.0 ～30.0 | CU9: 30.0 ～50.0 | CV9: 50.0 ～100.0 | CW9: 100ha以上 | DJ9: 3,000～ 5,000 | DK9: 5,000万～１億 | DL9: 1億円以上 | DS9: 3,000～ 5,000 | DT9: 5,000万～１億 | DU9: 1億円以上 | EX9: 計 | EY9: 稲 | EZ9: 麦類 | FA9: 雑穀 | FB9: いも類 | FC9: 豆類 | FD9: 工芸農作物 | FE9: 露地野菜 | FF9: 施設野菜 | FG9: 果樹類 | FH9: 花き・花木 | FI9: その他 | FJ9: 計 | FK9: 稲 | FL9: 麦類 | FM9: 雑穀 | FN9: いも類 | FO9: 豆類 | FP9: 工芸農作物 | FQ9: 露地野菜 | FR9: 施設野菜 | FS9: 果樹類 | FT9: 花き・花木 | FU9: その他 | GD9: 65～69 | GE9: 70～74 | GF9: 75～79 | GG9: 80～84 | GH9: 85歳以上 | GR9: 65～69 | GS9: 70～74 | GT9: 75歳以上 | HD9: 65～69 | HE9: 70～74 | HF9: 75～79 | HG9: 80～84 | HH9: 85歳以上 | HR9: 65～69 | HS9: 70～74 | HT9: 75～79 | HU9: 80～84 | HV9: 85歳以上 | IE9: 65～69 | IF9: 70～74 | IG9: 75～79 | IH9: 80～84 | II9: 85歳以上 | IR9: 65～69 | IS9: 70～74 | IT9: 75～79 | IU9: 80～84 | IV9: 85歳以上 | JE9: 65～69 | JF9: 70～74 | JG9: 75～79 | JH9: 80～84 | JI9: 85歳以上 | JR9: 65～69 | JS9: 70～74 | JT9: 75～79 | JU9: 80～84 | JV9: 85歳以上 | KE9: 65～69 | KF9: 70～74 | KG9: 75～79 | KH9: 80～84 | KI9: 85歳以上 | KR9: 65～69 | KS9: 70～74 | KT9: 75～79 | KU9: 80～84 | KV9: 85歳以上 | LE9: 65～69 | LF9: 70～74 | LG9: 75～79 | LH9: 80～84 | LI9: 85歳以上 | LY9: 作付（栽培）実経営体数 | LZ9: 作付（栽培）面積 | MA9: 経営体数 | MB9: 面積 | MC9: 経営体数 | MD9: 面積 | ME9: 経営体数 | MF9: 面積 | MG9: 経営体数 | MH9: 面積 | MI9: 経営体数 | MJ9: 面積 | MM9: 作付（栽培）実経営体数 | MN9: 作付（栽培）面積 | MO9: 経営体数 | MP9: 面積 | MQ9: 経営体数 | MR9: 面積 | MS9: 経営体数 | MT9: 面積 | MU9: 経営体数 | MV9: 面積 | MW9: 経営体数 | MX9: 面積
R10: 法人経営 | T10: 法人経営
LX11: 経営体数 | LY11: 経営体数 | LZ11: ａ | MA11: 経営体数 | MB11: ａ | MC11: 経営体数 | MD11: ａ | ME11: 経営体数 | MF11: ａ | MG11: 経営体数 | MH11: ａ | MI11: 経営体数 | MJ11: ａ | MK11: 経営体数 | ML11: 経営体数 | MM11: 経営体数 | MN11: ha | MO11: 経営体数 | MP11: ha | MQ11: 経営体数 | MR11: ha | MS11: 経営体数 | MT11: ha | MU11: 経営体数 | MV11: ha | MW11: 経営体数 | MX11: ha | MY11: 経営体数
P12: 01-001 | Q12: 01-001 | R12: 01-001 | S12: 01-001 | T12: 01-001 | U12: 01-001 | V12: 06-251 | W12: 06-251 | X12: 06-251 | Y12: 13-501 | Z12: 13-501 | AA12: 13-501 | AB12: 01-001 | AC12: 05-101 | AD12: 05-101 | AE12: 05-101 | AF12: 05-101 | AG12: 05-101 | AH12: 05-101 | AI12: 07-101 | AJ12: 07-101 | AK12: 07-101 | AL12: 07-101 | AM12: 07-101 | AN12: 07-101 | AO12: 07-101 | AP12: 05-231 | AQ12: 05-231 | AR12: 05-236 | AS12: 05-236 | AU12: 07-231 | AV12: 07-231 | AW12: 07-236 | AX12: 07-236 | AZ12: 05-121 | BA12: 05-122 | BB12: 05-122 | BC12: 05-122 | BD12: 05-122 | BE12: 05-122 | BF12: 05-122 | BG12: 05-122 | BH12: 05-122 | BI12: 05-122 | BJ12: 05-122 | BK12: 05-122 | BL12: 05-122 | BM12: 07-121 | BN12: 07-122 | BO12: 07-122 | BP12: 07-122 | BQ12: 07-122 | BR12: 07-122 | BS12: 07-122 | BT12: 07-122 | BU12: 07-122 | BV12: 07-122 | BW12: 07-122 | BX12: 07-122 | BY12: 07-122 | BZ12: 05-123 | CA12: 05-123 | CB12: 05-123 | CC12: 05-123 | CD12: 05-123 | CE12: 05-123 | CF12: 05-123 | CG12: 05-123 | CH12: 05-123 | CI12: 05-123 | CJ12: 05-123 | CK12: 05-123 | CL12: 07-123 | CM12: 07-123 | CN12: 07-123 | CO12: 07-123 | CP12: 07-123 | CQ12: 07-123 | CR12: 07-123 | CS12: 07-123 | CT12: 07-123 | CU12: 07-123 | CV12: 07-123 | CW12: 07-123 | CX12: 05-121 | CY12: 05-121 | CZ12: 05-121 | DA12: 07-121 | DB12: 07-121 | DC12: 07-121 | DD12: 05-104 | DE12: 05-103 | DF12: 05-103 | DG12: 05-103 | DH12: 05-103 | DI12: 05-103 | DJ12: 05-103 | DK12: 05-103 | DL12: 05-103 | DM12: 07-104 | DN12: 07-103 | DO12: 07-103 | DP12: 07-103 | DQ12: 07-103 | DR12: 07-103 | DS12: 07-103 | DT12: 07-103 | DU12: 07-103 | DV12: 05-104 | DW12: 05-104 | DX12: 05-104 | DY12: 05-104 | DZ12: 05-104 | EA12: 05-104 | EB12: 05-104 | EC12: 05-104 | ED12: 05-104 | EE12: 05-104 | EF12: 05-104 | EG12: 05-104 | EH12: 05-104 | EI12: 05-104 | EJ12: 07-104 | EK12: 07-104 | EL12: 07-104 | EM12: 07-104 | EN12: 07-104 | EO12: 07-104 | EP12: 07-104 | EQ12: 07-104 | ER12: 07-104 | ES12: 07-104 | ET12: 07-104 | EU12: 07-104 | EV12: 07-104 | EW12: 07-104 | FV12: 06-276 | FW12: 06-276 | FX12: 06-276 | FY12: 06-276 | FZ12: 06-276 | GA12: 06-276 | GB12: 06-276 | GC12: 06-276 | GD12: 06-276 | GE12: 06-276 | GF12: 06-276 | GG12: 06-276 | GH12: 06-276 | GI12: 06-279 | GU12: 99-901 | GV12: 99-901 | GW12: 99-901 | GX12: 99-901 | GY12: 99-901 | GZ12: 99-901 | HA12: 99-901 | HB12: 99-901 | HC12: 99-901 | HD12: 99-901 | HE12: 99-901 | HF12: 99-901 | HG12: 99-901 | HH12: 99-901 | HI12: 99-901 | HJ12: 01-001 | HK12: 05-211 | HL12: 05-211 | HM12: 05-211 | HN12: 05-211 | HO12: 05-211 | HP12: 05-211 | HQ12: 05-211 | HR12: 05-211 | HS12: 05-211 | HT12: 05-211 | HU12: 05-211 | HV12: 05-211 | HW12: 05-215 | HX12: 05-215 | HY12: 05-215 | HZ12: 05-215 | IA12: 05-215 | IB12: 05-215 | IC12: 05-215 | ID12: 05-215 | IE12: 05-215 | IF12: 05-215 | IG12: 05-215 | IH12: 05-215 | II12: 05-215 | IJ12: 05-216 | IK12: 05-216 | IL12: 05-216 | IM12: 05-216 | IN12: 05-216 | IO12: 05-216 | IP12: 05-216 | IQ12: 05-216 | IR12: 05-216 | IS12: 05-216 | IT12: 05-216 | IU12: 05-216 | IV12: 05-216 | IW12: 05-217 | IX12: 05-217 | IY12: 05-217 | IZ12: 05-217 | JA12: 05-217 | JB12: 05-217 | JC12: 05-217 | JD12: 05-217 | JE12: 05-217 | JF12: 05-217 | JG12: 05-217 | JH12: 05-217 | JI12: 05-217 | JJ12: 99-911 | JK12: 99-911 | JL12: 99-911 | JM12: 99-911 | JN12: 99-911 | JO12: 99-911 | JP12: 99-911 | JQ12: 99-911 | JR12: 99-911 | JS12: 99-911 | JT12: 99-911 | JU12: 99-911 | JV12: 99-911 | JW12: 99-912 | JX12: 99-912 | JY12: 99-912 | JZ12: 99-912 | KA12: 99-912 | KB12: 99-912 | KC12: 99-912 | KD12: 99-912 | KE12: 99-912 | KF12: 99-912 | KG12: 99-912 | KH12: 99-912 | KI12: 99-912 | KJ12: 99-913 | KK12: 99-913 | KL12: 99-913 | KM12: 99-913 | KN12: 99-913 | KO12: 99-913 | KP12: 99-913 | KQ12: 99-913 | KR12: 99-913 | KS12: 99-913 | KT12: 99-913 | KU12: 99-913 | KV12: 99-913 | KW12: 99-914 | KX12: 99-914 | KY12: 99-914 | KZ12: 99-914 | LA12: 99-914 | LB12: 99-914 | LC12: 99-914 | LD12: 99-914 | LE12: 99-914 | LF12: 99-914 | LG12: 99-914 | LH12: 99-914 | LI12: 99-914 | LJ12: 01-001 | LK12: 05-114 | LL12: 05-114 | LM12: 05-114 | LN12: 05-114 | LP12: 05-114 | LQ12: 07-114 | LR12: 07-114 | LS12: 07-114 | LT12: 07-114 | LU12: 07-114 | LW12: 07-114 | LX12: 01-001 | LY12: 05-173 | LZ12: 05-173 | MA12: 05-173 | MB12: 05-173 | MC12: 05-173 | MD12: 05-173 | ME12: 05-173 | MF12: 05-173 | MG12: 05-173 | MH12: 05-173 | MI12: 05-173 | MJ12: 05-173 | MK12: 05-173 | ML12: 07-173 | MM12: 07-173 | MN12: 07-173 | MO12: 07-173 | MP12: 07-173 | MQ12: 07-173 | MR12: 07-173 | MS12: 07-173 | MT12: 07-173 | MU12: 07-173 | MV12: 07-173 | MW12: 07-173 | MX12: 07-173 | MY12: 07-173
B13: =COUNTIF(H15:H2121,"<>") -> 2107 | C13: =COUNTIF(C15:C2121,">1") -> 0 | P13: 19 | Q13: 20 | R13: - | S13: 21 | T13: 22 | U13: 20 | V13: 16 | W13: 18 | X13: 20 | Y13: 15 | Z13: 16 | AA13: 18 | AB13: 19 | AC13: 16 | AD13: 17 | AE13: 18 | AF13: 31 | AG13: 28 | AH13: 29 | AI13: 15 | AJ13: 16 | AK13: 17 | AL13: 18 | AM13: 31 | AN13: 28 | AO13: 29 | AP13: 15 | AQ13: 17 | AR13: 15 | AS13: 16 | AT13: 式 | AU13: 15 | AV13: 17 | AW13: 15 | AX13: 16 | AY13: 式 | AZ13: 15 | BA13: 31 | BB13: 19 | BC13: 32 | BD13: 22 | BE13: 23 | BF13: 24 | BG13: 33 | BH13: 25 | BI13: 26 | BJ13: 27 | BK13: 28 | BL13: 34 | BM13: 15 | BN13: 31 | BO13: 19 | BP13: 32 | BQ13: 22 | BR13: 23 | BS13: 24 | BT13: 33 | BU13: 25 | BV13: 26 | BW13: 27 | BX13: 28 | BY13: 34 | BZ13: 15 | CA13: 30 | CB13: 31 | CC13: 21 | CD13: 22 | CE13: 23 | CF13: 32 | CG13: 24 | CH13: 25 | CI13: 26 | CJ13: 27 | CK13: 33 | CL13: 15 | CM13: 30 | CN13: 31 | CO13: 21 | CP13: 22 | CQ13: 23 | CR13: 32 | CS13: 24 | CT13: 25 | CU13: 26 | CV13: 27 | CW13: 33 | CX13: 21 | CY13: 22 | CZ13: 23 | DA13: 21 | DB13: 22 | DC13: 23 | DD13: 15 | DE13: 29 | DF13: 19 | DG13: 30 | DH13: 22 | DI13: 31 | DJ13: 23 | DK13: 24 | DL13: 32 | DM13: 15 | DN13: 29 | DO13: 19 | DP13: 30 | DQ13: 22 | DR13: 31 | DS13: 23 | DT13: 24 | DU13: 32 | DV13: 15 | DW13: 16 | DX13: 17 | DY13: 18 | DZ13: 19 | EA13: 20 | EB13: 21 | EC13: 22 | ED13: 23 | EE13: 25 | EF13: 26 | EG13: 27 | EH13: 28 | EI13: 31 | EJ13: 15 | EK13: 16 | EL13: 17 | EM13: 18 | EN13: 19 | EO13: 20 | EP13: 21 | EQ13: 22 | ER13: 23 | ES13: 25 | ET13: 26 | EU13: 27 | EV13: 28 | EW13: 31 | FV13: 15 | FW13: 31 | FX13: 21 | FY13: 22 | FZ13: 23 | GA13: 24 | GB13: 25 | GC13: 32 | GD13: 26 | GE13: 27 | GF13: 28 | GG13: 29 | GH13: 30 | GI13: 18 | GU13: 15 | GV13: 16 | GW13: 17 | GX13: 18 | GY13: 19 | GZ13: 20 | HA13: 21 | HB13: 22 | HC13: 29 | HD13: 23 | HE13: 24 | HF13: 25 | HG13: 26 | HH13: 27 | HI13: 28 | HJ13: 19 | HK13: 31 | HL13: 21 | HM13: 22 | HN13: 23 | HO13: 24 | HP13: 25 | HQ13: 32 | HR13: 26 | HS13: 27 | HT13: 28 | HU13: 29 | HV13: 30 | HW13: 15 | HX13: 31 | HY13: 21 | HZ13: 22 | IA13: 23 | IB13: 24 | IC13: 25 | ID13: 32 | IE13: 26 | IF13: 27 | IG13: 28 | IH13: 29 | II13: 30 | IJ13: 15 | IK13: 31 | IL13: 21 | IM13: 22 | IN13: 23 | IO13: 24 | IP13: 25 | IQ13: 32 | IR13: 26 | IS13: 27 | IT13: 28 | IU13: 29 | IV13: 30 | IW13: 15 | IX13: 31 | IY13: 21 | IZ13: 22 | JA13: 23 | JB13: 24 | JC13: 25 | JD13: 32 | JE13: 26 | JF13: 27 | JG13: 28 | JH13: 29 | JI13: 30 | JJ13: 15 | JK13: 16 | JL13: 17 | JM13: 18 | JN13: 19 | JO13: 20 | JP13: 21 | JQ13: 27 | JR13: 22 | JS13: 23 | JT13: 24 | JU13: 25 | JV13: 26 | JW13: 15 | JX13: 16 | JY13: 17 | JZ13: 18 | KA13: 19 | KB13: 20 | KC13: 21 | KD13: 27 | KE13: 22 | KF13: 23 | KG13: 24 | KH13: 25 | KI13: 26 | KJ13: 15 | KK13: 16 | KL13: 17 | KM13: 18 | KN13: 19 | KO13: 20 | KP13: 21 | KQ13: 27 | KR13: 22 | KS13: 23 | KT13: 24 | KU13: 25 | KV13: 26 | KW13: 15 | KX13: 16 | KY13: 17 | KZ13: 18 | LA13: 19 | LB13: 20 | LC13: 21 | LD13: 27 | LE13: 22 | LF13: 23 | LG13: 24 | LH13: 25 | LI13: 26 | LJ13: 19 | LK13: 17 | LL13: 18 | LM13: 19 | LN13: 20 | LP13: 16 | LQ13: 15 | LR13: 17 | LS13: 18 | LT13: 19 | LU13: 20 | LW13: 16 | LX13: 19 | LY13: 17 | LZ13: 18 | MA13: 19 | MB13: 20 | MC13: 21 | MD13: 22 | ME13: 23 | MF13: 24 | MG13: 25 | MH13: 26 | MI13: 27 | MJ13: 28 | MK13: 16 | ML13: 15 | MM13: 17 | MN13: 18 | MO13: 19 | MP13: 20 | MQ13: 21 | MR13: 22 | MS13: 23 | MT13: 24 | MU13: 25 | MV13: 26 | MW13: 27 | MX13: 28 | MY13: 16
B15: 0600000000 | C15: 1 | H15: 06 | I15: 000 | J15: 00 | K15: 000 | L15: 山形県 | P15: 22775 | Q15: 21740 | R15: - | S15: 1035 | T15: 793 | U15: 21,740 | V15: 6,093 | W15: 2,226 | X15: 13,421 | Y15: 32755 | Z15: 21442 | AA15: 11313 | AB15: 22775 | AC15: 793 | AD15: 222 | AE15: 530 | AF15: 41 | AG15: 4 | AH15: 21978 | AI15: 1,035 | AJ15: 793 | AK15: 222 | AL15: 530 | AM15: 41 | AN15: 4 | AO15: 238 | AP15: 9,266 | AQ15: 1,458,480 | AR15: 1123 | AS15: 3444 | AT15: =IF(OR(AB15="-",AP15="-"),"-",IF(OR(AB15="x",AP15="x"),"x",IF(AB15-AP15=0,"-",AB15-AP15))) -> 13,509 | AU15: 713 | AV15: 580,588 | AW15: 417 | AX15: 2,175 | AY15: =IF(OR(AI15="-",AU15="-"),"-",IF(OR(AI15="x",AU15="x"),"x",IF(AI15-AU15=0,"-",AI15-AU15))) -> 322 | AZ15: 22,525 | BA15: 3,472 | BB15: 3,914 | BC15: 4,594 | BD15: 2,622 | BE15: 2,998 | BF15: 2,845 | BG15: 2,080 | BH15: 1,398 | BI15: 356 | BJ15: 223 | BK15: 81 | BL15: 22 | BM15: 842 | BN15: 50 | BO15: 33 | BP15: 54 | BQ15: 37 | BR15: 78 | BS15: 111 | BT15: 479 | BU15: 138 | BV15: 107 | BW15: 140 | BX15: 72 | BY15: 22 | BZ15: 9296826 | CA15: 380858 | CB15: 649662 | CC15: 630887 | CD15: 1150215 | CE15: 1972871 | CF15: 4512333 | CG15: 1874031 | CH15: 842617 | CI15: 827999 | CJ15: 545267 | CK15: 422419 | CL15: 2,034,481 | CM15: 3,744 | CN15: 7,878 | CO15: 8,884 | CP15: 29,100 | CQ15: 82,393 | CR15: 1,902,482 | CS15: 195,420 | CT15: 262,465 | CU15: 532,362 | CV15: 489,816 | CW15: 422,419 | CX15: 412.7 | CY15: 196.4 | CZ15: 216.3 | DA15: 2416.2 | DB15: 291.8 | DC15: 2124.4 | DD15: 22241 | DE15: 5676 | DF15: 5745 | DG15: 7062 | DH15: 3019 | DI15: 739 | DJ15: 414 | DK15: 206 | DL15: 119 | DM15: 880 | DN15: 101 | DO15: 53 | DP15: 142 | DQ15: 206 | DR15: 378 | DS15: 144 | DT15: 126 | DU15: 108 | DV15: 22241 | DW15: 12264 | DX15: 5 | DY15: 501 | DZ15: 42 | EA15: 1709 | EB15: 722 | EC15: 5976 | ED15: 324 | EE15: 120 | EF15: 250 | EG15: 38 | EH15: 25 | EI15: 265 | EJ15: 880 | EK15: 415 | EL15: - | EM15: 123 | EN15: 1 | EO15: 60 | EP15: 28 | EQ15: 96 | ER15: 29 | ES15: 9 | ET15: 49 | EU15: 23 | EV15: 11 | EW15: 36 | EX15: 22,124 | EY15: 15,159 | EZ15: 37 | FA15: 2,554 | FB15: 434 | FC15: 2,159 | FD15: 344 | FE15: 5,112 | FF15: 1,864 | FG15: 8,311 | FH15: 944 | FI15: 3,103 | FJ15: 8,622,281 | FK15: 5,957,265 | FL15: 15,255 | FM15: 541,722 | FN15: 6,373 | FO15: 486,294 | FP15: 20,769 | FQ15: 325,427 | FR15: 40,997 | FS15: 564,759 | FT15: 49,741 | FU15: 613,680 | FV15: 30322 | FW15: 1427 | FX15: 1009 | FY15: 1274 | FZ15: 1140 | GA15: 1346 | GB15: 2613 | GC15: 21513 | GD15: 4824 | GE15: 7227 | GF15: 5493 | GG15: 2520 | GH15: 1449 | GI15: 68 | HJ15: 22775 | HK15: 581 | HL15: 679 | HM15: 1,037 | HN15: 1,128 | HO15: 1,527 | HP15: 2,697 | HQ15: 15,126 | HR15: 4,017 | HS15: 5,169 | HT15: 3,794 | HU15: 1,436 | HV15: 710 | HW15: 6,838 | HX15: 100 | HY15: 122 | HZ15: 211 | IA15: 260 | IB15: 377 | IC15: 728 | ID15: 5,040 | IE15: 1,146 | IF15: 1,604 | IG15: 1,325 | IH15: 571 | II15: 394 | IJ15: 998 | IK15: 5 | IL15: 11 | IM15: 15 | IN15: 18 | IO15: 40 | IP15: 78 | IQ15: 831 | IR15: 151 | IS15: 285 | IT15: 249 | IU15: 102 | IV15: 44 | IW15: 14,939 | IX15: 476 | IY15: 546 | IZ15: 811 | JA15: 850 | JB15: 1,110 | JC15: 1,891 | JD15: 9,255 | JE15: 2,720 | JF15: 3,280 | JG15: 2,220 | JH15: 763 | JI15: 272 | LJ15: 22,775 | LK15: 10,035 | LL15: 9,191 | LM15: 2,765 | LN15: 546 | LO15: 1,194 | LP15: 12,740 | LQ15: 1,035 | LR15: 652 | LS15: 572 | LT15: 346 | LU15: 114 | LV15: 133 | LW15: 383 | LX15: 22,775 | LY15: 1,277 | LZ15: 259,321 | MA15: 672 | MB15: 146,115 | MC15: 70 | MD15: 14,371 | ME15: 269 | MF15: 14,776 | MG15: 396 | MH15: 36,434 | MI15: 92 | MJ15: 47,625 | MK15: 21,387 | ML15: 1,035 | MM15: 102 | MN15: 69,307 | MO15: 35 | MP15: 15,286 | MQ15: 14 | MR15: 8,663 | MS15: 17 | MT15: 3,026 | MU15: 25 | MV15: 8,170 | MW15: 25 | MX15: 34,162 | MY15: 928
B16: 0620100000 | C16: 1 | H16: 06 | I16: 201 | J16: 00 | K16: 000 | L16: 山形県 | M16: 山形市 | P16: 1416 | Q16: 1360 | R16: - | S16: 56 | T16: 41 | U16: 1,360 | V16: 331 | W16: 155 | X16: 874 | Y16: 2739 | Z16: 1333 | AA16: 1406 | AB16: 1416 | AC16: 41 | AD16: 4 | AE16: 36 | AF16: 1 | AG16: - | AH16: 1375 | AI16: 56 | AJ16: 41 | AK16: 4 | AL16: 36 | AM16: 1 | AN16: - | AO16: 15 | AP16: 464 | AQ16: 90,094 | AR16: 67 | AS16: 265 | AT16: =IF(OR(AB16="-",AP16="-"),"-",IF(OR(AB16="x",AP16="x"),"x",IF(AB16-AP16=0,"-",AB16-AP16))) -> 952 | AU16: 37 | AV16: 41,676 | AW16: 26 | AX16: 187 | AY16: =IF(OR(AI16="-",AU16="-"),"-",IF(OR(AI16="x",AU16="x"),"x",IF(AI16-AU16=0,"-",AI16-AU16))) -> 19 | AZ16: 1,403 | BA16: 314 | BB16: 365 | BC16: 368 | BD16: 123 | BE16: 97 | BF16: 63 | BG16: 73 | BH16: 41 | BI16: 7 | BJ16: 19 | BK16: 4 | BL16: 2 | BM16: 49 | BN16: 2 | BO16: 4 | BP16: 9 | BQ16: 5 | BR16: 6 | BS16: 3 | BT16: 20 | BU16: 2 | BV16: 3 | BW16: 10 | BX16: 3 | BY16: 2 | BZ16: 388255 | CA16: 35548 | CB16: 50253 | CC16: 29038 | CD16: 37622 | CE16: 44115 | CF16: 191679 | CG16: 54593 | CH16: 15853 | CI16: 67249 | CJ16: 25969 | CK16: 28015 | CL16: 101,338 | CM16: 356 | CN16: 1,330 | CO16: 1,195 | CP16: 2,302 | CQ16: 2,072 | CR16: 94,083 | CS16: 2,175 | CT16: 7,483 | CU16: 36,284 | CV16: 20,126 | CW16: 28,015 | CX16: 276.7 | CY16: 116.1 | CZ16: 160.7 | DA16: 2068.1 | DB16: 150.8 | DC16: 1917.3 | DD16: 1353 | DE16: 495 | DF16: 352 | DG16: 317 | DH16: 153 | DI16: 36 | DJ16: 21 | DK16: 9 | DL16: 6 | DM16: 53 | DN16: 12 | DO16: 2 | DP16: 12 | DQ16: 8 | DR16: 19 | DS16: 8 | DT16: 5 | DU16: 6 | DV16: 1353 | DW16: 615 | DX16: 1 | DY16: 41 | DZ16: - | EA16: 119 | EB16: 158 | EC16: 359 | ED16: 42 | EE16: - | EF16: 7 | EG16: - | EH16: 1 | EI16: 10 | EJ16: 53 | EK16: 17 | EL16: - | EM16: 11 | EN16: - | EO16: 5 | EP16: 3 | EQ16: 7 | ER16: 6 | ES16: - | ET16: 2 | EU16: - | EV16: - | EW16: 2 | EX16: 1,367 | EY16: 870 | EZ16: 5 | FA16: 120 | FB16: 42 | FC16: 79 | FD16: 19 | FE16: 415 | FF16: 268 | FG16: 567 | FH16: 89 | FI16: 121 | FJ16: 363,473 | FK16: 249,787 | FL16: x | FM16: x | FN16: 281 | FO16: 19,371 | FP16: x | FQ16: x | FR16: 4,938 | FS16: 28,528 | FT16: 4,311 | FU16: 6,801 | FV16: 2070 | FW16: 97 | FX16: 74 | FY16: 83 | FZ16: 69 | GA16: 74 | GB16: 140 | GC16: 1533 | GD16: 317 | GE16: 456 | GF16: 392 | GG16: 230 | GH16: 138 | GI16: 68.5 | HJ16: 1416 | HK16: 32 | HL16: 25 | HM16: 48 | HN16: 55 | HO16: 75 | HP16: 117 | HQ16: 1,064 | HR16: 248 | HS16: 310 | HT16: 275 | HU16: 146 | HV16: 85 | HW16: 424 | HX16: 3 | HY16: 3 | HZ16: 6 | IA16: 9 | IB16: 16 | IC16: 30 | ID16: 357 | IE16: 68 | IF16: 102 | IG16: 92 | IH16: 52 | II16: 43 | IJ16: 48 | IK16: - | IL16: - | IM16: 1 | IN16: - | IO16: 1 | IP16: 1 | IQ16: 45 | IR16: 4 | IS16: 10 | IT16: 12 | IU16: 11 | IV16: 8 | IW16: 944 | IX16: 29 | IY16: 22 | IZ16: 41 | JA16: 46 | JB16: 58 | JC16: 86 | JD16: 662 | JE16: 176 | JF16: 198 | JG16: 171 | JH16: 83 | JI16: 34 | LJ16: 1,416 | LK16: 517 | LL16: 476 | LM16: 170 | LN16: 34 | LO16: 47 | LP16: 899 | LQ16: 56 | LR16: 30 | LS16: 27 | LT16: 20 | LU16: 9 | LV16: 6 | LW16: 26 | LX16: 1,416 | LY16: 81 | LZ16: 10,781 | MA16: 38 | MB16: 4,705 | MC16: 2 | MD16: 4,002 | ME16: 27 | MF16: 785 | MG16: 28 | MH16: 1,214 | MI16: 1 | MJ16: 75 | MK16: 1,310 | ML16: 56 | MM16: 5 | MN16: 4,160 | MO16: 1 | MP16: 60 | MQ16: 1 | MR16: 4,000 | MS16: 1 | MT16: 10 | MU16: 2 | MV16: 90 | MW16: - | MX16: - | MY16: 51
B17: 0620101000 | C17: 1 | H17: 06 | I17: 201 | J17: 01 | K17: 000 | L17: 山形県 | M17: 山形市 | N17: 【旧】山形市 | P17: 172 | Q17: 152 | R17: - | S17: 20 | T17: 13 | U17: 152 | V17: 35 | W17: 33 | X17: 84 | Y17: 326 | Z17: 150 | AA17: 176 | AB17: 172 | AC17: 13 | AD17: - | AE17: 13 | AF17: - | AG17: - | AH17: 159 | AI17: 20 | AJ17: 13 | AK17: - | AL17: 13 | AM17: - | AN17: - | AO17: 7 | AP17: 47 | AQ17: 20,513 | AR17: 19 | AS17: 76 | AT17: 125 | AU17: 11 | AV17: 14,734 | AW17: 8 | AX17: 59 | AY17: 9 | AZ17: 167 | BA17: 30 | BB17: 45 | BC17: 32 | BD17: 18 | BE17: 18 | BF17: 10 | BG17: 14 | BH17: 6 | BI17: 2 | BJ17: 6 | BK17: - | BL17: - | BM17: 16 | BN17: - | BO17: 3 | BP17: 2 | BQ17: 2 | BR17: 3 | BS17: - | BT17: 6 | BU17: - | BV17: 1 | BW17: 5 | BX17: - | BY17: - | BZ17: 62800 | CA17: 3909 | CB17: 4488 | CC17: 4446 | CD17: 6846 | CE17: 7023 | CF17: 36088 | CG17: 8077 | CH17: 4447 | CI17: 23564 | CJ17: - | CK17: - | CL17: 23,509 | CM17: 223 | CN17: 252 | CO17: 500 | CP17: 1,120 | CQ17: - | CR17: 21,414 | CS17: - | CT17: 2,357 | CU17: 19,057 | CV17: - | CW17: - | CX17: 376.0 | CY17: 152.4 | CZ17: 223.6 | DA17: 1469.3 | DB17: 48.4 | DC17: 1420.9 | DD17: 164 | DE17: 46 | DF17: 37 | DG17: 53 | DH17: 22 | DI17: 6 | DJ17: 2 | DK17: 2 | DL17: 2 | DM17: 19 | DN17: 5 | DO17: 1 | DP17: 6 | DQ17: 1 | DR17: 6 | DS17: 2 | DT17: 2 | DU17: 2 | DV17: 164 | DW17: 73 | DX17: - | DY17: 11 | DZ17: - | EA17: 20 | EB17: 31 | EC17: 6 | ED17: 19 | EE17: - | EF17: 1 | EG17: - | EH17: - | EI17: 3 | EJ17: 19 | EK17: 3 | EL17: - | EM17: 6 | EN17: - | EO17: 1 | EP17: 2 | EQ17: 1 | ER17: 4 | ES17: - | ET17: 1 | EU17: - | EV17: - | EW17: 1 | EX17: 163 | EY17: 100 | EZ17: 1 | FA17: 22 | FB17: 3 | FC17: 8 | FD17: 3 | FE17: 85 | FF17: 62 | FG17: 17 | FH17: 24 | FI17: 19 | FJ17: 55,743 | FK17: 32,949 | FL17: x | FM17: 8,371 | FN17: x | FO17: x | FP17: 659 | FQ17: 3,265 | FR17: 987 | FS17: 517 | FT17: x | FU17: x | FV17: 271 | FW17: 17 | FX17: 10 | FY17: 23 | FZ17: 7 | GA17: 13 | GB17: 31 | GC17: 170 | GD17: 36 | GE17: 47 | GF17: 46 | GG17: 21 | GH17: 20 | GI17: 66.1 | HJ17: 172 | HK17: 2 | HL17: 6 | HM17: 13 | HN17: 5 | HO17: 9 | HP17: 16 | HQ17: 121 | HR17: 25 | HS17: 36 | HT17: 29 | HU17: 17 | HV17: 14 | HW17: 55 | HX17: - | HY17: - | HZ17: 2 | IA17: - | IB17: 4 | IC17: 9 | ID17: 40 | IE17: 5 | IF17: 10 | IG17: 12 | IH17: 5 | II17: 8 | IJ17: 7 | IK17: - | IL17: - | IM17: 1 | IN17: - | IO17: - | IP17: - | IQ17: 6 | IR17: 1 | IS17: 2 | IT17: 1 | IU17: 1 | IV17: 1 | IW17: 110 | IX17: 2 | IY17: 6 | IZ17: 10 | JA17: 5 | JB17: 5 | JC17: 7 | JD17: 75 | JE17: 19 | JF17: 24 | JG17: 16 | JH17: 11 | JI17: 5 | LJ17: 172 | LK17: 69 | LL17: 66 | LM17: 24 | LN17: 5 | LO17: 5 | LP17: 103 | LQ17: 20 | LR17: 10 | LS17: 10 | LT17: 8 | LU17: 3 | LV17: 1 | LW17: 10 | LX17: 172 | LY17: 13 | LZ17: 920 | MA17: 5 | MB17: 751 | MC17: - | MD17: - | ME17: 6 | MF17: 79 | MG17: 3 | MH17: 90 | MI17: - | MJ17: - | MK17: 158 | ML17: 20 | MM17: 2 | MN17: 140 | MO17: 1 | MP17: 60 | MQ17: - | MR17: - | MS17: - | MT17: - | MU17: 1 | MV17: 80 | MW17: - | MX17: - | MY17: 18
B18: 0620101001 | C18: 1 | H18: 06 | I18: 201 | J18: 01 | K18: 001 | L18: 山形県 | M18: 山形市 | N18: 【旧】山形市 | O18: 上町（山形） | P18: 28 | Q18: 22 | R18: - | S18: 6 | T18: 1 | U18: 22 | V18: 8 | W18: 3 | X18: 11 | Y18: 40 | Z18: 21 | AA18: 19 | AB18: 28 | AC18: 1 | AD18: - | AE18: 1 | AF18: - | AG18: - | AH18: 27 | AI18: 6 | AJ18: 1 | AK18: - | AL18: 1 | AM18: - | AN18: - | AO18: 5 | AP18: 8 | AQ18: 1,812 | AR18: 3 | AS18: 8 | AT18: 20 | AU18: 2 | AV18: 377 | AW18: 1 | AX18: 3 | AY18: 4 | AZ18: 28 | BA18: 4 | BB18: 5 | BC18: 6 | BD18: 3 | BE18: 3 | BF18: - | BG18: 7 | BH18: 2 | BI18: 1 | BJ18: 4 | BK18: - | BL18: - | BM18: 6 | BN18: - | BO18: - | BP18: 1 | BQ18: - | BR18: - | BS18: - | BT18: 5 | BU18: - | BV18: 1 | BW18: 4 | BX18: - | BY18: - | BZ18: 23179 | CA18: 452 | CB18: 956 | CC18: 735 | CD18: 1153 | CE18: - | CF18: 19883 | CG18: 2549 | CH18: 2357 | CI18: 14977 | CJ18: - | CK18: - | CL18: 17,464 | CM18: - | CN18: 130 | CO18: - | CP18: - | CQ18: - | CR18: 17,334 | CS18: - | CT18: 2,357 | CU18: 14,977 | CV18: - | CW18: - | CX18: 827.8 | CY18: 112.1 | CZ18: 715.7 | DA18: 2910.7 | DB18: - | DC18: 2910.7 | DD18: 27 | DE18: 6 | DF18: 8 | DG18: 8 | DH18: 4 | DI18: 1 | DJ18: 1 | DK18: - | DL18: - | DM18: 5 | DN18: - | DO18: 1 | DP18: 3 | DQ18: - | DR18: 1 | DS18: 1 | DT18: - | DU18: - | DV18: 27 | DW18: 15 | DX18: - | DY18: 4 | DZ18: - | EA18: 2 | EB18: 2 | EC18: - | ED18: 3 | EE18: - | EF18: - | EG18: - | EH18: - | EI18: 1 | EJ18: 5 | EK18: 1 | EL18: - | EM18: 4 | EN18: - | EO18: - | EP18: - | EQ18: - | ER18: - | ES18: - | ET18: - | EU18: - | EV18: - | EW18: - | EX18: 28 | EY18: 16 | EZ18: - | FA18: 7 | FB18: - | FC18: 3 | FD18: 1 | FE18: 13 | FF18: 3 | FG18: - | FH18: 5 | FI18: 4 | FJ18: 22,466 | FK18: 8,400 | FL18: - | FM18: x | FN18: - | FO18: x | FP18: x | FQ18: 308 | FR18: 27 | FS18: - | FT18: 178 | FU18: x | FV18: 40 | FW18: 2 | FX18: 3 | FY18: 7 | FZ18: 1 | GA18: - | GB18: 4 | GC18: 23 | GD18: 5 | GE18: 7 | GF18: 5 | GG18: 5 | GH18: 1 | GI18: 63.8 | HJ18: 28 | HK18: - | HL18: 3 | HM18: 5 | HN18: 2 | HO18: - | HP18: 1 | HQ18: 17 | HR18: 4 | HS18: 6 | HT18: 2 | HU18: 4 | HV18: 1 | HW18: 9 | HX18: - | HY18: - | HZ18: 1 | IA18: - | IB18: - | IC18: 1 | ID18: 7 | IE18: 3 | IF18: 1 | IG18: 1 | IH18: 1 | II18: 1 | IJ18: 2 | IK18: - | IL18: - | IM18: 1 | IN18: - | IO18: - | IP18: - | IQ18: 1 | IR18: - | IS18: 1 | IT18: - | IU18: - | IV18: - | IW18: 17 | IX18: - | IY18: 3 | IZ18: 3 | JA18: 2 | JB18: - | JC18: - | JD18: 9 | JE18: 1 | JF18: 4 | JG18: 1 | JH18: 3 | JI18: - | LJ18: 28 | LK18: 11 | LL18: 11 | LM18: 7 | LN18: 2 | LO18: 1 | LP18: 17 | LQ18: 6 | LR18: 3 | LS18: 3 | LT18: 2 | LU18: 2 | LV18: 1 | LW18: 3 | LX18: 28 | LY18: 2 | LZ18: 29 | MA18: - | MB18: - | MC18: - | MD18: - | ME18: 2 | MF18: 29 | MG18: - | MH18: - | MI18: - | MJ18: - | MK18: 26 | ML18: 6 | MM18: - | MN18: - | MO18: - | MP18: - | MQ18: - | MR18: - | MS18: - | MT18: - | MU18: - | MV18: - | MW18: - | MX18: - | MY18: 6
B19: 0620101002 | C19: 1 | H19: 06 | I19: 201 | J19: 01 | K19: 002 | L19: 山形県 | M19: 山形市 | N19: 【旧】山形市 | O19: 五日町 | P19: 4 | Q19: 4 | R19: - | S19: - | T19: - | U19: 4 | V19: - | W19: 2 | X19: 2 | Y19: 7 | Z19: 3 | AA19: 4 | AB19: 4 | AC19: - | AD19: - | AE19: - | AF19: - | AG19: - | AH19: 4 | AI19: - | AJ19: - | AK19: - | AL19: - | AM19: - | AN19: - | AO19: - | AP19: - | AQ19: - | AR19: - | AS19: - | AT19: - | AU19: - | AV19: - | AW19: - | AX19: - | AY19: - | AZ19: 4 | BA19: 1 | BB19: 1 | BC19: - | BD19: 1 | BE19: 1 | BF19: - | BG19: - | BH19: - | BI19: - | BJ19: - | BK19: - | BL19: - | BM19: - | BN19: - | BO19: - | BP19: - | BQ19: - | BR19: - | BS19: - | BT19: - | BU19: - | BV19: - | BW19: - | BX19: - | BY19: - | BZ19: 799 | CA19: 70 | CB19: - | CC19: 267 | CD19: 462 | CE19: - | CF19: - | CG19: - | CH19: - | CI19: - | CJ19: - | CK19: - | CL19: - | CM19: - | CN19: - | CO19: - | CP19: - | CQ19: - | CR19: - | CS19: - | CT19: - | CU19: - | CV19: - | CW19: - | CX19: 199.8 | CY19: 157.3 | CZ19: 42.5 | DA19: - | DB19: - | DC19: - | DD19: 3 | DE19: 2 | DF19: 1 | DG19: - | DH19: - | DI19: - | DJ19: - | DK19: - | DL19: - | DM19: - | DN19: - | DO19: - | DP19: - | DQ19: - | DR19: - | DS19: - | DT19: - | DU19: - | DV19: 3 | DW19: 1 | DX19: - | DY19: - | DZ19: - | EA19: 1 | EB19: - | EC19: 1 | ED19: - | EE19: - | EF19: - | EG19: - | EH19: - | EI19: - | EJ19: - | EK19: - | EL19: - | EM19: - | EN19: - | EO19: - | EP19: - | EQ19: - | ER19: - | ES19: - | ET19: - | EU19: - | EV19: - | EW19: - | EX19: 3 | EY19: 1 | EZ19: - | FA19: - | FB19: - | FC19: - | FD19: - | FE19: 1 | FF19: - | FG19: 1 | FH19: - | FI19: 1 | FJ19: 492 | FK19: x | FL19: - | FM19: - | FN19: - | FO19: - | FP19: - | FQ19: x | FR19: - | FS19: x | FT19: - | FU19: x | FV19: 6 | FW19: - | FX19: - | FY19: - | FZ19: - | GA19: - | GB19: 2 | GC19: 4 | GD19: - | GE19: 2 | GF19: - | GG19: - | GH19: 2 | GI19: 74.0 | HJ19: 4 | HK19: - | HL19: - | HM19: - | HN19: - | HO19: - | HP19: 1 | HQ19: 3 | HR19: - | HS19: 2 | HT19: - | HU19: - | HV19: 1 | HW19: 1 | HX19: - | HY19: - | HZ19: - | IA19: - | IB19: - | IC19: - | ID19: 1 | IE19: - | IF19: - | IG19: - | IH19: - | II19: 1 | IJ19: - | IK19: - | IL19: - | IM19: - | IN19: - | IO19: - | IP19: - | IQ19: - | IR19: - | IS19: - | IT19: - | IU19: - | IV19: - | IW19: 3 | IX19: - | IY19: - | IZ19: - | JA19: - | JB19: - | JC19: 1 | JD19: 2 | JE19: - | JF19: 2 | JG19: - | JH19: - | JI19: - | LJ19: 4 | LK19: - | LL19: - | LM19: - | LN19: - | LO19: - | LP19: 4 | LQ19: - | LR19: - | LS19: - | LT19: - | LU19: - | LV19: - | LW19: - | LX19: 4 | LY19: 1 | LZ19: 6 | MA19: - | MB19: - | MC19: - | MD19: - | ME19: - | MF19: - | MG19: 1 | MH19: 6 | MI19: - | MJ19: - | MK19: 3 | ML19: - | MM19: - | MN19: - | MO19: - | MP19: - | MQ19: - | MR19: - | MS19: - | MT19: - | MU19: - | MV19: - | MW19: - | MX19: - | MY19: -
B20: 0620101003 | C20: 1 | H20: 06 | I20: 201 | J20: 01 | K20: 003 | L20: 山形県 | M20: 山形市 | N20: 【旧】山形市 | O20: 鉄砲町 | P20: 3 | Q20: 2 | R20: - | S20: 1 | T20: 1 | U20: 2 | V20: x | W20: x | X20: x | Y20: 12 | Z20: 3 | AA20: 9 | AB20: 3 | AC20: 1 | AD20: - | AE20: 1 | AF20: - | AG20: - | AH20: 2 | AI20: 1 | AJ20: 1 | AK20: - | AL20: 1 | AM20: - | AN20: - | AO20: - | AP20: - | AQ20: - | AR20: - | AS20: - | AT20: - | AU20: x | AV20: x | AW20: x | AX20: - | AY20: x | AZ20: 3 | BA20: - | BB20: 2 | BC20: - | BD20: - | BE20: 1 | BF20: - | BG20: - | BH20: - | BI20: - | BJ20: - | BK20: - | BL20: - | BM20: x | BN20: x | BO20: x | BP20: x | BQ20: x | BR20: x | BS20: x | BT20: x | BU20: x | BV20: x | BW20: x | BX20: x | BY20: x | BZ20: 535 | CA20: 165 | CB20: - | CC20: - | CD20: 370 | CE20: - | CF20: - | CG20: - | CH20: - | CI20: - | CJ20: - | CK20: - | CL20: x | CM20: x | CN20: x | CO20: x | CP20: x | CQ20: x | CR20: x | CS20: x | CT20: x | CU20: x | CV20: x | CW20: x | CX20: 178.3 | CY20: 58.3 | CZ20: 120.0 | DA20: x | DB20: x | DC20: x | DD20: 3 | DE20: - | DF20: 1 | DG20: 2 | DH20: - | DI20: - | DJ20: - | DK20: - | DL20: - | DM20: x | DN20: x | DO20: x | DP20: x | DQ20: x | DR20: x | DS20: x | DT20: x | DU20: x | DV20: 3 | DW20: 1 | DX20: - | DY20: - | DZ20: - | EA20: - | EB20: - | EC20: 1 | ED20: 1 | EE20: - | EF20: - | EG20: - | EH20: - | EI20: - | EJ20: x | EK20: x | EL20: x | EM20: x | EN20: x | EO20: x | EP20: x | EQ20: x | ER20: x | ES20: x | ET20: x | EU20: x | EV20: x | EW20: x | EX20: 3 | EY20: 2 | EZ20: - | FA20: - | FB20: - | FC20: - | FD20: - | FE20: 1 | FF20: - | FG20: 1 | FH20: 1 | FI20: 2 | FJ20: 613 | FK20: x | FL20: - | FM20: - | FN20: - | FO20: - | FP20: - | FQ20: x | FR20: - | FS20: x | FT20: x | FU20: x | FV20: 3 | FW20: x | FX20: x | FY20: x | FZ20: x | GA20: x | GB20: x | GC20: x | GD20: x | GE20: x | GF20: x | GG20: x | GH20: x | GI20: x | HJ20: 3 | HK20: - | HL20: 1 | HM20: - | HN20: - | HO20: - | HP20: 1 | HQ20: 1 | HR20: - | HS20: - | HT20: - | HU20: - | HV20: 1 | HW20: 1 | HX20: - | HY20: - | HZ20: - | IA20: - | IB20: - | IC20: - | ID20: 1 | IE20: - | IF20: - | IG20: - | IH20: - | II20: 1 | IJ20: - | IK20: - | IL20: - | IM20: - | IN20: - | IO20: - | IP20: - | IQ20: - | IR20: - | IS20: - | IT20: - | IU20: - | IV20: - | IW20: 2 | IX20: - | IY20: 1 | IZ20: - | JA20: - | JB20: - | JC20: 1 | JD20: - | JE20: - | JF20: - | JG20: - | JH20: - | JI20: - | LJ20: 3 | LK20: 1 | LL20: 1 | LM20: 1 | LN20: - | LO20: - | LP20: 2 | LQ20: 1 | LR20: x | LS20: x | LT20: x | LU20: x | LV20: x | LW20: x | LX20: 3 | LY20: 1 | LZ20: 80 | MA20: - | MB20: - | MC20: - | MD20: - | ME20: - | MF20: - | MG20: 1 | MH20: 80 | MI20: - | MJ20: - | MK20: 2 | ML20: 1 | MM20: x | MN20: x | MO20: x | MP20: x | MQ20: x | MR20: x | MS20: x | MT20: x | MU20: x | MV20: x | MW20: x | MX20: x | MY20: x
B21: 0620101004 | C21: 1 | H21: 06 | I21: 201 | J21: 01 | K21: 004 | L21: 山形県 | M21: 山形市 | N21: 【旧】山形市 | O21: 三日町（山形） | P21: 1 | Q21: 1 | R21: - | S21: - | T21: - | U21: 1 | V21: x | W21: x | X21: x | Y21: 2 | Z21: 1 | AA21: 1 | AB21: 1 | AC21: - | AD21: x | AE21: x | AF21: x | AG21: x | AH21: x | AI21: - | AJ21: - | AK21: x | AL21: x | AM21: x | AN21: x | AO21: x | AP21: x | AQ21: x | AR21: x | AS21: - | AT21: x | AU21: - | AV21: - | AW21: - | AX21: - | AY21: - | AZ21: x | BA21: x | BB21: x | BC21: x | BD21: x | BE21: x | BF21: x | BG21: x | BH21: x | BI21: x | BJ21: x | BK21: x | BL21: x | BM21: - | BN21: - | BO21: - | BP21: - | BQ21: - | BR21: - | BS21: - | BT21: - | BU21: - | BV21: - | BW21: - | BX21: - | BY21: - | BZ21: x | CA21: x | CB21: x | CC21: x | CD21: x | CE21: x | CF21: x | CG21: x | CH21: x | CI21: x | CJ21: x | CK21: x | CL21: - | CM21: - | CN21: - | CO21: - | CP21: - | CQ21: - | CR21: - | CS21: - | CT21: - | CU21: - | CV21: - | CW21: - | CX21: x | CY21: x | CZ21: x | DA21: - | DB21: - | DC21: - | DD21: x | DE21: x | DF21: x | DG21: x | DH21: x | DI21: x | DJ21: x | DK21: x | DL21: x | DM21: - | DN21: - | DO21: - | DP21: - | DQ21: - | DR21: - | DS21: - | DT21: - | DU21: - | DV21: x | DW21: x | DX21: x | DY21: x | DZ21: x | EA21: x | EB21: x | EC21: x | ED21: x | EE21: x | EF21: x | EG21: x | EH21: x | EI21: x | EJ21: - | EK21: - | EL21: - | EM21: - | EN21: - | EO21: - | EP21: - | EQ21: - | ER21: - | ES21: - | ET21: - | EU21: - | EV21: - | EW21: - | EX21: x | EY21: x | EZ21: x | FA21: x | FB21: x | FC21: x | FD21: x | FE21: x | FF21: x | FG21: x | FH21: x | FI21: x | FJ21: x | FK21: x | FL21: x | FM21: x | FN21: x | FO21: x | FP21: x | FQ21: x | FR21: x | FS21: x | FT21: x | FU21: x | FV21: - | FW21: x | FX21: x | FY21: x | FZ21: x | GA21: x | GB21: x | GC21: x | GD21: x | GE21: x | GF21: x | GG21: x | GH21: x | GI21: x | HJ21: 1 | HK21: x | HL21: x | HM21: x | HN21: x | HO21: x | HP21: x | HQ21: x | HR21: x | HS21: x | HT21: x | HU21: x | HV21: x | HW21: x | HX21: x | HY21: x | HZ21: x | IA21: x | IB21: x | IC21: x | ID21: x | IE21: x | IF21: x | IG21: x | IH21: x | II21: x | IJ21: x | IK21: - | IL21: x | IM21: x | IN21: x | IO21: x | IP21: x | IQ21: - | IR21: x | IS21: x | IT21: x | IU21: x | IV21: x | IW21: x | IX21: - | IY21: x | IZ21: x | JA21: x | JB21: x | JC21: x | JD21: - | JE21: x | JF21: x | JG21: x | JH21: x | JI21: x | LJ21: 1 | LK21: x | LL21: x | LM21: x | LN21: x | LO21: x | LP21: x | LQ21: - | LR21: - | LS21: - | LT21: - | LU21: - | LV21: - | LW21: - | LX21: 1 | LY21: x | LZ21: x | MA21: x | MB21: x | MC21: x | MD21: x | ME21: x | MF21: x | MG21: x | MH21: x | MI21: x | MJ21: x | MK21: x | ML21: - | MM21: - | MN21: - | MO21: - | MP21: - | MQ21: - | MR21: - | MS21: - | MT21: - | MU21: - | MV21: - | MW21: - | MX21: - | MY21: -
B22: 0620101005 | C22: 1 | H22: 06 | I22: 201 | J22: 01 | K22: 005 | L22: 山形県 | M22: 山形市 | N22: 【旧】山形市 | O22: 小白川町 | P22: 4 | Q22: 3 | R22: - | S22: 1 | T22: 1 | U22: 3 | V22: 1 | W22: 1 | X22: 1 | Y22: 12 | Z22: 3 | AA22: 9 | AB22: 4 | AC22: 1 | AD22: - | AE22: 1 | AF22: - | AG22: - | AH22: 3 | AI22: 1 | AJ22: 1 | AK22: - | AL22: 1 | AM22: - | AN22: - | AO22: - | AP22: 2 | AQ22: 3,210 | AR22: 1 | AS22: 16 | AT22: 2 | AU22: x | AV22: x | AW22: x | AX22: 16 | AY22: x | AZ22: 4 | BA22: 1 | BB22: 1 | BC22: - | BD22: 1 | BE22: 1 | BF22: - | BG22: - | BH22: - | BI22: - | BJ22: - | BK22: - | BL22: - | BM22: x | BN22: x | BO22: x | BP22: x | BQ22: x | BR22: x | BS22: x | BT22: x | BU22: x | BV22: x | BW22: x | BX22: x | BY22: x | BZ22: 719 | CA22: 99 | CB22: - | CC22: 260 | CD22: 360 | CE22: - | CF22: - | CG22: - | CH22: - | CI22: - | CJ22: - | CK22: - | CL22: x | CM22: x | CN22: x | CO22: x | CP22: x | CQ22: x | CR22: x | CS22: x | CT22: x | CU22: x | CV22: x | CW22: x | CX22: 179.8 | CY22: 172.3 | CZ22: 7.5 | DA22: x | DB22: x | DC22: x | DD22: 4 | DE22: 2 | DF22: - | DG22: 1 | DH22: 1 | DI22: - | DJ22: - | DK22: - | DL22: - | DM22: x | DN22: x | DO22: x | DP22: x | DQ22: x | DR22: x | DS22: x | DT22: x | DU22: x | DV22: 4 | DW22: 2 | DX22: - | DY22: - | DZ22: - | EA22: 2 | EB22: - | EC22: - | ED22: - | EE22: - | EF22: - | EG22: - | EH22: - | EI22: - | EJ22: x | EK22: x | EL22: x | EM22: x | EN22: x | EO22: x | EP22: x | EQ22: x | ER22: x | ES22: x | ET22: x | EU22: x | EV22: x | EW22: x | EX22: 4 | EY22: 2 | EZ22: - | FA22: - | FB22: 1 | FC22: - | FD22: - | FE22: 2 | FF22: 1 | FG22: 1 | FH22: - | FI22: - | FJ22: 571 | FK22: x | FL22: - | FM22: - | FN22: x | FO22: - | FP22: - | FQ22: x | FR22: x | FS22: x | FT22: - | FU22: - | FV22: 6 | FW22: - | FX22: - | FY22: 1 | FZ22: 1 | GA22: 1 | GB22: 1 | GC22: 2 | GD22: - | GE22: - | GF22: 2 | GG22: - | GH22: - | GI22: 62.2 | HJ22: 4 | HK22: - | HL22: - | HM22: - | HN22: - | HO22: - | HP22: 1 | HQ22: 3 | HR22: - | HS22: - | HT22: 2 | HU22: 1 | HV22: - | HW22: 2 | HX22: - | HY22: - | HZ22: - | IA22: - | IB22: - | IC22: - | ID22: 2 | IE22: - | IF22: - | IG22: 2 | IH22: - | II22: - | IJ22: 1 | IK22: - | IL22: - | IM22: - | IN22: - | IO22: - | IP22: - | IQ22: 1 | IR22: - | IS22: - | IT22: - | IU22: 1 | IV22: - | IW22: 1 | IX22: - | IY22: - | IZ22: - | JA22: - | JB22: - | JC22: 1 | JD22: - | JE22: - | JF22: - | JG22: - | JH22: - | JI22: - | LJ22: 4 | LK22: 3 | LL22: 3 | LM22: 2 | LN22: - | LO22: - | LP22: 1 | LQ22: 1 | LR22: x | LS22: x | LT22: x | LU22: x | LV22: x | LW22: x | LX22: 4 | LY22: 1 | LZ22: 58 | MA22: 1 | MB22: 54 | MC22: - | MD22: - | ME22: - | MF22: - | MG22: 1 | MH22: 4 | MI22: - | MJ22: - | MK22: 2 | ML22: 1 | MM22: x | MN22: x | MO22: x | MP22: x | MQ22: x | MR22: x | MS22: x | MT22: x | MU22: x | MV22: x | MW22: x | MX22: x | MY22: x
B23: 0620101006 | C23: 1 | H23: 06 | I23: 201 | J23: 01 | K23: 006 | L23: 山形県 | M23: 山形市 | N23: 【旧】山形市 | O23: 城西 | P23: 4 | Q23: 3 | R23: - | S23: 1 | T23: 1 | U23: 3 | V23: - | W23: 2 | X23: 1 | Y23: 4 | Z23: 3 | AA23: 1 | AB23: 4 | AC23: 1 | AD23: - | AE23: 1 | AF23: - | AG23: - | AH23: 3 | AI23: 1 | AJ23: 1 | AK23: - | AL23: 1 | AM23: - | AN23: - | AO23: - | AP23: 2 | AQ23: 2,912 | AR23: 1 | AS23: 12 | AT23: 2 | AU23: x | AV23: x | AW23: x | AX23: 12 | AY23: x | AZ23: 3 | BA23: - | BB23: 3 | BC23: - | BD23: - | BE23: - | BF23: - | BG23: - | BH23: - | BI23: - | BJ23: - | BK23: - | BL23: - | BM23: x | BN23: x | BO23: x | BP23: x | BQ23: x | BR23: x | BS23: x | BT23: x | BU23: x | BV23: x | BW23: x | BX23: x | BY23: x | BZ23: 203 | CA23: 203 | CB23: - | CC23: - | CD23: - | CE23: - | CF23: - | CG23: - | CH23: - | CI23: - | CJ23: - | CK23: - | CL23: x | CM23: x | CN23: x | CO23: x | CP23: x | CQ23: x | CR23: x | CS23: x | CT23: x | CU23: x | CV23: x | CW23: x | CX23: 67.7 | CY23: 45.0 | CZ23: 22.7 | DA23: x | DB23: x | DC23: x | DD23: 4 | DE23: 2 | DF23: - | DG23: 2 | DH23: - | DI23: - | DJ23: - | DK23: - | DL23: - | DM23: x | DN23: x | DO23: x | DP23: x | DQ23: x | DR23: x | DS23: x | DT23: x | DU23: x | DV23: 4 | DW23: - | DX23: - | DY23: 2 | DZ23: - | EA23: - | EB23: 1 | EC23: - | ED23: 1 | EE23: - | EF23: - | EG23: - | EH23: - | EI23: - | EJ23: x | EK23: x | EL23: x | EM23: x | EN23: x | EO23: x | EP23: x | EQ23: x | ER23: x | ES23: x | ET23: x | EU23: x | EV23: x | EW23: x | EX23: 4 | EY23: - | EZ23: - | FA23: - | FB23: 1 | FC23: 2 | FD23: - | FE23: 2 | FF23: 1 | FG23: 1 | FH23: 1 | FI23: 1 | FJ23: 220 | FK23: - | FL23: - | FM23: - | FN23: x | FO23: x | FP23: - | FQ23: x | FR23: x | FS23: x | FT23: x | FU23: x | FV23: 6 | FW23: - | FX23: - | FY23: 2 | FZ23: - | GA23: - | GB23: - | GC23: 4 | GD23: - | GE23: 3 | GF23: 1 | GG23: - | GH23: - | GI23: 64.2 | HJ23: 4 | HK23: - | HL23: - | HM23: 2 | HN23: - | HO23: - | HP23: 1 | HQ23: 1 | HR23: - | HS23: - | HT23: 1 | HU23: - | HV23: - | HW23: 1 | HX23: - | HY23: - | HZ23: - | IA23: - | IB23: - | IC23: 1 | ID23: - | IE23: - | IF23: - | IG23: - | IH23: - | II23: - | IJ23: - | IK23: - | IL23: - | IM23: - | IN23: - | IO23: - | IP23: - | IQ23: - | IR23: - | IS23: - | IT23: - | IU23: - | IV23: - | IW23: 3 | IX23: - | IY23: - | IZ23: 2 | JA23: - | JB23: - | JC23: - | JD23: 1 | JE23: - | JF23: - | JG23: 1 | JH23: - | JI23: - | LJ23: 4 | LK23: 1 | LL23: 1 | LM23: 1 | LN23: 1 | LO23: 1 | LP23: 3 | LQ23: 1 | LR23: x | LS23: x | LT23: x | LU23: x | LV23: x | LW23: x | LX23: 4 | LY23: - | LZ23: - | MA23: - | MB23: - | MC23: - | MD23: - | ME23: - | MF23: - | MG23: - | MH23: - | MI23: - | MJ23: - | MK23: 4 | ML23: 1 | MM23: x | MN23: x | MO23: x | MP23: x | MQ23: x | MR23: x | MS23: x | MT23: x | MU23: x | MV23: x | MW23: x | MX23: x | MY23: x
B24: 0620101007 | C24: 1 | H24: 06 | I24: 201 | J24: 01 | K24: 007 | L24: 山形県 | M24: 山形市 | N24: 【旧】山形市 | O24: 坂ノ上 | P24: 3 | Q24: 2 | R24: - | S24: 1 | T24: 1 | U24: 2 | V24: x | W24: x | X24: x | Y24: 5 | Z24: 2 | AA24: 3 | AB24: 3 | AC24: 1 | AD24: - | AE24: 1 | AF24: - | AG24: - | AH24: 2 | AI24: 1 | AJ24: 1 | AK24: - | AL24: 1 | AM24: - | AN24: - | AO24: - | AP24: 1 | AQ24: 591 | AR24: 1 | AS24: 3 | AT24: 2 | AU24: x | AV24: x | AW24: x | AX24: 3 | AY24: x | AZ24: 3 | BA24: 1 | BB24: 1 | BC24: 1 | BD24: - | BE24: - | BF24: - | BG24: - | BH24: - | BI24: - | BJ24: - | BK24: - | BL24: - | BM24: x | BN24: x | BO24: x | BP24: x | BQ24: x | BR24: x | BS24: x | BT24: x | BU24: x | BV24: x | BW24: x | BX24: x | BY24: x | BZ24: 271 | CA24: 103 | CB24: 168 | CC24: - | CD24: - | CE24: - | CF24: - | CG24: - | CH24: - | CI24: - | CJ24: - | CK24: - | CL24: x | CM24: x | CN24: x | CO24: x | CP24: x | CQ24: x | CR24: x | CS24: x | CT24: x | CU24: x | CV24: x | CW24: x | CX24: 90.3 | CY24: 50.3 | CZ24: 40.0 | DA24: x | DB24: x | DC24: x | DD24: 3 | DE24: 1 | DF24: 1 | DG24: 1 | DH24: - | DI24: - | DJ24: - | DK24: - | DL24: - | DM24: x | DN24: x | DO24: x | DP24: x | DQ24: x | DR24: x | DS24: x | DT24: x | DU24: x | DV24: 3 | DW24: 2 | DX24: - | DY24: - | DZ24: - | EA24: - | EB24: - | EC24: - | ED24: 1 | EE24: - | EF24: - | EG24: - | EH24: - | EI24: - | EJ24: x | EK24: x | EL24: x | EM24: x | EN24: x | EO24: x | EP24: x | EQ24: x | ER24: x | ES24: x | ET24: x | EU24: x | EV24: x | EW24: x | EX24: 3 | EY24: 2 | EZ24: - | FA24: - | FB24: - | FC24: - | FD24: - | FE24: - | FF24: - | FG24: - | FH24: 1 | FI24: - | FJ24: 195 | FK24: x | FL24: - | FM24: - | FN24: - | FO24: - | FP24: - | FQ24: - | FR24: - | FS24: - | FT24: x | FU24: - | FV24: 1 | FW24: x | FX24: x | FY24: x | FZ24: x | GA24: x | GB24: x | GC24: x | GD24: x | GE24: x | GF24: x | GG24: x | GH24: x | GI24: x | HJ24: 3 | HK24: - | HL24: - | HM24: - | HN24: - | HO24: - | HP24: - | HQ24: 3 | HR24: - | HS24: 3 | HT24: - | HU24: - | HV24: - | HW24: 2 | HX24: - | HY24: - | HZ24: - | IA24: - | IB24: - | IC24: - | ID24: 2 | IE24: - | IF24: 2 | IG24: - | IH24: - | II24: - | IJ24: - | IK24: - | IL24: - | IM24: - | IN24: - | IO24: - | IP24: - | IQ24: - | IR24: - | IS24: - | IT24: - | IU24: - | IV24: - | IW24: 1 | IX24: - | IY24: - | IZ24: - | JA24: - | JB24: - | JC24: - | JD24: 1 | JE24: - | JF24: 1 | JG24: - | JH24: - | JI24: - | LJ24: 3 | LK24: - | LL24: - | LM24: - | LN24: - | LO24: - | LP24: 3 | LQ24: 1 | LR24: x | LS24: x | LT24: x | LU24: x | LV24: x | LW24: x | LX24: 3 | LY24: - | LZ24: - | MA24: - | MB24: - | MC24: - | MD24: - | ME24: - | MF24: - | MG24: - | MH24: - | MI24: - | MJ24: - | MK24: 3 | ML24: 1 | MM24: x | MN24: x | MO24: x | MP24: x | MQ24: x | MR24: x | MS24: x | MT24: x | MU24: x | MV24: x | MW24: x | MX24: x | MY24: x
B25: 0620101008 | C25: 1 | H25: 06 | I25: 201 | J25: 01 | K25: 008 | L25: 山形県 | M25: 山形市 | N25: 【旧】山形市 | O25: 肴町 | P25: 3 | Q25: 3 | R25: - | S25: - | T25: - | U25: 3 | V25: 3 | W25: - | X25: - | Y25: 4 | Z25: 3 | AA25: 1 | AB25: 3 | AC25: - | AD25: - | AE25: - | AF25: - | AG25: - | AH25: 3 | AI25: - | AJ25: - | AK25: - | AL25: - | AM25: - | AN25: - | AO25: - | AP25: 2 | AQ25: 423 | AR25: 1 | AS25: 1 | AT25: 1 | AU25: - | AV25: - | AW25: - | AX25: - | AY25: - | AZ25: 3 | BA25: - | BB25: - | BC25: 1 | BD25: - | BE25: 1 | BF25: 1 | BG25: - | BH25: - | BI25: - | BJ25: - | BK25: - | BL25: - | BM25: - | BN25: - | BO25: - | BP25: - | BQ25: - | BR25: - | BS25: - | BT25: - | BU25: - | BV25: - | BW25: - | BX25: - | BY25: - | BZ25: 1409 | CA25: - | CB25: 109 | CC25: - | CD25: 420 | CE25: 880 | CF25: - | CG25: - | CH25: - | CI25: - | CJ25: - | CK25: - | CL25: - | CM25: - | CN25: - | CO25: - | CP25: - | CQ25: - | CR25: - | CS25: - | CT25: - | CU25: - | CV25: - | CW25: - | CX25: 469.7 | CY25: 453.0 | CZ25: 16.7 | DA25: - | DB25: - | DC25: - | DD25: 3 | DE25: - | DF25: - | DG25: - | DH25: 3 | DI25: - | DJ25: - | DK25: - | DL25: - | DM25: - | DN25: - | DO25: - | DP25: - | DQ25: - | DR25: - | DS25: - | DT25: - | DU25: - | DV25: 3 | DW25: 1 | DX25: - | DY25: - | DZ25: - | EA25: - | EB25: - | EC25: - | ED25: 2 | EE25: - | EF25: - | EG25: - | EH25: - | EI25: - | EJ25: - | EK25: - | EL25: - | EM25: - | EN25: - | EO25: - | EP25: - | EQ25: - | ER25: - | ES25: - | ET25: - | EU25: - | EV25: - | EW25: - | EX25: 3 | EY25: 2 | EZ25: - | FA25: - | FB25: - | FC25: - | FD25: - | FE25: 2 | FF25: 2 | FG25: - | FH25: 3 | FI25: - | FJ25: 1,388 | FK25: x | FL25: - | FM25: - | FN25: - | FO25: - | FP25: - | FQ25: x | FR25: x | FS25: - | FT25: 232 | FU25: - | FV25: 7 | FW25: - | FX25: - | FY25: - | FZ25: - | GA25: - | GB25: 3 | GC25: 4 | GD25: 1 | GE25: 1 | GF25: - | GG25: - | GH25: 2 | GI25: 71.0 | HJ25: 3 | HK25: - | HL25: - | HM25: - | HN25: - | HO25: - | HP25: 1 | HQ25: 2 | HR25: 1 | HS25: 1 | HT25: - | HU25: - | HV25: - | HW25: 1 | HX25: - | HY25: - | HZ25: - | IA25: - | IB25: - | IC25: - | ID25: 1 | IE25: - | IF25: 1 | IG25: - | IH25: - | II25: - | IJ25: - | IK25: - | IL25: - | IM25: - | IN25: - | IO25: - | IP25: - | IQ25: - | IR25: - | IS25: - | IT25: - | IU25: - | IV25: - | IW25: 2 | IX25: - | IY25: - | IZ25: - | JA25: - | JB25: - | JC25: 1 | JD25: 1 | JE25: 1 | JF25: - | JG25: - | JH25: - | JI25: - | LJ25: 3 | LK25: 2 | LL25: 2 | LM25: - | LN25: - | LO25: - | LP25: 1 | LQ25: - | LR25: - | LS25: - | LT25: - | LU25: - | LV25: - | LW25: - | LX25: 3 | LY25: 1 | LZ25: 10 | MA25: - | MB25: - | MC25: - | MD25: - | ME25: 1 | MF25: 10 | MG25: - | MH25: - | MI25: - | MJ25: - | MK25: 2 | ML25: - | MM25: - | MN25: - | MO25: - | MP25: - | MQ25: - | MR25: - | MS25: - | MT25: - | MU25: - | MV25: - | MW25: - | MX25: - | MY25: -
B26: 0620101009 | C26: 1 | H26: 06 | I26: 201 | J26: 01 | K26: 009 | L26: 山形県 | M26: 山形市 | N26: 【旧】山形市 | O26: 下条町 | P26: 41 | Q26: 37 | R26: - | S26: 4 | T26: 4 | U26: 37 | V26: 10 | W26: 10 | X26: 17 | Y26: 51 | Z26: 38 | AA26: 13 | AB26: 41 | AC26: 4 | AD26: - | AE26: 4 | AF26: - | AG26: - | AH26: 37 | AI26: 4 | AJ26: 4 | AK26: - | AL26: 4 | AM26: - | AN26: - | AO26: - | AP26: 16 | AQ26: 6,193 | AR26: 6 | AS26: 14 | AT26: 25 | AU26: 4 | AV26: 4,913 | AW26: 3 | AX26: 10 | AY26: - | AZ26: 39 | BA26: 3 | BB26: 8 | BC26: 8 | BD26: 7 | BE26: 4 | BF26: 6 | BG26: 3 | BH26: 2 | BI26: - | BJ26: 1 | BK26: - | BL26: - | BM26: 3 | BN26: - | BO26: - | BP26: - | BQ26: 1 | BR26: 1 | BS26: - | BT26: 1 | BU26: - | BV26: - | BW26: 1 | BX26: - | BY26: - | BZ26: 15365 | CA26: 614 | CB26: 1162 | CC26: 1723 | CD26: 1475 | CE26: 3903 | CF26: 6488 | CG26: 2408 | CH26: - | CI26: 4080 | CJ26: - | CK26: - | CL26: 4,680 | CM26: - | CN26: - | CO26: 240 | CP26: 360 | CQ26: - | CR26: 4,080 | CS26: - | CT26: - | CU26: 4,080 | CV26: - | CW26: - | CX26: 394.0 | CY26: 185.1 | CZ26: 208.8 | DA26: 1560.0 | DB26: 116.7 | DC26: 1443.3 | DD26: 41 | DE26: 4 | DF26: 9 | DG26: 18 | DH26: 7 | DI26: 3 | DJ26: 1 | DK26: 2 | DL26: - | DM26: 4 | DN26: 1 | DO26: - | DP26: - | DQ26: - | DR26: 3 | DS26: 1 | DT26: 2 | DU26: - | DV26: 41 | DW26: 22 | DX26: - | DY26: 1 | DZ26: - | EA26: 2 | EB26: 6 | EC26: 1 | ED26: 9 | EE26: - | EF26: - | EG26: - | EH26: - | EI26: - | EJ26: 4 | EK26: 1 | EL26: - | EM26: - | EN26: - | EO26: - | EP26: 1 | EQ26: - | ER26: 2 | ES26: - | ET26: - | EU26: - | EV26: - | EW26: - | EX26: 40 | EY26: 33 | EZ26: - | FA26: - | FB26: - | FC26: 2 | FD26: 1 | FE26: 18 | FF26: 16 | FG26: 4 | FH26: 11 | FI26: 4 | FJ26: 14,592 | FK26: 13,058 | FL26: - | FM26: - | FN26: - | FO26: x | FP26: x | FQ26: 468 | FR26: 313 | FS26: x | FT26: 431 | FU26: 81 | FV26: 71 | FW26: 7 | FX26: 4 | FY26: 6 | FZ26: 1 | GA26: 2 | GB26: 11 | GC26: 40 | GD26: 14 | GE26: 12 | GF26: 8 | GG26: 3 | GH26: 3 | GI26: 63.4 | HJ26: 41 | HK26: 1 | HL26: 1 | HM26: 2 | HN26: 1 | HO26: 2 | HP26: 7 | HQ26: 27 | HR26: 7 | HS26: 12 | HT26: 3 | HU26: 2 | HV26: 3 | HW26: 15 | HX26: - | HY26: - | HZ26: - | IA26: - | IB26: 1 | IC26: 6 | ID26: 8 | IE26: 1 | IF26: 3 | IG26: 2 | IH26: - | II26: 2 | IJ26: 2 | IK26: - | IL26: - | IM26: - | IN26: - | IO26: - | IP26: - | IQ26: 2 | IR26: 1 | IS26: 1 | IT26: - | IU26: - | IV26: - | IW26: 24 | IX26: 1 | IY26: 1 | IZ26: 2 | JA26: 1 | JB26: 1 | JC26: 1 | JD26: 17 | JE26: 5 | JF26: 8 | JG26: 1 | JH26: 2 | JI26: 1 | LJ26: 41 | LK26: 17 | LL26: 16 | LM26: 5 | LN26: - | LO26: - | LP26: 24 | LQ26: 4 | LR26: 3 | LS26: 3 | LT26: 3 | LU26: - | LV26: - | LW26: 1 | LX26: 41 | LY26: 4 | LZ26: 661 | MA26: 3 | MB26: 647 | MC26: - | MD26: - | ME26: 1 | MF26: 14 | MG26: - | MH26: - | MI26: - | MJ26: - | MK26: 37 | ML26: 4 | MM26: 1 | MN26: 60 | MO26: 1 | MP26: 60 | MQ26: - | MR26: - | MS26: - | MT26: - | MU26: - | MV26: - | MW26: - | MX26: - | MY26: 3
B27: 0620101010 | C27: 1 | H27: 06 | I27: 201 | J27: 01 | K27: 010 | L27: 山形県 | M27: 山形市 | N27: 【旧】山形市 | O27: 皆川町 | P27: 4 | Q27: 4 | R27: - | S27: - | T27: - | U27: 4 | V27: 2 | W27: 1 | X27: 1 | Y27: 6 | Z27: 4 | AA27: 2 | AB27: 4 | AC27: - | AD27: - | AE27: - | AF27: - | AG27: - | AH27: 4 | AI27: - | AJ27: - | AK27: - | AL27: - | AM27: - | AN27: - | AO27: - | AP27: 1 | AQ27: 4 | AR27: - | AS27: - | AT27: 3 | AU27: - | AV27: - | AW27: - | AX27: - | AY27: - | AZ27: 4 | BA27: 1 | BB27: 1 | BC27: 1 | BD27: - | BE27: 1 | BF27: - | BG27: - | BH27: - | BI27: - | BJ27: - | BK27: - | BL27: - | BM27: - | BN27: - | BO27: - | BP27: - | BQ27: - | BR27: - | BS27: - | BT27: - | BU27: - | BV27: - | BW27: - | BX27: - | BY27: - | BZ27: 685 | CA27: 92 | CB27: 175 | CC27: - | CD27: 418 | CE27: - | CF27: - | CG27: - | CH27: - | CI27: - | CJ27: - | CK27: - | CL27: - | CM27: - | CN27: - | CO27: - | CP27: - | CQ27: - | CR27: - | CS27: - | CT27: - | CU27: - | CV27: - | CW27: - | CX27: 171.3 | CY27: 167.5 | CZ27: 3.8 | DA27: - | DB27: - | DC27: - | DD27: 3 | DE27: - | DF27: - | DG27: 3 | DH27: - | DI27: - | DJ27: - | DK27: - | DL27: - | DM27: - | DN27: - | DO27: - | DP27: - | DQ27: - | DR27: - | DS27: - | DT27: - | DU27: - | DV27: 3 | DW27: 2 | DX27: - | DY27: - | DZ27: - | EA27: - | EB27: - | EC27: - | ED27: 1 | EE27: - | EF27: - | EG27: - | EH27: - | EI27: - | EJ27: - | EK27: - | EL27: - | EM27: - | EN27: - | EO27: - | EP27: - | EQ27: - | ER27: - | ES27: - | ET27: - | EU27: - | EV27: - | EW27: - | EX27: 3 | EY27: 2 | EZ27: 1 | FA27: - | FB27: - | FC27: - | FD27: - | FE27: 2 | FF27: 1 | FG27: - | FH27: 1 | FI27: 1 | FJ27: 590 | FK27: x | FL27: x | FM27: - | FN27: - | FO27: - | FP27: - | FQ27: x | FR27: x | FS27: - | FT27: x | FU27: x | FV27: 10 | FW27: 1 | FX27: - | FY27: - | FZ27: - | GA27: 2 | GB27: 1 | GC27: 6 | GD27: - | GE27: - | GF27: - | GG27: 4 | GH27: 2 | GI27: 70.3 | HJ27: 4 | HK27: - | HL27: - | HM27: - | HN27: - | HO27: 1 | HP27: - | HQ27: 3 | HR27: - | HS27: - | HT27: - | HU27: 1 | HV27: 2 | HW27: 2 | HX27: - | HY27: - | HZ27: - | IA27: - | IB27: - | IC27: - | ID27: 2 | IE27: - | IF27: - | IG27: - | IH27: - | II27: 2 | IJ27: - | IK27: - | IL27: - | IM27: - | IN27: - | IO27: - | IP27: - | IQ27: - | IR27: - | IS27: - | IT27: - | IU27: - | IV27: - | IW27: 2 | IX27: - | IY27: - | IZ27: - | JA27: - | JB27: 1 | JC27: - | JD27: 1 | JE27: - | JF27: - | JG27: - | JH27: 1 | JI27: - | LJ27: 4 | LK27: 2 | LL27: 2 | LM27: - | LN27: - | LO27: - | LP27: 2 | LQ27: - | LR27: - | LS27: - | LT27: - | LU27: - | LV27: - | LW27: - | LX27: 4 | LY27: - | LZ27: - | MA27: - | MB27: - | MC27: - | MD27: - | ME27: - | MF27: - | MG27: - | MH27: - | MI27: - | MJ27: - | MK27: 4 | ML27: - | MM27: - | MN27: - | MO27: - | MP27: - | MQ27: - | MR27: - | MS27: - | MT27: - | MU27: - | MV27: - | MW27: - | MX27: - | MY27: -
B28: 0620101011 | C28: 1 | H28: 06 | I28: 201 | J28: 01 | K28: 011 | L28: 山形県 | M28: 山形市 | N28: 【旧】山形市 | O28: 宮町（山形） | P28: 5 | Q28: 5 | R28: - | S28: - | T28: - | U28: 5 | V28: 1 | W28: 3 | X28: 1 | Y28: 13 | Z28: 5 | AA28: 8 | AB28: 5 | AC28: - | AD28: - | AE28: - | AF28: - | AG28: - | AH28: 5 | AI28: - | AJ28: - | AK28: - | AL28: - | AM28: - | AN28: - | AO28: - | AP28: 3 | AQ28: 560 | AR28: 1 | AS28: 2 | AT28: 2 | AU28: - | AV28: - | AW28: - | AX28: - | AY28: - | AZ28: 5 | BA28: 3 | BB28: - | BC28: 1 | BD28: 1 | BE28: - | BF28: - | BG28: - | BH28: - | BI28: - | BJ28: - | BK28: - | BL28: - | BM28: - | BN28: - | BO28: - | BP28: - | BQ28: - | BR28: - | BS28: - | BT28: - | BU28: - | BV28: - | BW28: - | BX28: - | BY28: - | BZ28: 408 | CA28: 98 | CB28: 100 | CC28: 210 | CD28: - | CE28: - | CF28: - | CG28: - | CH28: - | CI28: - | CJ28: - | CK28: - | CL28: - | CM28: - | CN28: - | CO28: - | CP28: - | CQ28: - | CR28: - | CS28: - | CT28: - | CU28: - | CV28: - | CW28: - | CX28: 81.6 | CY28: 59.0 | CZ28: 22.6 | DA28: - | DB28: - | DC28: - | DD28: 5 | DE28: 1 | DF28: 2 | DG28: 1 | DH28: 1 | DI28: - | DJ28: - | DK28: - | DL28: - | DM28: - | DN28: - | DO28: - | DP28: - | DQ28: - | DR28: - | DS28: - | DT28: - | DU28: - | DV28: 5 | DW28: - | DX28: - | DY28: - | DZ28: - | EA28: 1 | EB28: 2 | EC28: 2 | ED28: - | EE28: - | EF28: - | EG28: - | EH28: - | EI28: - | EJ28: - | EK28: - | EL28: - | EM28: - | EN28: - | EO28: - | EP28: - | EQ28: - | ER28: - | ES28: - | ET28: - | EU28: - | EV28: - | EW28: - | EX28: 5 | EY28: 2 | EZ28: - | FA28: - | FB28: - | FC28: - | FD28: - | FE28: 2 | FF28: 2 | FG28: 2 | FH28: - | FI28: - | FJ28: 444 | FK28: x | FL28: - | FM28: - | FN28: - | FO28: - | FP28: - | FQ28: x | FR28: x | FS28: x | FT28: - | FU28: - | FV28: 10 | FW28: 1 | FX28: - | FY28: 2 | FZ28: - | GA28: 1 | GB28: 2 | GC28: 4 | GD28: 1 | GE28: - | GF28: 1 | GG28: 1 | GH28: 1 | GI28: 61.8 | HJ28: 5 | HK28: - | HL28: - | HM28: 1 | HN28: - | HO28: 1 | HP28: 1 | HQ28: 2 | HR28: 1 | HS28: - | HT28: 1 | HU28: - | HV28: - | HW28: 1 | HX28: - | HY28: - | HZ28: - | IA28: - | IB28: - | IC28: - | ID28: 1 | IE28: - | IF28: - | IG28: 1 | IH28: - | II28: - | IJ28: - | IK28: - | IL28: - | IM28: - | IN28: - | IO28: - | IP28: - | IQ28: - | IR28: - | IS28: - | IT28: - | IU28: - | IV28: - | IW28: 4 | IX28: - | IY28: - | IZ28: 1 | JA28: - | JB28: 1 | JC28: 1 | JD28: 1 | JE28: 1 | JF28: - | JG28: - | JH28: - | JI28: - | LJ28: 5 | LK28: 5 | LL28: 5 | LM28: 2 | LN28: - | LO28: - | LP28: - | LQ28: - | LR28: - | LS28: - | LT28: - | LU28: - | LV28: - | LW28: - | LX28: 5 | LY28: 1 | LZ28: 20 | MA28: - | MB28: - | MC28: - | MD28: - | ME28: 1 | MF28: 20 | MG28: - | MH28: - | MI28: - | MJ28: - | MK28: 4 | ML28: - | MM28: - | MN28: - | MO28: - | MP28: - | MQ28: - | MR28: - | MS28: - | MT28: - | MU28: - | MV28: - | MW28: - | MX28: - | MY28: -
B29: 0620101012 | C29: 1 | H29: 06 | I29: 201 | J29: 01 | K29: 012 | L29: 山形県 | M29: 山形市 | N29: 【旧】山形市 | O29: 七日町（山形） | P29: 1 | Q29: 1 | R29: - | S29: - | T29: - | U29: 1 | V29: x | W29: x | X29: x | Y29: 1 | Z29: 1 | AA29: - | AB29: 1 | AC29: - | AD29: x | AE29: x | AF29: x | AG29: x | AH29: x | AI29: - | AJ29: - | AK29: x | AL29: x | AM29: x | AN29: x | AO29: x | AP29: x | AQ29: x | AR29: x | AS29: - | AT29: x | AU29: - | AV29: - | AW29: - | AX29: - | AY29: - | AZ29: x | BA29: x | BB29: x | BC29: x | BD29: x | BE29: x | BF29: x | BG29: x | BH29: x | BI29: x | BJ29: x | BK29: x | BL29: x | BM29: - | BN29: - | BO29: - | BP29: - | BQ29: - | BR29: - | BS29: - | BT29: - | BU29: - | BV29: - | BW29: - | BX29: - | BY29: - | BZ29: x | CA29: x | CB29: x | CC29: x | CD29: x | CE29: x | CF29: x | CG29: x | CH29: x | CI29: x | CJ29: x | CK29: x | CL29: - | CM29: - | CN29: - | CO29: - | CP29: - | CQ29: - | CR29: - | CS29: - | CT29: - | CU29: - | CV29: - | CW29: - | CX29: x | CY29: x | CZ29: x | DA29: - | DB29: - | DC29: - | DD29: x | DE29: x | DF29: x | DG29: x | DH29: x | DI29: x | DJ29: x | DK29: x | DL29: x | DM29: - | DN29: - | DO29: - | DP29: - | DQ29: - | DR29: - | DS29: - | DT29: - | DU29: - | DV29: x | DW29: x | DX29: x | DY29: x | DZ29: x | EA29: x | EB29: x | EC29: x | ED29: x | EE29: x | EF29: x | EG29: x | EH29: x | EI29: x | EJ29: - | EK29: - | EL29: - | EM29: - | EN29: - | EO29: - | EP29: - | EQ29: - | ER29: - | ES29: - | ET29: - | EU29: - | EV29: - | EW29: - | EX29: x | EY29: x | EZ29: x | FA29: x | FB29: x | FC29: x | FD29: x | FE29: x | FF29: x | FG29: x | FH29: x | FI29: x | FJ29: x | FK29: x | FL29: x | FM29: x | FN29: x | FO29: x | FP29: x | FQ29: x | FR29: x | FS29: x | FT29: x | FU29: x | FV29: - | FW29: x | FX29: x | FY29: x | FZ29: x | GA29: x | GB29: x | GC29: x | GD29: x | GE29: x | GF29: x | GG29: x | GH29: x | GI29: x | HJ29: 1 | HK29: x | HL29: x | HM29: x | HN29: x | HO29: x | HP29: x | HQ29: x | HR29: x | HS29: x | HT29: x | HU29: x | HV29: x | HW29: x | HX29: x | HY29: x | HZ29: x | IA29: x | IB29: x | IC29: x | ID29: x | IE29: x | IF29: x | IG29: x | IH29: x | II29: x | IJ29: x | IK29: - | IL29: x | IM29: x | IN29: x | IO29: x | IP29: x | IQ29: - | IR29: x | IS29: x | IT29: x | IU29: x | IV29: x | IW29: x | IX29: - | IY29: x | IZ29: x | JA29: x | JB29: x | JC29: x | JD29: - | JE29: x | JF29: x | JG29: x | JH29: x | JI29: x | LJ29: 1 | LK29: x | LL29: x | LM29: x | LN29: x | LO29: x | LP29: x | LQ29: - | LR29: - | LS29: - | LT29: - | LU29: - | LV29: - | LW29: - | LX29: 1 | LY29: x | LZ29: x | MA29: x | MB29: x | MC29: x | MD29: x | ME29: x | MF29: x | MG29: x | MH29: x | MI29: x | MJ29: x | MK29: x | ML29: - | MM29: - | MN29: - | MO29: - | MP29: - | MQ29: - | MR29: - | MS29: - | MT29: - | MU29: - | MV29: - | MW29: - | MX29: - | MY29: -
B30: 0620101013 | C30: 1 | H30: 06 | I30: 201 | J30: 01 | K30: 013 | L30: 山形県 | M30: 山形市 | N30: 【旧】山形市 | O30: 諏訪町 | P30: 3 | Q30: 3 | R30: - | S30: - | T30: - | U30: 3 | V30: - | W30: 1 | X30: 2 | Y30: 3 | Z30: 3 | AA30: - | AB30: 3 | AC30: - | AD30: - | AE30: - | AF30: - | AG30: - | AH30: 3 | AI30: - | AJ30: - | AK30: - | AL30: - | AM30: - | AN30: - | AO30: - | AP30: - | AQ30: - | AR30: - | AS30: - | AT30: - | AU30: - | AV30: - | AW30: - | AX30: - | AY30: - | AZ30: 3 | BA30: - | BB30: 1 | BC30: 1 | BD30: - | BE30: - | BF30: - | BG30: 1 | BH30: - | BI30: - | BJ30: 1 | BK30: - | BL30: - | BM30: - | BN30: - | BO30: - | BP30: - | BQ30: - | BR30: - | BS30: - | BT30: - | BU30: - | BV30: - | BW30: - | BX30: - | BY30: - | BZ30: 4746 | CA30: 90 | CB30: 149 | CC30: - | CD30: - | CE30: - | CF30: 4507 | CG30: - | CH30: - | CI30: 4507 | CJ30: - | CK30: - | CL30: - | CM30: - | CN30: - | CO30: - | CP30: - | CQ30: - | CR30: - | CS30: - | CT30: - | CU30: - | CV30: - | CW30: - | CX30: 1582.0 | CY30: 1582.0 | CZ30: - | DA30: - | DB30: - | DC30: - | DD30: 3 | DE30: 2 | DF30: - | DG30: 1 | DH30: - | DI30: - | DJ30: - | DK30: - | DL30: - | DM30: - | DN30: - | DO30: - | DP30: - | DQ30: - | DR30: - | DS30: - | DT30: - | DU30: - | DV30: 3 | DW30: - | DX30: - | DY30: - | DZ30: - | EA30: 2 | EB30: 1 | EC30: - | ED30: - | EE30: - | EF30: - | EG30: - | EH30: - | EI30: - | EJ30: - | EK30: - | EL30: - | EM30: - | EN30: - | EO30: - | EP30: - | EQ30: - | ER30: - | ES30: - | ET30: - | EU30: - | EV30: - | EW30: - | EX30: 3 | EY30: 1 | EZ30: - | FA30: - | FB30: - | FC30: - | FD30: - | FE30: 2 | FF30: 1 | FG30: - | FH30: - | FI30: - | FJ30: x | FK30: x | FL30: - | FM30: - | FN30: - | FO30: - | FP30: - | FQ30: x | FR30: x | FS30: - | FT30: - | FU30: - | FV30: 6 | FW30: - | FX30: - | FY30: - | FZ30: - | GA30: 2 | GB30: - | GC30: 4 | GD30: - | GE30: - | GF30: 4 | GG30: - | GH30: - | GI30: 69.7 | HJ30: 3 | HK30: - | HL30: - | HM30: - | HN30: - | HO30: 1 | HP30: - | HQ30: 2 | HR30: - | HS30: - | HT30: 2 | HU30: - | HV30: - | HW30: - | HX30: - | HY30: - | HZ30: - | IA30: - | IB30: - | IC30: - | ID30: - | IE30: - | IF30: - | IG30: - | IH30: - | II30: - | IJ30: - | IK30: - | IL30: - | IM30: - | IN30: - | IO30: - | IP30: - | IQ30: - | IR30: - | IS30: - | IT30: - | IU30: - | IV30: - | IW30: 3 | IX30: - | IY30: - | IZ30: - | JA30: - | JB30: 1 | JC30: - | JD30: 2 | JE30: - | JF30: - | JG30: 2 | JH30: - | JI30: - | LJ30: 3 | LK30: 2 | LL30: 2 | LM30: - | LN30: - | LO30: - | LP30: 1 | LQ30: - | LR30: - | LS30: - | LT30: - | LU30: - | LV30: - | LW30: - | LX30: 3 | LY30: - | LZ30: - | MA30: - | MB30: - | MC30: - | MD30: - | ME30: - | MF30: - | MG30: - | MH30: - | MI30: - | MJ30: - | MK30: 3 | ML30: - | MM30: - | MN30: - | MO30: - | MP30: - | MQ30: - | MR30: - | MS30: - | MT30: - | MU30: - | MV30: - | MW30: - | MX30: - | MY30: -
B31: 0620101014 | C31: 1 | H31: 06 | I31: 201 | J31: 01 | K31: 014 | L31: 山形県 | M31: 山形市 | N31: 【旧】山形市 | O31: 地蔵町 | P31: 1 | Q31: 1 | R31: - | S31: - | T31: - | U31: 1 | V31: x | W31: x | X31: x | Y31: 2 | Z31: 1 | AA31: 1 | AB31: 1 | AC31: - | AD31: x | AE31: x | AF31: x | AG31: x | AH31: x | AI31: - | AJ31: - | AK31: x | AL31: x | AM31: x | AN31: x | AO31: x | AP31: x | AQ31: x | AR31: x | AS31: - | AT31: x | AU31: - | AV31: - | AW31: - | AX31: - | AY31: - | AZ31: x | BA31: x | BB31: x | BC31: x | BD31: x | BE31: x | BF31: x | BG31: x | BH31: x | BI31: x | BJ31: x | BK31: x | BL31: x | BM31: - | BN31: - | BO31: - | BP31: - | BQ31: - | BR31: - | BS31: - | BT31: - | BU31: - | BV31: - | BW31: - | BX31: - | BY31: - | BZ31: x | CA31: x | CB31: x | CC31: x | CD31: x | CE31: x | CF31: x | CG31: x | CH31: x | CI31: x | CJ31: x | CK31: x | CL31: - | CM31: - | CN31: - | CO31: - | CP31: - | CQ31: - | CR31: - | CS31: - | CT31: - | CU31: - | CV31: - | CW31: - | CX31: x | CY31: x | CZ31: x | DA31: - | DB31: - | DC31: - | DD31: x | DE31: x | DF31: x | DG31: x | DH31: x | DI31: x | DJ31: x | DK31: x | DL31: x | DM31: - | DN31: - | DO31: - | DP31: - | DQ31: - | DR31: - | DS31: - | DT31: - | DU31: - | DV31: x | DW31: x | DX31: x | DY31: x | DZ31: x | EA31: x | EB31: x | EC31: x | ED31: x | EE31: x | EF31: x | EG31: x | EH31: x | EI31: x | EJ31: - | EK31: - | EL31: - | EM31: - | EN31: - | EO31: - | EP31: - | EQ31: - | ER31: - | ES31: - | ET31: - | EU31: - | EV31: - | EW31: - | EX31: x | EY31: x | EZ31: x | FA31: x | FB31: x | FC31: x | FD31: x | FE31: x | FF31: x | FG31: x | FH31: x | FI31: x | FJ31: x | FK31: x | FL31: x | FM31: x | FN31: x | FO31: x | FP31: x | FQ31: x | FR31: x | FS31: x | FT31: x | FU31: x | FV31: 1 | FW31: x | FX31: x | FY31: x | FZ31: x | GA31: x | GB31: x | GC31: x | GD31: x | GE31: x | GF31: x | GG31: x | GH31: x | GI31: x | HJ31: 1 | HK31: x | HL31: x | HM31: x | HN31: x | HO31: x | HP31: x | HQ31: x | HR31: x | HS31: x | HT31: x | HU31: x | HV31: x | HW31: x | HX31: x | HY31: x | HZ31: x | IA31: x | IB31: x | IC31: x | ID31: x | IE31: x | IF31: x | IG31: x | IH31: x | II31: x | IJ31: x | IK31: - | IL31: x | IM31: x | IN31: x | IO31: x | IP31: x | IQ31: - | IR31: x | IS31: x | IT31: x | IU31: x | IV31: x | IW31: x | IX31: - | IY31: x | IZ31: x | JA31: x | JB31: x | JC31: x | JD31: - | JE31: x | JF31: x | JG31: x | JH31: x | JI31: x | LJ31: 1 | LK31: x | LL31: x | LM31: x | LN31: x | LO31: x | LP31: x | LQ31: - | LR31: - | LS31: - | LT31: - | LU31: - | LV31: - | LW31: - | LX31: 1 | LY31: x | LZ31: x | MA31: x | MB31: x | MC31: x | MD31: x | ME31: x | MF31: x | MG31: x | MH31: x | MI31: x | MJ31: x | MK31: x | ML31: - | MM31: - | MN31: - | MO31: - | MP31: - | MQ31: - | MR31: - | MS31: - | MT31: - | MU31: - | MV31: - | MW31: - | MX31: - | MY31: -
B32: 0620101015 | C32: 1 | H32: 06 | I32: 201 | J32: 01 | K32: 015 | L32: 山形県 | M32: 山形市 | N32: 【旧】山形市 | O32: 和合（山形） | P32: 1 | Q32: 1 | R32: - | S32: - | T32: - | U32: 1 | V32: x | W32: x | X32: x | Y32: 1 | Z32: 1 | AA32: - | AB32: 1 | AC32: - | AD32: x | AE32: x | AF32: x | AG32: x | AH32: x | AI32: - | AJ32: - | AK32: x | AL32: x | AM32: x | AN32: x | AO32: x | AP32: x | AQ32: x | AR32: x | AS32: - | AT32: x | AU32: - | AV32: - | AW32: - | AX32: - | AY32: - | AZ32: x | BA32: x | BB32: x | BC32: x | BD32: x | BE32: x | BF32: x | BG32: x | BH32: x | BI32: x | BJ32: x | BK32: x | BL32: x | BM32: - | BN32: - | BO32: - | BP32: - | BQ32: - | BR32: - | BS32: - | BT32: - | BU32: - | BV32: - | BW32: - | BX32: - | BY32: - | BZ32: x | CA32: x | CB32: x | CC32: x | CD32: x | CE32: x | CF32: x | CG32: x | CH32: x | CI32: x | CJ32: x | CK32: x | CL32: - | CM32: - | CN32: - | CO32: - | CP32: - | CQ32: - | CR32: - | CS32: - | CT32: - | CU32: - | CV32: - | CW32: - | CX32: x | CY32: x | CZ32: x | DA32: - | DB32: - | DC32: - | DD32: x | DE32: x | DF32: x | DG32: x | DH32: x | DI32: x | DJ32: x | DK32: x | DL32: x | DM32: - | DN32: - | DO32: - | DP32: - | DQ32: - | DR32: - | DS32: - | DT32: - | DU32: - | DV32: x | DW32: x | DX32: x | DY32: x | DZ32: x | EA32: x | EB32: x | EC32: x | ED32: x | EE32: x | EF32: x | EG32: x | EH32: x | EI32: x | EJ32: - | EK32: - | EL32: - | EM32: - | EN32: - | EO32: - | EP32: - | EQ32: - | ER32: - | ES32: - | ET32: - | EU32: - | EV32: - | EW32: - | EX32: x | EY32: x | EZ32: x | FA32: x | FB32: x | FC32: x | FD32: x | FE32: x | FF32: x | FG32: x | FH32: x | FI32: x | FJ32: x | FK32: x | FL32: x | FM32: x | FN32: x | FO32: x | FP32: x | FQ32: x | FR32: x | FS32: x | FT32: x | FU32: x | FV32: 2 | FW32: x | FX32: x | FY32: x | FZ32: x | GA32: x | GB32: x | GC32: x | GD32: x | GE32: x | GF32: x | GG32: x | GH32: x | GI32: x | HJ32: 1 | HK32: x | HL32: x | HM32: x | HN32: x | HO32: x | HP32: x | HQ32: x | HR32: x | HS32: x | HT32: x | HU32: x | HV32: x | HW32: x | HX32: x | HY32: x | HZ32: x | IA32: x | IB32: x | IC32: x | ID32: x | IE32: x | IF32: x | IG32: x | IH32: x | II32: x | IJ32: x | IK32: - | IL32: x | IM32: x | IN32: x | IO32: x | IP32: x | IQ32: - | IR32: x | IS32: x | IT32: x | IU32: x | IV32: x | IW32: x | IX32: - | IY32: x | IZ32: x | JA32: x | JB32: x | JC32: x | JD32: - | JE32: x | JF32: x | JG32: x | JH32: x | JI32: x | LJ32: 1 | LK32: x | LL32: x | LM32: x | LN32: x | LO32: x | LP32: x | LQ32: - | LR32: - | LS32: - | LT32: - | LU32: - | LV32: - | LW32: - | LX32: 1 | LY32: x | LZ32: x | MA32: x | MB32: x | MC32: x | MD32: x | ME32: x | MF32: x | MG32: x | MH32: x | MI32: x | MJ32: x | MK32: x | ML32: - | MM32: - | MN32: - | MO32: - | MP32: - | MQ32: - | MR32: - | MS32: - | MT32: - | MU32: - | MV32: - | MW32: - | MX32: - | MY32: -
B33: 0620101016 | C33: 1 | H33: 06 | I33: 201 | J33: 01 | K33: 016 | L33: 山形県 | M33: 山形市 | N33: 【旧】山形市 | O33: 表宿 | P33: - | Q33: - | R33: - | S33: - | T33: - | U33: - | V33: - | W33: - | X33: - | Y33: 4 | Z33: - | AA33: 4 | AB33: - | AC33: - | AD33: - | AE33: - | AF33: - | AG33: - | AH33: - | AI33: - | AJ33: - | AK33: - | AL33: - | AM33: - | AN33: - | AO33: - | AP33: - | AQ33: - | AR33: - | AS33: - | AT33: - | AU33: - | AV33: - | AW33: - | AX33: - | AY33: - | AZ33: - | BA33: - | BB33: - | BC33: - | BD33: - | BE33: - | BF33: - | BG33: - | BH33: - | BI33: - | BJ33: - | BK33: - | BL33: - | BM33: - | BN33: - | BO33: - | BP33: - | BQ33: - | BR33: - | BS33: - | BT33: - | BU33: - | BV33: - | BW33: - | BX33: - | BY33: - | BZ33: - | CA33: - | CB33: - | CC33: - | CD33: - | CE33: - | CF33: - | CG33: - | CH33: - | CI33: - | CJ33: - | CK33: - | CL33: - | CM33: - | CN33: - | CO33: - | CP33: - | CQ33: - | CR33: - | CS33: - | CT33: - | CU33: - | CV33: - | CW33: - | CX33: - | CY33: - | CZ33: - | DA33: - | DB33: - | DC33: - | DD33: - | DE33: - | DF33: - | DG33: - | DH33: - | DI33: - | DJ33: - | DK33: - | DL33: - | DM33: - | DN33: - | DO33: - | DP33: - | DQ33: - | DR33: - | DS33: - | DT33: - | DU33: - | DV33: - | DW33: - | DX33: - | DY33: - | DZ33: - | EA33: - | EB33: - | EC33: - | ED33: - | EE33: - | EF33: - | EG33: - | EH33: - | EI33: - | EJ33: - | EK33: - | EL33: - | EM33: - | EN33: - | EO33: - | EP33: - | EQ33: - | ER33: - | ES33: - | ET33: - | EU33: - | EV33: - | EW33: - | EX33: - | EY33: - | EZ33: - | FA33: - | FB33: - | FC33: - | FD33: - | FE33: - | FF33: - | FG33: - | FH33: - | FI33: - | FJ33: - | FK33: - | FL33: - | FM33: - | FN33: - | FO33: - | FP33: - | FQ33: - | FR33: - | FS33: - | FT33: - | FU33: - | FV33: - | FW33: - | FX33: - | FY33: - | FZ33: - | GA33: - | GB33: - | GC33: - | GD33: - | GE33: - | GF33: - | GG33: - | GH33: - | GI33: - | HJ33: - | HK33: - | HL33: - | HM33: - | HN33: - | HO33: - | HP33: - | HQ33: - | HR33: - | HS33: - | HT33: - | HU33: - | HV33: - | HW33: - | HX33: - | HY33: - | HZ33: - | IA33: - | IB33: - | IC33: - | ID33: - | IE33: - | IF33: - | IG33: - | IH33: - | II33: - | IJ33: - | IK33: - | IL33: - | IM33: - | IN33: - | IO33: - | IP33: - | IQ33: - | IR33: - | IS33: - | IT33: - | IU33: - | IV33: - | IW33: - | IX33: - | IY33: - | IZ33: - | JA33: - | JB33: - | JC33: - | JD33: - | JE33: - | JF33: - | JG33: - | JH33: - | JI33: - | LJ33: - | LK33: - | LL33: - | LM33: - | LN33: - | LO33: - | LP33: - | LQ33: - | LR33: - | LS33: - | LT33: - | LU33: - | LV33: - | LW33: - | LX33: - | LY33: - | LZ33: - | MA33: - | MB33: - | MC33: - | MD33: - | ME33: - | MF33: - | MG33: - | MH33: - | MI33: - | MJ33: - | MK33: - | ML33: - | MM33: - | MN33: - | MO33: - | MP33: - | MQ33: - | MR33: - | MS33: - | MT33: - | MU33: - | MV33: - | MW33: - | MX33: - | MY33: -
B34: 0620101017 | C34: 1 | H34: 06 | I34: 201 | J34: 01 | K34: 017 | L34: 山形県 | M34: 山形市 | N34: 【旧】山形市 | O34: 浦宿 | P34: - | Q34: - | R34: - | S34: - | T34: - | U34: - | V34: - | W34: - | X34: - | Y34: 3 | Z34: - | AA34: 3 | AB34: - | AC34: - | AD34: - | AE34: - | AF34: - | AG34: - | AH34: - | AI34: - | AJ34: - | AK34: - | AL34: - | AM34: - | AN34: - | AO34: - | AP34: - | AQ34: - | AR34: - | AS34: - | AT34: - | AU34: - | AV34: - | AW34: - | AX34: - | AY34: - | AZ34: - | BA34: - | BB34: - | BC34: - | BD34: - | BE34: - | BF34: - | BG34: - | BH34: - | BI34: - | BJ34: - | BK34: - | BL34: - | BM34: - | BN34: - | BO34: - | BP34: - | BQ34: - | BR34: - | BS34: - | BT34: - | BU34: - | BV34: - | BW34: - | BX34: - | BY34: - | BZ34: - | CA34: - | CB34: - | CC34: - | CD34: - | CE34: - | CF34: - | CG34: - | CH34: - | CI34: - | CJ34: - | CK34: - | CL34: - | CM34: - | CN34: - | CO34: - | CP34: - | CQ34: - | CR34: - | CS34: - | CT34: - | CU34: - | CV34: - | CW34: - | CX34: - | CY34: - | CZ34: - | DA34: - | DB34: - | DC34: - | DD34: - | DE34: - | DF34: - | DG34: - | DH34: - | DI34: - | DJ34: - | DK34: - | DL34: - | DM34: - | DN34: - | DO34: - | DP34: - | DQ34: - | DR34: - | DS34: - | DT34: - | DU34: - | DV34: - | DW34: - | DX34: - | DY34: - | DZ34: - | EA34: - | EB34: - | EC34: - | ED34: - | EE34: - | EF34: - | EG34: - | EH34: - | EI34: - | EJ34: - | EK34: - | EL34: - | EM34: - | EN34: - | EO34: - | EP34: - | EQ34: - | ER34: - | ES34: - | ET34: - | EU34: - | EV34: - | EW34: - | EX34: - | EY34: - | EZ34: - | FA34: - | FB34: - | FC34: - | FD34: - | FE34: - | FF34: - | FG34: - | FH34: - | FI34: - | FJ34: - | FK34: - | FL34: - | FM34: - | FN34: - | FO34: - | FP34: - | FQ34: - | FR34: - | FS34: - | FT34: - | FU34: - | FV34: - | FW34: - | FX34: - | FY34: - | FZ34: - | GA34: - | GB34: - | GC34: - | GD34: - | GE34: - | GF34: - | GG34: - | GH34: - | GI34: - | HJ34: - | HK34: - | HL34: - | HM34: - | HN34: - | HO34: - | HP34: - | HQ34: - | HR34: - | HS34: - | HT34: - | HU34: - | HV34: - | HW34: - | HX34: - | HY34: - | HZ34: - | IA34: - | IB34: - | IC34: - | ID34: - | IE34: - | IF34: - | IG34: - | IH34: - | II34: - | IJ34: - | IK34: - | IL34: - | IM34: - | IN34: - | IO34: - | IP34: - | IQ34: - | IR34: - | IS34: - | IT34: - | IU34: - | IV34: - | IW34: - | IX34: - | IY34: - | IZ34: - | JA34: - | JB34: - | JC34: - | JD34: - | JE34: - | JF34: - | JG34: - | JH34: - | JI34: - | LJ34: - | LK34: - | LL34: - | LM34: - | LN34: - | LO34: - | LP34: - | LQ34: - | LR34: - | LS34: - | LT34: - | LU34: - | LV34: - | LW34: - | LX34: - | LY34: - | LZ34: - | MA34: - | MB34: - | MC34: - | MD34: - | ME34: - | MF34: - | MG34: - | MH34: - | MI34: - | MJ34: - | MK34: - | ML34: - | MM34: - | MN34: - | MO34: - | MP34: - | MQ34: - | MR34: - | MS34: - | MT34: - | MU34: - | MV34: - | MW34: - | MX34: - | MY34: -
B35: 0620101018 | C35: 1 | H35: 06 | I35: 201 | J35: 01 | K35: 018 | L35: 山形県 | M35: 山形市 | N35: 【旧】山形市 | O35: 川原宿 | P35: 1 | Q35: 1 | R35: - | S35: - | T35: - | U35: 1 | V35: x | W35: x | X35: x | Y35: 6 | Z35: 1 | AA35: 5 | AB35: 1 | AC35: - | AD35: x | AE35: x | AF35: x | AG35: x | AH35: x | AI35: - | AJ35: - | AK35: x | AL35: x | AM35: x | AN35: x | AO35: x | AP35: x | AQ35: x | AR35: x | AS35: 1 | AT35: x | AU35: - | AV35: - | AW35: - | AX35: - | AY35: - | AZ35: x | BA35: x | BB35: x | BC35: x | BD35: x | BE35: x | BF35: x | BG35: x | BH35: x | BI35: x | BJ35: x | BK35: x | BL35: x | BM35: - | BN35: - | BO35: - | BP35: - | BQ35: - | BR35: - | BS35: - | BT35: - | BU35: - | BV35: - | BW35: - | BX35: - | BY35: - | BZ35: x | CA35: x | CB35: x | CC35: x | CD35: x | CE35: x | CF35: x | CG35: x | CH35: x | CI35: x | CJ35: x | CK35: x | CL35: - | CM35: - | CN35: - | CO35: - | CP35: - | CQ35: - | CR35: - | CS35: - | CT35: - | CU35: - | CV35: - | CW35: - | CX35: x | CY35: x | CZ35: x | DA35: - | DB35: - | DC35: - | DD35: x | DE35: x | DF35: x | DG35: x | DH35: x | DI35: x | DJ35: x | DK35: x | DL35: x | DM35: - | DN35: - | DO35: - | DP35: - | DQ35: - | DR35: - | DS35: - | DT35: - | DU35: - | DV35: x | DW35: x | DX35: x | DY35: x | DZ35: x | EA35: x | EB35: x | EC35: x | ED35: x | EE35: x | EF35: x | EG35: x | EH35: x | EI35: x | EJ35: - | EK35: - | EL35: - | EM35: - | EN35: - | EO35: - | EP35: - | EQ35: - | ER35: - | ES35: - | ET35: - | EU35: - | EV35: - | EW35: - | EX35: x | EY35: x | EZ35: x | FA35: x | FB35: x | FC35: x | FD35: x | FE35: x | FF35: x | FG35: x | FH35: x | FI35: x | FJ35: x | FK35: x | FL35: x | FM35: x | FN35: x | FO35: x | FP35: x | FQ35: x | FR35: x | FS35: x | FT35: x | FU35: x | FV35: 2 | FW35: x | FX35: x | FY35: x | FZ35: x | GA35: x | GB35: x | GC35: x | GD35: x | GE35: x | GF35: x | GG35: x | GH35: x | GI35: x | HJ35: 1 | HK35: x | HL35: x | HM35: x | HN35: x | HO35: x | HP35: x | HQ35: x | HR35: x | HS35: x | HT35: x | HU35: x | HV35: x | HW35: x | HX35: x | HY35: x | HZ35: x | IA35: x | IB35: x | IC35: x | ID35: x | IE35: x | IF35: x | IG35: x | IH35: x | II35: x | IJ35: x | IK35: - | IL35: x | IM35: x | IN35: x | IO35: x | IP35: x | IQ35: - | IR35: x | IS35: x | IT35: x | IU35: x | IV35: x | IW35: x | IX35: - | IY35: x | IZ35: x | JA35: x | JB35: x | JC35: x | JD35: - | JE35: x | JF35: x | JG35: x | JH35: x | JI35: x | LJ35: 1 | LK35: x | LL35: x | LM35: x | LN35: x | LO35: x | LP35: x | LQ35: - | LR35: - | LS35: - | LT35: - | LU35: - | LV35: - | LW35: - | LX35: 1 | LY35: x | LZ35: x | MA35: x | MB35: x | MC35: x | MD35: x | ME35: x | MF35: x | MG35: x | MH35: x | MI35: x | MJ35: x | MK35: x | ML35: - | MM35: - | MN35: - | MO35: - | MP35: - | MQ35: - | MR35: - | MS35: - | MT35: - | MU35: - | MV35: - | MW35: - | MX35: - | MY35: -
B36: 0620101019 | C36: 1 | H36: 06 | I36: 201 | J36: 01 | K36: 019 | L36: 山形県 | M36: 山形市 | N36: 【旧】山形市 | O36: 入宿 | P36: - | Q36: - | R36: - | S36: - | T36: - | U36: - | V36: - | W36: - | X36: - | Y36: 1 | Z36: - | AA36: 1 | AB36: - | AC36: - | AD36: - | AE36: - | AF36: - | AG36: - | AH36: - | AI36: - | AJ36: - | AK36: - | AL36: - | AM36: - | AN36: - | AO36: - | AP36: - | AQ36: - | AR36: - | AS36: - | AT36: - | AU36: - | AV36: - | AW36: - | AX36: - | AY36: - | AZ36: - | BA36: - | BB36: - | BC36: - | BD36: - | BE36: - | BF36: - | BG36: - | BH36: - | BI36: - | BJ36: - | BK36: - | BL36: - | BM36: - | BN36: - | BO36: - | BP36: - | BQ36: - | BR36: - | BS36: - | BT36: - | BU36: - | BV36: - | BW36: - | BX36: - | BY36: - | BZ36: - | CA36: - | CB36: - | CC36: - | CD36: - | CE36: - | CF36: - | CG36: - | CH36: - | CI36: - | CJ36: - | CK36: - | CL36: - | CM36: - | CN36: - | CO36: - | CP36: - | CQ36: - | CR36: - | CS36: - | CT36: - | CU36: - | CV36: - | CW36: - | CX36: - | CY36: - | CZ36: - | DA36: - | DB36: - | DC36: - | DD36: - | DE36: - | DF36: - | DG36: - | DH36: - | DI36: - | DJ36: - | DK36: - | DL36: - | DM36: - | DN36: - | DO36: - | DP36: - | DQ36: - | DR36: - | DS36: - | DT36: - | DU36: - | DV36: - | DW36: - | DX36: - | DY36: - | DZ36: - | EA36: - | EB36: - | EC36: - | ED36: - | EE36: - | EF36: - | EG36: - | EH36: - | EI36: - | EJ36: - | EK36: - | EL36: - | EM36: - | EN36: - | EO36: - | EP36: - | EQ36: - | ER36: - | ES36: - | ET36: - | EU36: - | EV36: - | EW36: - | EX36: - | EY36: - | EZ36: - | FA36: - | FB36: - | FC36: - | FD36: - | FE36: - | FF36: - | FG36: - | FH36: - | FI36: - | FJ36: - | FK36: - | FL36: - | FM36: - | FN36: - | FO36: - | FP36: - | FQ36: - | FR36: - | FS36: - | FT36: - | FU36: - | FV36: - | FW36: - | FX36: - | FY36: - | FZ36: - | GA36: - | GB36: - | GC36: - | GD36: - | GE36: - | GF36: - | GG36: - | GH36: - | GI36: - | HJ36: - | HK36: - | HL36: - | HM36: - | HN36: - | HO36: - | HP36: - | HQ36: - | HR36: - | HS36: - | HT36: - | HU36: - | HV36: - | HW36: - | HX36: - | HY36: - | HZ36: - | IA36: - | IB36: - | IC36: - | ID36: - | IE36: - | IF36: - | IG36: - | IH36: - | II36: - | IJ36: - | IK36: - | IL36: - | IM36: - | IN36: - | IO36: - | IP36: - | IQ36: - | IR36: - | IS36: - | IT36: - | IU36: - | IV36: - | IW36: - | IX36: - | IY36: - | IZ36: - | JA36: - | JB36: - | JC36: - | JD36: - | JE36: - | JF36: - | JG36: - | JH36: - | JI36: - | LJ36: - | LK36: - | LL36: - | LM36: - | LN36: - | LO36: - | LP36: - | LQ36: - | LR36: - | LS36: - | LT36: - | LU36: - | LV36: - | LW36: - | LX36: - | LY36: - | LZ36: - | MA36: - | MB36: - | MC36: - | MD36: - | ME36: - | MF36: - | MG36: - | MH36: - | MI36: - | MJ36: - | MK36: - | ML36: - | MM36: - | MN36: - | MO36: - | MP36: - | MQ36: - | MR36: - | MS36: - | MT36: - | MU36: - | MV36: - | MW36: - | MX36: - | MY36: -
B37: 0620101020 | C37: 1 | H37: 06 | I37: 201 | J37: 01 | K37: 020 | L37: 山形県 | M37: 山形市 | N37: 【旧】山形市 | O37: 双月 | P37: 1 | Q37: - | R37: - | S37: 1 | T37: - | U37: - | V37: - | W37: - | X37: - | Y37: 5 | Z37: - | AA37: 5 | AB37: 1 | AC37: - | AD37: x | AE37: x | AF37: x | AG37: x | AH37: x | AI37: 1 | AJ37: - | AK37: x | AL37: x | AM37: x | AN37: x | AO37: x | AP37: x | AQ37: x | AR37: x | AS37: - | AT37: x | AU37: x | AV37: x | AW37: x | AX37: - | AY37: x | AZ37: x | BA37: x | BB37: x | BC37: x | BD37: x | BE37: x | BF37: x | BG37: x | BH37: x | BI37: x | BJ37: x | BK37: x | BL37: x | BM37: x | BN37: x | BO37: x | BP37: x | BQ37: x | BR37: x | BS37: x | BT37: x | BU37: x | BV37: x | BW37: x | BX37: x | BY37: x | BZ37: x | CA37: x | CB37: x | CC37: x | CD37: x | CE37: x | CF37: x | CG37: x | CH37: x | CI37: x | CJ37: x | CK37: x | CL37: x | CM37: x | CN37: x | CO37: x | CP37: x | CQ37: x | CR37: x | CS37: x | CT37: x | CU37: x | CV37: x | CW37: x | CX37: x | CY37: x | CZ37: x | DA37: x | DB37: x | DC37: x | DD37: x | DE37: x | DF37: x | DG37: x | DH37: x | DI37: x | DJ37: x | DK37: x | DL37: x | DM37: x | DN37: x | DO37: x | DP37: x | DQ37: x | DR37: x | DS37: x | DT37: x | DU37: x | DV37: x | DW37: x | DX37: x | DY37: x | DZ37: x | EA37: x | EB37: x | EC37: x | ED37: x | EE37: x | EF37: x | EG37: x | EH37: x | EI37: x | EJ37: x | EK37: x | EL37: x | EM37: x | EN37: x | EO37: x | EP37: x | EQ37: x | ER37: x | ES37: x | ET37: x | EU37: x | EV37: x | EW37: x | EX37: x | EY37: x | EZ37: x | FA37: x | FB37: x | FC37: x | FD37: x | FE37: x | FF37: x | FG37: x | FH37: x | FI37: x | FJ37: x | FK37: x | FL37: x | FM37: x | FN37: x | FO37: x | FP37: x | FQ37: x | FR37: x | FS37: x | FT37: x | FU37: x | FV37: - | FW37: - | FX37: - | FY37: - | FZ37: - | GA37: - | GB37: - | GC37: - | GD37: - | GE37: - | GF37: - | GG37: - | GH37: - | GI37: - | HJ37: 1 | HK37: x | HL37: x | HM37: x | HN37: x | HO37: x | HP37: x | HQ37: x | HR37: x | HS37: x | HT37: x | HU37: x | HV37: x | HW37: x | HX37: x | HY37: x | HZ37: x | IA37: x | IB37: x | IC37: x | ID37: x | IE37: x | IF37: x | IG37: x | IH37: x | II37: x | IJ37: x | IK37: - | IL37: x | IM37: x | IN37: x | IO37: x | IP37: x | IQ37: - | IR37: x | IS37: x | IT37: x | IU37: x | IV37: x | IW37: x | IX37: - | IY37: x | IZ37: x | JA37: x | JB37: x | JC37: x | JD37: - | JE37: x | JF37: x | JG37: x | JH37: x | JI37: x | LJ37: 1 | LK37: x | LL37: x | LM37: x | LN37: x | LO37: x | LP37: x | LQ37: 1 | LR37: x | LS37: x | LT37: x | LU37: x | LV37: x | LW37: x | LX37: 1 | LY37: x | LZ37: x | MA37: x | MB37: x | MC37: x | MD37: x | ME37: x | MF37: x | MG37: x | MH37: x | MI37: x | MJ37: x | MK37: x | ML37: 1 | MM37: x | MN37: x | MO37: x | MP37: x | MQ37: x | MR37: x | MS37: x | MT37: x | MU37: x | MV37: x | MW37: x | MX37: x | MY37: x
B38: 0620101021 | C38: 1 | H38: 06 | I38: 201 | J38: 01 | K38: 021 | L38: 山形県 | M38: 山形市 | N38: 【旧】山形市 | O38: 大野目 | P38: - | Q38: - | R38: - | S38: - | T38: - | U38: - | V38: - | W38: - | X38: - | Y38: 6 | Z38: - | AA38: 6 | AB38: - | AC38: - | AD38: - | AE38: - | AF38: - | AG38: - | AH38: - | AI38: - | AJ38: - | AK38: - | AL38: - | AM38: - | AN38: - | AO38: - | AP38: - | AQ38: - | AR38: - | AS38: - | AT38: - | AU38: - | AV38: - | AW38: - | AX38: - | AY38: - | AZ38: - | BA38: - | BB38: - | BC38: - | BD38: - | BE38: - | BF38: - | BG38: - | BH38: - | BI38: - | BJ38: - | BK38: - | BL38: - | BM38: - | BN38: - | BO38: - | BP38: - | BQ38: - | BR38: - | BS38: - | BT38: - | BU38: - | BV38: - | BW38: - | BX38: - | BY38: - | BZ38: - | CA38: - | CB38: - | CC38: - | CD38: - | CE38: - | CF38: - | CG38: - | CH38: - | CI38: - | CJ38: - | CK38: - | CL38: - | CM38: - | CN38: - | CO38: - | CP38: - | CQ38: - | CR38: - | CS38: - | CT38: - | CU38: - | CV38: - | CW38: - | CX38: - | CY38: - | CZ38: - | DA38: - | DB38: - | DC38: - | DD38: - | DE38: - | DF38: - | DG38: - | DH38: - | DI38: - | DJ38: - | DK38: - | DL38: - | DM38: - | DN38: - | DO38: - | DP38: - | DQ38: - | DR38: - | DS38: - | DT38: - | DU38: - | DV38: - | DW38: - | DX38: - | DY38: - | DZ38: - | EA38: - | EB38: - | EC38: - | ED38: - | EE38: - | EF38: - | EG38: - | EH38: - | EI38: - | EJ38: - | EK38: - | EL38: - | EM38: - | EN38: - | EO38: - | EP38: - | EQ38: - | ER38: - | ES38: - | ET38: - | EU38: - | EV38: - | EW38: - | EX38: - | EY38: - | EZ38: - | FA38: - | FB38: - | FC38: - | FD38: - | FE38: - | FF38: - | FG38: - | FH38: - | FI38: - | FJ38: - | FK38: - | FL38: - | FM38: - | FN38: - | FO38: - | FP38: - | FQ38: - | FR38: - | FS38: - | FT38: - | FU38: - | FV38: - | FW38: - | FX38: - | FY38: - | FZ38: - | GA38: - | GB38: - | GC38: - | GD38: - | GE38: - | GF38: - | GG38: - | GH38: - | GI38: - | HJ38: - | HK38: - | HL38: - | HM38: - | HN38: - | HO38: - | HP38: - | HQ38: - | HR38: - | HS38: - | HT38: - | HU38: - | HV38: - | HW38: - | HX38: - | HY38: - | HZ38: - | IA38: - | IB38: - | IC38: - | ID38: - | IE38: - | IF38: - | IG38: - | IH38: - | II38: - | IJ38: - | IK38: - | IL38: - | IM38: - | IN38: - | IO38: - | IP38: - | IQ38: - | IR38: - | IS38: - | IT38: - | IU38: - | IV38: - | IW38: - | IX38: - | IY38: - | IZ38: - | JA38: - | JB38: - | JC38: - | JD38: - | JE38: - | JF38: - | JG38: - | JH38: - | JI38: - | LJ38: - | LK38: - | LL38: - | LM38: - | LN38: - | LO38: - | LP38: - | LQ38: - | LR38: - | LS38: - | LT38: - | LU38: - | LV38: - | LW38: - | LX38: - | LY38: - | LZ38: - | MA38: - | MB38: - | MC38: - | MD38: - | ME38: - | MF38: - | MG38: - | MH38: - | MI38: - | MJ38: - | MK38: - | ML38: - | MM38: - | MN38: - | MO38: - | MP38: - | MQ38: - | MR38: - | MS38: - | MT38: - | MU38: - | MV38: - | MW38: - | MX38: - | MY38: -
B39: 0620101022 | C39: 1 | H39: 06 | I39: 201 | J39: 01 | K39: 022 | L39: 山形県 | M39: 山形市 | N39: 【旧】山形市 | O39: 浜田（山形） | P39: - | Q39: - | R39: - | S39: - | T39: - | U39: - | V39: - | W39: - | X39: - | Y39: 2 | Z39: - | AA39: 2 | AB39: - | AC39: - | AD39: - | AE39: - | AF39: - | AG39: - | AH39: - | AI39: - | AJ39: - | AK39: - | AL39: - | AM39: - | AN39: - | AO39: - | AP39: - | AQ39: - | AR39: - | AS39: - | AT39: - | AU39: - | AV39: - | AW39: - | AX39: - | AY39: - | AZ39: - | BA39: - | BB39: - | BC39: - | BD39: - | BE39: - | BF39: - | BG39: - | BH39: - | BI39: - | BJ39: - | BK39: - | BL39: - | BM39: - | BN39: - | BO39: - | BP39: - | BQ39: - | BR39: - | BS39: - | BT39: - | BU39: - | BV39: - | BW39: - | BX39: - | BY39: - | BZ39: - | CA39: - | CB39: - | CC39: - | CD39: - | CE39: - | CF39: - | CG39: - | CH39: - | CI39: - | CJ39: - | CK39: - | CL39: - | CM39: - | CN39: - | CO39: - | CP39: - | CQ39: - | CR39: - | CS39: - | CT39: - | CU39: - | CV39: - | CW39: - | CX39: - | CY39: - | CZ39: - | DA39: - | DB39: - | DC39: - | DD39: - | DE39: - | DF39: - | DG39: - | DH39: - | DI39: - | DJ39: - | DK39: - | DL39: - | DM39: - | DN39: - | DO39: - | DP39: - | DQ39: - | DR39: - | DS39: - | DT39: - | DU39: - | DV39: - | DW39: - | DX39: - | DY39: - | DZ39: - | EA39: - | EB39: - | EC39: - | ED39: - | EE39: - | EF39: - | EG39: - | EH39: - | EI39: - | EJ39: - | EK39: - | EL39: - | EM39: - | EN39: - | EO39: - | EP39: - | EQ39: - | ER39: - | ES39: - | ET39: - | EU39: - | EV39: - | EW39: - | EX39: - | EY39: - | EZ39: - | FA39: - | FB39: - | FC39: - | FD39: - | FE39: - | FF39: - | FG39: - | FH39: - | FI39: - | FJ39: - | FK39: - | FL39: - | FM39: - | FN39: - | FO39: - | FP39: - | FQ39: - | FR39: - | FS39: - | FT39: - | FU39: - | FV39: - | FW39: - | FX39: - | FY39: - | FZ39: - | GA39: - | GB39: - | GC39: - | GD39: - | GE39: - | GF39: - | GG39: - | GH39: - | GI39: - | HJ39: - | HK39: - | HL39: - | HM39: - | HN39: - | HO39: - | HP39: - | HQ39: - | HR39: - | HS39: - | HT39: - | HU39: - | HV39: - | HW39: - | HX39: - | HY39: - | HZ39: - | IA39: - | IB39: - | IC39: - | ID39: - | IE39: - | IF39: - | IG39: - | IH39: - | II39: - | IJ39: - | IK39: - | IL39: - | IM39: - | IN39: - | IO39: - | IP39: - | IQ39: - | IR39: - | IS39: - | IT39: - | IU39: - | IV39: - | IW39: - | IX39: - | IY39: - | IZ39: - | JA39: - | JB39: - | JC39: - | JD39: - | JE39: - | JF39: - | JG39: - | JH39: - | JI39: - | LJ39: - | LK39: - | LL39: - | LM39: - | LN39: - | LO39: - | LP39: - | LQ39: - | LR39: - | LS39: - | LT39: - | LU39: - | LV39: - | LW39: - | LX39: - | LY39: - | LZ39: - | MA39: - | MB39: - | MC39: - | MD39: - | ME39: - | MF39: - | MG39: - | MH39: - | MI39: - | MJ39: - | MK39: - | ML39: - | MM39: - | MN39: - | MO39: - | MP39: - | MQ39: - | MR39: - | MS39: - | MT39: - | MU39: - | MV39: - | MW39: - | MX39: - | MY39: -
B40: 0620101023 | C40: 1 | H40: 06 | I40: 201 | J40: 01 | K40: 023 | L40: 山形県 | M40: 山形市 | N40: 【旧】山形市 | O40: 印役 | P40: 12 | Q40: 10 | R40: - | S40: 2 | T40: 1 | U40: 10 | V40: 2 | W40: 3 | X40: 5 | Y40: 27 | Z40: 10 | AA40: 17 | AB40: 12 | AC40: 1 | AD40: - | AE40: 1 | AF40: - | AG40: - | AH40: 11 | AI40: 2 | AJ40: 1 | AK40: - | AL40: 1 | AM40: - | AN40: - | AO40: 1 | AP40: 1 | AQ40: 725 | AR40: 1 | AS40: 2 | AT40: 11 | AU40: x | AV40: x | AW40: x | AX40: - | AY40: x | AZ40: 12 | BA40: 1 | BB40: 4 | BC40: 2 | BD40: 1 | BE40: 2 | BF40: 2 | BG40: - | BH40: - | BI40: - | BJ40: - | BK40: - | BL40: - | BM40: x | BN40: x | BO40: x | BP40: x | BQ40: x | BR40: x | BS40: x | BT40: x | BU40: x | BV40: x | BW40: x | BX40: x | BY40: x | BZ40: 3001 | CA40: 318 | CB40: 248 | CC40: 240 | CD40: 685 | CE40: 1510 | CF40: - | CG40: - | CH40: - | CI40: - | CJ40: - | CK40: - | CL40: x | CM40: x | CN40: x | CO40: x | CP40: x | CQ40: x | CR40: x | CS40: x | CT40: x | CU40: x | CV40: x | CW40: x | CX40: 250.1 | CY40: 108.8 | CZ40: 141.3 | DA40: x | DB40: x | DC40: x | DD40: 9 | DE40: 4 | DF40: 1 | DG40: 1 | DH40: 3 | DI40: - | DJ40: - | DK40: - | DL40: - | DM40: x | DN40: x | DO40: x | DP40: x | DQ40: x | DR40: x | DS40: x | DT40: x | DU40: x | DV40: 9 | DW40: 4 | DX40: - | DY40: 1 | DZ40: - | EA40: - | EB40: 4 | EC40: - | ED40: - | EE40: - | EF40: - | EG40: - | EH40: - | EI40: - | EJ40: x | EK40: x | EL40: x | EM40: x | EN40: x | EO40: x | EP40: x | EQ40: x | ER40: x | ES40: x | ET40: x | EU40: x | EV40: x | EW40: x | EX40: 10 | EY40: 6 | EZ40: - | FA40: 1 | FB40: 1 | FC40: 1 | FD40: 1 | FE40: 4 | FF40: 4 | FG40: 1 | FH40: - | FI40: 1 | FJ40: 2,215 | FK40: 1,428 | FL40: - | FM40: x | FN40: x | FO40: x | FP40: x | FQ40: 161 | FR40: 135 | FS40: x | FT40: - | FU40: x | FV40: 15 | FW40: 1 | FX40: 1 | FY40: - | FZ40: 2 | GA40: 2 | GB40: 2 | GC40: 7 | GD40: 2 | GE40: 1 | GF40: 2 | GG40: 2 | GH40: - | GI40: 62.3 | HJ40: 12 | HK40: - | HL40: 1 | HM40: - | HN40: 1 | HO40: 1 | HP40: 1 | HQ40: 8 | HR40: 4 | HS40: 1 | HT40: 1 | HU40: 2 | HV40: - | HW40: 6 | HX40: - | HY40: - | HZ40: - | IA40: - | IB40: 1 | IC40: 1 | ID40: 4 | IE40: 1 | IF40: - | IG40: 1 | IH40: 2 | II40: - | IJ40: - | IK40: - | IL40: - | IM40: - | IN40: - | IO40: - | IP40: - | IQ40: - | IR40: - | IS40: - | IT40: - | IU40: - | IV40: - | IW40: 6 | IX40: - | IY40: 1 | IZ40: - | JA40: 1 | JB40: - | JC40: - | JD40: 4 | JE40: 3 | JF40: 1 | JG40: - | JH40: - | JI40: - | LJ40: 12 | LK40: 6 | LL40: 6 | LM40: 2 | LN40: - | LO40: 1 | LP40: 6 | LQ40: 2 | LR40: x | LS40: x | LT40: x | LU40: x | LV40: x | LW40: x | LX40: 12 | LY40: - | LZ40: - | MA40: - | MB40: - | MC40: - | MD40: - | ME40: - | MF40: - | MG40: - | MH40: - | MI40: - | MJ40: - | MK40: 12 | ML40: 2 | MM40: x | MN40: x | MO40: x | MP40: x | MQ40: x | MR40: x | MS40: x | MT40: x | MU40: x | MV40: x | MW40: x | MX40: x | MY40: x
B41: 0620101024 | C41: 1 | H41: 06 | I41: 201 | J41: 01 | K41: 024 | L41: 山形県 | M41: 山形市 | N41: 【旧】山形市 | O41: 高原 | P41: 2 | Q41: 2 | R41: - | S41: - | T41: - | U41: 2 | V41: x | W41: x | X41: x | Y41: 16 | Z41: 2 | AA41: 14 | AB41: 2 | AC41: - | AD41: x | AE41: x | AF41: x | AG41: x | AH41: x | AI41: - | AJ41: - | AK41: x | AL41: x | AM41: x | AN41: x | AO41: x | AP41: x | AQ41: x | AR41: x | AS41: - | AT41: x | AU41: - | AV41: - | AW41: - | AX41: - | AY41: - | AZ41: x | BA41: x | BB41: x | BC41: x | BD41: x | BE41: x | BF41: x | BG41: x | BH41: x | BI41: x | BJ41: x | BK41: x | BL41: x | BM41: - | BN41: - | BO41: - | BP41: - | BQ41: - | BR41: - | BS41: - | BT41: - | BU41: - | BV41: - | BW41: - | BX41: - | BY41: - | BZ41: x | CA41: x | CB41: x | CC41: x | CD41: x | CE41: x | CF41: x | CG41: x | CH41: x | CI41: x | CJ41: x | CK41: x | CL41: - | CM41: - | CN41: - | CO41: - | CP41: - | CQ41: - | CR41: - | CS41: - | CT41: - | CU41: - | CV41: - | CW41: - | CX41: x | CY41: x | CZ41: x | DA41: - | DB41: - | DC41: - | DD41: x | DE41: x | DF41: x | DG41: x | DH41: x | DI41: x | DJ41: x | DK41: x | DL41: x | DM41: - | DN41: - | DO41: - | DP41: - | DQ41: - | DR41: - | DS41: - | DT41: - | DU41: - | DV41: x | DW41: x | DX41: x | DY41: x | DZ41: x | EA41: x | EB41: x | EC41: x | ED41: x | EE41: x | EF41: x | EG41: x | EH41: x | EI41: x | EJ41: - | EK41: - | EL41: - | EM41: - | EN41: - | EO41: - | EP41: - | EQ41: - | ER41: - | ES41: - | ET41: - | EU41: - | EV41: - | EW41: - | EX41: x | EY41: x | EZ41: x | FA41: x | FB41: x | FC41: x | FD41: x | FE41: x | FF41: x | FG41: x | FH41: x | FI41: x | FJ41: x | FK41: x | FL41: x | FM41: x | FN41: x | FO41: x | FP41: x | FQ41: x | FR41: x | FS41: x | FT41: x | FU41: x | FV41: 4 | FW41: x | FX41: x | FY41: x | FZ41: x | GA41: x | GB41: x | GC41: x | GD41: x | GE41: x | GF41: x | GG41: x | GH41: x | GI41: x | HJ41: 2 | HK41: x | HL41: x | HM41: x | HN41: x | HO41: x | HP41: x | HQ41: x | HR41: x | HS41: x | HT41: x | HU41: x | HV41: x | HW41: x | HX41: x | HY41: x | HZ41: x | IA41: x | IB41: x | IC41: x | ID41: x | IE41: x | IF41: x | IG41: x | IH41: x | II41: x | IJ41: x | IK41: - | IL41: x | IM41: x | IN41: x | IO41: x | IP41: x | IQ41: - | IR41: x | IS41: x | IT41: x | IU41: x | IV41: x | IW41: x | IX41: - | IY41: x | IZ41: x | JA41: x | JB41: x | JC41: x | JD41: - | JE41: x | JF41: x | JG41: x | JH41: x | JI41: x | LJ41: 2 | LK41: x | LL41: x | LM41: x | LN41: x | LO41: x | LP41: x | LQ41: - | LR41: - | LS41: - | LT41: - | LU41: - | LV41: - | LW41: - | LX41: 2 | LY41: x | LZ41: x | MA41: x | MB41: x | MC41: x | MD41: x | ME41: x | MF41: x | MG41: x | MH41: x | MI41: x | MJ41: x | MK41: x | ML41: - | MM41: - | MN41: - | MO41: - | MP41: - | MQ41: - | MR41: - | MS41: - | MT41: - | MU41: - | MV41: - | MW41: - | MX41: - | MY41: -
B42: 0620101025 | C42: 1 | H42: 06 | I42: 201 | J42: 01 | K42: 025 | L42: 山形県 | M42: 山形市 | N42: 【旧】山形市 | O42: 沖の原（山形） | P42: 7 | Q42: 7 | R42: - | S42: - | T42: - | U42: 7 | V42: 1 | W42: 3 | X42: 3 | Y42: 17 | Z42: 7 | AA42: 10 | AB42: 7 | AC42: - | AD42: - | AE42: - | AF42: - | AG42: - | AH42: 7 | AI42: - | AJ42: - | AK42: - | AL42: - | AM42: - | AN42: - | AO42: - | AP42: 1 | AQ42: 50 | AR42: 1 | AS42: 1 | AT42: 6 | AU42: - | AV42: - | AW42: - | AX42: - | AY42: - | AZ42: 7 | BA42: 1 | BB42: 2 | BC42: 1 | BD42: 2 | BE42: 1 | BF42: - | BG42: - | BH42: - | BI42: - | BJ42: - | BK42: - | BL42: - | BM42: - | BN42: - | BO42: - | BP42: - | BQ42: - | BR42: - | BS42: - | BT42: - | BU42: - | BV42: - | BW42: - | BX42: - | BY42: - | BZ42: 1231 | CA42: 192 | CB42: 120 | CC42: 530 | CD42: 389 | CE42: - | CF42: - | CG42: - | CH42: - | CI42: - | CJ42: - | CK42: - | CL42: - | CM42: - | CN42: - | CO42: - | CP42: - | CQ42: - | CR42: - | CS42: - | CT42: - | CU42: - | CV42: - | CW42: - | CX42: 175.9 | CY42: 73.1 | CZ42: 102.7 | DA42: - | DB42: - | DC42: - | DD42: 7 | DE42: 4 | DF42: 1 | DG42: 2 | DH42: - | DI42: - | DJ42: - | DK42: - | DL42: - | DM42: - | DN42: - | DO42: - | DP42: - | DQ42: - | DR42: - | DS42: - | DT42: - | DU42: - | DV42: 7 | DW42: 5 | DX42: - | DY42: - | DZ42: - | EA42: 1 | EB42: 1 | EC42: - | ED42: - | EE42: - | EF42: - | EG42: - | EH42: - | EI42: - | EJ42: - | EK42: - | EL42: - | EM42: - | EN42: - | EO42: - | EP42: - | EQ42: - | ER42: - | ES42: - | ET42: - | EU42: - | EV42: - | EW42: - | EX42: 7 | EY42: 5 | EZ42: - | FA42: 2 | FB42: - | FC42: - | FD42: - | FE42: 4 | FF42: 2 | FG42: 1 | FH42: - | FI42: - | FJ42: 1,022 | FK42: 850 | FL42: - | FM42: x | FN42: - | FO42: - | FP42: - | FQ42: 56 | FR42: x | FS42: x | FT42: - | FU42: - | FV42: 14 | FW42: 1 | FX42: - | FY42: 1 | FZ42: 1 | GA42: 1 | GB42: 1 | GC42: 9 | GD42: 1 | GE42: 2 | GF42: 2 | GG42: 1 | GH42: 3 | GI42: 68.9 | HJ42: 7 | HK42: - | HL42: - | HM42: - | HN42: - | HO42: - | HP42: - | HQ42: 7 | HR42: 1 | HS42: - | HT42: 3 | HU42: 1 | HV42: 2 | HW42: 4 | HX42: - | HY42: - | HZ42: - | IA42: - | IB42: - | IC42: - | ID42: 4 | IE42: - | IF42: - | IG42: 2 | IH42: 1 | II42: 1 | IJ42: - | IK42: - | IL42: - | IM42: - | IN42: - | IO42: - | IP42: - | IQ42: - | IR42: - | IS42: - | IT42: - | IU42: - | IV42: - | IW42: 3 | IX42: - | IY42: - | IZ42: - | JA42: - | JB42: - | JC42: - | JD42: 3 | JE42: 1 | JF42: - | JG42: 1 | JH42: - | JI42: 1 | LJ42: 7 | LK42: 2 | LL42: 2 | LM42: - | LN42: - | LO42: - | LP42: 5 | LQ42: - | LR42: - | LS42: - | LT42: - | LU42: - | LV42: - | LW42: - | LX42: 7 | LY42: 1 | LZ42: 6 | MA42: - | MB42: - | MC42: - | MD42: - | ME42: 1 | MF42: 6 | MG42: - | MH42: - | MI42: - | MJ42: - | MK42: 6 | ML42: - | MM42: - | MN42: - | MO42: - | MP42: - | MQ42: - | MR42: - | MS42: - | MT42: - | MU42: - | MV42: - | MW42: - | MX42: - | MY42: -
B43: 0620101026 | C43: 1 | H43: 06 | I43: 201 | J43: 01 | K43: 026 | L43: 山形県 | M43: 山形市 | N43: 【旧】山形市 | O43: 長町 | P43: 18 | Q43: 16 | R43: - | S43: 2 | T43: 2 | U43: 16 | V43: - | W43: 1 | X43: 15 | Y43: 29 | Z43: 15 | AA43: 14 | AB43: 18 | AC43: 2 | AD43: - | AE43: 2 | AF43: - | AG43: - | AH43: 16 | AI43: 2 | AJ43: 2 | AK43: - | AL43: 2 | AM43: - | AN43: - | AO43: - | AP43: 3 | AQ43: 2,940 | AR43: 1 | AS43: 15 | AT43: 15 | AU43: x | AV43: x | AW43: x | AX43: 15 | AY43: x | AZ43: 17 | BA43: 3 | BB43: 5 | BC43: 7 | BD43: - | BE43: 2 | BF43: - | BG43: - | BH43: - | BI43: - | BJ43: - | BK43: - | BL43: - | BM43: x | BN43: x | BO43: x | BP43: x | BQ43: x | BR43: x | BS43: x | BT43: x | BU43: x | BV43: x | BW43: x | BX43: x | BY43: x | BZ43: 1975 | CA43: 391 | CB43: 850 | CC43: - | CD43: 734 | CE43: - | CF43: - | CG43: - | CH43: - | CI43: - | CJ43: - | CK43: - | CL43: x | CM43: x | CN43: x | CO43: x | CP43: x | CQ43: x | CR43: x | CS43: x | CT43: x | CU43: x | CV43: x | CW43: x | CX43: 116.2 | CY43: 74.6 | CZ43: 41.5 | DA43: x | DB43: x | DC43: x | DD43: 17 | DE43: 5 | DF43: 6 | DG43: 4 | DH43: - | DI43: 2 | DJ43: - | DK43: - | DL43: 2 | DM43: x | DN43: x | DO43: x | DP43: x | DQ43: x | DR43: x | DS43: x | DT43: x | DU43: x | DV43: 17 | DW43: 6 | DX43: - | DY43: 2 | DZ43: - | EA43: 1 | EB43: 4 | EC43: 1 | ED43: 1 | EE43: - | EF43: 1 | EG43: - | EH43: - | EI43: 1 | EJ43: x | EK43: x | EL43: x | EM43: x | EN43: x | EO43: x | EP43: x | EQ43: x | ER43: x | ES43: x | ET43: x | EU43: x | EV43: x | EW43: x | EX43: 16 | EY43: 10 | EZ43: - | FA43: 7 | FB43: - | FC43: - | FD43: - | FE43: 10 | FF43: 9 | FG43: 2 | FH43: 1 | FI43: 2 | FJ43: 1,705 | FK43: 526 | FL43: - | FM43: 813 | FN43: - | FO43: - | FP43: - | FQ43: 146 | FR43: 63 | FS43: x | FT43: x | FU43: x | FV43: 19 | FW43: - | FX43: 1 | FY43: - | FZ43: - | GA43: - | GB43: 1 | GC43: 17 | GD43: 2 | GE43: 4 | GF43: 6 | GG43: 3 | GH43: 2 | GI43: 73.7 | HJ43: 18 | HK43: - | HL43: - | HM43: 1 | HN43: - | HO43: - | HP43: 1 | HQ43: 16 | HR43: 3 | HS43: 3 | HT43: 4 | HU43: 5 | HV43: 1 | HW43: 2 | HX43: - | HY43: - | HZ43: - | IA43: - | IB43: - | IC43: - | ID43: 2 | IE43: - | IF43: 1 | IG43: - | IH43: 1 | II43: - | IJ43: - | IK43: - | IL43: - | IM43: - | IN43: - | IO43: - | IP43: - | IQ43: - | IR43: - | IS43: - | IT43: - | IU43: - | IV43: - | IW43: 16 | IX43: - | IY43: - | IZ43: 1 | JA43: - | JB43: - | JC43: 1 | JD43: 14 | JE43: 3 | JF43: 2 | JG43: 4 | JH43: 4 | JI43: 1 | LJ43: 18 | LK43: 6 | LL43: 5 | LM43: 2 | LN43: 1 | LO43: 1 | LP43: 12 | LQ43: 2 | LR43: x | LS43: x | LT43: x | LU43: x | LV43: x | LW43: x | LX43: 18 | LY43: - | LZ43: - | MA43: - | MB43: - | MC43: - | MD43: - | ME43: - | MF43: - | MG43: - | MH43: - | MI43: - | MJ43: - | MK43: 18 | ML43: 2 | MM43: x | MN43: x | MO43: x | MP43: x | MQ43: x | MR43: x | MS43: x | MT43: x | MU43: x | MV43: x | MW43: x | MX43: x | MY43: x
B44: 0620101027 | C44: 1 | H44: 06 | I44: 201 | J44: 01 | K44: 027 | L44: 山形県 | M44: 山形市 | N44: 【旧】山形市 | O44: 落合（山形） | P44: 25 | Q44: 24 | R44: - | S44: 1 | T44: 1 | U44: 24 | V44: 3 | W44: 3 | X44: 18 | Y44: 47 | Z44: 23 | AA44: 24 | AB44: 25 | AC44: 1 | AD44: - | AE44: 1 | AF44: - | AG44: - | AH44: 24 | AI44: 1 | AJ44: 1 | AK44: - | AL44: 1 | AM44: - | AN44: - | AO44: - | AP44: 4 | AQ44: 760 | AR44: 1 | AS44: 1 | AT44: 21 | AU44: x | AV44: x | AW44: x | AX44: - | AY44: x | AZ44: 24 | BA44: 9 | BB44: 9 | BC44: 3 | BD44: 1 | BE44: - | BF44: 1 | BG44: 1 | BH44: 1 | BI44: - | BJ44: - | BK44: - | BL44: - | BM44: x | BN44: x | BO44: x | BP44: x | BQ44: x | BR44: x | BS44: x | BT44: x | BU44: x | BV44: x | BW44: x | BX44: x | BY44: x | BZ44: 3833 | CA44: 851 | CB44: 451 | CC44: 281 | CD44: - | CE44: 730 | CF44: 1520 | CG44: 1520 | CH44: - | CI44: - | CJ44: - | CK44: - | CL44: x | CM44: x | CN44: x | CO44: x | CP44: x | CQ44: x | CR44: x | CS44: x | CT44: x | CU44: x | CV44: x | CW44: x | CX44: 159.7 | CY44: 82.8 | CZ44: 76.9 | DA44: x | DB44: x | DC44: x | DD44: 25 | DE44: 9 | DF44: 7 | DG44: 7 | DH44: 2 | DI44: - | DJ44: - | DK44: - | DL44: - | DM44: x | DN44: x | DO44: x | DP44: x | DQ44: x | DR44: x | DS44: x | DT44: x | DU44: x | DV44: 25 | DW44: 8 | DX44: - | DY44: - | DZ44: - | EA44: 7 | EB44: 9 | EC44: - | ED44: - | EE44: - | EF44: - | EG44: - | EH44: - | EI44: 1 | EJ44: x | EK44: x | EL44: x | EM44: x | EN44: x | EO44: x | EP44: x | EQ44: x | ER44: x | ES44: x | ET44: x | EU44: x | EV44: x | EW44: x | EX44: 24 | EY44: 12 | EZ44: - | FA44: 1 | FB44: - | FC44: - | FD44: - | FE44: 20 | FF44: 19 | FG44: 2 | FH44: - | FI44: 2 | FJ44: 4,154 | FK44: 2,779 | FL44: - | FM44: x | FN44: - | FO44: - | FP44: - | FQ44: 910 | FR44: 270 | FS44: x | FT44: - | FU44: x | FV44: 48 | FW44: 1 | FX44: - | FY44: 4 | FZ44: 1 | GA44: 1 | GB44: 1 | GC44: 40 | GD44: 8 | GE44: 13 | GF44: 15 | GG44: 2 | GH44: 2 | GI44: 69.7 | HJ44: 25 | HK44: - | HL44: - | HM44: 2 | HN44: 1 | HO44: - | HP44: - | HQ44: 22 | HR44: 3 | HS44: 7 | HT44: 9 | HU44: 1 | HV44: 2 | HW44: 4 | HX44: - | HY44: - | HZ44: 1 | IA44: - | IB44: - | IC44: - | ID44: 3 | IE44: - | IF44: 1 | IG44: 2 | IH44: - | II44: - | IJ44: 2 | IK44: - | IL44: - | IM44: - | IN44: - | IO44: - | IP44: - | IQ44: 2 | IR44: - | IS44: - | IT44: 1 | IU44: - | IV44: 1 | IW44: 19 | IX44: - | IY44: - | IZ44: 1 | JA44: 1 | JB44: - | JC44: - | JD44: 17 | JE44: 3 | JF44: 6 | JG44: 6 | JH44: 1 | JI44: 1 | LJ44: 25 | LK44: 10 | LL44: 9 | LM44: 2 | LN44: - | LO44: - | LP44: 15 | LQ44: 1 | LR44: x | LS44: x | LT44: x | LU44: x | LV44: x | LW44: x | LX44: 25 | LY44: 1 | LZ44: 50 | MA44: 1 | MB44: 50 | MC44: - | MD44: - | ME44: - | MF44: - | MG44: - | MH44: - | MI44: - | MJ44: - | MK44: 24 | ML44: 1 | MM44: x | MN44: x | MO44: x | MP44: x | MQ44: x | MR44: x | MS44: x | MT44: x | MU44: x | MV44: x | MW44: x | MX44: x | MY44: x
B45: 0620102000 | C45: 1 | H45: 06 | I45: 201 | J45: 02 | K45: 000 | L45: 山形県 | M45: 山形市 | N45: 飯塚村 | P45: 27 | Q45: 27 | R45: - | S45: - | T45: - | U45: 27 | V45: 12 | W45: - | X45: 15 | Y45: 59 | Z45: 27 | AA45: 32 | AB45: 27 | AC45: - | AD45: - | AE45: - | AF45: - | AG45: - | AH45: 27 | AI45: - | AJ45: - | AK45: - | AL45: - | AM45: - | AN45: - | AO45: - | AP45: 4 | AQ45: 40 | AR45: - | AS45: - | AT45: 23 | AU45: - | AV45: - | AW45: - | AX45: - | AY45: - | AZ45: 27 | BA45: 4 | BB45: 5 | BC45: 14 | BD45: 1 | BE45: 1 | BF45: 2 | BG45: - | BH45: - | BI45: - | BJ45: - | BK45: - | BL45: - | BM45: - | BN45: - | BO45: - | BP45: - | BQ45: - | BR45: - | BS45: - | BT45: - | BU45: - | BV45: - | BW45: - | BX45: - | BY45: - | BZ45: 4516 | CA45: 494 | CB45: 1969 | CC45: 203 | CD45: 330 | CE45: 1520 | CF45: - | CG45: - | CH45: - | CI45: - | CJ45: - | CK45: - | CL45: - | CM45: - | CN45: - | CO45: - | CP45: - | CQ45: - | CR45: - | CS45: - | CT45: - | CU45: - | CV45: - | CW45: - | CX45: 167.3 | CY45: 89.3 | CZ45: 78.0 | DA45: - | DB45: - | DC45: - | DD45: 22 | DE45: 7 | DF45: 3 | DG45: 4 | DH45: 8 | DI45: - | DJ45: - | DK45: - | DL45: - | DM45: - | DN45: - | DO45: - | DP45: - | DQ45: - | DR45: - | DS45: - | DT45: - | DU45: - | DV45: 22 | DW45: 7 | DX45: - | DY45: 1 | DZ45: - | EA45: 3 | EB45: 11 | EC45: - | ED45: - | EE45: - | EF45: - | EG45: - | EH45: - | EI45: - | EJ45: - | EK45: - | EL45: - | EM45: - | EN45: - | EO45: - | EP45: - | EQ45: - | ER45: - | ES45: - | ET45: - | EU45: - | EV45: - | EW45: - | EX45: 24 | EY45: 18 | EZ45: - | FA45: - | FB45: 1 | FC45: 2 | FD45: - | FE45: 10 | FF45: 13 | FG45: 1 | FH45: - | FI45: 5 | FJ45: 3,929 | FK45: 3,181 | FL45: - | FM45: - | FN45: x | FO45: x | FP45: - | FQ45: 136 | FR45: 533 | FS45: x | FT45: - | FU45: x | FV45: 47 | FW45: 7 | FX45: 2 | FY45: 2 | FZ45: - | GA45: 3 | GB45: 4 | GC45: 29 | GD45: 10 | GE45: 5 | GF45: 5 | GG45: 3 | GH45: 6 | GI45: 64.0 | HJ45: 27 | HK45: 2 | HL45: - | HM45: 1 | HN45: - | HO45: 4 | HP45: 4 | HQ45: 16 | HR45: 7 | HS45: 3 | HT45: 2 | HU45: - | HV45: 4 | HW45: 8 | HX45: - | HY45: - | HZ45: - | IA45: - | IB45: 1 | IC45: 1 | ID45: 6 | IE45: 4 | IF45: 1 | IG45: - | IH45: - | II45: 1 | IJ45: 2 | IK45: - | IL45: - | IM45: - | IN45: - | IO45: - | IP45: - | IQ45: 2 | IR45: 1 | IS45: - | IT45: - | IU45: - | IV45: 1 | IW45: 17 | IX45: 2 | IY45: - | IZ45: 1 | JA45: - | JB45: 3 | JC45: 3 | JD45: 8 | JE45: 2 | JF45: 2 | JG45: 2 | JH45: - | JI45: 2 | LJ45: 27 | LK45: 12 | LL45: 12 | LM45: 6 | LN45: 3 | LO45: 2 | LP45: 15 | LQ45: - | LR45: - | LS45: - | LT45: - | LU45: - | LV45: - | LW45: - | LX45: 27 | LY45: 3 | LZ45: 167 | MA45: 2 | MB45: 138 | MC45: - | MD45: - | ME45: 1 | MF45: 29 | MG45: - | MH45: - | MI45: - | MJ45: - | MK45: 24 | ML45: - | MM45: - | MN45: - | MO45: - | MP45: - | MQ45: - | MR45: - | MS45: - | MT45: - | MU45: - | MV45: - | MW45: - | MX45: - | MY45: -
B46: 0620102001 | C46: 1 | H46: 06 | I46: 201 | J46: 02 | K46: 001 | L46: 山形県 | M46: 山形市 | N46: 飯塚村 | O46: 飯塚 | P46: 22 | Q46: 22 | R46: - | S46: - | T46: - | U46: 22 | V46: 11 | W46: - | X46: 11 | Y46: 50 | Z46: 22 | AA46: 28 | AB46: 22 | AC46: - | AD46: - | AE46: - | AF46: - | AG46: - | AH46: 22 | AI46: - | AJ46: - | AK46: - | AL46: - | AM46: - | AN46: - | AO46: - | AP46: 3 | AQ46: 38 | AR46: - | AS46: - | AT46: 19 | AU46: - | AV46: - | AW46: - | AX46: - | AY46: - | AZ46: 22 | BA46: 3 | BB46: 4 | BC46: 11 | BD46: 1 | BE46: 1 | BF46: 2 | BG46: - | BH46: - | BI46: - | BJ46: - | BK46: - | BL46: - | BM46: - | BN46: - | BO46: - | BP46: - | BQ46: - | BR46: - | BS46: - | BT46: - | BU46: - | BV46: - | BW46: - | BX46: - | BY46: - | BZ46: 4026 | CA46: 405 | CB46: 1568 | CC46: 203 | CD46: 330 | CE46: 1520 | CF46: - | CG46: - | CH46: - | CI46: - | CJ46: - | CK46: - | CL46: - | CM46: - | CN46: - | CO46: - | CP46: - | CQ46: - | CR46: - | CS46: - | CT46: - | CU46: - | CV46: - | CW46: - | CX46: 183.0 | CY46: 89.7 | CZ46: 93.3 | DA46: - | DB46: - | DC46: - | DD46: 18 | DE46: 6 | DF46: 1 | DG46: 4 | DH46: 7 | DI46: - | DJ46: - | DK46: - | DL46: - | DM46: - | DN46: - | DO46: - | DP46: - | DQ46: - | DR46: - | DS46: - | DT46: - | DU46: - | DV46: 18 | DW46: 4 | DX46: - | DY46: 1 | DZ46: - | EA46: 3 | EB46: 10 | EC46: - | ED46: - | EE46: - | EF46: - | EG46: - | EH46: - | EI46: - | EJ46: - | EK46: - | EL46: - | EM46: - | EN46: - | EO46: - | EP46: - | EQ46: - | ER46: - | ES46: - | ET46: - | EU46: - | EV46: - | EW46: - | EX46: 20 | EY46: 15 | EZ46: - | FA46: - | FB46: - | FC46: 1 | FD46: - | FE46: 7 | FF46: 10 | FG46: - | FH46: - | FI46: 4 | FJ46: 3,571 | FK46: 2,940 | FL46: - | FM46: - | FN46: - | FO46: x | FP46: - | FQ46: 104 | FR46: x | FS46: - | FT46: - | FU46: x | FV46: 41 | FW46: 6 | FX46: 2 | FY46: 2 | FZ46: - | GA46: 3 | GB46: 3 | GC46: 25 | GD46: 8 | GE46: 5 | GF46: 5 | GG46: 3 | GH46: 4 | GI46: 63.5 | HJ46: 22 | HK46: 2 | HL46: - | HM46: 1 | HN46: - | HO46: 4 | HP46: 3 | HQ46: 12 | HR46: 5 | HS46: 3 | HT46: 2 | HU46: - | HV46: 2 | HW46: 6 | HX46: - | HY46: - | HZ46: - | IA46: - | IB46: 1 | IC46: 1 | ID46: 4 | IE46: 2 | IF46: 1 | IG46: - | IH46: - | II46: 1 | IJ46: 2 | IK46: - | IL46: - | IM46: - | IN46: - | IO46: - | IP46: - | IQ46: 2 | IR46: 1 | IS46: - | IT46: - | IU46: - | IV46: 1 | IW46: 14 | IX46: 2 | IY46: - | IZ46: 1 | JA46: - | JB46: 3 | JC46: 2 | JD46: 6 | JE46: 2 | JF46: 2 | JG46: 2 | JH46: - | JI46: - | LJ46: 22 | LK46: 9 | LL46: 9 | LM46: 3 | LN46: 3 | LO46: 2 | LP46: 13 | LQ46: - | LR46: - | LS46: - | LT46: - | LU46: - | LV46: - | LW46: - | LX46: 22 | LY46: 2 | LZ46: 102 | MA46: 1 | MB46: 73 | MC46: - | MD46: - | ME46: 1 | MF46: 29 | MG46: - | MH46: - | MI46: - | MJ46: - | MK46: 20 | ML46: - | MM46: - | MN46: - | MO46: - | MP46: - | MQ46: - | MR46: - | MS46: - | MT46: - | MU46: - | MV46: - | MW46: - | MX46: - | MY46: -
B47: 0620102002 | C47: 1 | H47: 06 | I47: 201 | J47: 02 | K47: 002 | L47: 山形県 | M47: 山形市 | N47: 飯塚村 | O47: 志鎌 | P47: 5 | Q47: 5 | R47: - | S47: - | T47: - | U47: 5 | V47: 1 | W47: - | X47: 4 | Y47: 9 | Z47: 5 | AA47: 4 | AB47: 5 | AC47: - | AD47: - | AE47: - | AF47: - | AG47: - | AH47: 5 | AI47: - | AJ47: - | AK47: - | AL47: - | AM47: - | AN47: - | AO47: - | AP47: 1 | AQ47: 2 | AR47: - | AS47: - | AT47: 4 | AU47: - | AV47: - | AW47: - | AX47: - | AY47: - | AZ47: 5 | BA47: 1 | BB47: 1 | BC47: 3 | BD47: - | BE47: - | BF47: - | BG47: - | BH47: - | BI47: - | BJ47: - | BK47: - | BL47: - | BM47: - | BN47: - | BO47: - | BP47: - | BQ47: - | BR47: - | BS47: - | BT47: - | BU47: - | BV47: - | BW47: - | BX47: - | BY47: - | BZ47: 490 | CA47: 89 | CB47: 401 | CC47: - | CD47: - | CE47: - | CF47: - | CG47: - | CH47: - | CI47: - | CJ47: - | CK47: - | CL47: - | CM47: - | CN47: - | CO47: - | CP47: - | CQ47: - | CR47: - | CS47: - | CT47: - | CU47: - | CV47: - | CW47: - | CX47: 98.0 | CY47: 87.4 | CZ47: 10.6 | DA47: - | DB47: - | DC47: - | DD47: 4 | DE47: 1 | DF47: 2 | DG47: - | DH47: 1 | DI47: - | DJ47: - | DK47: - | DL47: - | DM47: - | DN47: - | DO47: - | DP47: - | DQ47: - | DR47: - | DS47: - | DT47: - | DU47: - | DV47: 4 | DW47: 3 | DX47: - | DY47: - | DZ47: - | EA47: - | EB47: 1 | EC47: - | ED47: - | EE47: - | EF47: - | EG47: - | EH47: - | EI47: - | EJ47: - | EK47: - | EL47: - | EM47: - | EN47: - | EO47: - | EP47: - | EQ47: - | ER47: - | ES47: - | ET47: - | EU47: - | EV47: - | EW47: - | EX47: 4 | EY47: 3 | EZ47: - | FA47: - | FB47: 1 | FC47: 1 | FD47: - | FE47: 3 | FF47: 3 | FG47: 1 | FH47: - | FI47: 1 | FJ47: 358 | FK47: 241 | FL47: - | FM47: - | FN47: x | FO47: x | FP47: - | FQ47: 32 | FR47: x | FS47: x | FT47: - | FU47: x | FV47: 6 | FW47: 1 | FX47: - | FY47: - | FZ47: - | GA47: - | GB47: 1 | GC47: 4 | GD47: 2 | GE47: - | GF47: - | GG47: - | GH47: 2 | GI47: 67.3 | HJ47: 5 | HK47: - | HL47: - | HM47: - | HN47: - | HO47: - | HP47: 1 | HQ47: 4 | HR47: 2 | HS47: - | HT47: - | HU47: - | HV47: 2 | HW47: 2 | HX47: - | HY47: - | HZ47: - | IA47: - | IB47: - | IC47: - | ID47: 2 | IE47: 2 | IF47: - | IG47: - | IH47: - | II47: - | IJ47: - | IK47: - | IL47: - | IM47: - | IN47: - | IO47: - | IP47: - | IQ47: - | IR47: - | IS47: - | IT47: - | IU47: - | IV47: - | IW47: 3 | IX47: - | IY47: - | IZ47: - | JA47: - | JB47: - | JC47: 1 | JD47: 2 | JE47: - | JF47: - | JG47: - | JH47: - | JI47: 2 | LJ47: 5 | LK47: 3 | LL47: 3 | LM47: 3 | LN47: - | LO47: - | LP47: 2 | LQ47: - | LR47: - | LS47: - | LT47: - | LU47: - | LV47: - | LW47: - | LX47: 5 | LY47: 1 | LZ47: 65 | MA47: 1 | MB47: 65 | MC47: - | MD47: - | ME47: - | MF47: - | MG47: - | MH47: - | MI47: - | MJ47: - | MK47: 4 | ML47: - | MM47: - | MN47: - | MO47: - | MP47: - | MQ47: - | MR47: - | MS47: - | MT47: - | MU47: - | MV47: - | MW47: - | MX47: - | MY47: -
B48: 0620103000 | C48: 1 | H48: 06 | I48: 201 | J48: 03 | K48: 000 | L48: 山形県 | M48: 山形市 | N48: 椹沢村 | P48: 38 | Q48: 38 | R48: - | S48: - | T48: - | U48: 38 | V48: 5 | W48: 6 | X48: 27 | Y48: 77 | Z48: 36 | AA48: 41 | AB48: 38 | AC48: - | AD48: - | AE48: - | AF48: - | AG48: - | AH48: 38 | AI48: - | AJ48: - | AK48: - | AL48: - | AM48: - | AN48: - | AO48: - | AP48: 5 | AQ48: 224 | AR48: - | AS48: - | AT48: 33 | AU48: - | AV48: - | AW48: - | AX48: - | AY48: - | AZ48: 37 | BA48: 10 | BB48: 9 | BC48: 11 | BD48: 2 | BE48: 1 | BF48: 3 | BG48: 1 | BH48: - | BI48: - | BJ48: - | BK48: 1 | BL48: - | BM48: - | BN48: - | BO48: - | BP48: - | BQ48: - | BR48: - | BS48: - | BT48: - | BU48: - | BV48: - | BW48: - | BX48: - | BY48: - | BZ48: 11008 | CA48: 944 | CB48: 1509 | CC48: 462 | CD48: 450 | CE48: 1800 | CF48: 5843 | CG48: - | CH48: - | CI48: - | CJ48: 5843 | CK48: - | CL48: - | CM48: - | CN48: - | CO48: - | CP48: - | CQ48: - | CR48: - | CS48: - | CT48: - | CU48: - | CV48: - | CW48: - | CX48: 297.5 | CY48: 240.5 | CZ48: 57.0 | DA48: - | DB48: - | DC48: - | DD48: 35 | DE48: 15 | DF48: 11 | DG48: 9 | DH48: - | DI48: - | DJ48: - | DK48: - | DL48: - | DM48: - | DN48: - | DO48: - | DP48: - | DQ48: - | DR48: - | DS48: - | DT48: - | DU48: - | DV48: 35 | DW48: 14 | DX48: - | DY48: 4 | DZ48: - | EA48: 8 | EB48: 5 | EC48: 4 | ED48: - | EE48: - | EF48: - | EG48: - | EH48: - | EI48: - | EJ48: - | EK48: - | EL48: - | EM48: - | EN48: - | EO48: - | EP48: - | EQ48: - | ER48: - | ES48: - | ET48: - | EU48: - | EV48: - | EW48: - | EX48: 35 | EY48: 17 | EZ48: - | FA48: 1 | FB48: 1 | FC48: 15 | FD48: 1 | FE48: 20 | FF48: 9 | FG48: 7 | FH48: - | FI48: 6 | FJ48: 10,841 | FK48: 8,293 | FL48: - | FM48: x | FN48: x | FO48: x | FP48: x | FQ48: 589 | FR48: 136 | FS48: x | FT48: - | FU48: x | FV48: 53 | FW48: 5 | FX48: 1 | FY48: - | FZ48: - | GA48: 3 | GB48: 4 | GC48: 40 | GD48: 9 | GE48: 10 | GF48: 8 | GG48: 10 | GH48: 3 | GI48: 68.6 | HJ48: 38 | HK48: 2 | HL48: 1 | HM48: - | HN48: - | HO48: 1 | HP48: 3 | HQ48: 31 | HR48: 10 | HS48: 7 | HT48: 6 | HU48: 5 | HV48: 3 | HW48: 10 | HX48: - | HY48: 1 | HZ48: - | IA48: - | IB48: - | IC48: - | ID48: 9 | IE48: 3 | IF48: - | IG48: 2 | IH48: 3 | II48: 1 | IJ48: 3 | IK48: - | IL48: - | IM48: - | IN48: - | IO48: - | IP48: 1 | IQ48: 2 | IR48: - | IS48: - | IT48: 2 | IU48: - | IV48: - | IW48: 25 | IX48: 2 | IY48: - | IZ48: - | JA48: - | JB48: 1 | JC48: 2 | JD48: 20 | JE48: 7 | JF48: 7 | JG48: 2 | JH48: 2 | JI48: 2 | LJ48: 38 | LK48: 16 | LL48: 15 | LM48: 3 | LN48: - | LO48: 1 | LP48: 22 | LQ48: - | LR48: - | LS48: - | LT48: - | LU48: - | LV48: - | LW48: - | LX48: 38 | LY48: 4 | LZ48: 498 | MA48: 4 | MB48: 360 | MC48: - | MD48: - | ME48: 2 | MF48: 63 | MG48: - | MH48: - | MI48: 1 | MJ48: 75 | MK48: 34 | ML48: - | MM48: - | MN48: - | MO48: - | MP48: - | MQ48: - | MR48: - | MS48: - | MT48: - | MU48: - | MV48: - | MW48: - | MX48: - | MY48: -
B49: 0620103001 | C49: 1 | H49: 06 | I49: 201 | J49: 03 | K49: 001 | L49: 山形県 | M49: 山形市 | N49: 椹沢村 | O49: 上椹沢 | P49: 15 | Q49: 15 | R49: - | S49: - | T49: - | U49: 15 | V49: 2 | W49: 2 | X49: 11 | Y49: 35 | Z49: 15 | AA49: 20 | AB49: 15 | AC49: - | AD49: - | AE49: - | AF49: - | AG49: - | AH49: 15 | AI49: - | AJ49: - | AK49: - | AL49: - | AM49: - | AN49: - | AO49: - | AP49: - | AQ49: - | AR49: - | AS49: - | AT49: - | AU49: - | AV49: - | AW49: - | AX49: - | AY49: - | AZ49: 15 | BA49: 3 | BB49: 3 | BC49: 5 | BD49: 1 | BE49: 1 | BF49: 1 | BG49: 1 | BH49: - | BI49: - | BJ49: - | BK49: 1 | BL49: - | BM49: - | BN49: - | BO49: - | BP49: - | BQ49: - | BR49: - | BS49: - | BT49: - | BU49: - | BV49: - | BW49: - | BX49: - | BY49: - | BZ49: 8155 | CA49: 336 | CB49: 749 | CC49: 247 | CD49: 450 | CE49: 530 | CF49: 5843 | CG49: - | CH49: - | CI49: - | CJ49: 5843 | CK49: - | CL49: - | CM49: - | CN49: - | CO49: - | CP49: - | CQ49: - | CR49: - | CS49: - | CT49: - | CU49: - | CV49: - | CW49: - | CX49: 543.7 | CY49: 484.7 | CZ49: 59.0 | DA49: - | DB49: - | DC49: - | DD49: 14 | DE49: 7 | DF49: 3 | DG49: 4 | DH49: - | DI49: - | DJ49: - | DK49: - | DL49: - | DM49: - | DN49: - | DO49: - | DP49: - | DQ49: - | DR49: - | DS49: - | DT49: - | DU49: - | DV49: 14 | DW49: 7 | DX49: - | DY49: 2 | DZ49: - | EA49: 1 | EB49: 2 | EC49: 2 | ED49: - | EE49: - | EF49: - | EG49: - | EH49: - | EI49: - | EJ49: - | EK49: - | EL49: - | EM49: - | EN49: - | EO49: - | EP49: - | EQ49: - | ER49: - | ES49: - | ET49: - | EU49: - | EV49: - | EW49: - | EX49: 14 | EY49: 9 | EZ49: - | FA49: 1 | FB49: - | FC49: 5 | FD49: - | FE49: 8 | FF49: 4 | FG49: 3 | FH49: - | FI49: 1 | FJ49: 8,077 | FK49: 6,925 | FL49: - | FM49: x | FN49: - | FO49: 795 | FP49: - | FQ49: 171 | FR49: x | FS49: 102 | FT49: - | FU49: x | FV49: 21 | FW49: 1 | FX49: - | FY49: - | FZ49: - | GA49: - | GB49: 3 | GC49: 17 | GD49: 4 | GE49: 4 | GF49: 4 | GG49: 4 | GH49: 1 | GI49: 71.0 | HJ49: 15 | HK49: 1 | HL49: - | HM49: - | HN49: - | HO49: 1 | HP49: 2 | HQ49: 11 | HR49: 3 | HS49: 2 | HT49: 3 | HU49: 2 | HV49: 1 | HW49: 3 | HX49: - | HY49: - | HZ49: - | IA49: - | IB49: - | IC49: - | ID49: 3 | IE49: - | IF49: - | IG49: 1 | IH49: 2 | II49: - | IJ49: 2 | IK49: - | IL49: - | IM49: - | IN49: - | IO49: - | IP49: 1 | IQ49: 1 | IR49: - | IS49: - | IT49: 1 | IU49: - | IV49: - | IW49: 10 | IX49: 1 | IY49: - | IZ49: - | JA49: - | JB49: 1 | JC49: 1 | JD49: 7 | JE49: 3 | JF49: 2 | JG49: 1 | JH49: - | JI49: 1 | LJ49: 15 | LK49: 8 | LL49: 7 | LM49: 1 | LN49: - | LO49: 1 | LP49: 7 | LQ49: - | LR49: - | LS49: - | LT49: - | LU49: - | LV49: - | LW49: - | LX49: 15 | LY49: 3 | LZ49: 393 | MA49: 3 | MB49: 330 | MC49: - | MD49: - | ME49: 2 | MF49: 63 | MG49: - | MH49: - | MI49: - | MJ49: - | MK49: 12 | ML49: - | MM49: - | MN49: - | MO49: - | MP49: - | MQ49: - | MR49: - | MS49: - | MT49: - | MU49: - | MV49: - | MW49: - | MX49: - | MY49: -
B50: 0620103002 | C50: 1 | H50: 06 | I50: 201 | J50: 03 | K50: 002 | L50: 山形県 | M50: 山形市 | N50: 椹沢村 | O50: 下椹沢 | P50: 23 | Q50: 23 | R50: - | S50: - | T50: - | U50: 23 | V50: 3 | W50: 4 | X50: 16 | Y50: 42 | Z50: 21 | AA50: 21 | AB50: 23 | AC50: - | AD50: - | AE50: - | AF50: - | AG50: - | AH50: 23 | AI50: - | AJ50: - | AK50: - | AL50: - | AM50: - | AN50: - | AO50: - | AP50: 5 | AQ50: 224 | AR50: - | AS50: - | AT50: 18 | AU50: - | AV50: - | AW50: - | AX50: - | AY50: - | AZ50: 22 | BA50: 7 | BB50: 6 | BC50: 6 | BD50: 1 | BE50: - | BF50: 2 | BG50: - | BH50: - | BI50: - | BJ50: - | BK50: - | BL50: - | BM50: - | BN50: - | BO50: - | BP50: - | BQ50: - | BR50: - | BS50: - | BT50: - | BU50: - | BV50: - | BW50: - | BX50: - | BY50: - | BZ50: 2853 | CA50: 608 | CB50: 760 | CC50: 215 | CD50: - | CE50: 1270 | CF50: - | CG50: - | CH50: - | CI50: - | CJ50: - | CK50: - | CL50: - | CM50: - | CN50: - | CO50: - | CP50: - | CQ50: - | CR50: - | CS50: - | CT50: - | CU50: - | CV50: - | CW50: - | CX50: 129.7 | CY50: 74.1 | CZ50: 55.6 | DA50: - | DB50: - | DC50: - | DD50: 21 | DE50: 8 | DF50: 8 | DG50: 5 | DH50: - | DI50: - | DJ50: - | DK50: - | DL50: - | DM50: - | DN50: - | DO50: - | DP50: - | DQ50: - | DR50: - | DS50: - | DT50: - | DU50: - | DV50: 21 | DW50: 7 | DX50: - | DY50: 2 | DZ50: - | EA50: 7 | EB50: 3 | EC50: 2 | ED50: - | EE50: - | EF50: - | EG50: - | EH50: - | EI50: - | EJ50: - | EK50: - | EL50: - | EM50: - | EN50: - | EO50: - | EP50: - | EQ50: - | ER50: - | ES50: - | ET50: - | EU50: - | EV50: - | EW50: - | EX50: 21 | EY50: 8 | EZ50: - | FA50: - | FB50: 1 | FC50: 10 | FD50: 1 | FE50: 12 | FF50: 5 | FG50: 4 | FH50: - | FI50: 5 | FJ50: 2,764 | FK50: 1,368 | FL50: - | FM50: - | FN50: x | FO50: x | FP50: x | FQ50: 418 | FR50: x | FS50: x | FT50: - | FU50: x | FV50: 32 | FW50: 4 | FX50: 1 | FY50: - | FZ50: - | GA50: 3 | GB50: 1 | GC50: 23 | GD50: 5 | GE50: 6 | GF50: 4 | GG50: 6 | GH50: 2 | GI50: 67.1 | HJ50: 23 | HK50: 1 | HL50: 1 | HM50: - | HN50: - | HO50: - | HP50: 1 | HQ50: 20 | HR50: 7 | HS50: 5 | HT50: 3 | HU50: 3 | HV50: 2 | HW50: 7 | HX50: - | HY50: 1 | HZ50: - | IA50: - | IB50: - | IC50: - | ID50: 6 | IE50: 3 | IF50: - | IG50: 1 | IH50: 1 | II50: 1 | IJ50: 1 | IK50: - | IL50: - | IM50: - | IN50: - | IO50: - | IP50: - | IQ50: 1 | IR50: - | IS50: - | IT50: 1 | IU50: - | IV50: - | IW50: 15 | IX50: 1 | IY50: - | IZ50: - | JA50: - | JB50: - | JC50: 1 | JD50: 13 | JE50: 4 | JF50: 5 | JG50: 1 | JH50: 2 | JI50: 1 | LJ50: 23 | LK50: 8 | LL50: 8 | LM50: 2 | LN50: - | LO50: - | LP50: 15 | LQ50: - | LR50: - | LS50: - | LT50: - | LU50: - | LV50: - | LW50: - | LX50: 23 | LY50: 1 | LZ50: 105 | MA50: 1 | MB50: 30 | MC50: - | MD50: - | ME50: - | MF50: - | MG50: - | MH50: - | MI50: 1 | MJ50: 75 | MK50: 22 | ML50: - | MM50: - | MN50: - | MO50: - | MP50: - | MQ50: - | MR50: - | MS50: - | MT50: - | MU50: - | MV50: - | MW50: - | MX50: - | MY50: -
B51: 0620104000 | C51: 1 | H51: 06 | I51: 201 | J51: 04 | K51: 000 | L51: 山形県 | M51: 山形市 | N51: 南沼原村 | P51: 48 | Q51: 45 | R51: - | S51: 3 | T51: 3 | U51: 45 | V51: 12 | W51: 4 | X51: 29 | Y51: 77 | Z51: 46 | AA51: 31 | AB51: 48 | AC51: 3 | AD51: - | AE51: 3 | AF51: - | AG51: - | AH51: 45 | AI51: 3 | AJ51: 3 | AK51: - | AL51: 3 | AM51: - | AN51: - | AO51: - | AP51: 13 | AQ51: 3,853 | AR51: 6 | AS51: 16 | AT51: 35 | AU51: 3 | AV51: 2,661 | AW51: 3 | AX51: 13 | AY51: - | AZ51: 48 | BA51: 6 | BB51: 16 | BC51: 9 | BD51: 4 | BE51: 2 | BF51: 5 | BG51: 6 | BH51: 3 | BI51: 1 | BJ51: 2 | BK51: - | BL51: - | BM51: 3 | BN51: - | BO51: - | BP51: 1 | BQ51: - | BR51: - | BS51: - | BT51: 2 | BU51: 1 | BV51: - | BW51: 1 | BX51: - | BY51: - | BZ51: 21098 | CA51: 1285 | CB51: 1270 | CC51: 880 | CD51: 872 | CE51: 3544 | CF51: 13247 | CG51: 3867 | CH51: 2000 | CI51: 7380 | CJ51: - | CK51: - | CL51: 5,167 | CM51: - | CN51: 140 | CO51: - | CP51: - | CQ51: - | CR51: 5,027 | CS51: 1,000 | CT51: - | CU51: 4,027 | CV51: - | CW51: - | CX51: 439.5 | CY51: 166.5 | CZ51: 273.0 | DA51: 1722.3 | DB51: 213.0 | DC51: 1509.3 | DD51: 47 | DE51: 16 | DF51: 9 | DG51: 9 | DH51: 8 | DI51: 5 | DJ51: 1 | DK51: 4 | DL51: - | DM51: 3 | DN51: - | DO51: - | DP51: - | DQ51: 1 | DR51: 2 | DS51: - | DT51: 2 | DU51: - | DV51: 47 | DW51: 19 | DX51: - | DY51: 1 | DZ51: - | EA51: 14 | EB51: 9 | EC51: 2 | ED51: - | EE51: - | EF51: 1 | EG51: - | EH51: - | EI51: 1 | EJ51: 3 | EK51: 1 | EL51: - | EM51: - | EN51: - | EO51: 1 | EP51: - | EQ51: - | ER51: - | ES51: - | ET51: - | EU51: - | EV51: - | EW51: 1 | EX51: 48 | EY51: 32 | EZ51: - | FA51: 3 | FB51: 2 | FC51: 7 | FD51: 1 | FE51: 32 | FF51: 17 | FG51: 3 | FH51: 2 | FI51: 9 | FJ51: 20,353 | FK51: 15,993 | FL51: - | FM51: 138 | FN51: x | FO51: 612 | FP51: x | FQ51: 856 | FR51: 388 | FS51: x | FT51: x | FU51: 2,258 | FV51: 80 | FW51: 2 | FX51: 8 | FY51: 6 | FZ51: 3 | GA51: 1 | GB51: 1 | GC51: 59 | GD51: 6 | GE51: 20 | GF51: 25 | GG51: 6 | GH51: 2 | GI51: 67.3 | HJ51: 48 | HK51: 1 | HL51: 3 | HM51: 4 | HN51: 1 | HO51: 2 | HP51: 2 | HQ51: 35 | HR51: 4 | HS51: 9 | HT51: 14 | HU51: 6 | HV51: 2 | HW51: 17 | HX51: - | HY51: 1 | HZ51: - | IA51: - | IB51: 1 | IC51: 1 | ID51: 14 | IE51: 2 | IF51: 4 | IG51: 7 | IH51: 1 | II51: - | IJ51: 2 | IK51: - | IL51: - | IM51: - | IN51: - | IO51: - | IP51: - | IQ51: 2 | IR51: - | IS51: 1 | IT51: - | IU51: - | IV51: 1 | IW51: 29 | IX51: 1 | IY51: 2 | IZ51: 4 | JA51: 1 | JB51: 1 | JC51: 1 | JD51: 19 | JE51: 2 | JF51: 4 | JG51: 7 | JH51: 5 | JI51: 1 | LJ51: 48 | LK51: 16 | LL51: 14 | LM51: 4 | LN51: 4 | LO51: 5 | LP51: 32 | LQ51: 3 | LR51: 1 | LS51: 1 | LT51: 1 | LU51: 1 | LV51: 1 | LW51: 2 | LX51: 48 | LY51: 2 | LZ51: 14 | MA51: - | MB51: - | MC51: - | MD51: - | ME51: 2 | MF51: 14 | MG51: - | MH51: - | MI51: - | MJ51: - | MK51: 46 | ML51: 3 | MM51: 1 | MN51: 10 | MO51: - | MP51: - | MQ51: - | MR51: - | MS51: 1 | MT51: 10 | MU51: - | MV51: - | MW51: - | MX51: - | MY51: 2
B52: 0620104001 | C52: 1 | H52: 06 | I52: 201 | J52: 04 | K52: 001 | L52: 山形県 | M52: 山形市 | N52: 南沼原村 | O52: 南館 | P52: 20 | Q52: 19 | R52: - | S52: 1 | T52: 1 | U52: 19 | V52: 11 | W52: 1 | X52: 7 | Y52: 29 | Z52: 19 | AA52: 10 | AB52: 20 | AC52: 1 | AD52: - | AE52: 1 | AF52: - | AG52: - | AH52: 19 | AI52: 1 | AJ52: 1 | AK52: - | AL52: 1 | AM52: - | AN52: - | AO52: - | AP52: 8 | AQ52: 953 | AR52: 2 | AS52: 2 | AT52: 12 | AU52: x | AV52: x | AW52: x | AX52: 1 | AY52: x | AZ52: 20 | BA52: 2 | BB52: 3 | BC52: 4 | BD52: 2 | BE52: 1 | BF52: 4 | BG52: 4 | BH52: 1 | BI52: 1 | BJ52: 2 | BK52: - | BL52: - | BM52: x | BN52: x | BO52: x | BP52: x | BQ52: x | BR52: x | BS52: x | BT52: x | BU52: x | BV52: x | BW52: x | BX52: x | BY52: x | BZ52: 15570 | CA52: 329 | CB52: 572 | CC52: 455 | CD52: 452 | CE52: 2982 | CF52: 10780 | CG52: 1400 | CH52: 2000 | CI52: 7380 | CJ52: - | CK52: - | CL52: x | CM52: x | CN52: x | CO52: x | CP52: x | CQ52: x | CR52: x | CS52: x | CT52: x | CU52: x | CV52: x | CW52: x | CX52: 778.5 | CY52: 194.0 | CZ52: 584.6 | DA52: x | DB52: x | DC52: x | DD52: 20 | DE52: 4 | DF52: 2 | DG52: 4 | DH52: 7 | DI52: 3 | DJ52: 1 | DK52: 2 | DL52: - | DM52: x | DN52: x | DO52: x | DP52: x | DQ52: x | DR52: x | DS52: x | DT52: x | DU52: x | DV52: 20 | DW52: 9 | DX52: - | DY52: 1 | DZ52: - | EA52: 2 | EB52: 6 | EC52: 2 | ED52: - | EE52: - | EF52: - | EG52: - | EH52: - | EI52: - | EJ52: x | EK52: x | EL52: x | EM52: x | EN52: x | EO52: x | EP52: x | EQ52: x | ER52: x | ES52: x | ET52: x | EU52: x | EV52: x | EW52: x | EX52: 20 | EY52: 16 | EZ52: - | FA52: 2 | FB52: 1 | FC52: 4 | FD52: - | FE52: 14 | FF52: 11 | FG52: 2 | FH52: 1 | FI52: 6 | FJ52: 15,551 | FK52: 13,957 | FL52: - | FM52: x | FN52: x | FO52: 492 | FP52: - | FQ52: 372 | FR52: 305 | FS52: x | FT52: x | FU52: x | FV52: 42 | FW52: 2 | FX52: 7 | FY52: 4 | FZ52: 2 | GA52: 1 | GB52: 1 | GC52: 25 | GD52: 3 | GE52: 9 | GF52: 11 | GG52: 1 | GH52: 1 | GI52: 62.9 | HJ52: 20 | HK52: - | HL52: 3 | HM52: 4 | HN52: 1 | HO52: - | HP52: 1 | HQ52: 11 | HR52: 2 | HS52: 2 | HT52: 4 | HU52: 2 | HV52: 1 | HW52: 6 | HX52: - | HY52: 1 | HZ52: - | IA52: - | IB52: - | IC52: 1 | ID52: 4 | IE52: 1 | IF52: - | IG52: 3 | IH52: - | II52: - | IJ52: 1 | IK52: - | IL52: - | IM52: - | IN52: - | IO52: - | IP52: - | IQ52: 1 | IR52: - | IS52: - | IT52: - | IU52: - | IV52: 1 | IW52: 13 | IX52: - | IY52: 2 | IZ52: 4 | JA52: 1 | JB52: - | JC52: - | JD52: 6 | JE52: 1 | JF52: 2 | JG52: 1 | JH52: 2 | JI52: - | LJ52: 20 | LK52: 13 | LL52: 12 | LM52: 4 | LN52: 3 | LO52: 5 | LP52: 7 | LQ52: 1 | LR52: x | LS52: x | LT52: x | LU52: x | LV52: x | LW52: x | LX52: 20 | LY52: 1 | LZ52: 4 | MA52: - | MB52: - | MC52: - | MD52: - | ME52: 1 | MF52: 4 | MG52: - | MH52: - | MI52: - | MJ52: - | MK52: 19 | ML52: 1 | MM52: x | MN52: x | MO52: x | MP52: x | MQ52: x | MR52: x | MS52: x | MT52: x | MU52: x | MV52: x | MW52: x | MX52: x | MY52: x
B53: 0620104002 | C53: 1 | H53: 06 | I53: 201 | J53: 04 | K53: 002 | L53: 山形県 | M53: 山形市 | N53: 南沼原村 | O53: 吉原 | P53: 8 | Q53: 7 | R53: - | S53: 1 | T53: 1 | U53: 7 | V53: 1 | W53: 2 | X53: 4 | Y53: 11 | Z53: 7 | AA53: 4 | AB53: 8 | AC53: 1 | AD53: - | AE53: 1 | AF53: - | AG53: - | AH53: 7 | AI53: 1 | AJ53: 1 | AK53: - | AL53: 1 | AM53: - | AN53: - | AO53: - | AP53: 3 | AQ53: 319 | AR53: 2 | AS53: 2 | AT53: 5 | AU53: x | AV53: x | AW53: x | AX53: 1 | AY53: x | AZ53: 8 | BA53: 1 | BB53: 3 | BC53: 1 | BD53: 1 | BE53: - | BF53: 1 | BG53: 1 | BH53: 1 | BI53: - | BJ53: - | BK53: - | BL53: - | BM53: x | BN53: x | BO53: x | BP53: x | BQ53: x | BR53: x | BS53: x | BT53: x | BU53: x | BV53: x | BW53: x | BX53: x | BY53: x | BZ53: 2587 | CA53: 205 | CB53: 140 | CC53: 213 | CD53: - | CE53: 562 | CF53: 1467 | CG53: 1467 | CH53: - | CI53: - | CJ53: - | CK53: - | CL53: x | CM53: x | CN53: x | CO53: x | CP53: x | CQ53: x | CR53: x | CS53: x | CT53: x | CU53: x | CV53: x | CW53: x | CX53: 323.4 | CY53: 303.1 | CZ53: 20.3 | DA53: x | DB53: x | DC53: x | DD53: 8 | DE53: 1 | DF53: 2 | DG53: 3 | DH53: 1 | DI53: 1 | DJ53: - | DK53: 1 | DL53: - | DM53: x | DN53: x | DO53: x | DP53: x | DQ53: x | DR53: x | DS53: x | DT53: x | DU53: x | DV53: 8 | DW53: 2 | DX53: - | DY53: - | DZ53: - | EA53: 3 | EB53: 2 | EC53: - | ED53: - | EE53: - | EF53: 1 | EG53: - | EH53: - | EI53: - | EJ53: x | EK53: x | EL53: x | EM53: x | EN53: x | EO53: x | EP53: x | EQ53: x | ER53: x | ES53: x | ET53: x | EU53: x | EV53: x | EW53: x | EX53: 8 | EY53: 5 | EZ53: - | FA53: - | FB53: 1 | FC53: - | FD53: 1 | FE53: 6 | FF53: 4 | FG53: - | FH53: 1 | FI53: 1 | FJ53: 1,193 | FK53: 871 | FL53: - | FM53: - | FN53: x | FO53: - | FP53: x | FQ53: 219 | FR53: x | FS53: - | FT53: x | FU53: x | FV53: 16 | FW53: - | FX53: 1 | FY53: 2 | FZ53: 1 | GA53: - | GB53: - | GC53: 12 | GD53: 2 | GE53: 4 | GF53: 5 | GG53: 1 | GH53: - | GI53: 67.1 | HJ53: 8 | HK53: 1 | HL53: - | HM53: - | HN53: - | HO53: - | HP53: - | HQ53: 7 | HR53: 1 | HS53: 1 | HT53: 4 | HU53: 1 | HV53: - | HW53: 3 | HX53: - | HY53: - | HZ53: - | IA53: - | IB53: - | IC53: - | ID53: 3 | IE53: - | IF53: 1 | IG53: 2 | IH53: - | II53: - | IJ53: - | IK53: - | IL53: - | IM53: - | IN53: - | IO53: - | IP53: - | IQ53: - | IR53: - | IS53: - | IT53: - | IU53: - | IV53: - | IW53: 5 | IX53: 1 | IY53: - | IZ53: - | JA53: - | JB53: - | JC53: - | JD53: 4 | JE53: 1 | JF53: - | JG53: 2 | JH53: 1 | JI53: - | LJ53: 8 | LK53: 3 | LL53: 2 | LM53: - | LN53: 1 | LO53: - | LP53: 5 | LQ53: 1 | LR53: x | LS53: x | LT53: x | LU53: x | LV53: x | LW53: x | LX53: 8 | LY53: 1 | LZ53: 10 | MA53: - | MB53: - | MC53: - | MD53: - | ME53: 1 | MF53: 10 | MG53: - | MH53: - | MI53: - | MJ53: - | MK53: 7 | ML53: 1 | MM53: x | MN53: x | MO53: x | MP53: x | MQ53: x | MR53: x | MS53: x | MT53: x | MU53: x | MV53: x | MW53: x | MX53: x | MY53: x
